{"text_format":"3","workbook":"xlsx","n_sheets":28,"sheets":["Intro","A1","A2 (CHI2)","A2 (CHI)","A2 (CHI) ","A2 (MEX-LATAM)","A3","A4","A4.a","A5","Formula limites","A6","A7","A7.a","A7.b","A8","A8.b","A9","A9.a","A9.b","T2+T2.a","T3","T4","T6","Paquetes_A4","Datos_A7","Datos 2","DAP"],"not_rendered":{"images":44,"external_links":1,"defined_names":143,"comments":3},"read":"whole","date_system":"1900"}

{"sheet":"Intro","index":0,"n_rows":3,"n_cols":2,"rows_kept":3,"merged":[[2,1,11,11]]}
[null,"INTRODUCCIÓN"]
[]
[null,"Esta Ficha Minergie sirve de complemento para la verificación y justificación de ciertos requisitos de la certificación Minergie, a través de cálculos simples.\n-Cada pestaña corresponde a un requisito específico y contiene la metodología de cálculo para la verificación.\n-Las celdas en color gris claro, pueden ser llenadas con información de parte del Experto/a Minergie o contienen listas desplegables donde se tiene que seleccionar un elemento.\n\nFecha de última edición de esta Ficha Minergie: Febrero 2025\nVersión válida del reglamento: 2025.1\nVersión válida de la guía de aplicación: 2025.1\nVersión de ficha: V5"]

{"sheet":"A1","index":1,"n_rows":6,"n_cols":9,"rows_kept":6,"merged":[[3,5,8,11]]}
["A1","Datos del proyecto",null,null,"Zonas Chile: Todas",{"$nulls":3},"Zona ASHRAE: Todas"]
[]
[null,null,"m2","Tipo de acción"]
[null,"Superficie acondicionada",null,"llenar",null,"Superficie acondicionada: Superficie delimitada por el perímetro de aislamiento, compuesta por recintos normalmente utilizados por los usuarios y que considera sistemas de calefacción o refrigeración, y/o que de forma pasiva se mantenga la temperatura dentro del rango de confort térmico. La superficie se mide en bruto, por lo que incluye secciones transversales de muros y pozos."]
[]
[null,"Tipo de recinto",null,"seleccionar"]

{"sheet":"A2 (CHI2)","index":2,"n_rows":202,"n_cols":23,"rows_kept":202,"hidden":true,"merged":[[2,7,2,22],[3,7,4,7],[3,8,3,15],[3,16,3,22],[15,7,15,22],[25,14,35,14],[25,15,25,20],[25,21,25,24],[26,1,26,5],[27,1,27,5],[27,7,27,11],[28,1,28,5],[29,1,29,5],[35,7,43,11],[46,1,46,4],[47,1,47,4],[51,1,51,5],[52,1,52,5],[52,7,52,11],[53,1,53,5],[54,1,54,5],[56,1,56,5],[56,7,64,11],[68,1,68,4],[69,1,69,4],[71,1,71,5],[83,1,83,4],[84,1,84,4],[86,1,86,5],[87,2,87,3],[87,4,87,5],[88,2,88,3],[88,4,88,5],[89,2,89,3],[89,4,89,5],[90,1,90,3],[93,1,93,5],[105,1,105,4],[106,1,106,4],[108,1,108,5],[120,1,120,4],[121,1,121,4],[123,1,123,5],[124,2,124,3],[124,4,124,5],[125,2,125,3],[125,4,125,5],[126,2,126,3],[126,4,126,5],[127,1,127,3],[127,4,127,5],[130,1,130,5],[142,1,142,4],[143,1,143,4],[145,1,145,5],[157,1,157,4],[158,1,158,4],[160,1,160,5],[161,2,161,3],[161,4,161,5],[162,2,162,3],[162,4,162,5],[163,2,163,3],[163,4,163,5],[164,1,164,3],[164,4,164,5],[167,1,167,5],[179,1,179,4],[180,1,180,4],[182,1,182,5],[194,1,194,4],[195,1,195,4],[197,1,197,5],[198,2,198,3],[198,4,198,5],[199,2,199,3],[199,4,199,5],[200,2,200,3],[200,4,200,5],[201,1,201,3],[201,4,201,5]]}
["A2","Aislamiento térmico de la envolvente",null,null,"Zonas Chile: Todas",{"$nulls":3},"Zona ASHRAE: Todas"]
[]
[null,"Tabla A2.1",{"$nulls":5},"TRAANSMITANCIAS TÉRMICAS PERMITIDAS"]
[null,"Componente","Valor U (W/m2°k)","Tipo de acción",{"$nulls":3},"Zona térmica","De separación con espacio expeterior o local abierto",{"$nulls":7},"De separación con otro local, desván o cámara de aire"]
[null,"Muro 1",null,"llenar",{"$nulls":4},"Techumbre Ligera","Techumbe Sólida","Muro Ligero","Muro Sólido","Piso Ligero","Piso Sólido","Ventana","Puerta","Muro Ligero","Muro Sólido","Techumbre Ligera","Techumbe Sólida","Piso Ligero","Piso Sólido","Puerta"]
[null,"Muro 2",null,"llenar",{"$nulls":3},"A Norte Literal",0.4,0.6,0.4,0.6,0.4,0.6,1.9,1.9,0.6,0.6,0.6,0.6,0.6,0.6,3]
[null,"Muro 3",null,"llenar",{"$nulls":3},"B Norte inferior",0.4,0.6,0.4,0.6,0.4,0.6,1.9,1.9,0.6,0.6,0.6,0.6,0.6,0.6,3]
[null,"Muro 4",null,"llenar",{"$nulls":3},"C Central Literal",0.3,0.5,0.3,0.5,0.3,0.5,1.9,1.9,0.4,0.5,0.4,0.5,0.4,0.5,3]
[null,"Muro 5",null,"llenar",{"$nulls":3},"D Central Interior",0.3,0.5,0.3,0.5,0.3,0.5,1.9,1.9,0.4,0.5,0.4,0.5,0.4,0.5,3]
[null,"Techumbre 1",null,"llenar",{"$nulls":3},"E Sur litoral",0.25,0.25,0.25,0.25,0.25,0.25,1.9,1.9,0.4,0.4,0.4,0.4,0.4,0.4,3]
[null,"Techumbre 2",null,"llenar",{"$nulls":3},"F Sur interior",0.25,0.25,0.25,0.25,0.25,0.25,1.9,1.9,0.3,0.3,0.3,0.3,0.3,0.3,3]
[null,"Techumbre 3",null,"llenar",{"$nulls":3},"G Sur",0.25,0.25,0.25,0.25,0.25,0.25,1.9,1.9,0.3,0.3,0.3,0.3,0.3,0.3,3]
[null,"Piso 1",null,"llenar",{"$nulls":3},"H Andina",0.18,0.18,0.18,0.18,0.18,0.18,1.9,1.9,0.3,0.3,0.3,0.3,0.3,0.3,3]
[null,"Piso 2",null,"llenar",{"$nulls":3},"I Extremo Sur",0.18,0.18,0.18,0.18,0.18,0.18,1.9,1.9,0.3,0.3,0.3,0.3,0.3,0.3,3]
[null,"Piso 3",null,"llenar"]
[null,"Ventana 1",null,"llenar",{"$nulls":3},"RESISTENCIAS TÉRMICAS DE SUPERFICIE "]
[null,"Ventana 2",null,"llenar",{"$nulls":3},"Rsi",0.09,0.09,0.12,0.12,0.17,0.17,0.12,0.12,0.12,0.12,0.1,0.1,0.17,0.17,0.12]
[null,"Ventana 3",null,"llenar",{"$nulls":3},"Rse",0.05,0.05,0.05,0.05,0.05,0.05,0.05,0.05,0.12,0.12,0.1,0.1,0.17,0.17,0.12]
[null,"Puerta 1",null,"llenar"]
[null,"Puerta 2",null,"llenar"]
[]
[]
[]
[null,"Las siguientes alternativas de cálculo se ponen a disposición en caso que el/la Experto/a lo requiera para llenar los datos de la \"Tabla A2.1\" de declaración de Valores U"]
[null,"Alternativa 1. Cálculo de valor U: Sistema constructivo sólido."]
[]
[null,"Elementos de construcción sólida:"]
[null,"-     Muro de hormigón armado (mínimo 10 cm de espesor)"]
[null,"-     Muro de albañilería (mínimo 20 cm de espesor)"]
[null,"-     Muro de adobe (mínimo 17 cm de espesor)"]
[]
[null,"Situación","De separación con espacio expeterior o local abierto",{"$nulls":4},"TRANSMITACIA MAXIMA",{"$f":"+_xlfn.XLOOKUP(C34,H6:H13,INDIRECT(_xlfn.CONCAT(SUBSTITUTE(C33,\" \",\"_\"),_xlfn.SWITCH(C32,\"Contra espacios no acondicionados y terreno\",\"_int\",\"Contra clima exterior\",\"_ext\"))))","v":{"$error":"#NAME?"}}]
[null,"Elemento","Puerta",{"$nulls":4},"EVALUACION",{"$f":"_xlfn.IFS(F48<=I32,\"Cumple\",F48>I32,\"No cumple\")","v":{"$error":"#NAME?"}}]
[null,"Zona térmica ","B Norte inferior"]
[]
[null,"Material","Espesor \n(m)","Densidad\n(kg/m3)","Conductividad (W/m°K)","Resistencia (m2°K/W)",null,"En Chile se deben utilizar las resistencias superficiales de la tabla N°2 de la Norma Chilena NCh 853Of.2007 (basada en la norma internacional ISO 6946) \"Resistencia superficial por elementos verticales y horizontales\" según el caso que corresponda.\n\nPara el caso países LATAM, es posible usar los mismos que la norma chilena basada en la norma internacional, o bien basarse en lo dado por las normativas respectivas del país."]
[null,"Resistencia superficie interior",{"$nulls":3},{"$f":"+_xlfn.IFS(C32=I4,_xlfn.XLOOKUP(C33,Contra_clima_exterior,I17:P17),C32=Q4,_xlfn.XLOOKUP(C33,Contra_espacios_no_acondicionados_y_terreno,Q17:W17))","v":{"$error":"#NAME?"}}]
[null,"Hormigón",{"v":0.2,"d":"0.200"},2400,1.63,{"$f":"IFERROR(C38/E38,\"\")","v":{"v":0.1226993865030675,"d":"0.123"}}]
[null,"eps",{"v":0.1,"d":"0.100"},null,{"v":0.804,"d":"0.80"},{"v":0.12437810945273632,"d":"0.124"}]
[{"$nulls":5},""]
[{"$nulls":5},""]
[{"$nulls":5},""]
[{"$nulls":5},""]
[{"$nulls":5},""]
[{"$nulls":5},""]
[null,"Resistencia superficie exterior",{"$nulls":3},{"$f":"+_xlfn.IFS(C32=I4,_xlfn.XLOOKUP(C33,Contra_clima_exterior,I18:P18),C32=Q4,_xlfn.XLOOKUP(C33,Contra_espacios_no_acondicionados_y_terreno,Q18:W18))","v":{"$error":"#NAME?"}}]
[null,"Resistencia Térmica (m2°K/W)",{"$nulls":3},{"$f":"SUM(F37:F46)","v":{"$error":"#NAME?"}}]
[null,"Transmitancia Térmica U (W/m2°K)",{"$nulls":3},{"$f":"1/F47","v":{"$error":"#NAME?"}}]
[]
[null,"Alternativa 2. Cálculo de valor U: Sistema constructivo mixto o ligero (2 o más secciones)."]
[]
[null,"Elementos de construcción ligera:"]
[null,"-     Muro de madera contralaminada “CLT” (con menos de 27 cm de espesor)"]
[null,"-     Sistema constructivo con base a marcos de madera (tabiquería de madera)"]
[null,"-     Sistema constructivo con base a marcos metálicos (tabiquería metálica)"]
[]
[null,"SECCIÓN 1",{"$nulls":5},"En Chile se deben utilizar las resistencias superficiales de la tabla N°2 de la Norma Chilena NCh 853Of.2007 (basada en la norma internacional ISO 6946) \"Resistencia superficial por elementos verticales y horizontales\" según el caso que corresponda.\n\nPara el caso países LATAM, es posible usar los mismos que la norma chilena basada en la norma internacional, o bien basarse en lo dado por las normativas respectivas del país."]
[null,"Material","Espesor \n(m)","Densidad\n(kg/m3)","Conductividad (W/m°K)","Resistencia (m2°K/W)"]
[null,"Resistencia superficie interior"]
[{"$nulls":5},{"$f":"IFERROR(C60/E60,\"\")","v":""}]
[{"$nulls":5},""]
[{"$nulls":5},""]
[{"$nulls":5},""]
[{"$nulls":5},""]
[{"$nulls":5},""]
[{"$nulls":5},""]
[{"$nulls":5},""]
[null,"Resistencia superficie exterior"]
[null,"Resistencia Térmica (m2°K/W)",{"$nulls":3},{"$f":"SUM(F59:F68)","v":{"v":0,"d":"0.000"}}]
[null,"Transmitancia Térmica sección 1 U (W/m2°K)",{"$nulls":3},{"$f":"1/F69","v":{"$error":"#DIV/0!"}}]
[]
[null,"SECCIÓN 2"]
[null,"Material","Espesor \n(m)","Densidad\n(kg/m3)","Conductividad (W/m°K)","Resistencia (m2°K/W)"]
[null,"Resistencia superficie interior"]
[{"$nulls":5},{"v":3.2051282051282053,"d":"3.205"}]
[{"$nulls":5},{"v":1.0416666666666667,"d":"1.042"}]
[{"$nulls":5},{"v":0.04166666666666667,"d":"0.042"}]
[{"$nulls":5},{"v":0.04166666666666667,"d":"0.042"}]
[{"$nulls":5},{"v":0.04166666666666667,"d":"0.042"}]
[{"$nulls":5},{"$f":"IFERROR(C80/E80,\"\")","v":""}]
[{"$nulls":5},{"$f":"IFERROR(C81/E81,\"\")","v":""}]
[{"$nulls":5},{"$f":"IFERROR(C82/E82,\"\")","v":""}]
[null,"Resistencia superficie exterior"]
[null,"Resistencia Térmica (m2°K/W)",{"$nulls":3},{"$f":"SUM(F74:F83)","v":{"v":4.371794871794873,"d":"4.372"}}]
[null,"Transmitancia Térmica sección 2 (W/m2°K)",{"$nulls":3},{"$f":"1/F84","v":{"v":0.22873900293255126,"d":"0.23"}}]
[]
[null,"PONDERACIÓN VALORES U"]
[null,"Sección","Porcentaje en la superficie (%)",null,"Valor U ponderado"]
[null,"Valor U Sección 1",null,null,{"$f":"F70*C89","v":{"$error":"#DIV/0!"}}]
[null,"Valor U Sección 2",{"$f":"1-C89","v":{"v":1,"d":"100%"}},null,{"$f":"F85*C90","v":{"v":0.22873900293255126,"d":"0.23"}}]
[null,"Transmitancia Térmica Total U (W/m2°K)",null,null,{"$f":"SUM(E89:F90)","v":{"$error":"#DIV/0!"}}]
[null,"Evaluación U","B Norte inferior","Contra espacios no acondicionados y terreno","Sólido",{"$f":"_xlfn.IFS(E91<=H92,\"Cumple\",E91>H92,\"No cumple\")","v":{"$error":"#NAME?"}},null,{"$f":"_xlfn.IFS(C92=$F$6,IF(D92=#REF!,HLOOKUP(E92,$H$14:$J$14,2,0),HLOOKUP(E92,$K$14:$M$14,2,0)),C92=$F$7,IF(D92=#REF!,HLOOKUP(E92,$H$14:$J$14,3,0),HLOOKUP(E92,$K$14:$M$14,3,0)),C92=$F$8,IF(D92=#REF!,HLOOKUP(E92,$H$14:$J$14,4,0),HLOOKUP(E92,$K$14:$M$14,4,0)),C92=$F$9,IF(D92=#REF!,HLOOKUP(E92,$H$14:$J$14,5,0),HLOOKUP(E92,$K$14:$M$14,5,0)),C92=$F$10,IF(D92=#REF!,HLOOKUP(E92,$H$14:$J$14,6,0),HLOOKUP(E92,$K$14:$M$14,6,0)),C92=$F$11,IF(D92=#REF!,HLOOKUP(E92,$H$14:$J$14,7,0),HLOOKUP(E92,$K$14:$M$14,7,0)),C92=$F$12,IF(D92=#REF!,HLOOKUP(E92,$H$14:$J$14,8,0),HLOOKUP(E92,$K$14:$M$14,8,0)),C92=$F$13,IF(D92=#REF!,HLOOKUP(E92,$H$14:$J$14,9,0),HLOOKUP(E92,$K$14:$M$14,9,0)),C92=$F$14,IF(D92=#REF!,HLOOKUP(E92,$H$14:$J$14,10,0),HLOOKUP(E92,$K$14:$M$14,10,0)))","v":{"$error":"#NAME?"}}]
[]
[null,"SECCIÓN 1"]
[null,"Material","Espesor \n(m)","Densidad\n(kg/m3)","Conductividad (W/m°K)","Resistencia (m2°K/W)"]
[null,"Resistencia superficie interior"]
[{"$nulls":5},{"$f":"IFERROR(C97/E97,\"\")","v":""}]
[{"$nulls":5},""]
[{"$nulls":5},""]
[{"$nulls":5},""]
[{"$nulls":5},""]
[{"$nulls":5},""]
[{"$nulls":5},""]
[{"$nulls":5},""]
[null,"Resistencia superficie exterior"]
[null,"Resistencia Térmica (m2°K/W)",{"$nulls":3},{"$f":"SUM(F96:F105)","v":{"v":0,"d":"0.000"}}]
[null,"Transmitancia Térmica sección 1 U (W/m2°K)",{"$nulls":3},{"$f":"1/F106","v":{"$error":"#DIV/0!"}}]
[]
[null,"SECCIÓN 2"]
[null,"Material","Espesor \n(m)","Densidad\n(kg/m3)","Conductividad (W/m°K)","Resistencia (m2°K/W)"]
[null,"Resistencia superficie interior"]
[{"$nulls":5},{"v":3.2051282051282053,"d":"3.205"}]
[{"$nulls":5},{"v":1.0416666666666667,"d":"1.042"}]
[{"$nulls":5},{"v":0.04166666666666667,"d":"0.042"}]
[{"$nulls":5},{"v":0.04166666666666667,"d":"0.042"}]
[{"$nulls":5},{"v":0.04166666666666667,"d":"0.042"}]
[{"$nulls":5},{"$f":"IFERROR(C117/E117,\"\")","v":""}]
[{"$nulls":5},{"$f":"IFERROR(C118/E118,\"\")","v":""}]
[{"$nulls":5},{"$f":"IFERROR(C119/E119,\"\")","v":""}]
[null,"Resistencia superficie exterior"]
[null,"Resistencia Térmica (m2°K/W)",{"$nulls":3},{"$f":"SUM(F111:F120)","v":{"v":4.371794871794873,"d":"4.372"}}]
[null,"Transmitancia Térmica sección 2 (W/m2°K)",{"$nulls":3},{"$f":"1/F121","v":{"v":0.22873900293255126,"d":"0.23"}}]
[]
[null,"PONDERACIÓN VALORES U"]
[null,"Sección","Porcentaje en la superficie (%)",null,"Valor U ponderado"]
[null,"Valor U Sección 1",null,null,{"$f":"F107*C126","v":{"$error":"#DIV/0!"}}]
[null,"Valor U Sección 2",{"$f":"1-C126","v":{"v":1,"d":"100%"}},null,{"$f":"F122*C127","v":{"v":0.22873900293255126,"d":"0.23"}}]
[null,"Transmitancia Térmica Total U (W/m2°K)",null,null,{"$f":"SUM(E126:F127)","v":{"$error":"#DIV/0!"}}]
[]
[]
[null,"SECCIÓN 1"]
[null,"Material","Espesor \n(m)","Densidad\n(kg/m3)","Conductividad (W/m°K)","Resistencia (m2°K/W)"]
[null,"Resistencia superficie interior"]
[{"$nulls":5},{"$f":"IFERROR(C134/E134,\"\")","v":""}]
[{"$nulls":5},""]
[{"$nulls":5},""]
[{"$nulls":5},""]
[{"$nulls":5},""]
[{"$nulls":5},""]
[{"$nulls":5},""]
[{"$nulls":5},""]
[null,"Resistencia superficie exterior"]
[null,"Resistencia Térmica (m2°K/W)",{"$nulls":3},{"$f":"SUM(F133:F142)","v":{"v":0,"d":"0.000"}}]
[null,"Transmitancia Térmica sección 1 U (W/m2°K)",{"$nulls":3},{"$f":"1/F143","v":{"$error":"#DIV/0!"}}]
[]
[null,"SECCIÓN 2"]
[null,"Material","Espesor \n(m)","Densidad\n(kg/m3)","Conductividad (W/m°K)","Resistencia (m2°K/W)"]
[null,"Resistencia superficie interior"]
[{"$nulls":5},{"v":3.2051282051282053,"d":"3.205"}]
[{"$nulls":5},{"v":1.0416666666666667,"d":"1.042"}]
[{"$nulls":5},{"v":0.04166666666666667,"d":"0.042"}]
[{"$nulls":5},{"v":0.04166666666666667,"d":"0.042"}]
[{"$nulls":5},{"v":0.04166666666666667,"d":"0.042"}]
[{"$nulls":5},{"$f":"IFERROR(C154/E154,\"\")","v":""}]
[{"$nulls":5},{"$f":"IFERROR(C155/E155,\"\")","v":""}]
[{"$nulls":5},{"$f":"IFERROR(C156/E156,\"\")","v":""}]
[null,"Resistencia superficie exterior"]
[null,"Resistencia Térmica (m2°K/W)",{"$nulls":3},{"$f":"SUM(F148:F157)","v":{"v":4.371794871794873,"d":"4.372"}}]
[null,"Transmitancia Térmica sección 2 (W/m2°K)",{"$nulls":3},{"$f":"1/F158","v":{"v":0.22873900293255126,"d":"0.23"}}]
[]
[null,"PONDERACIÓN VALORES U"]
[null,"Sección","Porcentaje en la superficie (%)",null,"Valor U ponderado"]
[null,"Valor U Sección 1",null,null,{"$f":"F144*C163","v":{"$error":"#DIV/0!"}}]
[null,"Valor U Sección 2",{"$f":"1-C163","v":{"v":1,"d":"100%"}},null,{"$f":"F159*C164","v":{"v":0.22873900293255126,"d":"0.23"}}]
[null,"Transmitancia Térmica Total U (W/m2°K)",null,null,{"$f":"SUM(E163:F164)","v":{"$error":"#DIV/0!"}}]
[]
[]
[null,"SECCIÓN 1"]
[null,"Material","Espesor \n(m)","Densidad\n(kg/m3)","Conductividad (W/m°K)","Resistencia (m2°K/W)"]
[null,"Resistencia superficie interior",{"$nulls":3},0.12]
[{"$nulls":5},{"$f":"IFERROR(C171/E171,\"\")","v":""}]
[{"$nulls":5},""]
[{"$nulls":5},""]
[{"$nulls":5},""]
[{"$nulls":5},""]
[{"$nulls":5},""]
[{"$nulls":5},""]
[{"$nulls":5},""]
[null,"Resistencia superficie exterior",{"$nulls":3},0.05]
[null,"Resistencia Térmica (m2°K/W)",{"$nulls":3},{"$f":"SUM(F170:F179)","v":{"v":0.16999999999999998,"d":"0.170"}}]
[null,"Transmitancia Térmica sección 1 U (W/m2°K)",{"$nulls":3},{"$f":"1/F180","v":{"v":5.882352941176471,"d":"5.88"}}]
[]
[null,"SECCIÓN 2"]
[null,"Material","Espesor \n(m)","Densidad\n(kg/m3)","Conductividad (W/m°K)","Resistencia (m2°K/W)"]
[null,"Resistencia superficie interior"]
[{"$nulls":5},{"v":3.2051282051282053,"d":"3.205"}]
[{"$nulls":5},{"v":1.0416666666666667,"d":"1.042"}]
[{"$nulls":5},{"v":0.04166666666666667,"d":"0.042"}]
[{"$nulls":5},{"v":0.04166666666666667,"d":"0.042"}]
[{"$nulls":5},{"v":0.04166666666666667,"d":"0.042"}]
[{"$nulls":5},{"$f":"IFERROR(C191/E191,\"\")","v":""}]
[{"$nulls":5},{"$f":"IFERROR(C192/E192,\"\")","v":""}]
[{"$nulls":5},{"$f":"IFERROR(C193/E193,\"\")","v":""}]
[null,"Resistencia superficie exterior"]
[null,"Resistencia Térmica (m2°K/W)",{"$nulls":3},{"$f":"SUM(F185:F194)","v":{"v":4.371794871794873,"d":"4.372"}}]
[null,"Transmitancia Térmica sección 2 (W/m2°K)",{"$nulls":3},{"$f":"1/F195","v":{"v":0.22873900293255126,"d":"0.23"}}]
[]
[null,"PONDERACIÓN VALORES U"]
[null,"Sección","Porcentaje en la superficie (%)",null,"Valor U ponderado"]
[null,"Valor U Sección 1",null,null,{"$f":"F181*C200","v":{"v":0,"d":"0.000"}}]
[null,"Valor U Sección 2",{"$f":"1-C200","v":{"v":1,"d":"100%"}},null,{"$f":"F196*C201","v":{"v":0.22873900293255126,"d":"0.23"}}]
[null,"Transmitancia Térmica Total U (W/m2°K)",null,null,{"$f":"SUM(E200:F201)","v":{"v":0.22873900293255126,"d":"0.23"}}]

{"sheet":"A2 (CHI)","index":3,"n_rows":204,"n_cols":24,"rows_kept":204,"hidden":true,"merged":[[3,5,4,6],[3,7,3,9],[3,10,3,12],[3,14,4,14],[3,15,3,19],[3,20,3,23],[25,14,35,14],[25,15,25,18],[25,19,25,21],[26,1,26,5],[27,1,27,5],[27,7,27,11],[28,1,28,5],[29,1,29,5],[35,7,43,11],[46,1,46,4],[47,1,47,4],[49,8,49,11],[53,1,53,5],[54,1,54,5],[54,7,54,11],[55,1,55,5],[56,1,56,5],[58,1,58,5],[58,7,66,11],[70,1,70,4],[71,1,71,4],[73,1,73,5],[85,1,85,4],[86,1,86,4],[88,1,88,5],[89,2,89,3],[89,4,89,5],[90,2,90,3],[90,4,90,5],[91,2,91,3],[91,4,91,5],[92,1,92,3],[95,1,95,5],[107,1,107,4],[108,1,108,4],[110,1,110,5],[122,1,122,4],[123,1,123,4],[125,1,125,5],[126,2,126,3],[126,4,126,5],[127,2,127,3],[127,4,127,5],[128,2,128,3],[128,4,128,5],[129,1,129,3],[129,4,129,5],[132,1,132,5],[144,1,144,4],[145,1,145,4],[147,1,147,5],[159,1,159,4],[160,1,160,4],[162,1,162,5],[163,2,163,3],[163,4,163,5],[164,2,164,3],[164,4,164,5],[165,2,165,3],[165,4,165,5],[166,1,166,3],[166,4,166,5],[169,1,169,5],[181,1,181,4],[182,1,182,4],[184,1,184,5],[196,1,196,4],[197,1,197,4],[199,1,199,5],[200,2,200,3],[200,4,200,5],[201,2,201,3],[201,4,201,5],[202,2,202,3],[202,4,202,5],[203,1,203,3],[203,4,203,5]]}
["A2","Aislamiento térmico de la envolvente",null,null,"Zonas Chile: Todas",{"$nulls":3},"Zona ASHRAE: Todas"]
[]
[null,"Tabla A2.1",{"$nulls":3},"REQUERIMIENTO TRANSMITANCIA TÉRMICA PARA CHILE",{"$nulls":8},"OTROS PAÍSES DE LATAM"]
[null,"Componente","Valor U (W/m2°k)","Tipo de acción",null,"Zona térmica",null,"Contra clima exterior",null,null,"Contra espacios no acondicionados y terreno",{"$nulls":3},"Zona térmica","Contra clima exterior",{"$nulls":4},"Contra espacios no acondicionados y terreno"]
[null,"Muro 1",null,"llenar",1,null,null,"Ligero","Sólido","Ventanas y puertas","Ligero","Sólido","Ventanas y puertas",null,null,"Techumbre\nLigera","Techumbe sólida","Muros y pisos\nLigero","Muros y pisos\nSólido","Ventanas y puertas","Muros ligeros","Muros sólidos","Pisos","Puertas"]
[null,"Muro 2",null,"llenar",2,"A Norte Literal",null,0.4,0.6,1.9,0.6,0.6,3,null,0,0.4,0.6,0.65,0.75,1.9,0.6,0.75,0.75,3]
[null,"Muro 3",null,"llenar",3,"B Norte inferior",null,0.4,0.6,1.9,0.6,0.6,3,null,1,0.4,0.6,0.65,0.75,1.9,0.6,0.75,0.75,3]
[null,"Muro 4",null,"llenar",4,"C Central Literal",null,0.3,0.5,1.9,0.4,0.5,3,null,2,0.4,0.6,0.65,0.75,1.9,0.6,0.75,0.75,3]
[null,"Muro 5",null,"llenar",5,"D Central Interior",null,0.3,0.5,1.9,0.4,0.5,3,null,3,0.4,0.5,0.5,0.6,3,0.6,0.6,0.75,3]
[null,"Techumbre 1",null,"llenar",6,"E Sur litoral",null,0.25,0.25,1.9,0.4,0.4,3,null,4,0.3,0.4,0.4,0.5,1.9,0.4,0.5,0.5,3]
[null,"Techumbre 2",null,"llenar",7,"F Sur interior",null,0.25,0.25,1.9,0.3,0.3,3,null,5,0.25,0.25,0.25,0.25,1.9,0.4,0.4,0.5,3]
[null,"Techumbre 3",null,"llenar",8,"G Sur",null,0.25,0.25,1.9,0.3,0.3,3,null,6,0.18,0.18,0.18,0.18,1.5,0.25,0.25,0.25,3]
[null,"Piso 1",null,"llenar",9,"H Andina",null,0.18,0.18,1.9,0.3,0.3,3,null,7,0.18,0.18,0.18,0.18,1.5,0.25,0.25,0.25,3]
[null,"Piso 2",null,"llenar",10,"I Extremo Sur",null,0.18,0.18,1.9,0.3,0.3,3]
[null,"Piso 3",null,"llenar"]
[null,"Ventana 1",null,"llenar"]
[null,"Ventana 2",null,"llenar"]
[null,"Ventana 3",null,"llenar"]
[null,"Puerta 1",null,"llenar"]
[null,"Puerta 2",null,"llenar"]
[]
[]
[]
[null,"Las siguientes alternativas de cálculo se ponen a disposición en caso que el/la Experto/a lo requiera para llenar los datos de la \"Tabla A2.1\" de declaración de Valores U"]
[null,"Alternativa 1. Cálculo de valor U: Sistema constructivo sólido."]
[]
[null,"Elementos de construcción sólida:"]
[null,"-     Muro de hormigón armado (mínimo 10 cm de espesor)"]
[null,"-     Muro de albañilería (mínimo 20 cm de espesor)"]
[null,"-     Muro de adobe (mínimo 17 cm de espesor)"]
[]
[null,"Elemento","TECHO, MURO, PISO"]
[null,"Situación","Exterior o en contacto con desván o cámara de aire"]
[null,"Zona térmica "]
[null,"Tipo (ligero o sólido)"]
[null,"Material","Espesor \n(m)","Densidad\n(kg/m3)","Conductividad (W/m°K)","Resistencia (m2°K/W)",null,"En Chile se deben utilizar las resistencias superficiales de la tabla N°2 de la Norma Chilena NCh 853Of.2007 (basada en la norma internacional ISO 6946) \"Resistencia superficial por elementos verticales y horizontales\" según el caso que corresponda.\n\nPara el caso países LATAM, es posible usar los mismos que la norma chilena basada en la norma internacional, o bien basarse en lo dado por las normativas respectivas del país."]
[null,"Resistencia superficie interior",{"$nulls":3},0.12]
[null,"Hormigón",{"v":0.2,"d":"0.200"},2400,1.63,{"$f":"IFERROR(C38/E38,\"\")","v":{"v":0.1226993865030675,"d":"0.123"}}]
[null,"eps",{"v":0.1,"d":"0.100"},null,0.04,{"v":2.5,"d":"2.500"}]
[{"$nulls":5},""]
[{"$nulls":5},""]
[{"$nulls":5},""]
[{"$nulls":5},""]
[{"$nulls":5},""]
[{"$nulls":5},""]
[null,"Resistencia superficie exterior",{"$nulls":3},0.05]
[null,"Resistencia Térmica (m2°K/W)",{"$nulls":3},{"$f":"SUM(F37:F46)","v":{"v":2.792699386503067,"d":"2.793"}}]
[null,"Transmitancia Térmica U (W/m2°K)",{"$nulls":3},{"$f":"1/F47","v":{"v":0.3580764921684498,"d":"0.36"}}]
[]
[null,"Evaluación U","A Norte Literal","Contra clima exterior","Ligero",{"$f":"_xlfn.IFS(F48<=H50,\"Cumple\",F48>H50,\"No cumple\")","v":{"$error":"#NAME?"}},null,{"$f":"_xlfn.IFS(C50=$F$6,IF(D50=$H$4,HLOOKUP(E50,$H$5:$J$14,2,0),HLOOKUP(E50,$K$5:$M$14,2,0)),C50=$F$7,IF(D50=$H$4,HLOOKUP(E50,$H$5:$J$14,3,0),HLOOKUP(E50,$K$5:$M$14,3,0)),C50=$F$8,IF(D50=$H$4,HLOOKUP(E50,$H$5:$J$14,4,0),HLOOKUP(E50,$K$5:$M$14,4,0)),C50=$F$9,IF(D50=$H$4,HLOOKUP(E50,$H$5:$J$14,5,0),HLOOKUP(E50,$K$5:$M$14,5,0)),C50=$F$10,IF(D50=$H$4,HLOOKUP(E50,$H$5:$J$14,6,0),HLOOKUP(E50,$K$5:$M$14,6,0)),C50=$F$11,IF(D50=$H$4,HLOOKUP(E50,$H$5:$J$14,7,0),HLOOKUP(E50,$K$5:$M$14,7,0)),C50=$F$12,IF(D50=$H$4,HLOOKUP(E50,$H$5:$J$14,8,0),HLOOKUP(E50,$K$5:$M$14,8,0)),C50=$F$13,IF(D50=$H$4,HLOOKUP(E50,$H$5:$J$14,9,0),HLOOKUP(E50,$K$5:$M$14,9,0)),C50=$F$14,IF(D50=$H$4,HLOOKUP(E50,$H$5:$J$14,10,0),HLOOKUP(E50,$K$5:$M$14,10,0)))","v":{"$error":"#NAME?"}},"Evaluación opcional automatizada solo aplica para requerimiento de transmitancia térmica en Chile. Completar Zona térmica, situación de elemento y tipo (ligero o sólido)"]
[]
[null,"Alternativa 2. Cálculo de valor U: Sistema constructivo mixto o ligero (2 o más secciones)."]
[]
[null,"Elementos de construcción ligera:"]
[null,"-     Muro de madera contralaminada “CLT” (con menos de 27 cm de espesor)"]
[null,"-     Sistema constructivo con base a marcos de madera (tabiquería de madera)"]
[null,"-     Sistema constructivo con base a marcos metálicos (tabiquería metálica)"]
[]
[null,"SECCIÓN 1",{"$nulls":5},"En Chile se deben utilizar las resistencias superficiales de la tabla N°2 de la Norma Chilena NCh 853Of.2007 (basada en la norma internacional ISO 6946) \"Resistencia superficial por elementos verticales y horizontales\" según el caso que corresponda.\n\nPara el caso países LATAM, es posible usar los mismos que la norma chilena basada en la norma internacional, o bien basarse en lo dado por las normativas respectivas del país."]
[null,"Material","Espesor \n(m)","Densidad\n(kg/m3)","Conductividad (W/m°K)","Resistencia (m2°K/W)"]
[null,"Resistencia superficie interior"]
[{"$nulls":5},{"$f":"IFERROR(C62/E62,\"\")","v":""}]
[{"$nulls":5},""]
[{"$nulls":5},""]
[{"$nulls":5},""]
[{"$nulls":5},""]
[{"$nulls":5},""]
[{"$nulls":5},""]
[{"$nulls":5},""]
[null,"Resistencia superficie exterior"]
[null,"Resistencia Térmica (m2°K/W)",{"$nulls":3},{"$f":"SUM(F61:F70)","v":{"v":0,"d":"0.000"}}]
[null,"Transmitancia Térmica sección 1 U (W/m2°K)",{"$nulls":3},{"$f":"1/F71","v":{"$error":"#DIV/0!"}}]
[]
[null,"SECCIÓN 2"]
[null,"Material","Espesor \n(m)","Densidad\n(kg/m3)","Conductividad (W/m°K)","Resistencia (m2°K/W)"]
[null,"Resistencia superficie interior"]
[{"$nulls":5},{"v":3.2051282051282053,"d":"3.205"}]
[{"$nulls":5},{"v":1.0416666666666667,"d":"1.042"}]
[{"$nulls":5},{"v":0.04166666666666667,"d":"0.042"}]
[{"$nulls":5},{"v":0.04166666666666667,"d":"0.042"}]
[{"$nulls":5},{"v":0.04166666666666667,"d":"0.042"}]
[{"$nulls":5},{"$f":"IFERROR(C82/E82,\"\")","v":""}]
[{"$nulls":5},{"$f":"IFERROR(C83/E83,\"\")","v":""}]
[{"$nulls":5},{"$f":"IFERROR(C84/E84,\"\")","v":""}]
[null,"Resistencia superficie exterior"]
[null,"Resistencia Térmica (m2°K/W)",{"$nulls":3},{"$f":"SUM(F76:F85)","v":{"v":4.371794871794873,"d":"4.372"}}]
[null,"Transmitancia Térmica sección 2 (W/m2°K)",{"$nulls":3},{"$f":"1/F86","v":{"v":0.22873900293255126,"d":"0.23"}}]
[]
[null,"PONDERACIÓN VALORES U"]
[null,"Sección","Porcentaje en la superficie (%)",null,"Valor U ponderado"]
[null,"Valor U Sección 1",null,null,{"$f":"F72*C91","v":{"$error":"#DIV/0!"}}]
[null,"Valor U Sección 2",{"$f":"1-C91","v":{"v":1,"d":"100%"}},null,{"$f":"F87*C92","v":{"v":0.22873900293255126,"d":"0.23"}}]
[null,"Transmitancia Térmica Total U (W/m2°K)",null,null,{"$f":"SUM(E91:F92)","v":{"$error":"#DIV/0!"}}]
[null,"Evaluación U","B Norte inferior","Contra espacios no acondicionados y terreno","Sólido",{"$f":"_xlfn.IFS(E93<=H94,\"Cumple\",E93>H94,\"No cumple\")","v":{"$error":"#NAME?"}},null,{"$f":"_xlfn.IFS(C94=$F$6,IF(D94=$H$4,HLOOKUP(E94,$H$5:$J$14,2,0),HLOOKUP(E94,$K$5:$M$14,2,0)),C94=$F$7,IF(D94=$H$4,HLOOKUP(E94,$H$5:$J$14,3,0),HLOOKUP(E94,$K$5:$M$14,3,0)),C94=$F$8,IF(D94=$H$4,HLOOKUP(E94,$H$5:$J$14,4,0),HLOOKUP(E94,$K$5:$M$14,4,0)),C94=$F$9,IF(D94=$H$4,HLOOKUP(E94,$H$5:$J$14,5,0),HLOOKUP(E94,$K$5:$M$14,5,0)),C94=$F$10,IF(D94=$H$4,HLOOKUP(E94,$H$5:$J$14,6,0),HLOOKUP(E94,$K$5:$M$14,6,0)),C94=$F$11,IF(D94=$H$4,HLOOKUP(E94,$H$5:$J$14,7,0),HLOOKUP(E94,$K$5:$M$14,7,0)),C94=$F$12,IF(D94=$H$4,HLOOKUP(E94,$H$5:$J$14,8,0),HLOOKUP(E94,$K$5:$M$14,8,0)),C94=$F$13,IF(D94=$H$4,HLOOKUP(E94,$H$5:$J$14,9,0),HLOOKUP(E94,$K$5:$M$14,9,0)),C94=$F$14,IF(D94=$H$4,HLOOKUP(E94,$H$5:$J$14,10,0),HLOOKUP(E94,$K$5:$M$14,10,0)))","v":{"$error":"#NAME?"}}]
[]
[null,"SECCIÓN 1"]
[null,"Material","Espesor \n(m)","Densidad\n(kg/m3)","Conductividad (W/m°K)","Resistencia (m2°K/W)"]
[null,"Resistencia superficie interior"]
[{"$nulls":5},{"$f":"IFERROR(C99/E99,\"\")","v":""}]
[{"$nulls":5},""]
[{"$nulls":5},""]
[{"$nulls":5},""]
[{"$nulls":5},""]
[{"$nulls":5},""]
[{"$nulls":5},""]
[{"$nulls":5},""]
[null,"Resistencia superficie exterior"]
[null,"Resistencia Térmica (m2°K/W)",{"$nulls":3},{"$f":"SUM(F98:F107)","v":{"v":0,"d":"0.000"}}]
[null,"Transmitancia Térmica sección 1 U (W/m2°K)",{"$nulls":3},{"$f":"1/F108","v":{"$error":"#DIV/0!"}}]
[]
[null,"SECCIÓN 2"]
[null,"Material","Espesor \n(m)","Densidad\n(kg/m3)","Conductividad (W/m°K)","Resistencia (m2°K/W)"]
[null,"Resistencia superficie interior"]
[{"$nulls":5},{"v":3.2051282051282053,"d":"3.205"}]
[{"$nulls":5},{"v":1.0416666666666667,"d":"1.042"}]
[{"$nulls":5},{"v":0.04166666666666667,"d":"0.042"}]
[{"$nulls":5},{"v":0.04166666666666667,"d":"0.042"}]
[{"$nulls":5},{"v":0.04166666666666667,"d":"0.042"}]
[{"$nulls":5},{"$f":"IFERROR(C119/E119,\"\")","v":""}]
[{"$nulls":5},{"$f":"IFERROR(C120/E120,\"\")","v":""}]
[{"$nulls":5},{"$f":"IFERROR(C121/E121,\"\")","v":""}]
[null,"Resistencia superficie exterior"]
[null,"Resistencia Térmica (m2°K/W)",{"$nulls":3},{"$f":"SUM(F113:F122)","v":{"v":4.371794871794873,"d":"4.372"}}]
[null,"Transmitancia Térmica sección 2 (W/m2°K)",{"$nulls":3},{"$f":"1/F123","v":{"v":0.22873900293255126,"d":"0.23"}}]
[]
[null,"PONDERACIÓN VALORES U"]
[null,"Sección","Porcentaje en la superficie (%)",null,"Valor U ponderado"]
[null,"Valor U Sección 1",null,null,{"$f":"F109*C128","v":{"$error":"#DIV/0!"}}]
[null,"Valor U Sección 2",{"$f":"1-C128","v":{"v":1,"d":"100%"}},null,{"$f":"F124*C129","v":{"v":0.22873900293255126,"d":"0.23"}}]
[null,"Transmitancia Térmica Total U (W/m2°K)",null,null,{"$f":"SUM(E128:F129)","v":{"$error":"#DIV/0!"}}]
[]
[]
[null,"SECCIÓN 1"]
[null,"Material","Espesor \n(m)","Densidad\n(kg/m3)","Conductividad (W/m°K)","Resistencia (m2°K/W)"]
[null,"Resistencia superficie interior"]
[{"$nulls":5},{"$f":"IFERROR(C136/E136,\"\")","v":""}]
[{"$nulls":5},""]
[{"$nulls":5},""]
[{"$nulls":5},""]
[{"$nulls":5},""]
[{"$nulls":5},""]
[{"$nulls":5},""]
[{"$nulls":5},""]
[null,"Resistencia superficie exterior"]
[null,"Resistencia Térmica (m2°K/W)",{"$nulls":3},{"$f":"SUM(F135:F144)","v":{"v":0,"d":"0.000"}}]
[null,"Transmitancia Térmica sección 1 U (W/m2°K)",{"$nulls":3},{"$f":"1/F145","v":{"$error":"#DIV/0!"}}]
[]
[null,"SECCIÓN 2"]
[null,"Material","Espesor \n(m)","Densidad\n(kg/m3)","Conductividad (W/m°K)","Resistencia (m2°K/W)"]
[null,"Resistencia superficie interior"]
[{"$nulls":5},{"v":3.2051282051282053,"d":"3.205"}]
[{"$nulls":5},{"v":1.0416666666666667,"d":"1.042"}]
[{"$nulls":5},{"v":0.04166666666666667,"d":"0.042"}]
[{"$nulls":5},{"v":0.04166666666666667,"d":"0.042"}]
[{"$nulls":5},{"v":0.04166666666666667,"d":"0.042"}]
[{"$nulls":5},{"$f":"IFERROR(C156/E156,\"\")","v":""}]
[{"$nulls":5},{"$f":"IFERROR(C157/E157,\"\")","v":""}]
[{"$nulls":5},{"$f":"IFERROR(C158/E158,\"\")","v":""}]
[null,"Resistencia superficie exterior"]
[null,"Resistencia Térmica (m2°K/W)",{"$nulls":3},{"$f":"SUM(F150:F159)","v":{"v":4.371794871794873,"d":"4.372"}}]
[null,"Transmitancia Térmica sección 2 (W/m2°K)",{"$nulls":3},{"$f":"1/F160","v":{"v":0.22873900293255126,"d":"0.23"}}]
[]
[null,"PONDERACIÓN VALORES U"]
[null,"Sección","Porcentaje en la superficie (%)",null,"Valor U ponderado"]
[null,"Valor U Sección 1",null,null,{"$f":"F146*C165","v":{"$error":"#DIV/0!"}}]
[null,"Valor U Sección 2",{"$f":"1-C165","v":{"v":1,"d":"100%"}},null,{"$f":"F161*C166","v":{"v":0.22873900293255126,"d":"0.23"}}]
[null,"Transmitancia Térmica Total U (W/m2°K)",null,null,{"$f":"SUM(E165:F166)","v":{"$error":"#DIV/0!"}}]
[]
[]
[null,"SECCIÓN 1"]
[null,"Material","Espesor \n(m)","Densidad\n(kg/m3)","Conductividad (W/m°K)","Resistencia (m2°K/W)"]
[null,"Resistencia superficie interior",{"$nulls":3},0.12]
[{"$nulls":5},{"$f":"IFERROR(C173/E173,\"\")","v":""}]
[{"$nulls":5},""]
[{"$nulls":5},""]
[{"$nulls":5},""]
[{"$nulls":5},""]
[{"$nulls":5},""]
[{"$nulls":5},""]
[{"$nulls":5},""]
[null,"Resistencia superficie exterior",{"$nulls":3},0.05]
[null,"Resistencia Térmica (m2°K/W)",{"$nulls":3},{"$f":"SUM(F172:F181)","v":{"v":0.16999999999999998,"d":"0.170"}}]
[null,"Transmitancia Térmica sección 1 U (W/m2°K)",{"$nulls":3},{"$f":"1/F182","v":{"v":5.882352941176471,"d":"5.88"}}]
[]
[null,"SECCIÓN 2"]
[null,"Material","Espesor \n(m)","Densidad\n(kg/m3)","Conductividad (W/m°K)","Resistencia (m2°K/W)"]
[null,"Resistencia superficie interior"]
[{"$nulls":5},{"v":3.2051282051282053,"d":"3.205"}]
[{"$nulls":5},{"v":1.0416666666666667,"d":"1.042"}]
[{"$nulls":5},{"v":0.04166666666666667,"d":"0.042"}]
[{"$nulls":5},{"v":0.04166666666666667,"d":"0.042"}]
[{"$nulls":5},{"v":0.04166666666666667,"d":"0.042"}]
[{"$nulls":5},{"$f":"IFERROR(C193/E193,\"\")","v":""}]
[{"$nulls":5},{"$f":"IFERROR(C194/E194,\"\")","v":""}]
[{"$nulls":5},{"$f":"IFERROR(C195/E195,\"\")","v":""}]
[null,"Resistencia superficie exterior"]
[null,"Resistencia Térmica (m2°K/W)",{"$nulls":3},{"$f":"SUM(F187:F196)","v":{"v":4.371794871794873,"d":"4.372"}}]
[null,"Transmitancia Térmica sección 2 (W/m2°K)",{"$nulls":3},{"$f":"1/F197","v":{"v":0.22873900293255126,"d":"0.23"}}]
[]
[null,"PONDERACIÓN VALORES U"]
[null,"Sección","Porcentaje en la superficie (%)",null,"Valor U ponderado"]
[null,"Valor U Sección 1",null,null,{"$f":"F183*C202","v":{"v":0,"d":"0.000"}}]
[null,"Valor U Sección 2",{"$f":"1-C202","v":{"v":1,"d":"100%"}},null,{"$f":"F198*C203","v":{"v":0.22873900293255126,"d":"0.23"}}]
[null,"Transmitancia Térmica Total U (W/m2°K)",null,null,{"$f":"SUM(E202:F203)","v":{"v":0.22873900293255126,"d":"0.23"}}]

{"sheet":"A2 (CHI) ","index":4,"n_rows":264,"n_cols":29,"rows_kept":264,"merged":[[4,13,4,28],[5,14,5,21],[5,22,5,28],[28,14,38,14],[28,15,28,20],[28,21,28,24],[29,1,29,5],[29,16,50,24],[30,1,30,5],[30,7,30,11],[31,1,31,5],[32,1,32,5],[34,7,34,8],[38,7,50,11],[49,1,49,4],[50,1,50,4],[54,1,54,5],[55,1,55,5],[55,7,55,11],[56,1,56,5],[57,1,57,5],[59,7,59,8],[63,1,63,5],[75,1,75,4],[76,1,76,4],[78,1,78,5],[90,1,90,4],[91,1,91,4],[93,1,93,5],[94,2,94,3],[94,4,94,5],[95,2,95,3],[95,4,95,5],[96,2,96,3],[96,4,96,5],[97,1,97,3],[101,7,101,8],[105,7,117,11],[116,1,116,4],[117,1,117,4],[121,7,121,8],[125,7,137,11],[136,1,136,4],[137,1,137,4],[141,7,141,8],[145,1,145,5],[157,1,157,4],[158,1,158,4],[160,1,160,5],[172,1,172,4],[173,1,173,4],[175,1,175,5],[176,2,176,3],[176,4,176,5],[177,2,177,3],[177,4,177,5],[178,2,178,3],[178,4,178,5],[179,1,179,3],[179,4,179,5],[183,7,183,8],[187,1,187,5],[199,1,199,4],[200,1,200,4],[202,1,202,5],[214,1,214,4],[215,1,215,4],[217,1,217,5],[218,2,218,3],[218,4,218,5],[219,2,219,3],[219,4,219,5],[220,2,220,3],[220,4,220,5],[221,1,221,3],[221,4,221,5],[225,7,225,8],[229,1,229,5],[241,1,241,4],[242,1,242,4],[244,1,244,5],[256,1,256,4],[257,1,257,4],[259,1,259,5],[260,2,260,3],[260,4,260,5],[261,2,261,3],[261,4,261,5],[262,2,262,3],[262,4,262,5],[263,1,263,3],[263,4,263,5]]}
["A2","Aislamiento térmico de la envolvente",null,null,"Zonas Chile: Todas"]
[]
[null,"Zona térmica "]
[]
[null,"Tabla A2.1",{"$nulls":11},"LÍMITE TRANSMITANCIA TÉRMICA CHILE"]
[null,"Componente","Situación","Elemento","Transmitanica  U  proyecto (W/m2°K)","Transmitanica  U  máxima (W/m2°K)",null,"Requisito A2","Requisito A3\nOpción simple",{"$nulls":4},"Zona térmica","Contra clima exterior",{"$nulls":7},"Contra espacios no acondicionados y terreno"]
[null,"Muro 1",{"$nulls":3},{"$f":"IFERROR(+_xlfn.XLOOKUP($C$3,$N$8:$N$16,INDIRECT(_xlfn.CONCAT(SUBSTITUTE(D7,\" \",\"_\"),_xlfn.SWITCH(C7,\"Contra espacios no acondicionados y terreno\",\"_int\",\"Contra clima exterior\",\"_ext\")))),\"\")","v":""},null,{"$f":"_xlfn.IFS(OR(E7=\"\",F7=\"\"),\"\",E7<=F7,\"Cumple\",E7>F7,\"No cumple\")","v":{"$error":"#NAME?"}},{"$f":"_xlfn.IFS(OR(E7=\"\",F7=\"\"),\"\",E7*110%<=F7,\"Cumple\",E7*110%>F7,\"No cumple\")","v":{"$error":"#NAME?"}},{"$nulls":5},"Techumbre Ligera","Techumbre Sólida","Muro Ligero","Muro Sólido","Piso Ligero","Piso Sólido","Ventana","Puerta","Muro Ligero","Muro Sólido","Techumbre Ligera","Techumbre Sólida","Piso Ligero","Piso Sólido","Puerta"]
[null,"Muro 2",{"$nulls":3},{"$f":"IFERROR(+_xlfn.XLOOKUP($C$3,$N$8:$N$16,INDIRECT(_xlfn.CONCAT(SUBSTITUTE(D8,\" \",\"_\"),_xlfn.SWITCH(C8,\"Contra espacios no acondicionados y terreno\",\"_int\",\"Contra clima exterior\",\"_ext\")))),\"\")","v":""},null,{"$f":"_xlfn.IFS(OR(E8=\"\",F8=\"\"),\"\",E8<=F8,\"Cumple\",E8>F8,\"No cumple\")","v":{"$error":"#NAME?"}},{"$f":"_xlfn.IFS(OR(E8=\"\",F8=\"\"),\"\",E8*110%<=F8,\"Cumple\",E8*110%>F8,\"No cumple\")","v":{"$error":"#NAME?"}},{"$nulls":4},"A Norte Literal",0.4,0.6,0.4,0.6,0.4,0.6,1.9,1.9,0.6,0.6,0.6,0.6,0.6,0.6,3]
[null,"Muro 3",{"$nulls":3},{"$f":"IFERROR(+_xlfn.XLOOKUP($C$3,$N$8:$N$16,INDIRECT(_xlfn.CONCAT(SUBSTITUTE(D9,\" \",\"_\"),_xlfn.SWITCH(C9,\"Contra espacios no acondicionados y terreno\",\"_int\",\"Contra clima exterior\",\"_ext\")))),\"\")","v":""},null,{"$f":"_xlfn.IFS(OR(E9=\"\",F9=\"\"),\"\",E9<=F9,\"Cumple\",E9>F9,\"No cumple\")","v":{"$error":"#NAME?"}},{"$f":"_xlfn.IFS(OR(E9=\"\",F9=\"\"),\"\",E9*110%<=F9,\"Cumple\",E9*110%>F9,\"No cumple\")","v":{"$error":"#NAME?"}},{"$nulls":4},"B Norte inferior",0.4,0.6,0.4,0.6,0.4,0.6,1.9,1.9,0.6,0.6,0.6,0.6,0.6,0.6,3]
[null,"Muro 4",{"$nulls":3},{"$f":"IFERROR(+_xlfn.XLOOKUP($C$3,$N$8:$N$16,INDIRECT(_xlfn.CONCAT(SUBSTITUTE(D10,\" \",\"_\"),_xlfn.SWITCH(C10,\"Contra espacios no acondicionados y terreno\",\"_int\",\"Contra clima exterior\",\"_ext\")))),\"\")","v":""},null,{"$f":"_xlfn.IFS(OR(E10=\"\",F10=\"\"),\"\",E10<=F10,\"Cumple\",E10>F10,\"No cumple\")","v":{"$error":"#NAME?"}},{"$f":"_xlfn.IFS(OR(E10=\"\",F10=\"\"),\"\",E10*110%<=F10,\"Cumple\",E10*110%>F10,\"No cumple\")","v":{"$error":"#NAME?"}},{"$nulls":4},"C Central Literal",0.3,0.5,0.3,0.5,0.3,0.5,1.9,1.9,0.4,0.5,0.4,0.5,0.4,0.5,3]
[null,"Muro 5",{"$nulls":3},{"$f":"IFERROR(+_xlfn.XLOOKUP($C$3,$N$8:$N$16,INDIRECT(_xlfn.CONCAT(SUBSTITUTE(D11,\" \",\"_\"),_xlfn.SWITCH(C11,\"Contra espacios no acondicionados y terreno\",\"_int\",\"Contra clima exterior\",\"_ext\")))),\"\")","v":""},null,{"$f":"_xlfn.IFS(OR(E11=\"\",F11=\"\"),\"\",E11<=F11,\"Cumple\",E11>F11,\"No cumple\")","v":{"$error":"#NAME?"}},{"$f":"_xlfn.IFS(OR(E11=\"\",F11=\"\"),\"\",E11*110%<=F11,\"Cumple\",E11*110%>F11,\"No cumple\")","v":{"$error":"#NAME?"}},{"$nulls":4},"D Central Interior",0.3,0.5,0.3,0.5,0.3,0.5,1.9,1.9,0.4,0.5,0.4,0.5,0.4,0.5,3]
[null,"Techumbre 1",{"$nulls":3},{"$f":"IFERROR(+_xlfn.XLOOKUP($C$3,$N$8:$N$16,INDIRECT(_xlfn.CONCAT(SUBSTITUTE(D12,\" \",\"_\"),_xlfn.SWITCH(C12,\"Contra espacios no acondicionados y terreno\",\"_int\",\"Contra clima exterior\",\"_ext\")))),\"\")","v":""},null,{"$f":"_xlfn.IFS(OR(E12=\"\",F12=\"\"),\"\",E12<=F12,\"Cumple\",E12>F12,\"No cumple\")","v":{"$error":"#NAME?"}},{"$f":"_xlfn.IFS(OR(E12=\"\",F12=\"\"),\"\",E12*110%<=F12,\"Cumple\",E12*110%>F12,\"No cumple\")","v":{"$error":"#NAME?"}},{"$nulls":4},"E Sur litoral",0.25,0.25,0.25,0.25,0.25,0.25,1.9,1.9,0.4,0.4,0.4,0.4,0.4,0.4,3]
[null,"Techumbre 2",{"$nulls":3},{"$f":"IFERROR(+_xlfn.XLOOKUP($C$3,$N$8:$N$16,INDIRECT(_xlfn.CONCAT(SUBSTITUTE(D13,\" \",\"_\"),_xlfn.SWITCH(C13,\"Contra espacios no acondicionados y terreno\",\"_int\",\"Contra clima exterior\",\"_ext\")))),\"\")","v":""},null,{"$f":"_xlfn.IFS(OR(E13=\"\",F13=\"\"),\"\",E13<=F13,\"Cumple\",E13>F13,\"No cumple\")","v":{"$error":"#NAME?"}},{"$f":"_xlfn.IFS(OR(E13=\"\",F13=\"\"),\"\",E13*110%<=F13,\"Cumple\",E13*110%>F13,\"No cumple\")","v":{"$error":"#NAME?"}},{"$nulls":4},"F Sur interior",0.25,0.25,0.25,0.25,0.25,0.25,1.9,1.9,0.3,0.3,0.3,0.3,0.3,0.3,3]
[null,"Techumbre 3",{"$nulls":3},{"$f":"IFERROR(+_xlfn.XLOOKUP($C$3,$N$8:$N$16,INDIRECT(_xlfn.CONCAT(SUBSTITUTE(D14,\" \",\"_\"),_xlfn.SWITCH(C14,\"Contra espacios no acondicionados y terreno\",\"_int\",\"Contra clima exterior\",\"_ext\")))),\"\")","v":""},null,{"$f":"_xlfn.IFS(OR(E14=\"\",F14=\"\"),\"\",E14<=F14,\"Cumple\",E14>F14,\"No cumple\")","v":{"$error":"#NAME?"}},{"$f":"_xlfn.IFS(OR(E14=\"\",F14=\"\"),\"\",E14*110%<=F14,\"Cumple\",E14*110%>F14,\"No cumple\")","v":{"$error":"#NAME?"}},{"$nulls":4},"G Sur",0.25,0.25,0.25,0.25,0.25,0.25,1.9,1.9,0.3,0.3,0.3,0.3,0.3,0.3,3]
[null,"Piso 1",{"$nulls":3},{"$f":"IFERROR(+_xlfn.XLOOKUP($C$3,$N$8:$N$16,INDIRECT(_xlfn.CONCAT(SUBSTITUTE(D15,\" \",\"_\"),_xlfn.SWITCH(C15,\"Contra espacios no acondicionados y terreno\",\"_int\",\"Contra clima exterior\",\"_ext\")))),\"\")","v":""},null,{"$f":"_xlfn.IFS(OR(E15=\"\",F15=\"\"),\"\",E15<=F15,\"Cumple\",E15>F15,\"No cumple\")","v":{"$error":"#NAME?"}},{"$f":"_xlfn.IFS(OR(E15=\"\",F15=\"\"),\"\",E15*110%<=F15,\"Cumple\",E15*110%>F15,\"No cumple\")","v":{"$error":"#NAME?"}},{"$nulls":4},"H Andina",0.18,0.18,0.18,0.18,0.18,0.18,1.9,1.9,0.3,0.3,0.3,0.3,0.3,0.3,3]
[null,"Piso 2",{"$nulls":3},{"$f":"IFERROR(+_xlfn.XLOOKUP($C$3,$N$8:$N$16,INDIRECT(_xlfn.CONCAT(SUBSTITUTE(D16,\" \",\"_\"),_xlfn.SWITCH(C16,\"Contra espacios no acondicionados y terreno\",\"_int\",\"Contra clima exterior\",\"_ext\")))),\"\")","v":""},null,{"$f":"_xlfn.IFS(OR(E16=\"\",F16=\"\"),\"\",E16<=F16,\"Cumple\",E16>F16,\"No cumple\")","v":{"$error":"#NAME?"}},{"$f":"_xlfn.IFS(OR(E16=\"\",F16=\"\"),\"\",E16*110%<=F16,\"Cumple\",E16*110%>F16,\"No cumple\")","v":{"$error":"#NAME?"}},{"$nulls":4},"I Extremo Sur",0.18,0.18,0.18,0.18,0.18,0.18,1.9,1.9,0.3,0.3,0.3,0.3,0.3,0.3,3]
[null,"Piso 3",{"$nulls":3},{"$f":"IFERROR(+_xlfn.XLOOKUP($C$3,$N$8:$N$16,INDIRECT(_xlfn.CONCAT(SUBSTITUTE(D17,\" \",\"_\"),_xlfn.SWITCH(C17,\"Contra espacios no acondicionados y terreno\",\"_int\",\"Contra clima exterior\",\"_ext\")))),\"\")","v":""},null,{"$f":"_xlfn.IFS(OR(E17=\"\",F17=\"\"),\"\",E17<=F17,\"Cumple\",E17>F17,\"No cumple\")","v":{"$error":"#NAME?"}},{"$f":"_xlfn.IFS(OR(E17=\"\",F17=\"\"),\"\",E17*110%<=F17,\"Cumple\",E17*110%>F17,\"No cumple\")","v":{"$error":"#NAME?"}}]
[null,"Ventana 1",{"$nulls":3},{"$f":"IFERROR(+_xlfn.XLOOKUP($C$3,$N$8:$N$16,INDIRECT(_xlfn.CONCAT(SUBSTITUTE(D18,\" \",\"_\"),_xlfn.SWITCH(C18,\"Contra espacios no acondicionados y terreno\",\"_int\",\"Contra clima exterior\",\"_ext\")))),\"\")","v":""},null,{"$f":"_xlfn.IFS(OR(E18=\"\",F18=\"\"),\"\",E18<=F18,\"Cumple\",E18>F18,\"No cumple\")","v":{"$error":"#NAME?"}},{"$f":"_xlfn.IFS(OR(E18=\"\",F18=\"\"),\"\",E18*110%<=F18,\"Cumple\",E18*110%>F18,\"No cumple\")","v":{"$error":"#NAME?"}},{"$nulls":4},"RESISTENCIAS TÉRMICAS DE SUPERFICIE "]
[null,"Ventana 2",{"$nulls":3},{"$f":"IFERROR(+_xlfn.XLOOKUP($C$3,$N$8:$N$16,INDIRECT(_xlfn.CONCAT(SUBSTITUTE(D19,\" \",\"_\"),_xlfn.SWITCH(C19,\"Contra espacios no acondicionados y terreno\",\"_int\",\"Contra clima exterior\",\"_ext\")))),\"\")","v":""},null,{"$f":"_xlfn.IFS(OR(E19=\"\",F19=\"\"),\"\",E19<=F19,\"Cumple\",E19>F19,\"No cumple\")","v":{"$error":"#NAME?"}},{"$f":"_xlfn.IFS(OR(E19=\"\",F19=\"\"),\"\",E19*110%<=F19,\"Cumple\",E19*110%>F19,\"No cumple\")","v":{"$error":"#NAME?"}},{"$nulls":4},"Rsi",0.09,0.09,0.12,0.12,0.17,0.17,0.12,0.12,0.12,0.12,0.1,0.1,0.17,0.17,0.12]
[null,"Ventana 3",{"$nulls":3},{"$f":"IFERROR(+_xlfn.XLOOKUP($C$3,$N$8:$N$16,INDIRECT(_xlfn.CONCAT(SUBSTITUTE(D20,\" \",\"_\"),_xlfn.SWITCH(C20,\"Contra espacios no acondicionados y terreno\",\"_int\",\"Contra clima exterior\",\"_ext\")))),\"\")","v":""},null,{"$f":"_xlfn.IFS(OR(E20=\"\",F20=\"\"),\"\",E20<=F20,\"Cumple\",E20>F20,\"No cumple\")","v":{"$error":"#NAME?"}},{"$f":"_xlfn.IFS(OR(E20=\"\",F20=\"\"),\"\",E20*110%<=F20,\"Cumple\",E20*110%>F20,\"No cumple\")","v":{"$error":"#NAME?"}},{"$nulls":4},"Rse",0.05,0.05,0.05,0.05,0.05,0.05,0.05,0.05,0.12,0.12,0.1,0.1,0.17,0.17,0.12]
[null,"Puerta 1",{"$nulls":3},{"$f":"IFERROR(+_xlfn.XLOOKUP($C$3,$N$8:$N$16,INDIRECT(_xlfn.CONCAT(SUBSTITUTE(D21,\" \",\"_\"),_xlfn.SWITCH(C21,\"Contra espacios no acondicionados y terreno\",\"_int\",\"Contra clima exterior\",\"_ext\")))),\"\")","v":""},null,{"$f":"_xlfn.IFS(OR(E21=\"\",F21=\"\"),\"\",E21<=F21,\"Cumple\",E21>F21,\"No cumple\")","v":{"$error":"#NAME?"}},{"$f":"_xlfn.IFS(OR(E21=\"\",F21=\"\"),\"\",E21*110%<=F21,\"Cumple\",E21*110%>F21,\"No cumple\")","v":{"$error":"#NAME?"}}]
[null,"Puerta 2",{"$nulls":3},{"$f":"IFERROR(+_xlfn.XLOOKUP($C$3,$N$8:$N$16,INDIRECT(_xlfn.CONCAT(SUBSTITUTE(D22,\" \",\"_\"),_xlfn.SWITCH(C22,\"Contra espacios no acondicionados y terreno\",\"_int\",\"Contra clima exterior\",\"_ext\")))),\"\")","v":""},null,{"$f":"_xlfn.IFS(OR(E22=\"\",F22=\"\"),\"\",E22<=F22,\"Cumple\",E22>F22,\"No cumple\")","v":{"$error":"#NAME?"}},{"$f":"_xlfn.IFS(OR(E22=\"\",F22=\"\"),\"\",E22*110%<=F22,\"Cumple\",E22*110%>F22,\"No cumple\")","v":{"$error":"#NAME?"}}]
[null,"Puerta 3",{"$nulls":3},{"$f":"IFERROR(+_xlfn.XLOOKUP($C$3,$N$8:$N$16,INDIRECT(_xlfn.CONCAT(SUBSTITUTE(D23,\" \",\"_\"),_xlfn.SWITCH(C23,\"Contra espacios no acondicionados y terreno\",\"_int\",\"Contra clima exterior\",\"_ext\")))),\"\")","v":""},null,{"$f":"_xlfn.IFS(OR(E23=\"\",F23=\"\"),\"\",E23<=F23,\"Cumple\",E23>F23,\"No cumple\")","v":{"$error":"#NAME?"}},{"$f":"_xlfn.IFS(OR(E23=\"\",F23=\"\"),\"\",E23*110%<=F23,\"Cumple\",E23*110%>F23,\"No cumple\")","v":{"$error":"#NAME?"}}]
[]
[]
[]
[null,"Las siguientes alternativas de cálculo se ponen a disposición en caso que el/la Experto/a lo requiera para llenar los datos de la \"Tabla A2.1\" de declaración de Valores U"]
[null,"Alternativa 1. Cálculo de valor U: Sistema constructivo sólido."]
[]
[null,"Elementos de construcción sólida:"]
[null,"-     Muro de hormigón armado (mínimo 10 cm de espesor)"]
[null,"-     Muro de albañilería (mínimo 20 cm de espesor)"]
[null,"-     Muro de adobe (mínimo 17 cm de espesor)"]
[]
[null,"Situación",{"$nulls":5},"Evaluación de Transmitancia térmica"]
[null,"Elemento",{"$nulls":5},"Transmitanica máxima (U)",{"$f":"+_xlfn.XLOOKUP(C3,$N$8:$N$16,INDIRECT(_xlfn.CONCAT(SUBSTITUTE(C36,\" \",\"_\"),_xlfn.SWITCH(C35,\"Contra espacios no acondicionados y terreno\",\"_int\",\"Contra clima exterior\",\"_ext\"))))","v":{"$error":"#NAME?"}}]
[{"$nulls":7},"Evaluación U proyecto",{"$f":"_xlfn.IFS(F51<=I36,\"Cumple\",F51>I36,\"No cumple\")","v":{"$error":"#NAME?"}}]
[]
[null,"Material","Espesor \n(m)","Densidad\n(kg/m3)","Conductividad (W/m°K)","Resistencia (m2°K/W)",null,"El cálculo de transmitancia térmica está basado de acuerdo a lo indicado en la  NCh 853OF.2007, donde se indica que el valor de la transmitancia termica como:\n\n\n\n\nPara la evaluación del cálculo, se deben seguir las siguientes indicaciones:\n1) Elegir la situación del elemento (exterior o en contacto con esp. no acondicionado)\n2) Elegir el tipo de elemento (muro, techo, piso)\n3) Elegir zona térmica donde se encuentra emplazado\n\nLas  \"Resistencia superficial por elementos verticales y horizontales\" se establecen de forma automatica de acuerdo a la selección de la situación en la cual se encuentra el elemento a evaluar."]
[null,"Resistencia superficie interior",{"$nulls":3},{"$f":"+_xlfn.IFS(C35=$O$6,_xlfn.XLOOKUP(C36,Contra_clima_exterior,$O$19:$V$19),C35=$W$6,_xlfn.XLOOKUP(C36,Contra_espacios_no_acondicionados_y_terreno,$W$19:$AC$19))","v":{"$error":"#NAME?"}}]
[{"$nulls":5},{"$f":"IFERROR(C41/E41,\"\")","v":""}]
[{"$nulls":5},{"$f":"IFERROR(C42/E42,\"\")","v":""}]
[{"$nulls":5},""]
[{"$nulls":5},""]
[{"$nulls":5},""]
[{"$nulls":5},""]
[{"$nulls":5},""]
[{"$nulls":5},""]
[null,"Resistencia superficie exterior",{"$nulls":3},{"$f":"+_xlfn.IFS(C35=$O$6,_xlfn.XLOOKUP(C36,Contra_clima_exterior,$O$20:$V$20),C35=$W$6,_xlfn.XLOOKUP(C36,Contra_espacios_no_acondicionados_y_terreno,$W$20:$AC$20))","v":{"$error":"#NAME?"}}]
[null,"Resistencia Térmica (m2°K/W)",{"$nulls":3},{"$f":"SUM(F40:F49)","v":{"$error":"#NAME?"}}]
[null,"Transmitancia Térmica U (W/m2°K)",{"$nulls":3},{"$f":"1/F50","v":{"$error":"#NAME?"}}]
[]
[null,"Alternativa 2. Cálculo de valor U: Sistema constructivo mixto o ligero (2 o más secciones)."]
[]
[null,"Elementos de construcción ligera:"]
[null,"-     Muro de madera contralaminada “CLT” (con menos de 27 cm de espesor)"]
[null,"-     Sistema constructivo con base a marcos de madera (tabiquería de madera)"]
[null,"-     Sistema constructivo con base a marcos metálicos (tabiquería metálica)"]
[]
[null,"Situación",{"$nulls":5},"Evaluación de Transmitancia térmica"]
[null,"Elemento",{"$nulls":5},"Transmitanica máxima (U)",{"$f":"+_xlfn.XLOOKUP(C3,$N$8:$N$16,INDIRECT(_xlfn.CONCAT(SUBSTITUTE(C61,\" \",\"_\"),_xlfn.SWITCH(C60,\"Contra espacios no acondicionados y terreno\",\"_int\",\"Contra clima exterior\",\"_ext\"))))","v":{"$error":"#NAME?"}}]
[{"$nulls":7},"Evaluación U proyecto",{"$f":"IFERROR(_xlfn.IFS(E98<=I61,\"Cumple\",E98>I61,\"No cumple\"),\"Completar cálculo\")","v":"Completar cálculo"}]
[]
[null,"SECCIÓN 1"]
[null,"Material","Espesor \n(m)","Densidad\n(kg/m3)","Conductividad (W/m°K)","Resistencia (m2°K/W)"]
[null,"Resistencia superficie interior",{"$nulls":3},{"$f":"+_xlfn.IFS(C60=$O$6,_xlfn.XLOOKUP(C61,Contra_clima_exterior,$O$19:$V$19),C60=$W$6,_xlfn.XLOOKUP(C61,Contra_espacios_no_acondicionados_y_terreno,$W$19:$AC$19))","v":{"$error":"#NAME?"}}]
[{"$nulls":5},{"$f":"IFERROR(C67/E67,\"\")","v":""}]
[{"$nulls":5},""]
[{"$nulls":5},""]
[{"$nulls":5},""]
[{"$nulls":5},""]
[{"$nulls":5},""]
[{"$nulls":5},""]
[{"$nulls":5},""]
[null,"Resistencia superficie exterior",{"$nulls":3},{"$f":"+_xlfn.IFS(C60=$O$6,_xlfn.XLOOKUP(C61,Contra_clima_exterior,$O$20:$V$20),C60=$W$6,_xlfn.XLOOKUP(C61,Contra_espacios_no_acondicionados_y_terreno,$W$20:$AC$20))","v":{"$error":"#NAME?"}}]
[null,"Resistencia Térmica (m2°K/W)",{"$nulls":3},{"$f":"SUM(F66:F75)","v":{"$error":"#NAME?"}}]
[null,"Transmitancia Térmica sección 1 U (W/m2°K)",{"$nulls":3},{"$f":"IFERROR(1/F76,\"Completar\")","v":"Completar"}]
[]
[null,"SECCIÓN 2"]
[null,"Material","Espesor \n(m)","Densidad\n(kg/m3)","Conductividad (W/m°K)","Resistencia (m2°K/W)"]
[null,"Resistencia superficie interior",{"$nulls":3},{"$f":"+_xlfn.IFS(C60=$O$6,_xlfn.XLOOKUP(C61,Contra_clima_exterior,$O$19:$V$19),C60=$W$6,_xlfn.XLOOKUP(C61,Contra_espacios_no_acondicionados_y_terreno,$W$19:$AC$19))","v":{"$error":"#NAME?"}}]
[{"$nulls":5},{"$f":"IFERROR(C82/E82,\"\")","v":""}]
[{"$nulls":5},""]
[{"$nulls":5},""]
[{"$nulls":5},""]
[{"$nulls":5},""]
[{"$nulls":5},""]
[{"$nulls":5},""]
[{"$nulls":5},""]
[null,"Resistencia superficie exterior",{"$nulls":3},{"$f":"+_xlfn.IFS(C60=$O$6,_xlfn.XLOOKUP(C61,Contra_clima_exterior,$O$20:$V$20),C60=$W$6,_xlfn.XLOOKUP(C61,Contra_espacios_no_acondicionados_y_terreno,$W$20:$AC$20))","v":{"$error":"#NAME?"}}]
[null,"Resistencia Térmica (m2°K/W)",{"$nulls":3},{"$f":"SUM(F81:F90)","v":{"$error":"#NAME?"}}]
[null,"Transmitancia Térmica sección 2 (W/m2°K)",{"$nulls":3},{"$f":"IFERROR(1/F91,\"Completar\")","v":"Completar"}]
[]
[null,"PONDERACIÓN VALORES U"]
[null,"Sección","Porcentaje en la superficie (%)",null,"Valor U ponderado"]
[null,"Valor U Sección 1",null,null,{"$f":"IFERROR(F77*C96,\"Completar Cálculos\")","v":"Completar Cálculos"}]
[null,"Valor U Sección 2",{"$f":"1-C96","v":{"v":1,"d":"100%"}},null,{"$f":"(F92*C97)","v":{"$error":"#VALUE!"}}]
[null,"Transmitancia Térmica Total U (W/m2°K)",null,null,{"$f":"SUM(E96:F97)","v":{"$error":"#VALUE!"}}]
[]
[null,"Apartado para otros cálculos de valor U"]
[]
[null,"Situación",{"$nulls":5},"Evaluación de Transmitancia térmica"]
[null,"Elemento",{"$nulls":5},"Transmitanica máxima (U)",{"$f":"+_xlfn.XLOOKUP($C$3,$N$8:$N$16,INDIRECT(_xlfn.CONCAT(SUBSTITUTE(C103,\" \",\"_\"),_xlfn.SWITCH(C102,\"Contra espacios no acondicionados y terreno\",\"_int\",\"Contra clima exterior\",\"_ext\"))))","v":{"$error":"#NAME?"}}]
[{"$nulls":7},"Evaluación U proyecto",{"$f":"_xlfn.IFS(F118<=I103,\"Cumple\",F118>I103,\"No cumple\")","v":{"$error":"#NAME?"}}]
[]
[null,"Material","Espesor \n(m)","Densidad\n(kg/m3)","Conductividad (W/m°K)","Resistencia (m2°K/W)"]
[null,"Resistencia superficie interior",{"$nulls":3},{"$f":"+_xlfn.IFS(C102=$O$6,_xlfn.XLOOKUP(C103,Contra_clima_exterior,$O$19:$V$19),C102=$W$6,_xlfn.XLOOKUP(C103,Contra_espacios_no_acondicionados_y_terreno,$W$19:$AC$19))","v":{"$error":"#NAME?"}}]
[{"$nulls":5},{"$f":"IFERROR(C108/E108,\"\")","v":""}]
[{"$nulls":5},""]
[{"$nulls":5},""]
[{"$nulls":5},""]
[{"$nulls":5},""]
[{"$nulls":5},""]
[{"$nulls":5},""]
[{"$nulls":5},""]
[null,"Resistencia superficie exterior",{"$nulls":3},{"$f":"+_xlfn.IFS(C102=$O$6,_xlfn.XLOOKUP(C103,Contra_clima_exterior,$O$20:$V$20),C102=$W$6,_xlfn.XLOOKUP(C103,Contra_espacios_no_acondicionados_y_terreno,$W$20:$AC$20))","v":{"$error":"#NAME?"}}]
[null,"Resistencia Térmica (m2°K/W)",{"$nulls":3},{"$f":"SUM(F107:F116)","v":{"$error":"#NAME?"}}]
[null,"Transmitancia Térmica U (W/m2°K)",{"$nulls":3},{"$f":"1/F117","v":{"$error":"#NAME?"}}]
[]
[]
[]
[null,"Situación",{"$nulls":5},"Evaluación de Transmitancia térmica"]
[null,"Elemento",{"$nulls":5},"Transmitanica máxima (U)",{"$f":"+_xlfn.XLOOKUP($C$3,$N$8:$N$16,INDIRECT(_xlfn.CONCAT(SUBSTITUTE(C123,\" \",\"_\"),_xlfn.SWITCH(C122,\"Contra espacios no acondicionados y terreno\",\"_int\",\"Contra clima exterior\",\"_ext\"))))","v":{"$error":"#NAME?"}}]
[{"$nulls":7},"Evaluación U proyecto",{"$f":"_xlfn.IFS(F138<=I123,\"Cumple\",F138>I123,\"No cumple\")","v":{"$error":"#NAME?"}}]
[]
[null,"Material","Espesor \n(m)","Densidad\n(kg/m3)","Conductividad (W/m°K)","Resistencia (m2°K/W)"]
[null,"Resistencia superficie interior",{"$nulls":3},{"$f":"+_xlfn.IFS(C122=$O$6,_xlfn.XLOOKUP(C123,Contra_clima_exterior,$O$19:$V$19),C122=$W$6,_xlfn.XLOOKUP(C123,Contra_espacios_no_acondicionados_y_terreno,$W$19:$AC$19))","v":{"$error":"#NAME?"}}]
[{"$nulls":5},{"$f":"IFERROR(C128/E128,\"\")","v":""}]
[{"$nulls":5},""]
[{"$nulls":5},""]
[{"$nulls":5},""]
[{"$nulls":5},""]
[{"$nulls":5},""]
[{"$nulls":5},""]
[{"$nulls":5},""]
[null,"Resistencia superficie exterior",{"$nulls":3},{"$f":"+_xlfn.IFS(C122=$O$6,_xlfn.XLOOKUP(C123,Contra_clima_exterior,$O$20:$V$20),C122=$W$6,_xlfn.XLOOKUP(C123,Contra_espacios_no_acondicionados_y_terreno,$W$20:$AC$20))","v":{"$error":"#NAME?"}}]
[null,"Resistencia Térmica (m2°K/W)",{"$nulls":3},{"$f":"SUM(F127:F136)","v":{"$error":"#NAME?"}}]
[null,"Transmitancia Térmica U (W/m2°K)",{"$nulls":3},{"$f":"1/F137","v":{"$error":"#NAME?"}}]
[]
[]
[]
[null,"Situación",{"$nulls":5},"Evaluación de Transmitancia térmica"]
[null,"Elemento",{"$nulls":5},"TRANSMITACIA MAXIMA",{"$f":"+_xlfn.XLOOKUP($C$3,$N$8:$N$16,INDIRECT(_xlfn.CONCAT(SUBSTITUTE(C143,\" \",\"_\"),_xlfn.SWITCH(C142,\"Contra espacios no acondicionados y terreno\",\"_int\",\"Contra clima exterior\",\"_ext\"))))","v":{"$error":"#NAME?"}}]
[{"$nulls":7},"EVALUACION",{"$f":"IFERROR(_xlfn.IFS(E180<=I143,\"Cumple\",E180>I143,\"No cumple\"),\"Completar cálculo\")","v":"Completar cálculo"}]
[]
[null,"SECCIÓN 1"]
[null,"Material","Espesor \n(m)","Densidad\n(kg/m3)","Conductividad (W/m°K)","Resistencia (m2°K/W)"]
[null,"Resistencia superficie interior",{"$nulls":3},{"$f":"+_xlfn.IFS(C142=$O$6,_xlfn.XLOOKUP(C143,Contra_clima_exterior,$O$19:$V$19),C142=$W$6,_xlfn.XLOOKUP(C143,Contra_espacios_no_acondicionados_y_terreno,$W$19:$AC$19))","v":{"$error":"#NAME?"}}]
[{"$nulls":5},{"$f":"IFERROR(C149/E149,\"\")","v":""}]
[{"$nulls":5},""]
[{"$nulls":5},""]
[{"$nulls":5},""]
[{"$nulls":5},""]
[{"$nulls":5},""]
[{"$nulls":5},""]
[{"$nulls":5},""]
[null,"Resistencia superficie exterior",{"$nulls":3},{"$f":"+_xlfn.IFS(C142=$O$6,_xlfn.XLOOKUP(C143,Contra_clima_exterior,$O$20:$V$20),C142=$W$6,_xlfn.XLOOKUP(C143,Contra_espacios_no_acondicionados_y_terreno,$W$20:$AC$20))","v":{"$error":"#NAME?"}}]
[null,"Resistencia Térmica (m2°K/W)",{"$nulls":3},{"$f":"SUM(F148:F157)","v":{"$error":"#NAME?"}}]
[null,"Transmitancia Térmica sección 1 U (W/m2°K)",{"$nulls":3},{"$f":"1/F158","v":{"$error":"#NAME?"}}]
[]
[null,"SECCIÓN 2"]
[null,"Material","Espesor \n(m)","Densidad\n(kg/m3)","Conductividad (W/m°K)","Resistencia (m2°K/W)"]
[null,"Resistencia superficie interior",{"$nulls":3},{"$f":"+_xlfn.IFS(C142=$O$6,_xlfn.XLOOKUP(C143,Contra_clima_exterior,$O$19:$V$19),C142=$W$6,_xlfn.XLOOKUP(C143,Contra_espacios_no_acondicionados_y_terreno,$W$19:$AC$19))","v":{"$error":"#NAME?"}}]
[{"$nulls":5},{"$f":"IFERROR(C164/E164,\"\")","v":""}]
[{"$nulls":5},""]
[{"$nulls":5},""]
[{"$nulls":5},""]
[{"$nulls":5},""]
[{"$nulls":5},""]
[{"$nulls":5},""]
[{"$nulls":5},""]
[null,"Resistencia superficie exterior",{"$nulls":3},{"$f":"+_xlfn.IFS(C142=$O$6,_xlfn.XLOOKUP(C143,Contra_clima_exterior,$O$20:$V$20),C142=$W$6,_xlfn.XLOOKUP(C143,Contra_espacios_no_acondicionados_y_terreno,$W$20:$AC$20))","v":{"$error":"#NAME?"}}]
[null,"Resistencia Térmica (m2°K/W)",{"$nulls":3},{"$f":"SUM(F163:F172)","v":{"$error":"#NAME?"}}]
[null,"Transmitancia Térmica sección 2 (W/m2°K)",{"$nulls":3},{"$f":"1/F173","v":{"$error":"#NAME?"}}]
[]
[null,"PONDERACIÓN VALORES U"]
[null,"Sección","Porcentaje en la superficie (%)",null,"Valor U ponderado"]
[null,"Valor U Sección 1",null,null,{"$f":"F159*C178","v":{"$error":"#NAME?"}}]
[null,"Valor U Sección 2",{"$f":"1-C178","v":{"v":1,"d":"100%"}},null,{"$f":"F174*C179","v":{"$error":"#NAME?"}}]
[null,"Transmitancia Térmica Total U (W/m2°K)",null,null,{"$f":"SUM(E178:F179)","v":{"$error":"#NAME?"}}]
[]
[]
[]
[null,"Situación",{"$nulls":5},"Evaluación de Transmitancia térmica"]
[null,"Elemento",{"$nulls":5},"TRANSMITACIA MAXIMA",{"$f":"+_xlfn.XLOOKUP($C$3,$N$8:$N$16,INDIRECT(_xlfn.CONCAT(SUBSTITUTE(C185,\" \",\"_\"),_xlfn.SWITCH(C184,\"Contra espacios no acondicionados y terreno\",\"_int\",\"Contra clima exterior\",\"_ext\"))))","v":{"$error":"#NAME?"}}]
[{"$nulls":7},"EVALUACION",{"$f":"IFERROR(_xlfn.IFS(E222<=I185,\"Cumple\",E222>I185,\"No cumple\"),\"Completar cálculo\")","v":"Completar cálculo"}]
[]
[null,"SECCIÓN 1"]
[null,"Material","Espesor \n(m)","Densidad\n(kg/m3)","Conductividad (W/m°K)","Resistencia (m2°K/W)"]
[null,"Resistencia superficie interior",{"$nulls":3},{"$f":"+_xlfn.IFS(C184=$O$6,_xlfn.XLOOKUP(C185,Contra_clima_exterior,$O$19:$V$19),C184=$W$6,_xlfn.XLOOKUP(C185,Contra_espacios_no_acondicionados_y_terreno,$W$19:$AC$19))","v":{"$error":"#NAME?"}}]
[{"$nulls":5},{"$f":"IFERROR(C191/E191,\"\")","v":""}]
[{"$nulls":5},""]
[{"$nulls":5},""]
[{"$nulls":5},""]
[{"$nulls":5},""]
[{"$nulls":5},""]
[{"$nulls":5},""]
[{"$nulls":5},""]
[null,"Resistencia superficie exterior",{"$nulls":3},{"$f":"+_xlfn.IFS(C184=$O$6,_xlfn.XLOOKUP(C185,Contra_clima_exterior,$O$20:$V$20),C184=$W$6,_xlfn.XLOOKUP(C185,Contra_espacios_no_acondicionados_y_terreno,$W$20:$AC$20))","v":{"$error":"#NAME?"}}]
[null,"Resistencia Térmica (m2°K/W)",{"$nulls":3},{"$f":"SUM(F190:F199)","v":{"$error":"#NAME?"}}]
[null,"Transmitancia Térmica sección 1 U (W/m2°K)",{"$nulls":3},{"$f":"1/F200","v":{"$error":"#NAME?"}}]
[]
[null,"SECCIÓN 2"]
[null,"Material","Espesor \n(m)","Densidad\n(kg/m3)","Conductividad (W/m°K)","Resistencia (m2°K/W)"]
[null,"Resistencia superficie interior",{"$nulls":3},{"$f":"+_xlfn.IFS(C184=$O$6,_xlfn.XLOOKUP(C185,Contra_clima_exterior,$O$19:$V$19),C184=$W$6,_xlfn.XLOOKUP(C185,Contra_espacios_no_acondicionados_y_terreno,$W$19:$AC$19))","v":{"$error":"#NAME?"}}]
[{"$nulls":5},{"$f":"IFERROR(C206/E206,\"\")","v":""}]
[{"$nulls":5},""]
[{"$nulls":5},""]
[{"$nulls":5},""]
[{"$nulls":5},""]
[{"$nulls":5},""]
[{"$nulls":5},""]
[{"$nulls":5},""]
[null,"Resistencia superficie exterior",{"$nulls":3},{"$f":"+_xlfn.IFS(C184=$O$6,_xlfn.XLOOKUP(C185,Contra_clima_exterior,$O$20:$V$20),C184=$W$6,_xlfn.XLOOKUP(C185,Contra_espacios_no_acondicionados_y_terreno,$W$20:$AC$20))","v":{"$error":"#NAME?"}}]
[null,"Resistencia Térmica (m2°K/W)",{"$nulls":3},{"$f":"SUM(F205:F214)","v":{"$error":"#NAME?"}}]
[null,"Transmitancia Térmica sección 2 (W/m2°K)",{"$nulls":3},{"$f":"1/F215","v":{"$error":"#NAME?"}}]
[]
[null,"PONDERACIÓN VALORES U"]
[null,"Sección","Porcentaje en la superficie (%)",null,"Valor U ponderado"]
[null,"Valor U Sección 1",null,null,{"$f":"F201*C220","v":{"$error":"#NAME?"}}]
[null,"Valor U Sección 2",{"$f":"1-C220","v":{"v":1,"d":"100%"}},null,{"$f":"F216*C221","v":{"$error":"#NAME?"}}]
[null,"Transmitancia Térmica Total U (W/m2°K)",null,null,{"$f":"SUM(E220:F221)","v":{"$error":"#NAME?"}}]
[]
[]
[]
[null,"Situación",{"$nulls":5},"Evaluación de Transmitancia térmica"]
[null,"Elemento",{"$nulls":5},"TRANSMITACIA MAXIMA",{"$f":"+_xlfn.XLOOKUP($C$3,$N$8:$N$16,INDIRECT(_xlfn.CONCAT(SUBSTITUTE(C227,\" \",\"_\"),_xlfn.SWITCH(C226,\"Contra espacios no acondicionados y terreno\",\"_int\",\"Contra clima exterior\",\"_ext\"))))","v":{"$error":"#NAME?"}}]
[{"$nulls":7},"EVALUACION",{"$f":"IFERROR(_xlfn.IFS(E264<=I227,\"Cumple\",E264>I227,\"No cumple\"),\"Completar cálculo\")","v":"Completar cálculo"}]
[]
[null,"SECCIÓN 1"]
[null,"Material","Espesor \n(m)","Densidad\n(kg/m3)","Conductividad (W/m°K)","Resistencia (m2°K/W)"]
[null,"Resistencia superficie interior",{"$nulls":3},{"$f":"+_xlfn.IFS(C226=$O$6,_xlfn.XLOOKUP(C227,Contra_clima_exterior,$O$19:$V$19),C226=$W$6,_xlfn.XLOOKUP(C227,Contra_espacios_no_acondicionados_y_terreno,$W$19:$AC$19))","v":{"$error":"#NAME?"}}]
[{"$nulls":5},{"$f":"IFERROR(C233/E233,\"\")","v":""}]
[{"$nulls":5},""]
[{"$nulls":5},""]
[{"$nulls":5},""]
[{"$nulls":5},""]
[{"$nulls":5},""]
[{"$nulls":5},""]
[{"$nulls":5},""]
[null,"Resistencia superficie exterior",{"$nulls":3},{"$f":"+_xlfn.IFS(C226=$O$6,_xlfn.XLOOKUP(C227,Contra_clima_exterior,$O$20:$V$20),C226=$W$6,_xlfn.XLOOKUP(C227,Contra_espacios_no_acondicionados_y_terreno,$W$20:$AC$20))","v":{"$error":"#NAME?"}}]
[null,"Resistencia Térmica (m2°K/W)",{"$nulls":3},{"$f":"SUM(F232:F241)","v":{"$error":"#NAME?"}}]
[null,"Transmitancia Térmica sección 1 U (W/m2°K)",{"$nulls":3},{"$f":"1/F242","v":{"$error":"#NAME?"}}]
[]
[null,"SECCIÓN 2"]
[null,"Material","Espesor \n(m)","Densidad\n(kg/m3)","Conductividad (W/m°K)","Resistencia (m2°K/W)"]
[null,"Resistencia superficie interior",{"$nulls":3},{"$f":"+_xlfn.IFS(C226=$O$6,_xlfn.XLOOKUP(C227,Contra_clima_exterior,$O$19:$V$19),C226=$W$6,_xlfn.XLOOKUP(C227,Contra_espacios_no_acondicionados_y_terreno,$W$19:$AC$19))","v":{"$error":"#NAME?"}}]
[{"$nulls":5},{"$f":"IFERROR(C248/E248,\"\")","v":""}]
[{"$nulls":5},""]
[{"$nulls":5},""]
[{"$nulls":5},""]
[{"$nulls":5},""]
[{"$nulls":5},""]
[{"$nulls":5},""]
[{"$nulls":5},""]
[null,"Resistencia superficie exterior",{"$nulls":3},{"$f":"+_xlfn.IFS(C226=$O$6,_xlfn.XLOOKUP(C227,Contra_clima_exterior,$O$20:$V$20),C226=$W$6,_xlfn.XLOOKUP(C227,Contra_espacios_no_acondicionados_y_terreno,$W$20:$AC$20))","v":{"$error":"#NAME?"}}]
[null,"Resistencia Térmica (m2°K/W)",{"$nulls":3},{"$f":"SUM(F247:F256)","v":{"$error":"#NAME?"}}]
[null,"Transmitancia Térmica sección 2 (W/m2°K)",{"$nulls":3},{"$f":"1/F257","v":{"$error":"#NAME?"}}]
[]
[null,"PONDERACIÓN VALORES U"]
[null,"Sección","Porcentaje en la superficie (%)",null,"Valor U ponderado"]
[null,"Valor U Sección 1",null,null,{"$f":"F243*C262","v":{"$error":"#NAME?"}}]
[null,"Valor U Sección 2",{"$f":"1-C262","v":{"v":1,"d":"100%"}},null,{"$f":"F258*C263","v":{"$error":"#NAME?"}}]
[null,"Transmitancia Térmica Total U (W/m2°K)",null,null,{"$f":"SUM(E262:F263)","v":{"$error":"#NAME?"}}]

{"sheet":"A2 (MEX-LATAM)","index":5,"n_rows":267,"n_cols":48,"rows_kept":267,"merged":[[4,10,4,24],[4,27,4,41],[4,46,4,47],[5,11,5,19],[5,20,5,24],[5,27,6,27],[5,28,5,36],[5,37,5,41],[6,4,7,4],[6,5,7,5],[31,28,41,28],[31,29,31,32],[31,33,31,37],[32,1,32,5],[32,30,53,37],[33,1,33,5],[33,7,33,11],[34,1,34,5],[35,1,35,5],[37,7,37,8],[41,7,53,11],[52,1,52,4],[53,1,53,4],[57,1,57,5],[58,1,58,5],[58,7,58,11],[59,1,59,5],[60,1,60,5],[62,7,62,8],[66,1,66,5],[78,1,78,4],[79,1,79,4],[81,1,81,5],[93,1,93,4],[94,1,94,4],[96,1,96,5],[97,2,97,3],[97,4,97,5],[98,2,98,3],[98,4,98,5],[99,2,99,3],[99,4,99,5],[100,1,100,3],[104,7,104,8],[108,7,120,11],[119,1,119,4],[120,1,120,4],[124,7,124,8],[128,7,140,11],[139,1,139,4],[140,1,140,4],[144,7,144,8],[148,1,148,5],[160,1,160,4],[161,1,161,4],[163,1,163,5],[175,1,175,4],[176,1,176,4],[178,1,178,5],[179,2,179,3],[179,4,179,5],[180,2,180,3],[180,4,180,5],[181,2,181,3],[181,4,181,5],[182,1,182,3],[182,4,182,5],[186,7,186,8],[190,1,190,5],[202,1,202,4],[203,1,203,4],[205,1,205,5],[217,1,217,4],[218,1,218,4],[220,1,220,5],[221,2,221,3],[221,4,221,5],[222,2,222,3],[222,4,222,5],[223,2,223,3],[223,4,223,5],[224,1,224,3],[224,4,224,5],[228,7,228,8],[232,1,232,5],[244,1,244,4],[245,1,245,4],[247,1,247,5],[259,1,259,4],[260,1,260,4],[262,1,262,5],[263,2,263,3],[263,4,263,5],[264,2,264,3],[264,4,264,5],[265,2,265,3],[265,4,265,5],[266,1,266,3],[266,4,266,5]]}
["A2","Aislamiento térmico de la envolvente",null,null,"Zonas México: Todas",{"$nulls":3},"Zona ASHRAE: Todas"]
[]
[null,"Zona climática"]
[null,"Lugar con GDC < 1000 y GDR < 3000"]
[null,"Edificación dispone de calefacción o refrigeración?",{"$nulls":8},"LÍMITES TRANSMITANCIA TÉRMICA  PARA EL PROYECTO (W/m2°K)",{"$nulls":16},"LÍMITE TRANSMITANCIA TÉRMICA ",{"$nulls":18},"acondicionado"]
[{"$nulls":11},{"$f":"AC6","v":"Contra clima exterior"},{"$nulls":8},{"$f":"AL6","v":"Contra espacios no acondicionados y terreno"},{"$nulls":6},"Zona  climática","Contra clima exterior",{"$nulls":8},"Contra espacios no acondicionados y terreno",{"$nulls":7},"clima_optimo","Sí","No"]
[null,"Tabla A2.1",null,null,"Transmitanica  U  proyecto (W/m2°K)","Transmitanica  U  máxima (W/m2°K)",{"$nulls":4},{"$f":"AB6","v":"Zona  climática"},{"$f":"AC7","v":"Techumbre Ligera"},{"$f":"AD7","v":"Techumbe Sólida"},"Muro Ligero","Muro Sólido","Piso Ligero","Piso Sólido","Ventana en fachada con ≤ 40% de acristalamiento","Ventana en fachada con > 40% de acristalamiento","Puerta","Muro Ligero","Muro Sólido","Piso Ligero","Piso Sólido","Puerta",{"$nulls":3},"Techumbre Ligera","Techumbe Sólida","Muro Ligero","Muro Sólido","Piso Ligero","Piso Sólido","Ventana en fachada con ≤ 40% de acristalamiento","Ventana en fachada con > 40% de acristalamiento","Puerta","Muro Ligero","Muro Sólido","Piso Ligero","Piso Sólido","Puerta",null,"LISTA",null,"Sí",{"$f":"IF(AND($C$4=$AT7,$C$5=AU$6),$AA$13,\"\")","v":""},{"$f":"IF(AND($C$4=$AT7,$C$5=AV$6),$AA$13,\"\")","v":""}]
[null,"Componente","Situación","Elemento",{"$nulls":3},"Requisito A2","Requisito A3\nOpción simple",null,{"$f":"IF(ISBLANK(C3),\"-\",C3)","v":"-"},{"$f":"VLOOKUP($AR$15,$AB$6:$AP$17,2,0)","v":{"$error":"#N/A"}},{"$f":"VLOOKUP($AR$15,$AB$6:$AP$17,3,0)","v":{"$error":"#N/A"}},{"$f":"VLOOKUP($AR$15,$AB$6:$AP$17,4,0)","v":{"$error":"#N/A"}},{"$f":"VLOOKUP($AR$15,$AB$6:$AP$17,5,0)","v":{"$error":"#N/A"}},{"$f":"VLOOKUP($AR$15,$AB$6:$AP$17,6,0)","v":{"$error":"#N/A"}},{"$f":"VLOOKUP($AR$15,$AB$6:$AP$17,7,0)","v":{"$error":"#N/A"}},{"$f":"VLOOKUP($AR$15,$AB$6:$AP$17,8,0)","v":{"$error":"#N/A"}},{"$f":"VLOOKUP($AR$15,$AB$6:$AP$17,9,0)","v":{"$error":"#N/A"}},{"$f":"VLOOKUP($AR$15,$AB$6:$AP$17,10,0)","v":{"$error":"#N/A"}},{"$f":"VLOOKUP($AR$15,$AB$6:$AP$17,11,0)","v":{"$error":"#N/A"}},{"$f":"VLOOKUP($AR$15,$AB$6:$AP$17,12,0)","v":{"$error":"#N/A"}},{"$f":"VLOOKUP($AR$15,$AB$6:$AP$17,13,0)","v":{"$error":"#N/A"}},{"$f":"VLOOKUP($AR$15,$AB$6:$AP$17,14,0)","v":{"$error":"#N/A"}},{"$f":"VLOOKUP($AR$15,$AB$6:$AP$17,15,0)","v":{"$error":"#N/A"}},null,null,0,0.4,0.6,0.65,0.75,0.65,0.75,3.8,1.9,1.9,0.6,0.75,0.75,0.75,3,null,"Sí",null,"No",{"$f":"IF(AND($C$4=$AT8,$C$5=AU$6),$AA$11,\"\")","v":""},{"$f":"IF(AND($C$4=$AT8,$C$5=AV$6),$AA$12,\"\")","v":""}]
[null,"Muro 1",{"$nulls":3},{"$f":"IF(C9=$L$6,HLOOKUP(D9,$L$7:$T$8,2,0),IF(C9=$U$6,HLOOKUP(D9,$U$7:$Y$8,2,0),\"\"))","v":""},null,{"$f":"_xlfn.IFS(OR(E9=\"\",F9=\"\"),\"\",E9<=F9,\"Cumple\",E9>F9,\"No cumple\")","v":{"$error":"#NAME?"}},{"$f":"_xlfn.IFS(OR(E9=\"\",F9=\"\"),\"\",E9*110%<=F9,\"Cumple\",E9*110%>F9,\"No cumple\")","v":{"$error":"#NAME?"}},{"$nulls":18},1,0.4,0.6,0.65,0.75,0.65,0.75,3.8,1.9,1.9,0.6,0.75,0.75,0.75,3,null,"No"]
[null,"Muro 2",{"$nulls":3},{"$f":"IF(C10=$L$6,HLOOKUP(D10,$L$7:$T$8,2,0),IF(C10=$U$6,HLOOKUP(D10,$U$7:$Y$8,2,0),\"\"))","v":""},null,{"$f":"_xlfn.IFS(OR(E10=\"\",F10=\"\"),\"\",E10<=F10,\"Cumple\",E10>F10,\"No cumple\")","v":{"$error":"#NAME?"}},{"$f":"_xlfn.IFS(OR(E10=\"\",F10=\"\"),\"\",E10*110%<=F10,\"Cumple\",E10*110%>F10,\"No cumple\")","v":{"$error":"#NAME?"}},{"$nulls":18},2,0.4,0.6,0.65,0.75,0.65,0.75,3.8,1.9,1.9,0.6,0.75,0.75,0.75,3]
[null,"Muro 3",{"$nulls":3},"",null,{"$f":"_xlfn.IFS(OR(E11=\"\",F11=\"\"),\"\",E11<=F11,\"Cumple\",E11>F11,\"No cumple\")","v":{"$error":"#NAME?"}},{"$f":"_xlfn.IFS(OR(E11=\"\",F11=\"\"),\"\",E11*110%<=F11,\"Cumple\",E11*110%>F11,\"No cumple\")","v":{"$error":"#NAME?"}},{"$nulls":17},"acondicionado",{"$f":"3&AA11","v":"3acondicionado"},0.4,0.5,0.4,0.6,0.4,0.6,"-",3,3,"-","-","-","-",3]
[null,"Muro 4",{"$nulls":3},"",{"$nulls":20},"non_acondicionado",{"$f":"3&AA12","v":"3non_acondicionado"},0.4,0.5,0.4,0.6,0.4,0.6,"-","-","-","-","-","-","-","-"]
[null,"Muro 5",{"$nulls":3},"",null,{"$f":"_xlfn.IFS(OR(E13=\"\",F13=\"\"),\"\",E13<=F13,\"Cumple\",E13>F13,\"No cumple\")","v":{"$error":"#NAME?"}},{"$f":"_xlfn.IFS(OR(E13=\"\",F13=\"\"),\"\",E13*110%<=F13,\"Cumple\",E13*110%>F13,\"No cumple\")","v":{"$error":"#NAME?"}},{"$nulls":17},"clima_optimo","3clima_optimo",0.6,0.6,"-","-","-","-","-","-","-","-","-","-","-","-"]
[null,"Muro 6",{"$nulls":3},"",null,{"$f":"_xlfn.IFS(OR(E14=\"\",F14=\"\"),\"\",E14<=F14,\"Cumple\",E14>F14,\"No cumple\")","v":{"$error":"#NAME?"}},{"$f":"_xlfn.IFS(OR(E14=\"\",F14=\"\"),\"\",E14*110%<=F14,\"Cumple\",E14*110%>F14,\"No cumple\")","v":{"$error":"#NAME?"}},{"$nulls":18},4,0.3,0.4,0.4,0.5,0.4,0.5,1.9,1.9,1.9,0.4,0.5,0.5,0.5,3,null,"Zona climática"]
[null,"Techumbre 1",{"$nulls":3},"",null,{"$f":"_xlfn.IFS(OR(E15=\"\",F15=\"\"),\"\",E15<=F15,\"Cumple\",E15>F15,\"No cumple\")","v":{"$error":"#NAME?"}},{"$f":"_xlfn.IFS(OR(E15=\"\",F15=\"\"),\"\",E15*110%<=F15,\"Cumple\",E15*110%>F15,\"No cumple\")","v":{"$error":"#NAME?"}},{"$nulls":18},5,0.25,0.25,0.25,0.25,0.25,0.25,1.9,1.9,1.9,0.4,0.4,0.5,0.5,3,null,{"$f":"IF(ISBLANK(C3),\"-\",IF(C3=3,C3&AU7&AV7&AU8&AV8,C3))","v":"-"}]
[null,"Techumbre 2",{"$nulls":3},"",null,{"$f":"_xlfn.IFS(OR(E16=\"\",F16=\"\"),\"\",E16<=F16,\"Cumple\",E16>F16,\"No cumple\")","v":{"$error":"#NAME?"}},{"$f":"_xlfn.IFS(OR(E16=\"\",F16=\"\"),\"\",E16*110%<=F16,\"Cumple\",E16*110%>F16,\"No cumple\")","v":{"$error":"#NAME?"}},{"$nulls":18},6,0.18,0.18,0.18,0.18,0.18,0.18,1.5,1.5,1.5,0.25,0.25,0.25,0.25,3]
[null,"Techumbre 3",{"$nulls":3},{"$f":"IF(C17=$L$6,HLOOKUP(D17,$L$7:$T$8,2,0),IF(C17=$U$6,HLOOKUP(D17,$U$7:$Y$8,2,0),\"\"))","v":""},null,{"$f":"_xlfn.IFS(OR(E17=\"\",F17=\"\"),\"\",E17<=F17,\"Cumple\",E17>F17,\"No cumple\")","v":{"$error":"#NAME?"}},{"$f":"_xlfn.IFS(OR(E17=\"\",F17=\"\"),\"\",E17*110%<=F17,\"Cumple\",E17*110%>F17,\"No cumple\")","v":{"$error":"#NAME?"}},{"$nulls":18},7,0.18,0.18,0.18,0.18,0.18,0.18,1.5,1.5,1.5,0.25,0.25,0.25,0.25,3]
[null,"Piso 1",{"$nulls":3},"",null,{"$f":"_xlfn.IFS(OR(E18=\"\",F18=\"\"),\"\",E18<=F18,\"Cumple\",E18>F18,\"No cumple\")","v":{"$error":"#NAME?"}},{"$f":"_xlfn.IFS(OR(E18=\"\",F18=\"\"),\"\",E18*110%<=F18,\"Cumple\",E18*110%>F18,\"No cumple\")","v":{"$error":"#NAME?"}}]
[null,"Piso 2",{"$nulls":3},"",null,{"$f":"_xlfn.IFS(OR(E19=\"\",F19=\"\"),\"\",E19<=F19,\"Cumple\",E19>F19,\"No cumple\")","v":{"$error":"#NAME?"}},{"$f":"_xlfn.IFS(OR(E19=\"\",F19=\"\"),\"\",E19*110%<=F19,\"Cumple\",E19*110%>F19,\"No cumple\")","v":{"$error":"#NAME?"}},{"$nulls":18},"RESISTENCIAS TÉRMICAS DE SUPERFICIE "]
[null,"Piso 3",{"$nulls":3},"",null,{"$f":"_xlfn.IFS(OR(E20=\"\",F20=\"\"),\"\",E20<=F20,\"Cumple\",E20>F20,\"No cumple\")","v":{"$error":"#NAME?"}},{"$f":"_xlfn.IFS(OR(E20=\"\",F20=\"\"),\"\",E20*110%<=F20,\"Cumple\",E20*110%>F20,\"No cumple\")","v":{"$error":"#NAME?"}},{"$nulls":18},"Rsi",0.1,0.1,0.13,0.13,0.17,0.17,0.13,0.13,0.13,0.13,0.13,0.17,0.17,0.13]
[null,"Ventana 1",{"$nulls":3},"",null,{"$f":"_xlfn.IFS(OR(E21=\"\",F21=\"\"),\"\",E21<=F21,\"Cumple\",E21>F21,\"No cumple\")","v":{"$error":"#NAME?"}},{"$f":"_xlfn.IFS(OR(E21=\"\",F21=\"\"),\"\",E21*110%<=F21,\"Cumple\",E21*110%>F21,\"No cumple\")","v":{"$error":"#NAME?"}},{"$nulls":18},"Rse",0.04,0.04,0.04,0.04,0.04,0.04,0.04,0.04,0.04,0.13,0.13,0.17,0.17,0.13]
[null,"Ventana 2",{"$nulls":3},"",null,{"$f":"_xlfn.IFS(OR(E22=\"\",F22=\"\"),\"\",E22<=F22,\"Cumple\",E22>F22,\"No cumple\")","v":{"$error":"#NAME?"}},{"$f":"_xlfn.IFS(OR(E22=\"\",F22=\"\"),\"\",E22*110%<=F22,\"Cumple\",E22*110%>F22,\"No cumple\")","v":{"$error":"#NAME?"}}]
[null,"Ventana 3",{"$nulls":3},"",null,{"$f":"_xlfn.IFS(OR(E23=\"\",F23=\"\"),\"\",E23<=F23,\"Cumple\",E23>F23,\"No cumple\")","v":{"$error":"#NAME?"}},{"$f":"_xlfn.IFS(OR(E23=\"\",F23=\"\"),\"\",E23*110%<=F23,\"Cumple\",E23*110%>F23,\"No cumple\")","v":{"$error":"#NAME?"}}]
[null,"Puerta 1",{"$nulls":3},"",null,{"$f":"_xlfn.IFS(OR(E24=\"\",F24=\"\"),\"\",E24<=F24,\"Cumple\",E24>F24,\"No cumple\")","v":{"$error":"#NAME?"}},{"$f":"_xlfn.IFS(OR(E24=\"\",F24=\"\"),\"\",E24*110%<=F24,\"Cumple\",E24*110%>F24,\"No cumple\")","v":{"$error":"#NAME?"}}]
[null,"Puerta 2",{"$nulls":3},"",null,{"$f":"_xlfn.IFS(OR(E25=\"\",F25=\"\"),\"\",E25<=F25,\"Cumple\",E25>F25,\"No cumple\")","v":{"$error":"#NAME?"}},{"$f":"_xlfn.IFS(OR(E25=\"\",F25=\"\"),\"\",E25*110%<=F25,\"Cumple\",E25*110%>F25,\"No cumple\")","v":{"$error":"#NAME?"}}]
[null,"Puerta 3",{"$nulls":3},{"$f":"IF(C26=$L$6,HLOOKUP(D26,$L$7:$T$8,2,0),IF(C26=$U$6,HLOOKUP(D26,$U$7:$Y$8,2,0),\"\"))","v":""},null,{"$f":"_xlfn.IFS(OR(E26=\"\",F26=\"\"),\"\",E26<=F26,\"Cumple\",E26>F26,\"No cumple\")","v":{"$error":"#NAME?"}},{"$f":"_xlfn.IFS(OR(E26=\"\",F26=\"\"),\"\",E26*110%<=F26,\"Cumple\",E26*110%>F26,\"No cumple\")","v":{"$error":"#NAME?"}}]
[]
[]
[]
[null,"Las siguientes alternativas de cálculo se ponen a disposición en caso que el/la Experto/a lo requiera para llenar los datos de la \"Tabla A2.1\" de declaración de Valores U"]
[null,"Alternativa 1. Cálculo de valor U: Sistema constructivo sólido."]
[]
[null,"Elementos de construcción sólida:"]
[null,"-     Muro de hormigón armado (mínimo 10 cm de espesor)"]
[null,"-     Muro de albañilería (mínimo 20 cm de espesor)"]
[null,"-     Muro de adobe (mínimo 17 cm de espesor)"]
[]
[null,"Situación",{"$nulls":5},"Evaluación de Transmitancia térmica"]
[null,"Elemento",{"$nulls":5},"Transmitanica máxima (U)",{"$f":"IF(C38=$L$6,HLOOKUP(C39,$L$7:$T$8,2,0),IF(C38=$U$6,HLOOKUP(C39,$U$7:$Y$8,2,0),\"\"))","v":""}]
[{"$nulls":7},"Evaluación U proyecto",{"$f":"IFERROR(_xlfn.IFS(F54<=I39,\"Cumple\",F54>I39,\"No cumple\"),\"Completar cálculo\")","v":"Completar cálculo"}]
[]
[null,"Material","Espesor \n(m)","Densidad\n(kg/m3)","Conductividad (W/m°K)","Resistencia (m2°K/W)",null,"El cálculo de transmitancia térmica está basado de acuerdo a lo indicado en la  ISO 6946, donde se indica que el valor de la transmitancia termica como:\n\n\n\n\nPara la evaluación del cálculo, se deben seguir las siguientes indicaciones:\n1) Elegir la situación del elemento (exterior o en contacto con esp. no acondicionado)\n2) Elegir el tipo de elemento (muro, techo, piso)\n3) Elegir zona térmica donde se encuentra emplazado\n\nLas  \"Resistencia superficial por elementos verticales y horizontales\" se establecen de forma automatica de acuerdo a la selección de la situación en la cual se encuentra el elemento a evaluar."]
[null,"Resistencia superficie interior",{"$nulls":3},{"$f":"IF(C38=$L$6,HLOOKUP(C39,$AC$7:$AK$21,14,0),IF(C38=$U$6,HLOOKUP(C39,$AL$7:$AP$21,14,0),\"\"))","v":""}]
[{"$nulls":5},{"$f":"IFERROR(C44/E44,\"\")","v":""}]
[{"$nulls":5},""]
[{"$nulls":5},""]
[{"$nulls":5},""]
[{"$nulls":5},""]
[{"$nulls":5},""]
[{"$nulls":5},""]
[{"$nulls":5},""]
[null,"Resistencia superficie exterior",{"$nulls":3},{"$f":"IF(C38=$L$6,HLOOKUP(C39,$AC$7:$AK$21,15,0),IF(C38=$U$6,HLOOKUP(C39,$AL$7:$AP$21,15,0),\"\"))","v":""}]
[null,"Resistencia Térmica (m2°K/W)",{"$nulls":3},{"$f":"SUM(F43:F52)","v":{"v":0,"d":"0.000"}}]
[null,"Transmitancia Térmica U (W/m2°K)",{"$nulls":3},{"$f":"1/F53","v":{"$error":"#DIV/0!"}}]
[]
[null,"Alternativa 2. Cálculo de valor U: Sistema constructivo mixto o ligero (2 o más secciones)."]
[]
[null,"Elementos de construcción ligera:"]
[null,"-     Muro de madera contralaminada “CLT” (con menos de 27 cm de espesor)"]
[null,"-     Sistema constructivo con base a marcos de madera (tabiquería de madera)"]
[null,"-     Sistema constructivo con base a marcos metálicos (tabiquería metálica)"]
[]
[null,"Situación",{"$nulls":5},"Evaluación de Transmitancia térmica"]
[null,"Elemento",{"$nulls":5},"Transmitanica máxima (U)",{"$f":"IF(C63=$L$6,HLOOKUP(C64,$L$7:$T$8,2,0),IF(C63=$U$6,HLOOKUP(C64,$U$7:$Y$8,2,0),\"\"))","v":""}]
[{"$nulls":7},"Evaluación U proyecto",{"$f":"IFERROR(_xlfn.IFS(E101<=I64,\"Cumple\",E101>I64,\"No cumple\"),\"Completar cálculo\")","v":"Completar cálculo"}]
[]
[null,"SECCIÓN 1"]
[null,"Material","Espesor \n(m)","Densidad\n(kg/m3)","Conductividad (W/m°K)","Resistencia (m2°K/W)"]
[null,"Resistencia superficie interior",{"$nulls":3},{"$f":"IF(C63=$L$6,HLOOKUP(C64,$AC$7:$AK$21,14,0),IF(C63=$U$6,HLOOKUP(C64,$AL$7:$AP$21,14,0),\"\"))","v":""}]
[{"$nulls":5},{"$f":"IFERROR(C70/E70,\"\")","v":""}]
[{"$nulls":5},""]
[{"$nulls":5},""]
[{"$nulls":5},""]
[{"$nulls":5},""]
[{"$nulls":5},""]
[{"$nulls":5},""]
[{"$nulls":5},""]
[null,"Resistencia superficie exterior",{"$nulls":3},{"$f":"IF(C63=$L$6,HLOOKUP(C64,$AC$7:$AK$21,15,0),IF(C63=$U$6,HLOOKUP(C64,$AL$7:$AP$21,15,0),\"\"))","v":""}]
[null,"Resistencia Térmica (m2°K/W)",{"$nulls":3},{"$f":"SUM(F69:F78)","v":{"v":0,"d":"0.000"}}]
[null,"Transmitancia Térmica sección 1 U (W/m2°K)",{"$nulls":3},{"$f":"IFERROR(1/F79,\"Completar\")","v":"Completar"}]
[]
[null,"SECCIÓN 2"]
[null,"Material","Espesor \n(m)","Densidad\n(kg/m3)","Conductividad (W/m°K)","Resistencia (m2°K/W)"]
[null,"Resistencia superficie interior",{"$nulls":3},{"$f":"IF(C63=$L$6,HLOOKUP(C64,$AC$7:$AK$21,14,0),IF(C63=$U$6,HLOOKUP(C64,$AL$7:$AP$21,14,0),\"\"))","v":""}]
[{"$nulls":5},{"$f":"IFERROR(C85/E85,\"\")","v":""}]
[{"$nulls":5},""]
[{"$nulls":5},""]
[{"$nulls":5},""]
[{"$nulls":5},""]
[{"$nulls":5},""]
[{"$nulls":5},""]
[{"$nulls":5},""]
[null,"Resistencia superficie exterior",{"$nulls":3},{"$f":"IF(C63=$L$6,HLOOKUP(C64,$AC$7:$AK$21,15,0),IF(C63=$U$6,HLOOKUP(C64,$AL$7:$AP$21,15,0),\"\"))","v":""}]
[null,"Resistencia Térmica (m2°K/W)",{"$nulls":3},{"$f":"SUM(F84:F93)","v":{"v":0,"d":"0.000"}}]
[null,"Transmitancia Térmica sección 2 (W/m2°K)",{"$nulls":3},{"$f":"IFERROR(1/F94,\"Completar\")","v":"Completar"}]
[]
[null,"PONDERACIÓN VALORES U"]
[null,"Sección","Porcentaje en la superficie (%)",null,"Valor U ponderado"]
[null,"Valor U Sección 1",null,null,{"$f":"IFERROR(F80*C99,\"Completar Cálculos\")","v":"Completar Cálculos"}]
[null,"Valor U Sección 2",{"$f":"1-C99","v":{"v":1,"d":"100%"}},null,{"$f":"(F95*C100)","v":{"$error":"#VALUE!"}}]
[null,"Transmitancia Térmica Total U (W/m2°K)",null,null,{"$f":"SUM(E99:F100)","v":{"$error":"#VALUE!"}}]
[]
[null,"Apartado para otros cálculos de valor U"]
[]
[null,"Situación",{"$nulls":5},"Evaluación de Transmitancia térmica"]
[null,"Elemento",{"$nulls":5},"Transmitanica máxima (U)",{"$f":"IF(C105=$L$6,HLOOKUP(C106,$L$7:$T$8,2,0),IF(C105=$U$6,HLOOKUP(C106,$U$7:$Y$8,2,0),\"\"))","v":""}]
[{"$nulls":7},"Evaluación U proyecto",{"$f":"IFERROR(_xlfn.IFS(F121<=I106,\"Cumple\",F121>I106,\"No cumple\"),\"Completar cálculo\")","v":"Completar cálculo"}]
[]
[null,"Material","Espesor \n(m)","Densidad\n(kg/m3)","Conductividad (W/m°K)","Resistencia (m2°K/W)"]
[null,"Resistencia superficie interior",{"$nulls":3},{"$f":"IF(C105=$L$6,HLOOKUP(C106,$AC$7:$AK$21,14,0),IF(C105=$U$6,HLOOKUP(C106,$AL$7:$AP$21,14,0),\"\"))","v":""}]
[{"$nulls":5},{"$f":"IFERROR(C111/E111,\"\")","v":""}]
[{"$nulls":5},""]
[{"$nulls":5},""]
[{"$nulls":5},""]
[{"$nulls":5},""]
[{"$nulls":5},""]
[{"$nulls":5},""]
[{"$nulls":5},""]
[null,"Resistencia superficie exterior",{"$nulls":3},{"$f":"IF(C105=$L$6,HLOOKUP(C106,$AC$7:$AK$21,15,0),IF(C105=$U$6,HLOOKUP(C106,$AL$7:$AP$21,15,0),\"\"))","v":""}]
[null,"Resistencia Térmica (m2°K/W)",{"$nulls":3},{"$f":"SUM(F110:F119)","v":{"v":0,"d":"0.000"}}]
[null,"Transmitancia Térmica U (W/m2°K)",{"$nulls":3},{"$f":"1/F120","v":{"$error":"#DIV/0!"}}]
[]
[]
[]
[null,"Situación",{"$nulls":5},"Evaluación de Transmitancia térmica"]
[null,"Elemento",{"$nulls":5},"Transmitanica máxima (U)",{"$f":"IF(C125=$L$6,HLOOKUP(C126,$L$7:$T$8,2,0),IF(C125=$U$6,HLOOKUP(C126,$U$7:$Y$8,2,0),\"\"))","v":""}]
[{"$nulls":7},"Evaluación U proyecto",{"$f":"IFERROR(_xlfn.IFS(F141<=I126,\"Cumple\",F141>I126,\"No cumple\"),\"Completar cálculo\")","v":"Completar cálculo"}]
[]
[null,"Material","Espesor \n(m)","Densidad\n(kg/m3)","Conductividad (W/m°K)","Resistencia (m2°K/W)"]
[null,"Resistencia superficie interior",{"$nulls":3},{"$f":"IF(C125=$L$6,HLOOKUP(C126,$AC$7:$AK$21,14,0),IF(C125=$U$6,HLOOKUP(C126,$AL$7:$AP$21,14,0),\"\"))","v":""}]
[{"$nulls":5},{"$f":"IFERROR(C131/E131,\"\")","v":""}]
[{"$nulls":5},""]
[{"$nulls":5},""]
[{"$nulls":5},""]
[{"$nulls":5},""]
[{"$nulls":5},""]
[{"$nulls":5},""]
[{"$nulls":5},""]
[null,"Resistencia superficie exterior",{"$nulls":3},{"$f":"IF(C125=$L$6,HLOOKUP(C126,$AC$7:$AK$21,15,0),IF(C125=$U$6,HLOOKUP(C126,$AL$7:$AP$21,15,0),\"\"))","v":""}]
[null,"Resistencia Térmica (m2°K/W)",{"$nulls":3},{"$f":"SUM(F130:F139)","v":{"v":0,"d":"0.000"}}]
[null,"Transmitancia Térmica U (W/m2°K)",{"$nulls":3},{"$f":"1/F140","v":{"$error":"#DIV/0!"}}]
[]
[]
[]
[null,"Situación",{"$nulls":5},"Evaluación de Transmitancia térmica"]
[null,"Elemento",{"$nulls":5},"TRANSMITACIA MAXIMA",{"$f":"IF(C145=$L$6,HLOOKUP(C146,$L$7:$T$8,2,0),IF(C145=$U$6,HLOOKUP(C146,$U$7:$Y$8,2,0),\"\"))","v":""}]
[{"$nulls":7},"EVALUACION",{"$f":"IFERROR(_xlfn.IFS(E183<=I146,\"Cumple\",E183>I146,\"No cumple\"),\"Completar cálculo\")","v":"Completar cálculo"}]
[]
[null,"SECCIÓN 1"]
[null,"Material","Espesor \n(m)","Densidad\n(kg/m3)","Conductividad (W/m°K)","Resistencia (m2°K/W)"]
[null,"Resistencia superficie interior",{"$nulls":3},{"$f":"IF(C145=$L$6,HLOOKUP(C146,$AC$7:$AK$21,14,0),IF(C145=$U$6,HLOOKUP(C146,$AL$7:$AP$21,14,0),\"\"))","v":""}]
[{"$nulls":5},{"$f":"IFERROR(C152/E152,\"\")","v":""}]
[{"$nulls":5},""]
[{"$nulls":5},""]
[{"$nulls":5},""]
[{"$nulls":5},""]
[{"$nulls":5},""]
[{"$nulls":5},""]
[{"$nulls":5},""]
[null,"Resistencia superficie exterior",{"$nulls":3},{"$f":"IF(C145=$L$6,HLOOKUP(C146,$AC$7:$AK$21,15,0),IF(C145=$U$6,HLOOKUP(C146,$AL$7:$AP$21,15,0),\"\"))","v":""}]
[null,"Resistencia Térmica (m2°K/W)",{"$nulls":3},{"$f":"SUM(F151:F160)","v":{"v":0,"d":"0.000"}}]
[null,"Transmitancia Térmica sección 1 U (W/m2°K)",{"$nulls":3},{"$f":"1/F161","v":{"$error":"#DIV/0!"}}]
[]
[null,"SECCIÓN 2"]
[null,"Material","Espesor \n(m)","Densidad\n(kg/m3)","Conductividad (W/m°K)","Resistencia (m2°K/W)"]
[null,"Resistencia superficie interior",{"$nulls":3},{"$f":"IF(C145=$L$6,HLOOKUP(C146,$AC$7:$AK$21,14,0),IF(C145=$U$6,HLOOKUP(C146,$AL$7:$AP$21,14,0),\"\"))","v":""}]
[{"$nulls":5},{"$f":"IFERROR(C167/E167,\"\")","v":""}]
[{"$nulls":5},""]
[{"$nulls":5},""]
[{"$nulls":5},""]
[{"$nulls":5},""]
[{"$nulls":5},""]
[{"$nulls":5},""]
[{"$nulls":5},""]
[null,"Resistencia superficie exterior",{"$nulls":3},{"$f":"IF(C145=$L$6,HLOOKUP(C146,$AC$7:$AK$21,15,0),IF(C145=$U$6,HLOOKUP(C146,$AL$7:$AP$21,15,0),\"\"))","v":""}]
[null,"Resistencia Térmica (m2°K/W)",{"$nulls":3},{"$f":"SUM(F166:F175)","v":{"v":0,"d":"0.000"}}]
[null,"Transmitancia Térmica sección 2 (W/m2°K)",{"$nulls":3},{"$f":"1/F176","v":{"$error":"#DIV/0!"}}]
[]
[null,"PONDERACIÓN VALORES U"]
[null,"Sección","Porcentaje en la superficie (%)",null,"Valor U ponderado"]
[null,"Valor U Sección 1",null,null,{"$f":"F162*C181","v":{"$error":"#DIV/0!"}}]
[null,"Valor U Sección 2",{"$f":"1-C181","v":{"v":1,"d":"100%"}},null,{"$f":"F177*C182","v":{"$error":"#DIV/0!"}}]
[null,"Transmitancia Térmica Total U (W/m2°K)",null,null,{"$f":"SUM(E181:F182)","v":{"$error":"#DIV/0!"}}]
[]
[]
[]
[null,"Situación",{"$nulls":5},"Evaluación de Transmitancia térmica"]
[null,"Elemento",{"$nulls":5},"TRANSMITACIA MAXIMA",{"$f":"IF(C187=$L$6,HLOOKUP(C188,$L$7:$T$8,2,0),IF(C187=$U$6,HLOOKUP(C188,$U$7:$Y$8,2,0),\"\"))","v":""}]
[{"$nulls":7},"EVALUACION",{"$f":"IFERROR(_xlfn.IFS(E225<=I188,\"Cumple\",E225>I188,\"No cumple\"),\"Completar cálculo\")","v":"Completar cálculo"}]
[]
[null,"SECCIÓN 1"]
[null,"Material","Espesor \n(m)","Densidad\n(kg/m3)","Conductividad (W/m°K)","Resistencia (m2°K/W)"]
[null,"Resistencia superficie interior",{"$nulls":3},{"$f":"IF(C187=$L$6,HLOOKUP(C188,$AC$7:$AK$21,14,0),IF(C187=$U$6,HLOOKUP(C188,$AL$7:$AP$21,14,0),\"\"))","v":""}]
[{"$nulls":5},{"$f":"IFERROR(C194/E194,\"\")","v":""}]
[{"$nulls":5},""]
[{"$nulls":5},""]
[{"$nulls":5},""]
[{"$nulls":5},""]
[{"$nulls":5},""]
[{"$nulls":5},""]
[{"$nulls":5},""]
[null,"Resistencia superficie exterior",{"$nulls":3},{"$f":"IF(C187=$L$6,HLOOKUP(C188,$AC$7:$AK$21,15,0),IF(C187=$U$6,HLOOKUP(C188,$AL$7:$AP$21,15,0),\"\"))","v":""}]
[null,"Resistencia Térmica (m2°K/W)",{"$nulls":3},{"$f":"SUM(F193:F202)","v":{"v":0,"d":"0.000"}}]
[null,"Transmitancia Térmica sección 1 U (W/m2°K)",{"$nulls":3},{"$f":"1/F203","v":{"$error":"#DIV/0!"}}]
[]
[null,"SECCIÓN 2"]
[null,"Material","Espesor \n(m)","Densidad\n(kg/m3)","Conductividad (W/m°K)","Resistencia (m2°K/W)"]
[null,"Resistencia superficie interior",{"$nulls":3},{"$f":"IF(C187=$L$6,HLOOKUP(C188,$AC$7:$AK$21,14,0),IF(C187=$U$6,HLOOKUP(C188,$AL$7:$AP$21,14,0),\"\"))","v":""}]
[{"$nulls":5},{"$f":"IFERROR(C209/E209,\"\")","v":""}]
[{"$nulls":5},""]
[{"$nulls":5},""]
[{"$nulls":5},""]
[{"$nulls":5},""]
[{"$nulls":5},""]
[{"$nulls":5},""]
[{"$nulls":5},""]
[null,"Resistencia superficie exterior",{"$nulls":3},{"$f":"IF(C187=$L$6,HLOOKUP(C188,$AC$7:$AK$21,15,0),IF(C187=$U$6,HLOOKUP(C188,$AL$7:$AP$21,15,0),\"\"))","v":""}]
[null,"Resistencia Térmica (m2°K/W)",{"$nulls":3},{"$f":"SUM(F208:F217)","v":{"v":0,"d":"0.000"}}]
[null,"Transmitancia Térmica sección 2 (W/m2°K)",{"$nulls":3},{"$f":"1/F218","v":{"$error":"#DIV/0!"}}]
[]
[null,"PONDERACIÓN VALORES U"]
[null,"Sección","Porcentaje en la superficie (%)",null,"Valor U ponderado"]
[null,"Valor U Sección 1",null,null,{"$f":"F204*C223","v":{"$error":"#DIV/0!"}}]
[null,"Valor U Sección 2",{"$f":"1-C223","v":{"v":1,"d":"100%"}},null,{"$f":"F219*C224","v":{"$error":"#DIV/0!"}}]
[null,"Transmitancia Térmica Total U (W/m2°K)",null,null,{"$f":"SUM(E223:F224)","v":{"$error":"#DIV/0!"}}]
[]
[]
[]
[null,"Situación",{"$nulls":5},"Evaluación de Transmitancia térmica"]
[null,"Elemento",{"$nulls":5},"TRANSMITACIA MAXIMA",{"$f":"IF(C229=$L$6,HLOOKUP(C230,$L$7:$T$8,2,0),IF(C229=$U$6,HLOOKUP(C230,$U$7:$Y$8,2,0),\"\"))","v":""}]
[{"$nulls":7},"EVALUACION",{"$f":"IFERROR(_xlfn.IFS(E267<=I230,\"Cumple\",E267>I230,\"No cumple\"),\"Completar cálculo\")","v":"Completar cálculo"}]
[]
[null,"SECCIÓN 1"]
[null,"Material","Espesor \n(m)","Densidad\n(kg/m3)","Conductividad (W/m°K)","Resistencia (m2°K/W)"]
[null,"Resistencia superficie interior",{"$nulls":3},{"$f":"IF(C229=$L$6,HLOOKUP(C230,$AC$7:$AK$21,14,0),IF(C229=$U$6,HLOOKUP(C230,$AL$7:$AP$21,14,0),\"\"))","v":""}]
[{"$nulls":5},{"$f":"IFERROR(C236/E236,\"\")","v":""}]
[{"$nulls":5},""]
[{"$nulls":5},""]
[{"$nulls":5},""]
[{"$nulls":5},""]
[{"$nulls":5},""]
[{"$nulls":5},""]
[{"$nulls":5},""]
[null,"Resistencia superficie exterior",{"$nulls":3},{"$f":"IF(C229=$L$6,HLOOKUP(C230,$AC$7:$AK$21,15,0),IF(C229=$U$6,HLOOKUP(C230,$AL$7:$AP$21,15,0),\"\"))","v":""}]
[null,"Resistencia Térmica (m2°K/W)",{"$nulls":3},{"$f":"SUM(F235:F244)","v":{"v":0,"d":"0.000"}}]
[null,"Transmitancia Térmica sección 1 U (W/m2°K)",{"$nulls":3},{"$f":"1/F245","v":{"$error":"#DIV/0!"}}]
[]
[null,"SECCIÓN 2"]
[null,"Material","Espesor \n(m)","Densidad\n(kg/m3)","Conductividad (W/m°K)","Resistencia (m2°K/W)"]
[null,"Resistencia superficie interior",{"$nulls":3},{"$f":"IF(C229=$L$6,HLOOKUP(C230,$AC$7:$AK$21,14,0),IF(C229=$U$6,HLOOKUP(C230,$AL$7:$AP$21,14,0),\"\"))","v":""}]
[{"$nulls":5},{"$f":"IFERROR(C251/E251,\"\")","v":""}]
[{"$nulls":5},""]
[{"$nulls":5},""]
[{"$nulls":5},""]
[{"$nulls":5},""]
[{"$nulls":5},""]
[{"$nulls":5},""]
[{"$nulls":5},""]
[null,"Resistencia superficie exterior",{"$nulls":3},{"$f":"IF(C229=$L$6,HLOOKUP(C230,$AC$7:$AK$21,15,0),IF(C229=$U$6,HLOOKUP(C230,$AL$7:$AP$21,15,0),\"\"))","v":""}]
[null,"Resistencia Térmica (m2°K/W)",{"$nulls":3},{"$f":"SUM(F250:F259)","v":{"v":0,"d":"0.000"}}]
[null,"Transmitancia Térmica sección 2 (W/m2°K)",{"$nulls":3},{"$f":"1/F260","v":{"$error":"#DIV/0!"}}]
[]
[null,"PONDERACIÓN VALORES U"]
[null,"Sección","Porcentaje en la superficie (%)",null,"Valor U ponderado"]
[null,"Valor U Sección 1",null,null,{"$f":"F246*C265","v":{"$error":"#DIV/0!"}}]
[null,"Valor U Sección 2",{"$f":"1-C265","v":{"v":1,"d":"100%"}},null,{"$f":"F261*C266","v":{"$error":"#DIV/0!"}}]
[null,"Transmitancia Térmica Total U (W/m2°K)",null,null,{"$f":"SUM(E265:F266)","v":{"$error":"#DIV/0!"}}]

{"sheet":"A3","index":6,"n_rows":20,"n_cols":11,"rows_kept":20,"merged":[[4,1,4,3],[8,5,8,8],[9,5,10,8],[9,10,16,14],[13,2,13,3],[13,5,13,8],[14,5,14,8],[15,5,15,8],[16,5,16,8],[17,5,17,8],[18,5,18,8]]}
["A3","Reducción de puentes térmicos y hermeticidad",null,null,"Zonas Chile: C, D, E, F, G, H y I",null,null,"Zonas ASHRAE: 4, 5, 6 y 7"]
[]
[null,"Alternativa 1 Mejora de valor U en todas las componentes (Opción Simple)"]
[]
[null,"Si las celdas I7 - I23 de la hoja A2 (CHI) o A2 (MEX-LATAM) muestran \"Cumple\", el requisito A3 está cumplido. No es necesario aportar ninguna otra justificación. Si no, utilice la opción detallada."]
[]
[null,"Alternativa 2 Cálculo de valor U para compensar (Opción detallada)"]
[]
[null,"N° Puente según Guía",{"$nulls":3},"Indicar N° según Guía Minergie"]
[null,"Puente térmico lineal (Psi)",null,"W/mK",null,"Declarar Psi según ejemplos de la Guía de Aplicación Minergie ",{"$nulls":4},"Se puede detallar el puente térmico puntual con su medida y compensarlo por otro elemento de la envolvente que se pueda aumentar el espesor de aislación térmica.\n\nEl límite para valor U del elemento a compensar varia en relación con la superficie destinada y el flujo de calor del puente térmico. "]
[null,"Largo del puente térmico",null,"m"]
[null,"Flujo de calor",{"$f":"C11*C10","v":0},"W/K"]
[]
[null,"Elemento de compensación",{"$nulls":3},"Se refiere alguna componente (techumbre, muro, piso ventilado)."]
[null,"Superficie de la componente a remediar",null,"m2",null,"Se refiere a la superficie del componente que pueda mejorar su valor U en la edificación."]
[null,"Valor U requerimiento A2 para el tipo de componente",null,"W/m2K",null,"Es el límite de valor U según la zona climática de la tabla 1 o 2 para el elemento de la envolvente escogido para compensar."]
[null,"Valor U mínimo de la componente de compensación",{"$f":"IFERROR(C16-(C12/C15),\"0\")","v":"0"},"W/m2K",null,"Nuevo límite que se debe cumplir para el elemento que compensa el puente térmico."]
[]
[null,"Valor U final de la componente de compensación",null,"W/m2K",null,"Valor U final del elemento o componente de compensación."]
[null,"Evaluación",{"$f":"IF(C17<=0,\"Completar información\",IF(C19<C17,\"Cumple\",\"No cumple\"))","v":"Cumple"}]

{"sheet":"A4","index":7,"n_rows":318,"n_cols":25,"rows_kept":318,"merged":[[2,1,2,4],[6,1,6,4],[6,6,6,7],[6,11,8,12],[6,14,6,20],[7,14,17,20],[22,1,22,5],[23,2,23,5],[24,2,24,5],[25,2,25,5],[26,2,26,5],[27,2,27,5],[28,2,28,5],[29,2,29,5],[30,2,30,5],[31,2,31,5],[32,2,32,5],[44,1,45,1],[45,2,45,3],[45,11,45,12],[51,11,51,12],[52,2,52,3],[52,4,52,6],[52,7,52,8],[53,2,53,3],[53,4,53,6],[54,2,54,3],[54,4,54,6],[55,2,55,3],[55,4,55,6],[56,2,56,3],[56,4,56,6],[57,2,57,3],[57,4,57,6],[58,1,58,6],[61,1,61,2],[61,11,61,12],[62,1,62,2],[62,11,62,12],[63,1,63,2],[63,11,63,13],[64,1,64,2],[65,1,65,2],[65,11,65,12],[66,1,66,2],[67,1,67,2],[67,11,69,13],[71,1,71,2],[72,1,72,2],[73,1,73,2],[74,1,74,2],[77,1,78,1],[78,2,78,3],[80,2,80,3],[80,4,80,6],[80,7,80,8],[81,2,81,3],[81,4,81,6],[82,2,82,3],[82,4,82,6],[83,2,83,3],[83,4,83,6],[84,2,84,3],[84,4,84,6],[85,2,85,3],[85,4,85,6],[86,1,86,6],[89,1,89,2],[90,1,90,2],[91,1,91,2],[92,1,92,2],[93,1,93,2],[94,1,94,2],[95,1,95,2],[98,1,98,2],[99,1,99,2],[100,1,100,2],[101,1,101,2],[104,1,105,1],[105,2,105,3],[107,2,107,3],[107,4,107,6],[107,7,107,8],[108,2,108,3],[108,4,108,6],[109,2,109,3],[109,4,109,6],[110,2,110,3],[110,4,110,6],[111,2,111,3],[111,4,111,6],[112,2,112,3],[112,4,112,6],[113,1,113,6],[116,1,116,2],[117,1,117,2],[118,1,118,2],[119,1,119,2],[120,1,120,2],[121,1,121,2],[122,1,122,2],[125,1,125,2],[126,1,126,2],[127,1,127,2],[128,1,128,2],[131,1,132,1],[131,2,131,3],[132,2,132,3],[134,2,134,3],[134,4,134,6],[134,7,134,8],[135,2,135,3],[135,4,135,6],[136,2,136,3],[136,4,136,6],[137,2,137,3],[137,4,137,6],[138,2,138,3],[138,4,138,6],[139,2,139,3],[139,4,139,6],[140,1,140,6],[143,1,143,2],[144,1,144,2],[145,1,145,2],[146,1,146,2],[147,1,147,2],[148,1,148,2],[149,1,149,2],[152,1,152,2],[153,1,153,2],[154,1,154,2],[155,1,155,2],[158,1,159,1],[158,2,158,3],[159,2,159,3],[161,2,161,3],[161,4,161,6],[161,7,161,8],[162,2,162,3],[162,4,162,6],[163,2,163,3],[163,4,163,6],[164,2,164,3],[164,4,164,6],[165,2,165,3],[165,4,165,6],[166,2,166,3],[166,4,166,6],[167,1,167,6],[170,1,170,2],[171,1,171,2],[172,1,172,2],[173,1,173,2],[174,1,174,2],[175,1,175,2],[176,1,176,2],[179,1,179,2],[180,1,180,2],[181,1,181,2],[182,1,182,2],[185,1,186,1],[185,2,185,3],[186,2,186,3],[188,2,188,3],[188,4,188,6],[188,7,188,8],[189,2,189,3],[189,4,189,6],[190,2,190,3],[190,4,190,6],[191,2,191,3],[191,4,191,6],[192,2,192,3],[192,4,192,6],[193,2,193,3],[193,4,193,6],[194,1,194,6],[197,1,197,2],[198,1,198,2],[199,1,199,2],[200,1,200,2],[201,1,201,2],[202,1,202,2],[203,1,203,2],[206,1,206,2],[207,1,207,2],[208,1,208,2],[209,1,209,2],[212,1,213,1],[212,2,212,3],[213,2,213,3],[215,2,215,3],[215,4,215,6],[215,7,215,8],[216,2,216,3],[216,4,216,6],[217,2,217,3],[217,4,217,6],[218,2,218,3],[218,4,218,6],[219,2,219,3],[219,4,219,6],[220,2,220,3],[220,4,220,6],[221,1,221,6],[224,1,224,2],[225,1,225,2],[226,1,226,2],[227,1,227,2],[228,1,228,2],[229,1,229,2],[230,1,230,2],[233,1,233,2],[234,1,234,2],[235,1,235,2],[236,1,236,2],[239,1,240,1],[239,2,239,3],[240,2,240,3],[242,2,242,3],[242,4,242,6],[242,7,242,8],[243,2,243,3],[243,4,243,6],[244,2,244,3],[244,4,244,6],[245,2,245,3],[245,4,245,6],[246,2,246,3],[246,4,246,6],[247,2,247,3],[247,4,247,6],[248,1,248,6],[251,1,251,2],[252,1,252,2],[253,1,253,2],[254,1,254,2],[255,1,255,2],[256,1,256,2],[257,1,257,2],[260,1,260,2],[261,1,261,2],[262,1,262,2],[263,1,263,2],[266,1,267,1],[266,2,266,3],[267,2,267,3],[269,2,269,3],[269,4,269,6],[269,7,269,8],[270,2,270,3],[270,4,270,6],[271,2,271,3],[271,4,271,6],[272,2,272,3],[272,4,272,6],[273,2,273,3],[273,4,273,6],[274,2,274,3],[274,4,274,6],[275,1,275,6],[278,1,278,2],[279,1,279,2],[280,1,280,2],[281,1,281,2],[282,1,282,2],[283,1,283,2],[284,1,284,2],[287,1,287,2],[288,1,288,2],[289,1,289,2],[290,1,290,2],[293,1,294,1],[293,2,293,3],[294,2,294,3],[296,2,296,3],[296,4,296,6],[296,7,296,8],[297,2,297,3],[297,4,297,6],[298,2,298,3],[298,4,298,6],[299,2,299,3],[299,4,299,6],[300,2,300,3],[300,4,300,6],[301,2,301,3],[301,4,301,6],[302,1,302,6],[305,1,305,2],[306,1,306,2],[307,1,307,2],[308,1,308,2],[309,1,309,2],[310,1,310,2],[311,1,311,2],[314,1,314,2],[315,1,315,2],[316,1,316,2],[317,1,317,2]]}
["A4","Aprovechamiento térmico de la radiación solar",{"$nulls":3},"Zonas Chile: Todas",null,"Zonas ASHRAE: Todas menos 0A, 1A, 2A"]
[]
[null,"Tipo de estructura principal"]
[]
[null,"Capacidad de almacenamiento de calor de paquetes constructivos"]
[]
[null,"Recintos Habitable",{"$nulls":3},"Ventanas","Puertas",{"$nulls":4},"Biblioteca personal:\nEs posible ingresar un tipo de material pesado que no se encuentre en la lista desplegable. La justificación que demuestre la clasificación del material debe ingresarse en la casilla de ingreso de documentos del requerimiento A4",null,null,"Instrucciones"]
[null,"Nombre","Superficie Muros tipo 1 exteriores sin ventanas [m2]","Superficie Muros tipo 2 exteriores sin ventanas [m2]","Superficie particiones interiores [m2]","m2\nVentanas","m2\nPuertas exteriores","m2\nPuertas interiores","Total superficie Ventanas y puertas exteriores [m2]",{"$nulls":5},"Completar información de entrada de acuerdo al proyecto y para cada recinto o agrupación a evaluar:\n\n1 - Superficie muros exteriores: equivale a la superficie de la envolvente térmica sin descontar la superficie de ventanas.\n2 - Superficie particiones interiores: equivale a la superficie de los muros interiores.\n3 - Superficie de ventanas: Ingresar la superficie de ventanas (vano que incluye vidrios y marcos).\n4 - Superficie de puertas interiores: Ingresar la superficie de puertas de particiones interiores (vano que incluye puerta y marco)\n5 - Superficie de puertas exteriores: Ingresar la superficie de puertas exteriores que son parte de la envolvente térmica (vano que incluye puerta y marco)."]
[1,{"$nulls":7},{"$f":"Tabla611[[#This Row],[m2\nPuertas exteriores]]+Tabla611[[#This Row],[m2\nVentanas]]","v":0}]
[2,{"$nulls":7},{"$f":"Tabla611[[#This Row],[m2\nPuertas exteriores]]+Tabla611[[#This Row],[m2\nVentanas]]","v":0},null,null,"Biblioteca Personal","Capacidad Calorifica [kJ/m2/K]"]
[3,{"$nulls":7},{"$f":"Tabla611[[#This Row],[m2\nPuertas exteriores]]+Tabla611[[#This Row],[m2\nVentanas]]","v":0}]
[4,{"$nulls":7},{"$f":"Tabla611[[#This Row],[m2\nPuertas exteriores]]+Tabla611[[#This Row],[m2\nVentanas]]","v":0}]
[5,{"$nulls":7},{"$f":"Tabla611[[#This Row],[m2\nPuertas exteriores]]+Tabla611[[#This Row],[m2\nVentanas]]","v":0}]
[6,{"$nulls":7},{"$f":"Tabla611[[#This Row],[m2\nPuertas exteriores]]+Tabla611[[#This Row],[m2\nVentanas]]","v":0}]
[7,{"$nulls":7},{"$f":"Tabla611[[#This Row],[m2\nPuertas exteriores]]+Tabla611[[#This Row],[m2\nVentanas]]","v":0}]
[8,{"$nulls":7},{"$f":"Tabla611[[#This Row],[m2\nPuertas exteriores]]+Tabla611[[#This Row],[m2\nVentanas]]","v":0}]
[9,{"$nulls":7},{"$f":"Tabla611[[#This Row],[m2\nPuertas exteriores]]+Tabla611[[#This Row],[m2\nVentanas]]","v":0}]
[10,{"$nulls":7},{"$f":"Tabla611[[#This Row],[m2\nPuertas exteriores]]+Tabla611[[#This Row],[m2\nVentanas]]","v":0}]
[]
[]
[]
[]
[null,"Resumen recintos",{"$nulls":4},"KJ/m2K","Requerimiento  Minergie KJ/m2K","Evaluación"]
[null,1,{"$f":"B9","v":0},{"$nulls":3},{"$f":"IFERROR($H$74,0)","v":0},{"$f":"IF($F$3=\"Estructura de madera\",240,280)","v":280},{"$f":"IF(G24>H24,\"Cumple\",\"No cumple\")","v":"No cumple"}]
[null,2,{"$f":"B10","v":0},{"$nulls":3},{"$f":"IFERROR($H$101,0)","v":0},{"$f":"IF($F$3=\"Estructura de madera\",240,280)","v":280},{"$f":"IF(G25>H25,\"Cumple\",\"No cumple\")","v":"No cumple"}]
[null,3,{"$f":"B11","v":0},{"$nulls":3},{"$f":"IFERROR($H$128,0)","v":0},280,"No cumple"]
[null,4,{"$f":"B12","v":0},{"$nulls":3},{"$f":"IFERROR($H$155,0)","v":0},280,"No cumple"]
[null,5,{"$f":"B13","v":0},{"$nulls":3},{"$f":"IFERROR($H$182,0)","v":0},280,"No cumple"]
[null,6,0,{"$nulls":3},{"$f":"IFERROR($H$209,0)","v":0},280,"No cumple"]
[null,7,0,{"$nulls":3},{"$f":"IFERROR($H$236,0)","v":0},280,"No cumple"]
[null,8,0,{"$nulls":3},{"$f":"IFERROR($H$263,0)","v":0},280,"No cumple"]
[null,9,0,{"$nulls":3},{"$f":"IFERROR($H$290,0)","v":0},280,"No cumple"]
[null,10,0,{"$nulls":3},{"$f":"IFERROR($H$317,0)","v":0},280,"No cumple"]
{"$rows_empty":9}
[null,"El cálculo detallado de cada recinto o agrupación se realiza a continuación:"]
[null,null,"Datos de entrada:"]
[null,1,"Recinto",null,"m2 superficie acondicionada"]
[{"$nulls":11},"6. Desplegar el menu del nombre de recinto, ingresado en la Tabla 1  de entrada"]
[null,"Largo del espacio",{"$nulls":22},"Tabiquería \ninterior"]
[null,"Ancho del espacio"]
[null,"Altura del espacio"]
[null,"Superficie de ventanas / puertas"]
[null,"Superficie  brutto/netto"]
[{"$nulls":11},"7. Ingresar la superficie útil acondicionada del recinto"]
[null,"Elemento","Biblioteca",null,"Paquete Constructivo ",null,null,"Capacidad calorífica [kJ/m2/K]"]
[null,"CEATI Piso",{"$nulls":5},{"$f":"IFERROR(_xlfn.IFS($C$54=Biblioteca.Minergie.Paquetes[[#Headers],[Biblioteca.Minergie.Paquetes]],VLOOKUP(E54,Tabla2[#All],2,0),$C$54=Biblioteca.Personal.Paquetes[[#Headers],[Biblioteca.Personal.Paquetes]],VLOOKUP(E54,Tabla510[#All],2,0)),0)","v":0},"kJ/m2/K"]
[null,"CEATI Cielo",{"$nulls":5},{"$f":"IFERROR(_xlfn.IFS($C$55=Biblioteca.Minergie.Paquetes[[#Headers],[Biblioteca.Minergie.Paquetes]],VLOOKUP(E55,Tabla2[#All],2,0),$C$55=Biblioteca.Personal.Paquetes[[#Headers],[Biblioteca.Personal.Paquetes]],VLOOKUP(E55,Tabla510[#All],2,0)),0)","v":0},"kJ/m2/K"]
[null,"CEATI Muros envolvente tipo 1",{"$nulls":5},{"$f":"IFERROR(_xlfn.IFS($C$56=Biblioteca.Minergie.Paquetes[[#Headers],[Biblioteca.Minergie.Paquetes]],VLOOKUP(E56,Tabla2[#All],2,0),$C$56=Biblioteca.Personal.Paquetes[[#Headers],[Biblioteca.Personal.Paquetes]],VLOOKUP(E56,Tabla510[#All],2,0)),0)","v":0},"kJ/m2/K"]
[null,"CEATI Muros envolvente tipo 2",{"$nulls":5},{"$f":"IFERROR(_xlfn.IFS($C$57=Biblioteca.Minergie.Paquetes[[#Headers],[Biblioteca.Minergie.Paquetes]],VLOOKUP(E57,Tabla2[#All],2,0),$C$57=Biblioteca.Personal.Paquetes[[#Headers],[Biblioteca.Personal.Paquetes]],VLOOKUP(E57,Tabla510[#All],2,0)),0)","v":0},"kJ/m2/K"]
[null,"CEATI Particiones interiores",{"$nulls":5},{"$f":"IFERROR(_xlfn.IFS($C$58=Biblioteca.Minergie.Paquetes[[#Headers],[Biblioteca.Minergie.Paquetes]],VLOOKUP(E58,Tabla2[#All],2,0),$C$58=Biblioteca.Personal.Paquetes[[#Headers],[Biblioteca.Personal.Paquetes]],VLOOKUP(E58,Tabla510[#All],2,0)),0)","v":0},"kJ/m2/K"]
[null," CEATI=Capacidad efectiva de almacenamiento térmico en cara interior de muros "]
[]
[null,"Resultados intermedios:"]
[null,"Piso",{"$nulls":5},{"$f":"E46","v":0},"m2",null,null,"Valor tomado de la superficie útil del recinto"]
[null,"Cielo",{"$nulls":5},{"$f":"E46","v":0},"m2",null,null,"Valor tomado de la superficie útil del recinto"]
[null,"Muros tipo 1 exteriores sin ventanas",{"$nulls":5},{"$f":"C9","v":0},"m2",null,null,"Valor tomado de Tabla 1, donde se descuenta de la envolvente térmica la superficie de ventanas y puertas exteriores"]
[null,"Muros tipo 2 exteriores sin ventanas",{"$nulls":5},{"$f":"D9","v":0},"m2"]
[null,"Particiones interiores",{"$nulls":5},{"$f":"IFERROR(VLOOKUP($C$46,Tabla611[#All],4,FALSE)-H9,0)","v":0},"m2",null,null,"Valor tomado de la Tabla 1"]
[null,"Superficie área acondicionada (AAC)",{"$nulls":5},{"$f":"E46","v":0},"m2"]
[null,"Total de superficie opaca",{"$nulls":5},{"$f":"H62+H63+H64+H65+H66","v":{"v":0,"d":"0.0"}},"m2",null,null,"Sumatoria de superficies correspondiente a los elementos de piso, cielo, muros exteriores sin ventanas y particiones interiores"]
[]
[]
[null,"Resultados:"]
[null,"Masa de almacenamiento total",{"$nulls":5},{"$f":"H62*H54+H63*H55+H64*H56+H57*H65+H66*H58","v":0},"kJ/K"]
[null,"Promedio de CEATI",{"$nulls":5},{"$f":"IFERROR(H72/H68,0)","v":{"v":0,"d":"0.00"}},"kJ/m2/K"]
[null,"Capacidad de almacenamiento calorífico",{"$nulls":5},{"$f":"IFERROR(H72/H67,0)","v":{"v":0,"d":"0.00"}},"kJ/m2/K"]
[null,"Capacidad de almacenamiento calorífico",{"$nulls":5},{"$f":"H74/3.6","v":{"v":0,"d":"0.00"}},"Wh/m2"]
[]
[]
[null,2,"Recinto",null,"m2 superficie acondicionada"]
[]
[]
[null,"Elemento","Biblioteca",null,"Paquete Constructivo ",null,null,"Capacidad calorífica [kJ/m2/K]"]
[null,"CEATI Piso",{"$nulls":5},{"$f":"IFERROR(_xlfn.IFS($C$82=Biblioteca.Minergie.Paquetes[[#Headers],[Biblioteca.Minergie.Paquetes]],VLOOKUP(E82,Tabla2[#All],2,0),$C$82=Biblioteca.Personal.Paquetes[[#Headers],[Biblioteca.Personal.Paquetes]],VLOOKUP(E82,Tabla510[#All],2,0)),0)","v":0},"kJ/m2/K"]
[null,"CEATI Cielo",{"$nulls":5},{"$f":"IFERROR(_xlfn.IFS($C83=Biblioteca.Minergie.Paquetes[[#Headers],[Biblioteca.Minergie.Paquetes]],VLOOKUP(E83,Tabla2[#All],2,0),$C83=Biblioteca.Personal.Paquetes[[#Headers],[Biblioteca.Personal.Paquetes]],VLOOKUP(E83,Tabla510[#All],2,0)),0)","v":0},"kJ/m2/K"]
[null,"CEATI Muros envolvente tipo 1",{"$nulls":5},{"$f":"IFERROR(_xlfn.IFS($C84=Biblioteca.Minergie.Paquetes[[#Headers],[Biblioteca.Minergie.Paquetes]],VLOOKUP(E84,Tabla2[#All],2,0),$C84=Biblioteca.Personal.Paquetes[[#Headers],[Biblioteca.Personal.Paquetes]],VLOOKUP(E84,Tabla510[#All],2,0)),0)","v":0},"kJ/m2/K"]
[null,"CEATI Muros envolvente tipo 2",{"$nulls":5},{"$f":"IFERROR(_xlfn.IFS($C85=Biblioteca.Minergie.Paquetes[[#Headers],[Biblioteca.Minergie.Paquetes]],VLOOKUP(E85,Tabla2[#All],2,0),$C85=Biblioteca.Personal.Paquetes[[#Headers],[Biblioteca.Personal.Paquetes]],VLOOKUP(E85,Tabla510[#All],2,0)),0)","v":0},"kJ/m2/K"]
[null,"CEATI Particiones interiores",{"$nulls":5},{"$f":"IFERROR(_xlfn.IFS($C86=Biblioteca.Minergie.Paquetes[[#Headers],[Biblioteca.Minergie.Paquetes]],VLOOKUP(E86,Tabla2[#All],2,0),$C86=Biblioteca.Personal.Paquetes[[#Headers],[Biblioteca.Personal.Paquetes]],VLOOKUP(E86,Tabla510[#All],2,0)),0)","v":0},"kJ/m2/K"]
[null," CEATI=Capacidad efectiva de almacenamiento térmico en cara interior de muros "]
[]
[null,"Resultados intermedios:"]
[null,"Piso",{"$nulls":5},{"$f":"E79","v":0},"m2"]
[null,"Cielo",{"$nulls":5},{"$f":"E79","v":0},"m2"]
[null,"Muros tipo 1 exteriores sin ventanas",{"$nulls":5},{"$f":"C10","v":0},"m2"]
[null,"Muros tipo 2 exteriores sin ventanas",{"$nulls":5},{"$f":"D10","v":0},"m2"]
[null,"Particiones interiores",{"$nulls":5},{"$f":"IFERROR(VLOOKUP($C$79,Tabla611[#All],4,FALSE)-H37,0)","v":0},"m2"]
[null,"Superficie área acondicionada (AAC)",{"$nulls":5},{"$f":"E79","v":0},"m2"]
[null,"Total de superficie opaca",{"$nulls":5},{"$f":"H90+H91+H92+H93+H94","v":{"v":0,"d":"0.0"}},"m2"]
[]
[null,"Resultados:"]
[null,"Masa de almacenamiento total",{"$nulls":5},{"$f":"H90*H82+H91*H83+H92*H84+H85*H93+H94*H86","v":0},"kJ/K"]
[null,"Promedio de CEATI",{"$nulls":5},{"$f":"IFERROR(H99/H96,0)","v":{"v":0,"d":"0.00"}},"kJ/m2/K"]
[null,"Capacidad de almacenamiento calorífico",{"$nulls":5},{"$f":"IFERROR(H99/H95,0)","v":{"v":0,"d":"0.00"}},"kJ/m2/K"]
[null,"Capacidad de almacenamiento calorífico",{"$nulls":5},{"$f":"H101/3.6","v":{"v":0,"d":"0.00"}},"Wh/m2"]
[]
[]
[null,3,"Recinto",null,"m2 superficie acondicionada"]
[]
[]
[null,"Elemento","Biblioteca",null,"Paquete Constructivo ",null,null,"Capacidad calorífica [kJ/m2/K]"]
[null,"CEATI Piso",{"$nulls":5},{"$f":"IFERROR(_xlfn.IFS($C109=Biblioteca.Minergie.Paquetes[[#Headers],[Biblioteca.Minergie.Paquetes]],VLOOKUP(E109,Tabla2[#All],2,0),$C109=Biblioteca.Personal.Paquetes[[#Headers],[Biblioteca.Personal.Paquetes]],VLOOKUP(E109,Tabla510[#All],2,0)),0)","v":0},"kJ/m2/K"]
[null,"CEATI Cielo",{"$nulls":5},{"$f":"IFERROR(_xlfn.IFS($C110=Biblioteca.Minergie.Paquetes[[#Headers],[Biblioteca.Minergie.Paquetes]],VLOOKUP(E110,Tabla2[#All],2,0),$C110=Biblioteca.Personal.Paquetes[[#Headers],[Biblioteca.Personal.Paquetes]],VLOOKUP(E110,Tabla510[#All],2,0)),0)","v":0},"kJ/m2/K"]
[null,"CEATI Muros envolvente tipo 1",{"$nulls":5},{"$f":"IFERROR(_xlfn.IFS($C111=Biblioteca.Minergie.Paquetes[[#Headers],[Biblioteca.Minergie.Paquetes]],VLOOKUP(E111,Tabla2[#All],2,0),$C111=Biblioteca.Personal.Paquetes[[#Headers],[Biblioteca.Personal.Paquetes]],VLOOKUP(E111,Tabla510[#All],2,0)),0)","v":0},"kJ/m2/K"]
[null,"CEATI Muros envolvente tipo 2",{"$nulls":5},{"$f":"IFERROR(_xlfn.IFS($C112=Biblioteca.Minergie.Paquetes[[#Headers],[Biblioteca.Minergie.Paquetes]],VLOOKUP(E112,Tabla2[#All],2,0),$C112=Biblioteca.Personal.Paquetes[[#Headers],[Biblioteca.Personal.Paquetes]],VLOOKUP(E112,Tabla510[#All],2,0)),0)","v":0},"kJ/m2/K"]
[null,"CEATI Particiones interiores",{"$nulls":5},{"$f":"IFERROR(_xlfn.IFS($C113=Biblioteca.Minergie.Paquetes[[#Headers],[Biblioteca.Minergie.Paquetes]],VLOOKUP(E113,Tabla2[#All],2,0),$C113=Biblioteca.Personal.Paquetes[[#Headers],[Biblioteca.Personal.Paquetes]],VLOOKUP(E113,Tabla510[#All],2,0)),0)","v":0},"kJ/m2/K"]
[null," CEATI=Capacidad efectiva de almacenamiento térmico en cara interior de muros "]
[]
[null,"Resultados intermedios:"]
[null,"Piso",{"$nulls":5},{"$f":"E106","v":0},"m2"]
[null,"Cielo",{"$nulls":5},{"$f":"E106","v":0},"m2"]
[null,"Muros tipo 1 exteriores sin ventanas",{"$nulls":5},{"$f":"C11","v":0},"m2"]
[null,"Muros tipo 2 exteriores sin ventanas",{"$nulls":5},{"$f":"D11","v":0},"m2"]
[null,"Particiones interiores",{"$nulls":5},{"$f":"IFERROR(VLOOKUP($C$106,Tabla611[#All],4,FALSE)-H11,0)","v":0},"m2"]
[null,"Superficie área acondicionada (AAC)",{"$nulls":5},{"$f":"E106","v":0},"m2"]
[null,"Total de superficie opaca",{"$nulls":5},{"$f":"H117+H118+H119+H120+H121","v":{"v":0,"d":"0.0"}},"m2"]
[]
[null,"Resultados:"]
[null,"Masa de almacenamiento total",{"$nulls":5},{"$f":"H117*H109+H118*H110+H119*H111+H112*H120+H121*H113","v":0},"kJ/K"]
[null,"Promedio de CEATI",{"$nulls":5},{"$f":"IFERROR(H126/H123,0)","v":{"v":0,"d":"0.00"}},"kJ/m2/K"]
[null,"Capacidad de almacenamiento calorífico",{"$nulls":5},{"$f":"IFERROR(H126/H122,0)","v":{"v":0,"d":"0.00"}},"kJ/m2/K"]
[null,"Capacidad de almacenamiento calorífico",{"$nulls":5},{"$f":"H128/3.6","v":{"v":0,"d":"0.00"}},"Wh/m2"]
[]
[]
[null,4,"Recinto",null,"m2 superficie acondicionada"]
[]
[]
[null,"Elemento","Biblioteca",null,"Paquete Constructivo ",null,null,"Capacidad calorífica [kJ/m2/K]"]
[null,"CEATI Piso",{"$nulls":5},{"$f":"IFERROR(_xlfn.IFS($C136=Biblioteca.Minergie.Paquetes[[#Headers],[Biblioteca.Minergie.Paquetes]],VLOOKUP(E136,Tabla2[#All],2,0),$C136=Biblioteca.Personal.Paquetes[[#Headers],[Biblioteca.Personal.Paquetes]],VLOOKUP(E136,Tabla510[#All],2,0)),0)","v":0},"kJ/m2/K"]
[null,"CEATI Cielo",{"$nulls":5},{"$f":"IFERROR(_xlfn.IFS($C137=Biblioteca.Minergie.Paquetes[[#Headers],[Biblioteca.Minergie.Paquetes]],VLOOKUP(E137,Tabla2[#All],2,0),$C137=Biblioteca.Personal.Paquetes[[#Headers],[Biblioteca.Personal.Paquetes]],VLOOKUP(E137,Tabla510[#All],2,0)),0)","v":0},"kJ/m2/K"]
[null,"CEATI Muros envolvente tipo 1",{"$nulls":5},{"$f":"IFERROR(_xlfn.IFS($C138=Biblioteca.Minergie.Paquetes[[#Headers],[Biblioteca.Minergie.Paquetes]],VLOOKUP(E138,Tabla2[#All],2,0),$C138=Biblioteca.Personal.Paquetes[[#Headers],[Biblioteca.Personal.Paquetes]],VLOOKUP(E138,Tabla510[#All],2,0)),0)","v":0},"kJ/m2/K"]
[null,"CEATI Muros envolvente tipo 2",{"$nulls":5},{"$f":"IFERROR(_xlfn.IFS($C139=Biblioteca.Minergie.Paquetes[[#Headers],[Biblioteca.Minergie.Paquetes]],VLOOKUP(E139,Tabla2[#All],2,0),$C139=Biblioteca.Personal.Paquetes[[#Headers],[Biblioteca.Personal.Paquetes]],VLOOKUP(E139,Tabla510[#All],2,0)),0)","v":0},"kJ/m2/K"]
[null,"CEATI Particiones interiores",{"$nulls":5},{"$f":"IFERROR(_xlfn.IFS($C140=Biblioteca.Minergie.Paquetes[[#Headers],[Biblioteca.Minergie.Paquetes]],VLOOKUP(E140,Tabla2[#All],2,0),$C140=Biblioteca.Personal.Paquetes[[#Headers],[Biblioteca.Personal.Paquetes]],VLOOKUP(E140,Tabla510[#All],2,0)),0)","v":0},"kJ/m2/K"]
[null," CEATI=Capacidad efectiva de almacenamiento térmico en cara interior de muros "]
[]
[null,"Resultados intermedios:"]
[null,"Piso",{"$nulls":5},{"$f":"E133","v":0},"m2"]
[null,"Cielo",{"$nulls":5},{"$f":"E133","v":0},"m2"]
[null,"Muros tipo 1 exteriores sin ventanas",{"$nulls":5},{"$f":"C12","v":0},"m2"]
[null,"Muros tipo 2 exteriores sin ventanas",{"$nulls":5},{"$f":"D12","v":0},"m2"]
[null,"Particiones interiores",{"$nulls":5},{"$f":"IFERROR(VLOOKUP($C$133,Tabla611[#All],4,FALSE)-H38,0)","v":0},"m2"]
[null,"Superficie área acondicionada (AAC)",{"$nulls":5},{"$f":"E133","v":0},"m2"]
[null,"Total de superficie opaca",{"$nulls":5},{"$f":"H144+H145+H146+H147+H148","v":{"v":0,"d":"0.0"}},"m2"]
[]
[null,"Resultados:"]
[null,"Masa de almacenamiento total",{"$nulls":5},{"$f":"H144*H136+H145*H137+H146*H138+H139*H147+H148*H140","v":0},"kJ/K"]
[null,"Promedio de CEATI",{"$nulls":5},{"$f":"IFERROR(H153/H150,0)","v":{"v":0,"d":"0.00"}},"kJ/m2/K"]
[null,"Capacidad de almacenamiento calorífico",{"$nulls":5},{"$f":"IFERROR(H153/H149,0)","v":{"v":0,"d":"0.00"}},"kJ/m2/K"]
[null,"Capacidad de almacenamiento calorífico",{"$nulls":5},{"$f":"H155/3.6","v":{"v":0,"d":"0.00"}},"Wh/m2"]
[]
[]
[null,5,"Recinto",null,"m2 superficie acondicionada"]
[]
[]
[null,"Elemento","Biblioteca",null,"Paquete Constructivo ",null,null,"Capacidad calorífica [kJ/m2/K]"]
[null,"CEATI Piso",{"$nulls":5},{"$f":"IFERROR(_xlfn.IFS($C163=Biblioteca.Minergie.Paquetes[[#Headers],[Biblioteca.Minergie.Paquetes]],VLOOKUP(E163,Tabla2[#All],2,0),$C163=Biblioteca.Personal.Paquetes[[#Headers],[Biblioteca.Personal.Paquetes]],VLOOKUP(E163,Tabla510[#All],2,0)),0)","v":0},"kJ/m2/K"]
[null,"CEATI Cielo",{"$nulls":5},{"$f":"IFERROR(_xlfn.IFS($C164=Biblioteca.Minergie.Paquetes[[#Headers],[Biblioteca.Minergie.Paquetes]],VLOOKUP(E164,Tabla2[#All],2,0),$C164=Biblioteca.Personal.Paquetes[[#Headers],[Biblioteca.Personal.Paquetes]],VLOOKUP(E164,Tabla510[#All],2,0)),0)","v":0},"kJ/m2/K"]
[null,"CEATI Muros envolvente tipo 1",{"$nulls":5},{"$f":"IFERROR(_xlfn.IFS($C165=Biblioteca.Minergie.Paquetes[[#Headers],[Biblioteca.Minergie.Paquetes]],VLOOKUP(E165,Tabla2[#All],2,0),$C165=Biblioteca.Personal.Paquetes[[#Headers],[Biblioteca.Personal.Paquetes]],VLOOKUP(E165,Tabla510[#All],2,0)),0)","v":0},"kJ/m2/K"]
[null,"CEATI Muros envolvente tipo 2",{"$nulls":5},{"$f":"IFERROR(_xlfn.IFS($C166=Biblioteca.Minergie.Paquetes[[#Headers],[Biblioteca.Minergie.Paquetes]],VLOOKUP(E166,Tabla2[#All],2,0),$C166=Biblioteca.Personal.Paquetes[[#Headers],[Biblioteca.Personal.Paquetes]],VLOOKUP(E166,Tabla510[#All],2,0)),0)","v":0},"kJ/m2/K"]
[null,"CEATI Particiones interiores",{"$nulls":5},{"$f":"IFERROR(_xlfn.IFS($C167=Biblioteca.Minergie.Paquetes[[#Headers],[Biblioteca.Minergie.Paquetes]],VLOOKUP(E167,Tabla2[#All],2,0),$C167=Biblioteca.Personal.Paquetes[[#Headers],[Biblioteca.Personal.Paquetes]],VLOOKUP(E167,Tabla510[#All],2,0)),0)","v":0},"kJ/m2/K"]
[null," CEATI=Capacidad efectiva de almacenamiento térmico en cara interior de muros "]
[]
[null,"Resultados intermedios:"]
[null,"Piso",{"$nulls":5},{"$f":"E160","v":0},"m2"]
[null,"Cielo",{"$nulls":5},{"$f":"E160","v":0},"m2"]
[null,"Muros tipo 1 exteriores sin ventanas",{"$nulls":5},{"$f":"C13","v":0},"m2"]
[null,"Muros tipo 2 exteriores sin ventanas",{"$nulls":5},{"$f":"D13","v":0},"m2"]
[null,"Particiones interiores",{"$nulls":5},{"$f":"IFERROR(VLOOKUP($C$160,Tabla611[#All],4,FALSE)-H65,0)","v":0},"m2"]
[null,"Superficie área acondicionada (AAC)",{"$nulls":5},{"$f":"E160","v":0},"m2"]
[null,"Total de superficie opaca",{"$nulls":5},{"$f":"H171+H172+H173+H174+H175","v":{"v":0,"d":"0.0"}},"m2"]
[]
[null,"Resultados:"]
[null,"Masa de almacenamiento total",{"$nulls":5},{"$f":"H171*H163+H172*H164+H173*H165+H166*H174+H175*H167","v":0},"kJ/K"]
[null,"Promedio de CEATI",{"$nulls":5},{"$f":"IFERROR(H180/H177,0)","v":{"v":0,"d":"0.00"}},"kJ/m2/K"]
[null,"Capacidad de almacenamiento calorífico",{"$nulls":5},{"$f":"IFERROR(H180/H176,0)","v":{"v":0,"d":"0.00"}},"kJ/m2/K"]
[null,"Capacidad de almacenamiento calorífico",{"$nulls":5},{"$f":"H182/3.6","v":{"v":0,"d":"0.00"}},"Wh/m2"]
[]
[]
[null,6,"Recinto",null,"m2 superficie acondicionada"]
[]
[]
[null,"Elemento","Biblioteca",null,"Paquete Constructivo ",null,null,"Capacidad calorífica [kJ/m2/K]"]
[null,"CEATI Piso",{"$nulls":5},{"$f":"IFERROR(_xlfn.IFS($C190=Biblioteca.Minergie.Paquetes[[#Headers],[Biblioteca.Minergie.Paquetes]],VLOOKUP(E190,Tabla2[#All],2,0),$C190=Biblioteca.Personal.Paquetes[[#Headers],[Biblioteca.Personal.Paquetes]],VLOOKUP(E190,Tabla510[#All],2,0)),0)","v":0},"kJ/m2/K"]
[null,"CEATI Cielo",{"$nulls":5},{"$f":"IFERROR(_xlfn.IFS($C191=Biblioteca.Minergie.Paquetes[[#Headers],[Biblioteca.Minergie.Paquetes]],VLOOKUP(E191,Tabla2[#All],2,0),$C191=Biblioteca.Personal.Paquetes[[#Headers],[Biblioteca.Personal.Paquetes]],VLOOKUP(E191,Tabla510[#All],2,0)),0)","v":0},"kJ/m2/K"]
[null,"CEATI Muros envolvente tipo 1",{"$nulls":5},{"$f":"IFERROR(_xlfn.IFS($C192=Biblioteca.Minergie.Paquetes[[#Headers],[Biblioteca.Minergie.Paquetes]],VLOOKUP(E192,Tabla2[#All],2,0),$C192=Biblioteca.Personal.Paquetes[[#Headers],[Biblioteca.Personal.Paquetes]],VLOOKUP(E192,Tabla510[#All],2,0)),0)","v":0},"kJ/m2/K"]
[null,"CEATI Muros envolvente tipo 2",{"$nulls":5},{"$f":"IFERROR(_xlfn.IFS($C193=Biblioteca.Minergie.Paquetes[[#Headers],[Biblioteca.Minergie.Paquetes]],VLOOKUP(E193,Tabla2[#All],2,0),$C193=Biblioteca.Personal.Paquetes[[#Headers],[Biblioteca.Personal.Paquetes]],VLOOKUP(E193,Tabla510[#All],2,0)),0)","v":0},"kJ/m2/K"]
[null,"CEATI Particiones interiores",{"$nulls":5},{"$f":"IFERROR(_xlfn.IFS($C194=Biblioteca.Minergie.Paquetes[[#Headers],[Biblioteca.Minergie.Paquetes]],VLOOKUP(E194,Tabla2[#All],2,0),$C194=Biblioteca.Personal.Paquetes[[#Headers],[Biblioteca.Personal.Paquetes]],VLOOKUP(E194,Tabla510[#All],2,0)),0)","v":0},"kJ/m2/K"]
[null," CEATI=Capacidad efectiva de almacenamiento térmico en cara interior de muros "]
[]
[null,"Resultados intermedios:"]
[null,"Piso",{"$nulls":5},{"$f":"E187","v":0},"m2"]
[null,"Cielo",{"$nulls":5},{"$f":"E187","v":0},"m2"]
[null,"Muros tipo 1 exteriores sin ventanas",{"$nulls":5},{"$f":"C14","v":0},"m2"]
[null,"Muros tipo 2 exteriores sin ventanas",{"$nulls":5},{"$f":"D14","v":0},"m2"]
[null,"Particiones interiores",{"$nulls":5},{"$f":"IFERROR(VLOOKUP($C$187,Tabla611[#All],4,FALSE)-H92,0)","v":0},"m2"]
[null,"Superficie área acondicionada (AAC)",{"$nulls":5},{"$f":"E187","v":0},"m2"]
[null,"Total de superficie opaca",{"$nulls":5},{"$f":"H198+H199+H200+H201+H202","v":{"v":0,"d":"0.0"}},"m2"]
[]
[null,"Resultados:"]
[null,"Masa de almacenamiento total",{"$nulls":5},{"$f":"H198*H190+H199*H191+H200*H192+H193*H201+H202*H194","v":0},"kJ/K"]
[null,"Promedio de CEATI",{"$nulls":5},{"$f":"IFERROR(H207/H204,0)","v":{"v":0,"d":"0.00"}},"kJ/m2/K"]
[null,"Capacidad de almacenamiento calorífico",{"$nulls":5},{"$f":"IFERROR(H207/H203,0)","v":{"v":0,"d":"0.00"}},"kJ/m2/K"]
[null,"Capacidad de almacenamiento calorífico",{"$nulls":5},{"$f":"H209/3.6","v":{"v":0,"d":"0.00"}},"Wh/m2"]
[]
[]
[null,7,"Recinto",null,"m2 superficie acondicionada"]
[]
[]
[null,"Elemento","Biblioteca",null,"Paquete Constructivo ",null,null,"Capacidad calorífica [kJ/m2/K]"]
[null,"CEATI Piso",{"$nulls":5},{"$f":"IFERROR(_xlfn.IFS($C217=Biblioteca.Minergie.Paquetes[[#Headers],[Biblioteca.Minergie.Paquetes]],VLOOKUP(E217,Tabla2[#All],2,0),$C217=Biblioteca.Personal.Paquetes[[#Headers],[Biblioteca.Personal.Paquetes]],VLOOKUP(E217,Tabla510[#All],2,0)),0)","v":0},"kJ/m2/K"]
[null,"CEATI Cielo",{"$nulls":5},{"$f":"IFERROR(_xlfn.IFS($C218=Biblioteca.Minergie.Paquetes[[#Headers],[Biblioteca.Minergie.Paquetes]],VLOOKUP(E218,Tabla2[#All],2,0),$C218=Biblioteca.Personal.Paquetes[[#Headers],[Biblioteca.Personal.Paquetes]],VLOOKUP(E218,Tabla510[#All],2,0)),0)","v":0},"kJ/m2/K"]
[null,"CEATI Muros envolvente tipo 1",{"$nulls":5},{"$f":"IFERROR(_xlfn.IFS($C219=Biblioteca.Minergie.Paquetes[[#Headers],[Biblioteca.Minergie.Paquetes]],VLOOKUP(E219,Tabla2[#All],2,0),$C219=Biblioteca.Personal.Paquetes[[#Headers],[Biblioteca.Personal.Paquetes]],VLOOKUP(E219,Tabla510[#All],2,0)),0)","v":0},"kJ/m2/K"]
[null,"CEATI Muros envolvente tipo 2",{"$nulls":5},{"$f":"IFERROR(_xlfn.IFS($C220=Biblioteca.Minergie.Paquetes[[#Headers],[Biblioteca.Minergie.Paquetes]],VLOOKUP(E220,Tabla2[#All],2,0),$C220=Biblioteca.Personal.Paquetes[[#Headers],[Biblioteca.Personal.Paquetes]],VLOOKUP(E220,Tabla510[#All],2,0)),0)","v":0},"kJ/m2/K"]
[null,"CEATI Particiones interiores",{"$nulls":5},{"$f":"IFERROR(_xlfn.IFS($C221=Biblioteca.Minergie.Paquetes[[#Headers],[Biblioteca.Minergie.Paquetes]],VLOOKUP(E221,Tabla2[#All],2,0),$C221=Biblioteca.Personal.Paquetes[[#Headers],[Biblioteca.Personal.Paquetes]],VLOOKUP(E221,Tabla510[#All],2,0)),0)","v":0},"kJ/m2/K"]
[null," CEATI=Capacidad efectiva de almacenamiento térmico en cara interior de muros "]
[]
[null,"Resultados intermedios:"]
[null,"Piso",{"$nulls":5},{"$f":"E214","v":0},"m2"]
[null,"Cielo",{"$nulls":5},{"$f":"E214","v":0},"m2"]
[null,"Muros tipo 1 exteriores sin ventanas",{"$nulls":5},{"$f":"C15","v":0},"m2"]
[null,"Muros tipo 2 exteriores sin ventanas",{"$nulls":5},{"$f":"D15","v":0},"m2"]
[null,"Particiones interiores",{"$nulls":5},{"$f":"IFERROR(VLOOKUP($C$214,Tabla611[#All],4,FALSE)-H119,0)","v":0},"m2"]
[null,"Superficie área acondicionada (AAC)",{"$nulls":5},{"$f":"E214","v":0},"m2"]
[null,"Total de superficie opaca",{"$nulls":5},{"$f":"H225+H226+H227+H228+H229","v":{"v":0,"d":"0.0"}},"m2"]
[]
[null,"Resultados:"]
[null,"Masa de almacenamiento total",{"$nulls":5},{"$f":"H225*H217+H226*H218+H227*H219+H220*H228+H229*H221","v":0},"kJ/K"]
[null,"Promedio de CEATI",{"$nulls":5},{"$f":"IFERROR(H234/H231,0)","v":{"v":0,"d":"0.00"}},"kJ/m2/K"]
[null,"Capacidad de almacenamiento calorífico",{"$nulls":5},{"$f":"IFERROR(H234/H230,0)","v":{"v":0,"d":"0.00"}},"kJ/m2/K"]
[null,"Capacidad de almacenamiento calorífico",{"$nulls":5},{"$f":"H236/3.6","v":{"v":0,"d":"0.00"}},"Wh/m2"]
[]
[]
[null,8,"Recinto",null,"m2 superficie acondicionada"]
[]
[]
[null,"Elemento","Biblioteca",null,"Paquete Constructivo ",null,null,"Capacidad calorífica [kJ/m2/K]"]
[null,"CEATI Piso",{"$nulls":5},{"$f":"IFERROR(_xlfn.IFS($C244=Biblioteca.Minergie.Paquetes[[#Headers],[Biblioteca.Minergie.Paquetes]],VLOOKUP(E244,Tabla2[#All],2,0),$C244=Biblioteca.Personal.Paquetes[[#Headers],[Biblioteca.Personal.Paquetes]],VLOOKUP(E244,Tabla510[#All],2,0)),0)","v":0},"kJ/m2/K"]
[null,"CEATI Cielo",{"$nulls":5},{"$f":"IFERROR(_xlfn.IFS($C245=Biblioteca.Minergie.Paquetes[[#Headers],[Biblioteca.Minergie.Paquetes]],VLOOKUP(E245,Tabla2[#All],2,0),$C245=Biblioteca.Personal.Paquetes[[#Headers],[Biblioteca.Personal.Paquetes]],VLOOKUP(E245,Tabla510[#All],2,0)),0)","v":0},"kJ/m2/K"]
[null,"CEATI Muros envolvente tipo 1",{"$nulls":5},{"$f":"IFERROR(_xlfn.IFS($C246=Biblioteca.Minergie.Paquetes[[#Headers],[Biblioteca.Minergie.Paquetes]],VLOOKUP(E246,Tabla2[#All],2,0),$C246=Biblioteca.Personal.Paquetes[[#Headers],[Biblioteca.Personal.Paquetes]],VLOOKUP(E246,Tabla510[#All],2,0)),0)","v":0},"kJ/m2/K"]
[null,"CEATI Muros envolvente tipo 2",{"$nulls":5},{"$f":"IFERROR(_xlfn.IFS($C247=Biblioteca.Minergie.Paquetes[[#Headers],[Biblioteca.Minergie.Paquetes]],VLOOKUP(E247,Tabla2[#All],2,0),$C247=Biblioteca.Personal.Paquetes[[#Headers],[Biblioteca.Personal.Paquetes]],VLOOKUP(E247,Tabla510[#All],2,0)),0)","v":0},"kJ/m2/K"]
[null,"CEATI Particiones interiores",{"$nulls":5},{"$f":"IFERROR(_xlfn.IFS($C248=Biblioteca.Minergie.Paquetes[[#Headers],[Biblioteca.Minergie.Paquetes]],VLOOKUP(E248,Tabla2[#All],2,0),$C248=Biblioteca.Personal.Paquetes[[#Headers],[Biblioteca.Personal.Paquetes]],VLOOKUP(E248,Tabla510[#All],2,0)),0)","v":0},"kJ/m2/K"]
[null," CEATI=Capacidad efectiva de almacenamiento térmico en cara interior de muros "]
[]
[null,"Resultados intermedios:"]
[null,"Piso",{"$nulls":5},{"$f":"E241","v":0},"m2"]
[null,"Cielo",{"$nulls":5},{"$f":"E241","v":0},"m2"]
[null,"Muros tipo 1 exteriores sin ventanas",{"$nulls":5},{"$f":"C16","v":0},"m2"]
[null,"Muros tipo 2 exteriores sin ventanas",{"$nulls":5},{"$f":"D16","v":0},"m2"]
[null,"Particiones interiores",{"$nulls":5},{"$f":"IFERROR(VLOOKUP($C$241,Tabla611[#All],4,FALSE)-H146,0)","v":0},"m2"]
[null,"Superficie área acondicionada (AAC)",{"$nulls":5},{"$f":"E241","v":0},"m2"]
[null,"Total de superficie opaca",{"$nulls":5},{"$f":"H252+H253+H254+H255+H256","v":{"v":0,"d":"0.0"}},"m2"]
[]
[null,"Resultados:"]
[null,"Masa de almacenamiento total",{"$nulls":5},{"$f":"H252*H244+H253*H245+H254*H246+H247*H255+H256*H248","v":0},"kJ/K"]
[null,"Promedio de CEATI",{"$nulls":5},{"$f":"IFERROR(H261/H258,0)","v":{"v":0,"d":"0.00"}},"kJ/m2/K"]
[null,"Capacidad de almacenamiento calorífico",{"$nulls":5},{"$f":"IFERROR(H261/H257,0)","v":{"v":0,"d":"0.00"}},"kJ/m2/K"]
[null,"Capacidad de almacenamiento calorífico",{"$nulls":5},{"$f":"H263/3.6","v":{"v":0,"d":"0.00"}},"Wh/m2"]
[]
[]
[null,9,"Recinto",null,"m2 superficie acondicionada"]
[]
[]
[null,"Elemento","Biblioteca",null,"Paquete Constructivo ",null,null,"Capacidad calorífica [kJ/m2/K]"]
[null,"CEATI Piso",{"$nulls":5},{"$f":"IFERROR(_xlfn.IFS($C271=Biblioteca.Minergie.Paquetes[[#Headers],[Biblioteca.Minergie.Paquetes]],VLOOKUP(E271,Tabla2[#All],2,0),$C271=Biblioteca.Personal.Paquetes[[#Headers],[Biblioteca.Personal.Paquetes]],VLOOKUP(E271,Tabla510[#All],2,0)),0)","v":0},"kJ/m2/K"]
[null,"CEATI Cielo",{"$nulls":5},{"$f":"IFERROR(_xlfn.IFS($C272=Biblioteca.Minergie.Paquetes[[#Headers],[Biblioteca.Minergie.Paquetes]],VLOOKUP(E272,Tabla2[#All],2,0),$C272=Biblioteca.Personal.Paquetes[[#Headers],[Biblioteca.Personal.Paquetes]],VLOOKUP(E272,Tabla510[#All],2,0)),0)","v":0},"kJ/m2/K"]
[null,"CEATI Muros envolvente tipo 1",{"$nulls":5},{"$f":"IFERROR(_xlfn.IFS($C273=Biblioteca.Minergie.Paquetes[[#Headers],[Biblioteca.Minergie.Paquetes]],VLOOKUP(E273,Tabla2[#All],2,0),$C273=Biblioteca.Personal.Paquetes[[#Headers],[Biblioteca.Personal.Paquetes]],VLOOKUP(E273,Tabla510[#All],2,0)),0)","v":0},"kJ/m2/K"]
[null,"CEATI Muros envolvente tipo 2",{"$nulls":5},{"$f":"IFERROR(_xlfn.IFS($C274=Biblioteca.Minergie.Paquetes[[#Headers],[Biblioteca.Minergie.Paquetes]],VLOOKUP(E274,Tabla2[#All],2,0),$C274=Biblioteca.Personal.Paquetes[[#Headers],[Biblioteca.Personal.Paquetes]],VLOOKUP(E274,Tabla510[#All],2,0)),0)","v":0},"kJ/m2/K"]
[null,"CEATI Particiones interiores",{"$nulls":5},{"$f":"IFERROR(_xlfn.IFS($C275=Biblioteca.Minergie.Paquetes[[#Headers],[Biblioteca.Minergie.Paquetes]],VLOOKUP(E275,Tabla2[#All],2,0),$C275=Biblioteca.Personal.Paquetes[[#Headers],[Biblioteca.Personal.Paquetes]],VLOOKUP(E275,Tabla510[#All],2,0)),0)","v":0},"kJ/m2/K"]
[null," CEATI=Capacidad efectiva de almacenamiento térmico en cara interior de muros "]
[]
[null,"Resultados intermedios:"]
[null,"Piso",{"$nulls":5},{"$f":"E268","v":0},"m2"]
[null,"Cielo",{"$nulls":5},{"$f":"E268","v":0},"m2"]
[null,"Muros tipo 1 exteriores sin ventanas",{"$nulls":5},{"$f":"C17","v":0},"m2"]
[null,"Muros tipo 2 exteriores sin ventanas",{"$nulls":5},{"$f":"D17","v":0},"m2"]
[null,"Particiones interiores",{"$nulls":5},{"$f":"IFERROR(VLOOKUP($C$268,Tabla611[#All],4,FALSE)-H173,0)","v":0},"m2"]
[null,"Superficie área acondicionada (AAC)",{"$nulls":5},{"$f":"E268","v":0},"m2"]
[null,"Total de superficie opaca",{"$nulls":5},{"$f":"H279+H280+H281+H282+H283","v":{"v":0,"d":"0.0"}},"m2"]
[]
[null,"Resultados:"]
[null,"Masa de almacenamiento total",{"$nulls":5},{"$f":"H279*H271+H280*H272+H281*H273+H274*H282+H283*H275","v":0},"kJ/K"]
[null,"Promedio de CEATI",{"$nulls":5},{"$f":"IFERROR(H288/H285,0)","v":{"v":0,"d":"0.00"}},"kJ/m2/K"]
[null,"Capacidad de almacenamiento calorífico",{"$nulls":5},{"$f":"IFERROR(H288/H284,0)","v":{"v":0,"d":"0.00"}},"kJ/m2/K"]
[null,"Capacidad de almacenamiento calorífico",{"$nulls":5},{"$f":"H290/3.6","v":{"v":0,"d":"0.00"}},"Wh/m2"]
[]
[]
[null,10,"Recinto",null,"m2 superficie acondicionada"]
[]
[]
[null,"Elemento","Biblioteca",null,"Paquete Constructivo ",null,null,"Capacidad calorífica [kJ/m2/K]"]
[null,"CEATI Piso",{"$nulls":5},{"$f":"IFERROR(_xlfn.IFS($C298=Biblioteca.Minergie.Paquetes[[#Headers],[Biblioteca.Minergie.Paquetes]],VLOOKUP(E298,Tabla2[#All],2,0),$C298=Biblioteca.Personal.Paquetes[[#Headers],[Biblioteca.Personal.Paquetes]],VLOOKUP(E298,Tabla510[#All],2,0)),0)","v":0},"kJ/m2/K"]
[null,"CEATI Cielo",{"$nulls":5},{"$f":"IFERROR(_xlfn.IFS($C299=Biblioteca.Minergie.Paquetes[[#Headers],[Biblioteca.Minergie.Paquetes]],VLOOKUP(E299,Tabla2[#All],2,0),$C299=Biblioteca.Personal.Paquetes[[#Headers],[Biblioteca.Personal.Paquetes]],VLOOKUP(E299,Tabla510[#All],2,0)),0)","v":0},"kJ/m2/K"]
[null,"CEATI Muros envolvente tipo 1",{"$nulls":5},{"$f":"IFERROR(_xlfn.IFS($C300=Biblioteca.Minergie.Paquetes[[#Headers],[Biblioteca.Minergie.Paquetes]],VLOOKUP(E300,Tabla2[#All],2,0),$C300=Biblioteca.Personal.Paquetes[[#Headers],[Biblioteca.Personal.Paquetes]],VLOOKUP(E300,Tabla510[#All],2,0)),0)","v":0},"kJ/m2/K"]
[null,"CEATI Muros envolvente tipo 2","Biblioteca.Personal.Paquetes",null,"Prueba de biblioteca 23.10.24",null,null,{"$f":"IFERROR(_xlfn.IFS($C301=Biblioteca.Minergie.Paquetes[[#Headers],[Biblioteca.Minergie.Paquetes]],VLOOKUP(E301,Tabla2[#All],2,0),$C301=Biblioteca.Personal.Paquetes[[#Headers],[Biblioteca.Personal.Paquetes]],VLOOKUP(E301,Tabla510[#All],2,0)),0)","v":0},"kJ/m2/K"]
[null,"CEATI Particiones interiores",{"$nulls":5},{"$f":"IFERROR(_xlfn.IFS($C302=Biblioteca.Minergie.Paquetes[[#Headers],[Biblioteca.Minergie.Paquetes]],VLOOKUP(E302,Tabla2[#All],2,0),$C302=Biblioteca.Personal.Paquetes[[#Headers],[Biblioteca.Personal.Paquetes]],VLOOKUP(E302,Tabla510[#All],2,0)),0)","v":0},"kJ/m2/K"]
[null," CEATI=Capacidad efectiva de almacenamiento térmico en cara interior de muros "]
[]
[null,"Resultados intermedios:"]
[null,"Piso",{"$nulls":5},{"$f":"E295","v":0},"m2"]
[null,"Cielo",{"$nulls":5},{"$f":"E295","v":0},"m2"]
[null,"Muros tipo 1 exteriores sin ventanas",{"$nulls":5},{"$f":"C18","v":0},"m2"]
[null,"Muros tipo 2 exteriores sin ventanas",{"$nulls":5},{"$f":"D18","v":0},"m2"]
[null,"Particiones interiores",{"$nulls":5},{"$f":"IFERROR(VLOOKUP($C$295,Tabla611[#All],4,FALSE)-H200,0)","v":0},"m2"]
[null,"Superficie área acondicionada (AAC)",{"$nulls":5},{"$f":"E295","v":0},"m2"]
[null,"Total de superficie opaca",{"$nulls":5},{"$f":"H306+H307+H308+H309+H310","v":{"v":0,"d":"0.0"}},"m2"]
[]
[null,"Resultados:"]
[null,"Masa de almacenamiento total",{"$nulls":5},{"$f":"H306*H298+H307*H299+H308*H300+H301*H309+H310*H302","v":0},"kJ/K"]
[null,"Promedio de CEATI",{"$nulls":5},{"$f":"IFERROR(H315/H312,0)","v":{"v":0,"d":"0.00"}},"kJ/m2/K"]
[null,"Capacidad de almacenamiento calorífico",{"$nulls":5},{"$f":"IFERROR(H315/H311,0)","v":{"v":0,"d":"0.00"}},"kJ/m2/K"]
[null,"Capacidad de almacenamiento calorífico",{"$nulls":5},{"$f":"H317/3.6","v":{"v":0,"d":"0.00"}},"Wh/m2"]

{"sheet":"A4.a","index":8,"n_rows":60,"n_cols":9,"rows_kept":60,"merged":[[4,2,4,6],[4,8,26,16],[5,1,6,1],[5,2,5,3],[5,4,5,5],[5,6,6,6],[31,8,38,16],[54,1,54,3],[56,1,56,6]]}
["A4.a","Aprovechamiento de la luz natural (C. Educativos)",null,null,"Zonas Chile: Todas",null,"Zona ASHRAE: Todas"]
[]
[]
[null,"Según Opción 1: Simulación de iluminación natural en Software"]
[null,"Software usado o método",{"$nulls":6},"Opción 1\nIndicar el tipo de software elegido para simulación de iluminación natural, donde se podrá optar por alguno de los dos parametros  \"Factor luz  día\" o \"Autonomía de luz día\".\nIndicar por recinto los valores de acuerdo a los parametros elegidos.\n\nSe evaluará de acuerdo a los siguientes limites, referenciales de \"Terminos de Referencia para Edificaciones Públicas\" del Ministerio de Obras Públicas de Chile\n\n\n\n\n\n\n\n\n\n\n\n\n\n\n\nLa columna G evalua en función de la indicación de la columna \"D\" donde se si se indica \"No\" tomará por defecto el valor de la columna E. Por lo tanto, se evalua una de las dos opciones para cada recinto."]
[null,"Recinto","Autonomía de luz",null,"Factor luz día",null,"Evaluación"]
[null,null,"Indicar valor si aplica parámetro (%)","Indicar (Si/No) si usa parámetro","Indicar valor si aplica parámetro (%)","Indicar (Si/No) si usa parámetro"]
[null,"Sala 1",{"$nulls":3},"Si",{"$f":"IF(D8=\"Si\",IF(AND(C8>0%,C8<=50%),\"No cumple\",IF(AND(C8>=50%,C8<=80%),\"Cumple\",\"No cumple\")),IF(AND(E8>=5%,E8<=10%),\"Cumple\",IF(AND(E8>=2%,E8<=5%),\"Cumple\",IF(AND(E8<=2%,E8>10%),\"No cumple\",\"No cumple\"))))","v":"No cumple"}]
[null,"Sala 2",{"$nulls":4},{"$f":"IF(D9=\"Si\",IF(AND(C9>0%,C9<=50%),\"No cumple\",IF(AND(C9>=50%,C9<=80%),\"Cumple\",\"No cumple\")),IF(AND(E9>=5%,E9<=10%),\"Cumple\",IF(AND(E9>=2%,E9<=5%),\"Cumple\",IF(AND(E9<=2%,E9>10%),\"No cumple\",\"No cumple\"))))","v":"No cumple"}]
[null,"Sala 3",{"$nulls":4},"No cumple"]
[null,"Sala 4",{"$nulls":4},"No cumple"]
[null,"Sala 5",{"$nulls":4},"No cumple"]
[null,"Sala 6",{"$nulls":4},"No cumple"]
[null,"Sala 7",{"$nulls":4},"No cumple"]
[null,"Sala 8",{"$nulls":4},"No cumple"]
[null,"Sala 9",{"$nulls":4},"No cumple"]
[null,"Sala 10",{"$nulls":4},"No cumple"]
[null,"Sala 11",{"$nulls":4},"No cumple"]
[null,"Sala 12",{"$nulls":4},"No cumple"]
[null,"Sala 13",{"$nulls":4},"No cumple"]
[null,"Sala 14",{"$nulls":4},"No cumple"]
[null,"Sala 15",{"$nulls":4},"No cumple"]
[null,"Sala 16",{"$nulls":4},"No cumple"]
[null,"Sala 17",{"$nulls":4},"No cumple"]
[null,"Sala 18",{"$nulls":4},"No cumple"]
[null,"Sala 19",{"$nulls":4},"No cumple"]
[null,"Sala 20",{"$nulls":4},"No cumple"]
[]
[]
[null,"Según Opción 2: Mantenerse bajo los rangos recomendados por el Manual de Diseño pasivo y Eficiencia energética en Edificios públicos (Tabla 5.2)"]
[null,"Recinto","Profundidad de la habitación desde la pared exterior (m)","Área pared exterior (m2)","Área de ventana/s en pared exterior (m2)","Porcentaje que representa la ventana en la pared","Cumplimiento"]
[null,"Sala 1",{"$nulls":3},{"$f":"IFERROR(E32/D32,0)","v":{"v":0,"d":"0%"}},{"$f":"IF(C32=0,\"Completar\",IF(AND(C32<8,F32>=20%),\"SI\",IF(AND(C32>=8,C32<=11,F32>=25%),\"SI\",IF(AND(C32<=14,C32>11,F32>=30%),\"SI\",IF(AND(C32>14,F32>=35%),\"SI\",\"NO\")))))","v":"Completar"},null,"Opción 2\n- En la tabla se establece que si la profundidad (d) de la sala es menor a 8 m el porcentaje de ventanas debe ser mayor a 20%, si d es entre 8 y 11 m debe tener al menos un 25% de ventanas, si d esta entre 11 y 14 m debe tener un 30% de ventana mínimo y si d es mayor a 14 m la pared debe tener al menos un 35% de porcentaje vidriado.\n- El área de pared exterior se mide desde el interior del recinto\n- Los recintos a evaluar deben ser los más representativos por fachada (casos más y menos favorables)"]
[null,"Sala 2",{"$nulls":3},{"v":0,"d":"0%"},{"$f":"IF(C33=0,\"Completar\",IF(AND(C33<8,F33>=20%),\"SI\",IF(AND(C33>=8,C33<=11,F33>=25%),\"SI\",IF(AND(C33<=14,C33>11,F33>=30%),\"SI\",IF(AND(C33>14,F33>=35%),\"SI\",\"NO\")))))","v":"Completar"}]
[null,"Sala 3",{"$nulls":3},{"$f":"IFERROR(E34/D34,0)","v":{"v":0,"d":"0%"}},"Completar"]
[null,"Sala 4",{"$nulls":3},{"$f":"IFERROR(E35/D35,0)","v":{"v":0,"d":"0%"}},"Completar"]
[null,"Sala 5",{"$nulls":3},{"v":0,"d":"0%"},"Completar"]
[null,"Sala 6",{"$nulls":3},{"v":0,"d":"0%"},"Completar"]
[null,"Sala 7",{"$nulls":3},{"v":0,"d":"0%"},"Completar"]
[null,"Sala 8",{"$nulls":3},{"v":0,"d":"0%"},"Completar"]
[null,"Sala 9",{"$nulls":3},{"v":0,"d":"0%"},"Completar"]
[null,"Sala 10",{"$nulls":3},{"v":0,"d":"0%"},"Completar"]
[null,"Sala 11",{"$nulls":3},{"v":0,"d":"0%"},"Completar"]
[null,"Sala 12",{"$nulls":3},{"v":0,"d":"0%"},"Completar"]
[null,"Sala 13",{"$nulls":3},{"v":0,"d":"0%"},"Completar"]
[null,"Sala 14",{"$nulls":3},{"v":0,"d":"0%"},"Completar"]
[null,"Sala 15",{"$nulls":3},{"v":0,"d":"0%"},"Completar"]
[null,"Sala 16",{"$nulls":3},{"v":0,"d":"0%"},"Completar"]
[null,"Sala 17",{"$nulls":3},{"v":0,"d":"0%"},"Completar"]
[null,"Sala 18",{"$nulls":3},{"v":0,"d":"0%"},"Completar"]
[null,"Sala 19",{"$nulls":3},{"v":0,"d":"0%"},"Completar"]
[]
[]
[null,"Según Opción 3: Revisar alcance de la luz según regla básica de profundidad d"]
[]
[null,"Estrategias de diseño para aumentar el rango de iluminación"]
[]
[null,"Si el recinto tiene iluminación unilateral, se establece un límite en la profundidad de su planta para permitir alcanzar una iluminación adecuada durante el día. \nPara determinar este límite se sigue una regla básica de proporciones, explicada en la Figura 5.27 del Manual de Diseño pasivo y Eficiencia energética en Edificios públicos de Chile. Esta consiste en una estrategia de diseño que aumenta la iluminación hacia el fondo del recinto, aumentando la profundidad de la luz natural 1,5 veces la altura de la ventana en relación al suelo, donde si se incorpora en la ventana una repisa de luz (light shelf) la profundidad de luz puede aumentar hasta 2 veces la altura de la ventana.\nEn resumen, mientras más alta esta la ventana, más profundo en el recinto llega la iluminación, lo que aumenta si se le agregan repisas de luz."]
[]
[]
[null,"Se debe justificar con cortes de los recintos representativos, siguiendo el ejemplo de la Figura a continuación."]

{"sheet":"A5","index":9,"n_rows":108,"n_cols":39,"rows_kept":108,"merged":[[2,1,2,5],[2,6,2,9],[2,11,5,18],[3,3,3,5],[3,6,5,9],[4,3,4,5],[5,3,5,5],[6,3,6,5],[6,6,6,9],[7,1,7,5],[7,6,7,9],[7,11,10,18],[8,3,8,5],[8,6,10,9],[9,3,9,5],[11,3,11,5],[11,6,11,9],[12,1,12,5],[12,6,12,9],[12,11,14,18],[13,1,13,2],[13,3,13,5],[13,6,14,9],[14,1,14,2],[14,3,14,5],[17,1,17,5],[17,11,18,18],[18,1,18,2],[18,3,18,5],[18,6,18,7],[18,8,18,9],[20,1,20,5],[20,6,20,9],[20,11,20,15],[20,16,20,19],[20,21,20,26],[20,27,20,30],[20,32,20,37],[20,38,20,41],[21,1,21,2],[21,3,21,5],[21,6,21,9],[21,11,21,12],[21,13,21,15],[21,16,21,19],[21,21,21,22],[21,23,21,26],[21,27,21,30],[21,32,21,33],[21,34,21,37],[21,38,21,41],[22,1,22,2],[22,3,22,5],[22,6,29,9],[22,11,22,12],[22,13,22,15],[22,16,29,19],[22,21,22,22],[22,23,22,26],[22,27,29,30],[22,32,22,33],[22,34,22,37],[22,38,29,41],[23,3,27,5],[23,13,27,15],[23,23,27,26],[23,34,27,37],[26,21,27,21],[26,22,27,22],[26,32,27,32],[26,33,27,33],[28,3,28,5],[28,13,28,15],[28,23,28,26],[28,34,28,37],[29,1,29,5],[29,11,29,15],[29,21,29,26],[29,32,29,37],[30,1,30,9],[32,1,32,5],[32,6,32,19],[33,1,33,3],[33,4,33,5],[33,6,36,19],[34,1,34,3],[34,4,34,5],[35,1,35,3],[35,4,35,5],[36,1,36,3],[36,4,36,5],[37,1,37,3],[37,4,37,5],[37,6,37,9],[37,10,37,19],[38,1,38,3],[38,4,38,5],[38,6,38,9],[38,10,38,19],[39,1,39,3],[39,4,39,5],[39,6,39,9],[39,10,39,19],[89,1,89,9],[91,2,91,9],[92,2,92,9],[93,2,93,9],[95,1,95,9],[97,1,97,9],[102,1,102,9],[104,2,104,9],[105,2,105,9],[106,2,106,9],[108,1,108,9]]}
["A5","Protección solar exterior de las ventanas",{"$nulls":3},"Zonas Chile: A, B, C y D.",null,null,"Zonas ASHRAE: 0, 1, 2 y 3."]
[]
[null,"CRISTAL",{"$nulls":4},"Descripción",{"$nulls":4},"Información extraída desde la ficha técnica de la ventana obtenida por el proveedor. "]
[null,"Ug",null,"Transmitancia térmica acristalamiento (W/m2K)"]
[null,"SHGC o FS",null,"Factor de transmitancia de la energía solar cristal"]
[null,"T. Luz",null,"Transmisión de luz visible %"]
[]
[null,"MARCO ",{"$nulls":4},"Descripción",{"$nulls":4},"Información extraída desde la ficha técnica del marco obtenida por el proveedor. (Se puede utilizar la transmitancia térmica del marco desde un manual local justificando su uso).  "]
[null,"Fm",null,"Porcentaje en ventana según fachada evaluada"]
[null,"Um",null,"Transmitancia térmica marco (W/m2K)"]
[null,"Absortividad",{"$f":"+VLOOKUP(F11,'Formula limites'!J29:M37,MATCH('A5'!E11,'Formula limites'!K28:M28,0)+1,0)","v":{"$error":"#N/A"}},"Color"]
[]
[null,"PERSIANA (exterior o interior)",{"$nulls":4},"Descripción",{"$nulls":4},"Se consideran las persianas, según las características de translucidez que indique el proveedor."]
[null,"TRANSPARENCIA"]
[null,"COLOR"]
[]
[]
[null,"PROTECCIÓN SOLAR FIJA",{"$nulls":9},"Se consideran los elementos externos al edificio que quedan de manera fija y protegen parte de la ventana. Según cada caso se escoge la tabla correspondiente. En caso de contar con más de un tipo de protección solar fija, se puede considerar la que genera más protección solar o debe realizarse el cálculo por separado."]
[null,"TIPO",{"$nulls":4},"FS",null,{"$f":"+_xlfn.IFS(D19=B21,C29,D19=L21,M29,D19=V21,W29,D19=AG21,AH29,D19='Formula limites'!Y5,\"N/A\")","v":{"$error":"#NAME?"}}]
[]
[null,"VOLADIZO",{"$nulls":4},{"$f":"IF($D$19=B21,\"Aplica\",\"No Aplica\")","v":"No Aplica"},{"$nulls":4},"RETRANQUEO",{"$nulls":4},{"$f":"IF($D$19=L21,\"Aplica\",\"No Aplica\")","v":"No Aplica"},{"$nulls":4},"LAMA HORIZONTAL",{"$nulls":5},{"$f":"IF($D$19=V21,\"Aplica\",\"No Aplica\")","v":"No Aplica"},{"$nulls":4},"LAMA VERTICAL",{"$nulls":5},{"$f":"IF($D$19=AG21,\"Aplica\",\"No Aplica\")","v":"No Aplica"}]
[null,"Medidas",null,"Descripción",null,null,"Referencia",{"$nulls":4},"Medidas",null,"Descripción",null,null,"Referencia",{"$nulls":4},"Medidas",null,"Descripción",{"$nulls":3},"Referencia",{"$nulls":4},"Medidas",null,"Descripción",{"$nulls":3},"Referencia"]
[null,"Orientación Fachada",{"$nulls":9},"Orientación Fachada",{"$nulls":9},"Orientación Fachada",{"$nulls":10},"Orientación Fachada"]
[null,"D (m)",{"$nulls":9},"R (m)",{"$nulls":9},"D (m)",{"$nulls":10},"D (m)"]
[null,"L (m)",{"$nulls":9},"W (m)",{"$nulls":9},"L (m)",{"$nulls":10},"L (m)"]
[null,"H (m)",{"$nulls":9},"H (m)",{"$nulls":9},"D/L",{"$f":"IFERROR(W24/W25,\"\")","v":""},{"$nulls":9},"D/L",{"$f":"IFERROR(AH24/AH25,\"\")","v":""}]
[null,"L/H ",{"$f":"IFERROR(ROUND(C25/C26,1),\"\")","v":""},{"$nulls":8},"R/W",{"$f":"IFERROR(ROUND(M24/M25,1),\"\")","v":""},{"$nulls":8},"Ángulo (β)",{"$nulls":10},"Ángulo (σ)"]
[null,"D/H ",{"$f":"IFERROR(ROUND(C24/C26,1),\"\")","v":""},{"$nulls":8},"R/H",{"$f":"IFERROR(ROUND(M24/M26,1),\"\")","v":""}]
[null,"SHGC",{"$f":"+IFERROR(VLOOKUP(_xlfn.CONCAT(D23,_xlfn.IFS(C28<=0.2,1,C28<=0.5,2,C28>0.5,3)),'Formula limites'!AP4:AT18,_xlfn.IFS(C27<=0.5,1,C27<=1,2,C27<=2,3,C27>2,4)+1,0),\"\")","v":""},"Factor sombra en ventana (protección solar fija)",{"$nulls":7},"SHGC",{"$f":"+IFERROR(VLOOKUP(_xlfn.CONCAT(N23,_xlfn.IFS(M28<=0.1,1,M28<=0.2,2,M28<=0.5,3,M28>0.5,4)),'Formula limites'!AZ3:BD22,_xlfn.IFS(M27<=0.1,1,M27<=0.2,2,M27<=0.5,3,M27>0.5,4)+1,0),\"\")","v":""},"Factor sombra en ventana (protección solar fija)",{"$nulls":7},"SHGC",{"$f":"+IFERROR(VLOOKUP(X23,'Formula limites'!BG4:BJ8,_xlfn.IFS(W27<30,1,W27<60,2,W27>=60,3)+1,0),\"\")","v":""},"Factor sombra en ventana (protección solar fija)",{"$nulls":8},"FS",{"$f":"+IFERROR(VLOOKUP(AI23,'Formula limites'!BM4:BT8,_xlfn.IFS(AH27>=60,1,AH27>=45,2,AH27>=30,3,AH27>=0,4,AH27>=-30,5,AH27>=-45,6,AH27>=-60,7)+1,0),\"\")","v":""},"Factor sombra en ventana (protección solar fija)"]
[null,"En caso de que exista un retranqueo, la longitud L se medirá desde el centro del acristalamiento.\nPara el hemisferio norte, en la orientación de fachada se considera como orientación predominante el sur, en contexto de la carta solar para el hemisferio respectivo.\n\nFuente: Extraido desde el manual CES en base a CTE DB HE 2006.",{"$nulls":9},"La longitud L se medirá desde el centro del acristalamiento.\nPara el hemisferio norte, en la orientación de fachada se considera como orientación predominante el sur, en contexto de la carta solar para el hemisferio respectivo.\n\nFuente: Extraido desde el manual CES en base a CTE DB HE 2006.",{"$nulls":9},"1. Los valores de factor de sombra que se indican en estas tablas han sido calculados para una relación D/L igual o inferior a 1 (La separación de las lamas debe ser mas pequeña que el ancho de esta).\nPara el hemisferio norte, en la orientación de fachada se considera como orientación predominante el sur, en contexto de la carta solar para el hemisferio respectivo.\n\nFuente: Extraido desde el manual CES en base a CTE DB HE 2006.",{"$nulls":10},"1. Los valores de factor de sombra que se indican en estas tablas han sido calculados para una relación D/L igual o inferior a 1 (La separación de las lamas debe ser mas pequeña que el ancho de esta).\n2. El ángulo (σ) debe ser medido desde la normal a la fachada hacia el plano de las lamas, considerándose positivo en dirección horaria.\n\nFuente: Extraido desde el manual CES en base a CTE DB HE 2006."]
[{"$nulls":31},1]
[]
[null,"CUMPLIMIENTO"]
[null,"Zona climatica",{"$nulls":4},"- El limite del FSM o SHGC modificado establecido por Minergie es en base al porcentaje de acristalamiento y zona climática establecidos en la tabla N°1.\n- El Factor de transmisión total de energía solar (g total o SHGC total) se calcula en base a la normativa UNE-EN 13363-1.\n- El Factor solar Modificado (FSM) o SHGC modificado se calcula desde el manual CES en base al Código Técnico de la Ediﬁcación de España (CTE DB HE 2006)."]
[null,"Porcentaje de acristalamiento"]
[null,"SHGC modificado límite Minergie",null,null,{"$f":"+IF(E34='Formula limites'!P22,_xlfn.IFS('A5'!E35<='Formula limites'!Q22,'Formula limites'!T22,'A5'!E35>='Formula limites'!R22,'Formula limites'!U22,'A5'!E35<'Formula limites'!R22,'Formula limites'!T22+'Formula limites'!S22*('A5'!E35-'Formula limites'!T22)),_xlfn.IFS('A5'!E35<='Formula limites'!Q23,'Formula limites'!V22,'A5'!E35>='Formula limites'!R23,'Formula limites'!U23,'A5'!E35<'Formula limites'!R23,'Formula limites'!V22+'Formula limites'!S23*('A5'!E35-'Formula limites'!T23)))","v":{"$error":"#NAME?"}}]
[null,"Ubicación de persiana"]
[null,"SHGC",null,null,{"$f":"C5","v":{"v":0,"d":"0.00"}},null,{"$f":"IF(E38<=$E$36,\"Cumple\",\"No cumple\")","v":{"$error":"#NAME?"}},{"$nulls":3},"Factor de transmitancia de la energía solar (acristalamiento)"]
[null,"SHGC - total",null,null,{"$f":"+IF(E37='Formula limites'!AW33,'Formula limites'!AX36,IF(E37='Formula limites'!AW38,'Formula limites'!AX42,C5))","v":{"v":0,"d":"0.00"}},null,{"$f":"IF(E39<=$E$36,\"Cumple\",\"No cumple\")","v":{"$error":"#NAME?"}},{"$nulls":3},"Factor de transmisión total de energía solar (acristalamiento + persiana int. o ext.)"]
[null,"SHGC - modificado \n> Relevante para el requisito",null,null,{"$f":"IFERROR(IF(D19='Formula limites'!Y5,'A5'!E39,I19*((1-C9)*E39+C9*0.04*C10*C11)),\"Completar información de celdas C4 a C10,E11,F11,D14,D15,D19, D23,C24 a C26,E34, E35, E37.\")","v":"Completar información de celdas C4 a C10,E11,F11,D14,D15,D19, D23,C24 a C26,E34, E35, E37."},null,{"$error":"#NAME?"},{"$nulls":3},"Factor de transmisión total de energía solar Modificado (acristalamiento + persiana int. o ext. + p. solar fija)"]
{"$rows_empty":44}
[null,"Bibliografia referencial"]
[]
[null,"Factor de transmisión total de energía solar"]
[null,"COMBINACIÓN VIDRIO + CORTINA INTERIOR O EXTERIOR"]
[]
[null,"Según la norma UNE-EN 13363-1"]
[]
[null,"-","Se puede obtener el valor \"g total\" (Factor de transmisión total de energía solar) combinando la transmisión de energia solar del vidrio (g) con el factor de transmitancia y reflexión solar de la cortina."]
[null,"-","El valor y formula varían según la posición de la persiana."]
{"$rows_empty":7}
[null,"FACTOR SOLAR MODIFICADO"]
[]
[null,"Según el Manual CES 1.1"]
[]
[null,"-","Podrán eximirse de los requerimientos de FSM aquellas ventanas en recintos con un acristalamiento de fachada de 20% o menos, y en recintos tipo habitaciones y circulaciones asociadas a habitaciones."]
[null,"-","Se exeptua el cumplimiento del FSM cuando existen, en un ámbito de 50 metros en torno al edificio, obstáculos tales como cerros u otros edificios, que bloqueen en 50% o más el acceso a la radiación solar directa, verificado  en las siguientes condiciones:\n    - El mediodía solar del solsticio de invierno en el caso de fachadas N, NE y NO\n    - Las 9:00 hrs del solsticio de verano en el caso de fachadas E\n    - Las 17:00 hrs del solsticio de verano en el caso de fachadas O"]
[]
[{"$nulls":12},"   ",{"$nulls":9},"   ",{"$nulls":10},"   "]

{"sheet":"Formula limites","index":10,"n_rows":55,"n_cols":72,"rows_kept":55,"hidden":true,"merged":[[0,27,0,32],[0,33,1,36],[0,37,0,39],[0,47,21,47],[0,48,0,49],[0,57,7,57],[0,58,1,58],[0,59,0,61],[0,63,7,63],[0,64,1,64],[0,65,0,71],[1,27,1,28],[1,29,1,32],[1,48,5,48],[3,27,3,30],[3,32,4,33],[3,35,3,36],[3,37,5,37],[4,27,4,31],[4,34,4,35],[4,36,7,36],[5,28,5,31],[5,32,5,35],[6,28,6,29],[6,30,7,31],[6,32,6,35],[6,37,8,37],[6,48,9,48],[7,27,7,29],[7,32,9,33],[7,34,7,35],[8,27,9,31],[8,34,9,36],[9,37,11,37],[10,28,10,32],[10,33,10,35],[10,48,13,48],[11,27,14,32],[11,33,14,36],[12,37,14,37],[14,48,17,48],[15,27,16,31],[15,32,16,33],[15,34,16,36],[15,37,17,37],[17,27,17,31],[17,32,17,33],[17,34,17,36],[18,27,20,36],[18,37,20,37],[18,48,21,48],[21,37,23,37],[24,37,26,37],[26,15,26,19],[28,50,28,53],[28,54,30,57],[29,50,29,53],[30,50,30,53],[31,50,31,53],[32,48,32,49],[32,50,32,53],[32,54,32,57],[33,50,33,53],[33,54,35,57],[34,50,34,53],[35,50,35,53],[37,48,37,49],[37,50,37,53],[37,54,37,57],[38,50,38,53],[38,54,41,57],[39,50,39,53],[40,50,40,53],[41,50,41,53]]}
[{"$nulls":6},"Porcentaje","Resultado",{"$nulls":13},"Ubicación de persiana",null,"Voladizo!A1","VOLADIZO",{"$nulls":12},"Orientación fachada",null,null,"Límites",null,"0,2< L/H ≤0,5","0,5< L/H ≤1","1< L/H ≤2","L/H > 2",null,null,"Orientación fachada",{"$nulls":3},"0,05<R/W≤0,1","0,1<R/W≤0,2","0,2<R/W≤0,5","R/W >0,5",null,null,"Orientación fachada","Angulo de inclinación (β)",{"$nulls":4},"Orientación fachada","Angulo de inclinación (σ)"]
[0.475,0.373426651453581,null,"y = 0,3611x2 - 0,7629x + 0,6524",null,null,0.475,{"$f":"0.3611*G2^2-0.7629*G2+0.6524","v":0.37149568749999995},{"$nulls":13},"Persiana interior",null,"Retranqueo!A1","RETRANQUEO",{"$nulls":12},"Límites",{"$nulls":4},0.5,1,2,2,null,null,"Norte/Sur",{"$nulls":3},1,2,3,4,{"$nulls":3},"< 30°","≥ 30°  y  <60°","≥ 60°",{"$nulls":3},"≥60°","≥45°","≥30°","≥0°","≥-30°","≥-45°","≥-60°"]
[0.488721560948922,0.366037267259593,{"$nulls":4},0.48,{"$f":"0.3611*G3^2-0.7629*G3+0.6524","v":0.36940544},{"$nulls":13},"Persiana exterior",null,"Lama horizontal!A1","LAMA HORIZONTAL",{"$nulls":17},1,2,3,4,{"$nulls":3},"0,05 < R/H ≤ 0,1",1,{"$f":"+_xlfn.CONCAT($AW$2,AY3)","v":{"$error":"#NAME?"}},0.82,0.74,0.62,0.39,{"$nulls":3},1,2,3,{"$nulls":3},1,2,3,4,5,6,7]
[0.504774485208634,0.359884246178432,{"$nulls":4},0.49,0.36527910999999996,{"$nulls":13},"Sin persiana",null,"Lama vertical!A1","LAMA VERTICAL",{"$nulls":12},"Norte/Sur","Norte/Sur","0 < D/H ≤ 0,2",1,{"$f":"+_xlfn.CONCAT(AM4,AO4)","v":{"$error":"#NAME?"}},0.82,{"v":0.5,"d":"0.50"},0.28,0.16,{"$nulls":3},"0,1 < R/H ≤ 0,2",2,{"$f":"+_xlfn.CONCAT($AW$2,AY4)","v":{"$error":"#NAME?"}},0.76,0.67,0.56,0.35,null,null,"Norte/Sur",0.42,0.26,0.62,null,null,"Norte",0.37,0.44,0.49,0.53,0.47,0.41,0.32]
[0.520827409468345,0.353731225097271,{"$nulls":4},0.5,0.36122499999999996,{"$nulls":16},"SIN PROTECCIÓN FIJA",{"$nulls":13},"Norte/Sur","0,2 < D/H ≤ 0,5",2,{"$f":"+_xlfn.CONCAT(AM5,AO5)","v":{"$error":"#NAME?"}},0.87,0.64,0.39,0.22,{"$nulls":3},"0,2 < R/H ≤ 0,5",3,{"$error":"#NAME?"},0.56,0.51,0.39,0.27,null,null,"NorOeste/SurOeste",0.44,0.26,0.72,null,null,"NorOeste",0.46,0.53,0.56,0.56,0.47,{"v":0.4,"d":"0.40"},{"v":0.3,"d":"0.30"}]
[0.53396489232663,0.347574604705738,{"$nulls":4},0.51,0.35724311,{"$nulls":30},"Norte/Sur","D/H > 0,5",3,{"$error":"#NAME?"},0.93,0.82,{"v":0.6,"d":"0.60"},0.39,{"$nulls":3},"R/H > 0,5",4,{"$error":"#NAME?"},0.35,0.32,0.27,0.17,null,null,"NorEste/SurEste",0.44,0.26,0.72,null,null,"NorEste",0.38,0.44,{"v":0.5,"d":"0.50"},0.56,0.53,0.48,0.38]
[0.550010617965597,0.34389071053986,{"$nulls":4},0.52,0.35333344,{"$nulls":29},"NorEste/SurEste","NorEste/SurEste","0 < D/H ≤ 0,2",1,{"$error":"#NAME?"},{"v":0.9,"d":"0.90"},0.71,0.43,0.16,null,null,"NorEste/SurEste","0,05 < R/H ≤ 0,1",1,{"$f":"+_xlfn.CONCAT($AW$7,AY7)","v":{"$error":"#NAME?"}},0.86,0.81,0.72,0.51,null,null,"Oeste",0.45,0.27,0.81,null,null,"Oeste",0.39,0.47,0.54,0.63,0.55,0.45,0.32]
[0.564609420834968,0.336501326345872,{"$nulls":4},0.53,0.3494959899999999,{"$nulls":30},"NorEste/SurEste","0,2 < D/H ≤ 0,5",2,{"$error":"#NAME?"},0.94,0.82,{"v":0.6,"d":"0.60"},0.27,{"$nulls":3},"0,1 < R/H ≤ 0,2",2,{"$f":"+_xlfn.CONCAT($AW$7,AY8)","v":{"$error":"#NAME?"}},0.79,0.74,0.66,0.47,null,null,"Este",0.45,0.27,0.81,null,null,"Este",0.44,0.52,0.58,0.63,{"v":0.5,"d":"0.50"},0.41,0.29]
[0.577750503003624,0.329110142496697,{"$nulls":4},0.54,0.3457307599999999,{"$nulls":30},"NorEste/SurEste","D/H > 0,5",3,{"$error":"#NAME?"},0.98,0.93,0.84,0.65,{"$nulls":3},"0,2 < R/H ≤ 0,5",3,{"$error":"#NAME?"},0.59,0.56,0.47,0.36,{"$nulls":8},"Sur"]
[0.592334908631506,0.326659012133275,{"$nulls":4},0.55,0.3420377499999999,{"$nulls":29},"NorOeste/SurOeste","NorOeste/SurOeste","0 < D/H ≤ 0,2",1,{"$error":"#NAME?"},{"v":0.9,"d":"0.90"},0.71,0.43,0.16,{"$nulls":3},"R/H > 0,5",4,{"$error":"#NAME?"},0.38,0.36,0.32,0.23,{"$nulls":8},"Sureste"]
[0.602549751467618,0.322967919346653,{"$nulls":4},0.56,0.33841695999999993,{"$nulls":30},"NorOeste/SurOeste","0,2 < D/H ≤ 0,5",2,{"$error":"#NAME?"},0.94,0.82,{"v":0.6,"d":"0.60"},0.27,null,null,"NorOeste/SurOeste","0,05 < R/H ≤ 0,1",1,{"$f":"+_xlfn.CONCAT($AW$11,AY11)","v":{"$error":"#NAME?"}},0.86,0.81,0.72,0.51,{"$nulls":8},"Suroeste"]
[0.614225914314817,0.318044062757575,{"$nulls":4},0.57,0.33486838999999996,{"$nulls":30},"NorOeste/SurOeste","D/H > 0,5",3,{"$error":"#NAME?"},0.98,0.93,0.84,0.65,{"$nulls":3},"0,1 < R/H ≤ 0,2",2,{"$f":"+_xlfn.CONCAT($AW$11,AY12)","v":{"$error":"#NAME?"}},0.79,0.74,0.66,0.47]
[0.631729360654498,0.314361968246883,{"$nulls":4},0.58,0.33139204,{"$nulls":29},"Este","Este","0 < D/H ≤ 0,2",1,{"$error":"#NAME?"},0.92,0.77,0.55,0.22,{"$nulls":3},"0,2 < R/H ≤ 0,5",3,{"$error":"#NAME?"},0.59,0.56,0.47,0.36]
[0.649232806994179,0.310679873736192,{"$nulls":4},0.59,0.32798790999999994,{"$nulls":30},"Este","0,2 < D/H ≤ 0,5",2,{"$error":"#NAME?"},0.96,0.86,{"v":0.7,"d":"0.70"},0.43,{"$nulls":3},"R/H > 0,5",4,{"$error":"#NAME?"},0.38,0.36,0.32,0.23]
[0.662373889162836,0.303288689887017,{"$nulls":4},0.6,0.324656,{"$nulls":30},"Este","D/H > 0,5",3,{"$error":"#NAME?"},0.99,0.96,0.89,0.75,null,null,"Este","0,05 < R/H ≤ 0,1",1,{"$f":"+_xlfn.CONCAT($AW$15,AY15)","v":{"$error":"#NAME?"}},0.91,0.87,0.81,0.65]
[0.672581533378204,0.302066724015678,{"$nulls":4},0.61,0.32139631,{"$nulls":29},"Oeste","Oeste","0 < D/H ≤ 0,2",1,{"$error":"#NAME?"},0.92,0.77,0.55,0.22,{"$nulls":3},"0,1 < R/H ≤ 0,2",2,{"$f":"+_xlfn.CONCAT($AW$15,AY16)","v":{"$error":"#NAME?"}},0.86,0.82,0.76,0.61]
[0.691546299728972,0.297151865702531,{"$nulls":4},0.62,0.31820883999999994,{"$nulls":30},"Oeste","0,2 < D/H ≤ 0,5",2,{"$error":"#NAME?"},0.96,0.86,{"v":0.7,"d":"0.70"},0.43,{"$nulls":3},"0,2 < R/H ≤ 0,5",3,{"$error":"#NAME?"},0.71,0.68,0.61,0.51]
[0.707595624678311,0.292233408079012,{"$nulls":4},0.63,0.3150935899999999,{"$nulls":30},"Oeste","D/H > 0,5",3,{"$f":"+_xlfn.CONCAT(AM18,AO18)","v":{"$error":"#NAME?"}},0.99,0.96,0.89,0.75,{"$nulls":3},"R/H > 0,5",4,{"$error":"#NAME?"},0.53,0.51,0.48,0.39]
[0.728010913109048,0.289789476336334,{"$nulls":4},0.64,0.31205056,{"$nulls":19},"NOTA: En caso de que exista un retranqueo, la longitud L se medirá desde el centro del acristalamiento.",{"$nulls":9},"Sur","Sur","0 < D/H ≤ 0,2",1,{"$f":"+_xlfn.CONCAT(AM19,AO19)","v":{"$error":"#NAME?"}},0.82,{"v":0.5,"d":"0.50"},0.28,0.16,null,null,"Oeste","0,05 < R/H ≤ 0,1",1,{"$f":"+_xlfn.CONCAT($AW$19,AY19)","v":{"$error":"#NAME?"}},0.91,0.87,0.81,0.65]
[0.741141197346588,0.286101982860084,{"$nulls":4},0.65,0.30907975,{"$nulls":13},"Valor inicial",{"$nulls":16},"Sur","0,2 < D/H ≤ 0,5",2,{"$f":"+_xlfn.CONCAT(AM20,AO20)","v":{"$error":"#NAME?"}},0.87,0.64,0.39,0.22,{"$nulls":3},"0,1 < R/H ≤ 0,2",2,{"$f":"+_xlfn.CONCAT($AW$19,AY20)","v":{"$error":"#NAME?"}},0.86,0.82,0.76,0.61]
[0.752810161573042,0.283647253186289,{"$nulls":4},0.66,0.30618115999999995,{"$nulls":7},"Zona","Tramo 1","Tramo 2","Pendiente","Desfase","Constante",{"v":0.4,"d":"40%"},{"$nulls":16},"Sur","D/H > 0,5",3,{"$error":"#NAME?"},0.93,0.82,{"v":0.6,"d":"0.60"},0.39,{"$nulls":3},"0,2 < R/H ≤ 0,5",3,{"$error":"#NAME?"},0.71,0.68,0.61,0.51]
[0.764482725109869,0.279957960054853,{"$nulls":4},0.67,0.30335479,{"$nulls":7},"ASHRAE 2 y 3 (Chile C y D)",{"v":0.4,"d":"40%"},{"v":0.7,"d":"70%"},{"$f":"+(0.25-0.4)/(0.7-0.4)","v":{"v":-0.5000000000000002,"d":"-0.50"}},{"v":0.4,"d":"40%"},0.25,{"v":0.3,"d":"30%"},{"$nulls":15},"Sur","SurEste","0 < D/H ≤ 0,2",1,{"$error":"#NAME?"},{"v":0.9,"d":"0.90"},0.71,0.43,0.16,{"$nulls":3},"R/H > 0,5",4,{"$error":"#NAME?"},0.53,0.51,0.48,0.39]
[0.776151689336323,0.277503230381059,{"$nulls":4},0.68,0.30060064,{"$nulls":7},"ASHRAE 0 y 1 (Chile A y B)",{"v":0.4,"d":"40%"},{"v":0.7,"d":"70%"},{"$f":"+(0.3-0.2)/(0.4-0.7)","v":{"v":-0.3333333333333333,"d":"-0.33"}},{"v":0.4,"d":"40%"},0.2,{"$nulls":17},"SurEste","0,2 < D/H ≤ 0,5",2,{"$error":"#NAME?"},0.94,0.82,{"v":0.6,"d":"0.60"},0.27]
[0.786359333551691,0.276281264509719,{"$nulls":4},0.69,0.2979187099999999,{"$nulls":30},"SurEste","D/H > 0,5",3,{"$error":"#NAME?"},0.98,0.93,0.84,0.65]
[0.798024698467773,0.275061098293566,{"$nulls":4},0.7,0.29530899999999993,{"$nulls":29},"Sur","SurOeste","0 < D/H ≤ 0,2",1,{"$error":"#NAME?"},{"v":0.9,"d":"0.90"},0.71,0.43,0.16]
[0.809693662694227,0.272606368619772,{"$nulls":4},0.71,0.29277150999999996,null,"Anexo 1 Tabla 31",{"$nulls":4},"Anexo 2 Tabla A.2",{"$nulls":23},"SurOeste","0,2 < D/H ≤ 0,5",2,{"$error":"#NAME?"},0.94,0.82,{"v":0.6,"d":"0.60"},0.27]
[0.824278068322109,0.27015523825635,{"$nulls":4},0.72,0.29030623999999994,{"$nulls":7},"Factor de reflexión - ρe,B",{"$nulls":22},"SurOeste","D/H > 0,5",3,{"$error":"#NAME?"},0.98,0.93,0.84,0.65]
[0.835950631858935,0.266465945124914,{"$nulls":4},0.73,0.28791318999999993,null,"Color","Claro","Medio","Oscuro",null,"Factor de transmitancia - τe,B"," τe,B","Blanco","Pastel","Oscuro","Negro"]
[0.851992758187531,0.264016614416677,{"$nulls":4},0.74,0.28559236,null,"Blanco",{"v":0.2,"d":"0.20"},{"v":0.3,"d":"0.30"},"-",null,"Opaco 0 - 3%",0,{"v":0.7,"d":"0.70"},{"v":0.5,"d":"0.50"},{"v":0.3,"d":"0.30"},{"v":0.1,"d":"0.10"},{"$nulls":28},"τe,B",{"$f":"+VLOOKUP('A5'!D14,'Formula limites'!O29:P31,2,0)","v":{"$error":"#N/A"}},"Factor de transmitancia solar",{"$nulls":3},"Cortina medianamente traslucida, color blanco."]
[0.870946726607182,0.262805446476455,{"$nulls":4},0.75,0.28334375,null,"Amarillo",{"v":0.3,"d":"0.30"},{"v":0.5,"d":"0.50"},{"v":0.7,"d":"0.70"},null,"Medianamente Translúcido 3% - 6%",{"v":0.2,"d":"0.20"},{"v":0.6,"d":"0.60"},{"v":0.4,"d":"0.40"},{"v":0.2,"d":"0.20"},{"v":0.1,"d":"0.10"},{"$nulls":28},"ρe,B",{"$f":"+VLOOKUP('A5'!D14,'Formula limites'!O29:T31,MATCH('A5'!D15,'Formula limites'!Q28:T28,0)+2,0)","v":{"$error":"#N/A"}},"Factor de reflexión solar de la cara del lado de la radiación"]
[0.894281055749718,0.259130550586507,{"$nulls":4},0.76,0.28116736,null,"Beige",0.35,0.55,0.75,null,"Muy Translúcido 6% - 18%",{"v":0.4,"d":"0.40"},{"v":0.4,"d":"0.40"},{"v":0.3,"d":"0.30"},{"v":0.2,"d":"0.20"},{"v":0.1,"d":"0.10"},{"$nulls":20},"L/H",null,0.8,{"$nulls":5},"αe,B",{"$f":"1-AX29-AX30","v":{"$error":"#N/A"}},"Coeficiente de absorción"]
[0.911777303468655,0.257917582991098,{"$nulls":4},0.77,0.27906319,null,"Marrón",{"v":0.5,"d":"0.50"},0.75,0.92,{"$nulls":27},"D/H > 0,5",null,0.2]
[0.938023474702247,0.255480849869165,{"$nulls":4},0.78,0.2770312399999999,null,"Rojo",0.65,{"v":0.8,"d":"0.80"},{"v":0.9,"d":"0.90"},{"$nulls":27},"orientación",null,"NorEste",{"$nulls":5},"Persiana Interior",null,"Factor de transmisión total de energía solar",{"$nulls":3},"Fuente"]
[0.946773398216901,0.25425708434264,{"$nulls":4},0.79,0.2750715099999999,null,"Verde",{"v":0.4,"d":"0.40"},{"v":0.7,"d":"0.70"},0.88,{"$nulls":26},{"$f":"+VLOOKUP(AQ33,AM4:AT18,3,0)","v":{"$error":"#N/A"}},{"$nulls":8},"G2",30,"Coeficiente fijo en la norma W/(m ⋅K) ",{"$nulls":3},"UNE-EN 13363-1"]
[0.968650006658724,0.250580388797506,{"$nulls":4},0.8,0.2731839999999999,null,"Azul",{"v":0.5,"d":"0.50"},{"v":0.8,"d":"0.80"},0.95,{"$nulls":26},{"$f":"+MATCH(0.4,AO4:AO18,0)","v":{"$error":"#N/A"}},{"$nulls":8},"G",{"$f":"(1/'A5'!C4+1/AX34)^(-1)","v":{"$error":"#DIV/0!"}},"Conductancia térmica"]
[0.99051581716943,0.250607383625297,{"$nulls":4},0.81,0.27136870999999996,null,"Gris",{"v":0.4,"d":"0.40"},0.65,"-",{"$nulls":35},"g (total) interior",{"$f":"'A5'!C5*(1-('A5'!C5*AX30)-AX31*(AX35/AX34))","v":{"$error":"#N/A"}},"Factor de transmisión total de energía solar \n(acristalamiento + protección solar interior)"]
[1,0.2493800187884,{"$nulls":4},0.82,0.26962563999999994,null,"Negro","-",0.96,"-"]
[{"$nulls":6},0.83,0.26795479,{"$nulls":40},"Persiana exterior",null,"Factor de transmisión total de energía solar",{"$nulls":3},"Fuente"]
[{"$nulls":6},0.84,0.26635615999999995,{"$nulls":40},"G1",5,"Coeficiente fijo en la norma W/(m ⋅K) ",{"$nulls":3},"UNE-EN 13363-1"]
[{"$nulls":6},0.85,0.26482975,{"$nulls":40},"G2",10,"Coeficiente fijo en la norma W/(m ⋅K) "]
[{"$nulls":6},0.86,0.26337555999999995,{"$nulls":40},"G",{"$f":"(1/'A5'!C4+1/AX39+1/AX40)^(-1)","v":{"$error":"#DIV/0!"}},"Conductancia térmica"]
[{"$nulls":6},0.87,0.2619935899999999,{"$nulls":40},"g (total) exterior",{"$f":"(AX29*'A5'!C5)+(AX31*(AX41/AX40))+(AX29*(1-'A5'!C5)*AX41/AX39)","v":{"$error":"#N/A"}},"Factor de transmisión total de energía solar \n(acristalamiento + protección solar exterior)"]
[{"$nulls":6},0.88,0.2606838399999999]
[{"$nulls":6},0.89,0.2594463099999999]
[{"$nulls":6},0.9,0.2582809999999999]
[{"$nulls":6},0.91,0.2571879099999999]
[{"$nulls":6},0.92,0.2561670399999999]
[{"$nulls":6},0.93,0.25521838999999996]
[{"$nulls":6},0.94,0.25434196000000003]
[{"$nulls":6},0.95,0.2535377499999999]
[{"$nulls":6},0.96,0.25280575999999993]
[{"$nulls":6},0.97,0.25214598999999993]
[{"$nulls":6},0.98,0.2515584399999999]
[{"$nulls":6},0.99,0.2510431099999999]
[{"$nulls":6},1,0.25059999999999993]

{"sheet":"A6","index":11,"n_rows":35,"n_cols":13,"rows_kept":35,"merged":[[4,9,7,10],[4,12,17,17],[9,9,11,10],[22,9,24,9],[22,10,24,10],[26,9,31,10]]}
["A6","Ventilación natural","Zonas Chile: Todas, con refuerzo en A, B, C Y D.",{"$nulls":3},"Zonas ASHRAE: Todas, con refuerzo en las zonas 0, 1, 2 y 3"]
[]
[null,"Alternativa 1 No existe normativa local."]
[]
[null,"Habitación","Superficie piso* (m2)","Superficie de ventana (m2)","Área de abertura efectiva de ventana (m2)","Tipo de ventana predominante","Requisito Minergie","Evaluación",null,"Cuando no exista una normativa local con exigencia de superficie de ventana (%) respecto a la superficie de piso, se debe considerar una superficie de ventana operable de 4% mínimo en viviendas y oficinas, respectivemente 8% en centros educativos.",null,null,"Área de abertura efectiva (referencia Manual CVS 2021)\n\nAe=a*b*seno a\n\nDonde:\nAe: Área efectiva de abertura\na: Ancho del perímetro interior del marco que soporta la hoja batiente, oscilante o proyectante.\nb: Altura del perímetro interior del marco que soporta la hoja batiente, oscilante o proyectante.\na: Angulo de giro de la hoja batiente, oscilante o proyectante.\n\nPara ventanas correderas se debe asumir un área de apertura efectiva de 50% y para batientes u oscilobatientes se puede asumir una apertura efectiva del 100% "]
[{"$nulls":6},{"$f":"IF('A1'!$C$6=\"C.Educacional\",C6*0.08,C6*0.04)","v":{"v":0,"d":"0.00"}},{"$f":"IF(E6=0,\"Completar \",IF(E6>=G6,\"Cumple\",\"No cumple\"))","v":"Completar "}]
[{"$nulls":6},{"$f":"IF('A1'!$C$6=\"C.Educacional\",C7*0.08,C7*0.04)","v":{"v":0,"d":"0.00"}},{"$f":"IF(E7=0,\"Completar \",IF(E7>=G7,\"Cumple\",\"No cumple\"))","v":"Completar "}]
[{"$nulls":6},{"$f":"IF('A1'!$C$6=\"C.Educacional\",C8*0.08,C8*0.04)","v":{"v":0,"d":"0.00"}},{"$f":"IF(E8=0,\"Completar \",IF(E8>=G8,\"Cumple\",\"No cumple\"))","v":"Completar "}]
[{"$nulls":6},{"$f":"IF('A1'!$C$6=\"C.Educacional\",C9*0.08,C9*0.04)","v":{"v":0,"d":"0.00"}},"Completar "]
[{"$nulls":6},{"$f":"IF('A1'!$C$6=\"C.Educacional\",C10*0.08,C10*0.04)","v":{"v":0,"d":"0.00"}},"Completar ",null,"* Superficie útil del recinto de evaluación"]
[{"$nulls":6},{"$f":"IF('A1'!$C$6=\"C.Educacional\",C11*0.08,C11*0.04)","v":{"v":0,"d":"0.00"}},"Completar "]
[{"$nulls":6},{"$f":"IF('A1'!$C$6=\"C.Educacional\",C12*0.08,C12*0.04)","v":{"v":0,"d":"0.00"}},"Completar "]
[{"$nulls":6},{"$f":"IF('A1'!$C$6=\"C.Educacional\",C13*0.08,C13*0.04)","v":{"v":0,"d":"0.00"}},"Completar "]
[{"$nulls":6},{"$f":"IF('A1'!$C$6=\"C.Educacional\",C14*0.08,C14*0.04)","v":{"v":0,"d":"0.00"}},"Completar "]
[{"$nulls":6},{"$f":"IF('A1'!$C$6=\"C.Educacional\",C15*0.08,C15*0.04)","v":{"v":0,"d":"0.00"}},"Completar "]
[{"$nulls":6},{"$f":"IF('A1'!$C$6=\"C.Educacional\",C16*0.08,C16*0.04)","v":{"v":0,"d":"0.00"}},"Completar "]
[{"$nulls":6},{"$f":"IF('A1'!$C$6=\"C.Educacional\",C17*0.08,C17*0.04)","v":{"v":0,"d":"0.00"}},"Completar "]
[{"$nulls":6},{"$f":"IF('A1'!$C$6=\"C.Educacional\",C18*0.08,C18*0.04)","v":{"v":0,"d":"0.00"}},"Completar "]
[]
[null,"Alternativa 2 Respecto de la normativa local."]
[]
[null,"Habitación","Superficie piso* (m2)","Superficie de ventana (m2)","Área de abertura efectiva de ventana (m2)","Tipo de ventana predominante","Requisito Minergie","Evaluación",null,"Normativa Local (nombre)"]
[{"$nulls":6},{"$f":"C23*$K$23","v":{"v":0,"d":"0.00"}},{"$f":"IF(E23=0,\"Completar \",IF(E23>=G23,\"Cumple\",\"No cumple\"))","v":"Completar "},null,"Exigencia (%)"]
[{"$nulls":6},{"$f":"C24*$K$23","v":{"v":0,"d":"0.00"}},{"$f":"IF(E24=0,\"Completar \",IF(E24>=G24,\"Cumple\",\"No cumple\"))","v":"Completar "}]
[{"$nulls":6},{"v":0,"d":"0.00"},"Completar "]
[{"$nulls":6},{"v":0,"d":"0.00"},"Completar "]
[{"$nulls":6},{"v":0,"d":"0.00"},"Completar ",null,"Cuando el proyecto se encuentra en una zona con normativa local para la superficie mínima de ventana operable (%) respecto a la superficie de piso, se debe declarar este porcentaje de exigencia y la normativa desde la que se extrae."]
[{"$nulls":6},{"v":0,"d":"0.00"},"Completar "]
[{"$nulls":6},{"$f":"C29*$K$23","v":{"v":0,"d":"0.00"}},"Completar "]
[{"$nulls":6},{"v":0,"d":"0.00"},"Completar "]
[{"$nulls":6},{"v":0,"d":"0.00"},"Completar "]
[{"$nulls":6},{"v":0,"d":"0.00"},"Completar "]
[{"$nulls":6},{"v":0,"d":"0.00"},"Completar "]
[{"$nulls":6},{"v":0,"d":"0.00"},"Completar "]
[{"$nulls":6},{"v":0,"d":"0.00"},"Completar "]

{"sheet":"A7","index":12,"n_rows":141,"n_cols":14,"rows_kept":141,"merged":[[8,5,8,6],[8,8,8,12],[9,5,9,6],[9,8,11,12],[10,5,10,6],[11,5,11,6],[15,6,15,7],[15,9,15,12],[16,5,18,5],[16,6,16,7],[16,9,17,12],[17,6,17,7],[18,6,18,7],[19,6,19,7],[22,3,22,5],[23,1,24,1],[23,13,23,17],[24,13,24,17],[26,1,34,1],[26,13,33,17],[27,8,34,9],[29,10,30,10],[34,2,34,5],[34,13,34,17],[36,1,36,3],[39,13,46,17],[47,13,50,17],[51,13,54,17],[77,2,77,8],[78,2,78,8],[90,2,95,3]]}
["A7","Materiales sostenibles y reducción de la huella de carbono",{"$nulls":3},"Zonas Chile: Todas",null,"Zona ASHRAE: Todas"]
[]
[]
[null,null,"Superficie construida m2"]
[null,null,"Período de evaluación ACV Minergie (años)",60]
[]
[null,"Lista de los materiales y productos de construcción que no son de origen regional"]
[]
[null,null,"Material","Distancia al proyeto","Verificación\n(Link maps o coordenadas)","Justificación",null,null,"Instrucciones"]
[{"$nulls":8},"Se deben identificar los materiales y productos que provengan de otro país que él donde se construye el proyecto, o que estén producido a más de 500 km del lugar del proyecto (distancia de transporte por carretera). \nPara estos materiales, se deberá demostrar que no existe en el país o a menos de 500 km del lugar del proyecto (la condición la más exigente) un material o producto similar y de calidad técnica equivalente. Para esto se debe compartir información sobre al menos 3 materiales o productos similares producidos en el país o en un rayo de menos de 500 km y justificar porque estos materiales o productos no se utilizaron en el  proyecto (p.ej. mostrando porque la calidad técnica no es equivalente). "]
[]
[]
[]
[null,"Certificación de origen de la madera (gestión sostenible)"]
[]
[null,null,"Uso de madera en proyecto","Porcentaje de volumen utilizada en proyecto","Tipo de Certificado y fecha","Evaluación","Verificación (pegar cert.)",null,null,"Proyectos en madera"]
[{"$nulls":5},{"$f":"IF(F20=\"Completar información\",F20,IF(F20=\"C\",\"Cumple\",\"No cumple\"))","v":"Completar información"},{"$nulls":3},"Para los proyectos que utilizan madera, sea en material estructural y/o no estructural, el requisito se considerará como cumplido únicamente en el caso de que el 80% del volumen de madera utilizada en el proyecto tenga además un certificado de origen sostenible de tipo FSC o equivalente.\n\nEn el caso de no encontrarse producción de madera certificada de origen sostenible en el país o en un rayo de 500 km, se aceptará excepcionalmente una madera de origen más lejano, mientras se trata del lugar el más cercano para \nobtener madera certificada de la misma calidad técnica."]
[]
[]
[null,null,"Total",{"$f":"SUM(D17:D19)","v":{"v":0,"d":"0%"}},null,{"$f":"IF(D20=0,\"Completar información\",IF(D20>=80%,\"C\",\"N/C\"))","v":"Completar información"}]
[]
[null,"Cálculo de carbono en operación (2 alternativas de cálculo)"]
[]
[null,"Alternativa 1","Carbono justificado desde otra fuente (CEV, EDGE)","Consumo por m2 (kWh/m2 anual)","Emisiones de CO2e justificado(kgCO2/m2 anual)",{"$nulls":8},"Instrucciones"]
[null,null,"Arquitectura + Equipos + tipo de energía",{"$nulls":10},"1. - Alternativa 1: para verificar el carbono operacional de su proyecto, Usted puede indicar directamente el valor que entrega el Informe CEV (Chile) o puede calcular con los factores de emisión para energía final indicados por Minergie.\nSi posee el reporte de carbono desde otra fuente, se solicita el informe o comprobante del cálculo."]
[]
[null,"Alternativa 2","Tipo de energético",{"$nulls":10},"2 . Alternativa 2: Primero desplegar la selección del \"Tipo de Energético\", donde se optará por \"Energético Minergie\" o \"Energético Personal\", el primero corresponde a los factores de emisión obtenidos el IPCC para los países de Chile y México del año 2020. La segunda opción correspondiente al  \"Tipo Energético Personal\" , se encuentra habilitada para incorporar otro tipo de energético con sus respectivos factores de emisión o factores actualizados, es importante dejar la fuente desde donde se obtuvo la información del energético utilizado. "]
[{"$nulls":8},"Para calcular el aporte de ERNC, consulte al proveedor del sistema solar o dirijase a  los links de enlance.\n\nEn dicho sitio, primero elija la ubicación del proyecto, luego la alternativa de ERNC que quiere calcular. El dato a ingresar en el apartado de \"Capacidad Instalada\" en KW, corresponde a la potencia mínima requerida por Minergie (Potencia Mínima Requerida ERNC) . La herramienta entregará un resultado de generación fotovoltaica anual, de acuerdo a los datos entregados, que luego debe dividir por la superficie acondicionada para obtener el consumo por m2 (KWh/m2 anual)  ",null,"Explorador solar Chile"]
[null,null,"Carbono Operacional","Consumo por m2 (kWh/m2 anual)","Tipo de energético","Factor de emisión (kgCO2e/kWh) ","Emisiones de CO2e (kgCO2e/m2 anual)",{"$nulls":3},"Explorador solar México"]
[null,null,"ACS",null,null,{"$f":"IFERROR(IF($D$27=Bilioteca.Minergie[[#Headers],[Tipo.Energético.Minergie]],VLOOKUP(E30,Factoresemisión[[#All],[Fuente de energía]:[Factor de emisión KgCO2/KWh]],2,0),VLOOKUP(E30,Energético.Personal[[#All],[Otro Energético]:[Factor de emisión]],2,0)),\"Completar Elección y/o información \")","v":"Completar Elección y/o información "},{"$f":"IF(ISERROR(D30*F30),0,D30*F30)","v":{"v":0,"d":"0.00"}},{"$nulls":3},"Potencia Mínima Requerida ERNC [kWp]"]
[null,null,"Iluminación",null,null,{"$f":"IFERROR(IF($D$27=Bilioteca.Minergie[[#Headers],[Tipo.Energético.Minergie]],VLOOKUP(E31,Factoresemisión[[#All],[Fuente de energía]:[Factor de emisión KgCO2/KWh]],2,0),VLOOKUP(E31,Energético.Personal[[#All],[Otro Energético]:[Factor de emisión]],2,0)),\"Completar Elección y/o información \")","v":"Completar Elección y/o información "},{"$f":"IF(ISERROR(D31*F31),0,D31*F31)","v":{"v":0,"d":"0.00"}}]
[null,null,"Calefacción",null,null,{"$f":"IFERROR(IF($D$27=Bilioteca.Minergie[[#Headers],[Tipo.Energético.Minergie]],VLOOKUP(E32,Factoresemisión[[#All],[Fuente de energía]:[Factor de emisión KgCO2/KWh]],2,0),VLOOKUP(E32,Energético.Personal[[#All],[Otro Energético]:[Factor de emisión]],2,0)),\"Completar Elección y/o información \")","v":"Completar Elección y/o información "},{"$f":"IF(ISERROR(D32*F32),0,D32*F32)","v":{"v":0,"d":"0.00"}},{"$nulls":3},{"$f":"'T2+T2.a'!D19","v":"N/A"}]
[null,null,"Ventilación",null,null,{"$f":"IFERROR(IF($D$27=Bilioteca.Minergie[[#Headers],[Tipo.Energético.Minergie]],VLOOKUP(E33,Factoresemisión[[#All],[Fuente de energía]:[Factor de emisión KgCO2/KWh]],2,0),VLOOKUP(E33,Energético.Personal[[#All],[Otro Energético]:[Factor de emisión]],2,0)),\"Completar Elección y/o información \")","v":"Completar Elección y/o información "},{"$f":"IF(ISERROR(D33*F33),0,D33*F33)","v":{"v":0,"d":"0.00"}}]
[null,null,"ERNC (aporte energía uso final)",null,null,{"$f":"IFERROR(IF($D$27=Bilioteca.Minergie[[#Headers],[Tipo.Energético.Minergie]],VLOOKUP(E34,Factoresemisión[[#All],[Fuente de energía]:[Factor de emisión KgCO2/KWh]],2,0),VLOOKUP(E34,Energético.Personal[[#All],[Otro Energético]:[Factor de emisión]],2,0)),\"Completar Elección y/o información \")","v":"Completar Elección y/o información "},{"$f":"IF(ISERROR(D34*F34),0,D34*F34)","v":{"v":0,"d":"0.00"}}]
[{"$nulls":6},{"$f":"SUM(G30:G34)","v":{"v":0,"d":"0.00"}},{"$nulls":6},"Tabla Energético Personal"]
[]
[null,"Cálculo de carbono incorporado o embebido"]
[]
[null,null,"Carbono Incorporado (A1-A3)","Elemento","Biblioteca","Material","N° DAP","Unidad de medida","GWP (KgCO2e)*","Cantidad (respetando unidad de medida)","Total KgCO2e"]
[{"$nulls":6},{"$f":"IFERROR(_xlfn.IFS(E40=Material.Biblioteca.Minergie[[#Headers],[Material.Biblioteca.Minergie]],VLOOKUP(F40,BIBLIOTECA.MINERGIE[#All],4,0),E40=Material.Biblioteca.Personal[[#Headers],[Material.Biblioteca.Personal]],VLOOKUP(F40,BIBLIOTECA.PERSONAL13[#All],4,0)),\"-\")","v":"-"},{"$f":"IFERROR(_xlfn.IFS(E40=Material.Biblioteca.Minergie[[#Headers],[Material.Biblioteca.Minergie]],VLOOKUP(F40,BIBLIOTECA.MINERGIE[#All],2,0),E40=Material.Biblioteca.Personal[[#Headers],[Material.Biblioteca.Personal]],VLOOKUP(F40,BIBLIOTECA.PERSONAL13[#All],2,0)),\"-\")","v":"-"},{"$f":"IFERROR(_xlfn.IFS(E40=Material.Biblioteca.Minergie[[#Headers],[Material.Biblioteca.Minergie]],VLOOKUP(F40,BIBLIOTECA.MINERGIE[#All],3,0),E40=Material.Biblioteca.Personal[[#Headers],[Material.Biblioteca.Personal]],VLOOKUP(F40,BIBLIOTECA.PERSONAL13[#All],3,0)),\"-\")","v":"-"},null,{"$f":"IFERROR(I40*J40,0)","v":{"v":0,"d":"0.00"}},null,null,"2.- Indique los elementos y materiales más incidentes (en volúmen) en cada una de las siguientes componentes de subestructura y superestructura del proyecto:\n    Subestructura: \n       -fundaciones\n    Superestructura:\n       -marcos (pilares / vigas / muros interiores estructurales) \n       -muros envolvente\n       -losas\n       -techumbres\n       -ventanas / puertas exteriores\n       -aislación térmica\n       -escaleras / rampas\nComo mínimo se tienen que ingresar los volúmenes de los siguientes materiales: acero, concreto, ladrillo, vidrio, CLT.\n\n3.- Puede utilizarse un GWP diferente siempre y cuando se justifique con la correspondiente Declaración Ambiental de Producto (DAP) o EPD por sus siglas en inglés. Esta declaración debe adjuntarse en la plataforma en los documentos del requerimiento E1. En caso de utilizar algunos valores justificados incorpore los valores en la Biblioteca Personal"]
[{"$nulls":6},{"$f":"IFERROR(_xlfn.IFS(E41=Material.Biblioteca.Minergie[[#Headers],[Material.Biblioteca.Minergie]],VLOOKUP(F41,BIBLIOTECA.MINERGIE[#All],4,0),E41=Material.Biblioteca.Personal[[#Headers],[Material.Biblioteca.Personal]],VLOOKUP(F41,BIBLIOTECA.PERSONAL13[#All],4,0)),\"-\")","v":"-"},{"$f":"IFERROR(_xlfn.IFS(E41=Material.Biblioteca.Minergie[[#Headers],[Material.Biblioteca.Minergie]],VLOOKUP(F41,BIBLIOTECA.MINERGIE[#All],2,0),E41=Material.Biblioteca.Personal[[#Headers],[Material.Biblioteca.Personal]],VLOOKUP(F41,BIBLIOTECA.PERSONAL13[#All],2,0)),\"-\")","v":"-"},{"$f":"IFERROR(_xlfn.IFS(E41=Material.Biblioteca.Minergie[[#Headers],[Material.Biblioteca.Minergie]],VLOOKUP(F41,BIBLIOTECA.MINERGIE[#All],3,0),E41=Material.Biblioteca.Personal[[#Headers],[Material.Biblioteca.Personal]],VLOOKUP(F41,BIBLIOTECA.PERSONAL13[#All],3,0)),\"-\")","v":"-"},null,{"v":0,"d":"0.00"}]
[{"$nulls":6},{"$f":"IFERROR(_xlfn.IFS(E42=Material.Biblioteca.Minergie[[#Headers],[Material.Biblioteca.Minergie]],VLOOKUP(F42,BIBLIOTECA.MINERGIE[#All],4,0),E42=Material.Biblioteca.Personal[[#Headers],[Material.Biblioteca.Personal]],VLOOKUP(F42,BIBLIOTECA.PERSONAL13[#All],4,0)),\"-\")","v":"-"},{"$f":"IFERROR(_xlfn.IFS(E42=Material.Biblioteca.Minergie[[#Headers],[Material.Biblioteca.Minergie]],VLOOKUP(F42,BIBLIOTECA.MINERGIE[#All],2,0),E42=Material.Biblioteca.Personal[[#Headers],[Material.Biblioteca.Personal]],VLOOKUP(F42,BIBLIOTECA.PERSONAL13[#All],2,0)),\"-\")","v":"-"},{"$f":"IFERROR(_xlfn.IFS(E42=Material.Biblioteca.Minergie[[#Headers],[Material.Biblioteca.Minergie]],VLOOKUP(F42,BIBLIOTECA.MINERGIE[#All],3,0),E42=Material.Biblioteca.Personal[[#Headers],[Material.Biblioteca.Personal]],VLOOKUP(F42,BIBLIOTECA.PERSONAL13[#All],3,0)),\"-\")","v":"-"},null,{"v":0,"d":"0.00"}]
[{"$nulls":6},{"$f":"IFERROR(_xlfn.IFS(E43=Material.Biblioteca.Minergie[[#Headers],[Material.Biblioteca.Minergie]],VLOOKUP(F43,BIBLIOTECA.MINERGIE[#All],4,0),E43=Material.Biblioteca.Personal[[#Headers],[Material.Biblioteca.Personal]],VLOOKUP(F43,BIBLIOTECA.PERSONAL13[#All],4,0)),\"-\")","v":"-"},{"$f":"IFERROR(_xlfn.IFS(E43=Material.Biblioteca.Minergie[[#Headers],[Material.Biblioteca.Minergie]],VLOOKUP(F43,BIBLIOTECA.MINERGIE[#All],2,0),E43=Material.Biblioteca.Personal[[#Headers],[Material.Biblioteca.Personal]],VLOOKUP(F43,BIBLIOTECA.PERSONAL13[#All],2,0)),\"-\")","v":"-"},{"$f":"IFERROR(_xlfn.IFS(E43=Material.Biblioteca.Minergie[[#Headers],[Material.Biblioteca.Minergie]],VLOOKUP(F43,BIBLIOTECA.MINERGIE[#All],3,0),E43=Material.Biblioteca.Personal[[#Headers],[Material.Biblioteca.Personal]],VLOOKUP(F43,BIBLIOTECA.PERSONAL13[#All],3,0)),\"-\")","v":"-"},null,{"v":0,"d":"0.00"}]
[{"$nulls":6},{"$f":"IFERROR(_xlfn.IFS(E44=Material.Biblioteca.Minergie[[#Headers],[Material.Biblioteca.Minergie]],VLOOKUP(F44,BIBLIOTECA.MINERGIE[#All],4,0),E44=Material.Biblioteca.Personal[[#Headers],[Material.Biblioteca.Personal]],VLOOKUP(F44,BIBLIOTECA.PERSONAL13[#All],4,0)),\"-\")","v":"-"},{"$f":"IFERROR(_xlfn.IFS(E44=Material.Biblioteca.Minergie[[#Headers],[Material.Biblioteca.Minergie]],VLOOKUP(F44,BIBLIOTECA.MINERGIE[#All],2,0),E44=Material.Biblioteca.Personal[[#Headers],[Material.Biblioteca.Personal]],VLOOKUP(F44,BIBLIOTECA.PERSONAL13[#All],2,0)),\"-\")","v":"-"},{"$f":"IFERROR(_xlfn.IFS(E44=Material.Biblioteca.Minergie[[#Headers],[Material.Biblioteca.Minergie]],VLOOKUP(F44,BIBLIOTECA.MINERGIE[#All],3,0),E44=Material.Biblioteca.Personal[[#Headers],[Material.Biblioteca.Personal]],VLOOKUP(F44,BIBLIOTECA.PERSONAL13[#All],3,0)),\"-\")","v":"-"},null,{"v":0,"d":"0.00"}]
[{"$nulls":6},{"$f":"IFERROR(_xlfn.IFS(E45=Material.Biblioteca.Minergie[[#Headers],[Material.Biblioteca.Minergie]],VLOOKUP(F45,BIBLIOTECA.MINERGIE[#All],4,0),E45=Material.Biblioteca.Personal[[#Headers],[Material.Biblioteca.Personal]],VLOOKUP(F45,BIBLIOTECA.PERSONAL13[#All],4,0)),\"-\")","v":"-"},{"$f":"IFERROR(_xlfn.IFS(E45=Material.Biblioteca.Minergie[[#Headers],[Material.Biblioteca.Minergie]],VLOOKUP(F45,BIBLIOTECA.MINERGIE[#All],2,0),E45=Material.Biblioteca.Personal[[#Headers],[Material.Biblioteca.Personal]],VLOOKUP(F45,BIBLIOTECA.PERSONAL13[#All],2,0)),\"-\")","v":"-"},{"$f":"IFERROR(_xlfn.IFS(E45=Material.Biblioteca.Minergie[[#Headers],[Material.Biblioteca.Minergie]],VLOOKUP(F45,BIBLIOTECA.MINERGIE[#All],3,0),E45=Material.Biblioteca.Personal[[#Headers],[Material.Biblioteca.Personal]],VLOOKUP(F45,BIBLIOTECA.PERSONAL13[#All],3,0)),\"-\")","v":"-"},null,{"v":0,"d":"0.00"}]
[{"$nulls":6},{"$f":"IFERROR(_xlfn.IFS(E46=Material.Biblioteca.Minergie[[#Headers],[Material.Biblioteca.Minergie]],VLOOKUP(F46,BIBLIOTECA.MINERGIE[#All],4,0),E46=Material.Biblioteca.Personal[[#Headers],[Material.Biblioteca.Personal]],VLOOKUP(F46,BIBLIOTECA.PERSONAL13[#All],4,0)),\"-\")","v":"-"},{"$f":"IFERROR(_xlfn.IFS(E46=Material.Biblioteca.Minergie[[#Headers],[Material.Biblioteca.Minergie]],VLOOKUP(F46,BIBLIOTECA.MINERGIE[#All],2,0),E46=Material.Biblioteca.Personal[[#Headers],[Material.Biblioteca.Personal]],VLOOKUP(F46,BIBLIOTECA.PERSONAL13[#All],2,0)),\"-\")","v":"-"},{"$f":"IFERROR(_xlfn.IFS(E46=Material.Biblioteca.Minergie[[#Headers],[Material.Biblioteca.Minergie]],VLOOKUP(F46,BIBLIOTECA.MINERGIE[#All],3,0),E46=Material.Biblioteca.Personal[[#Headers],[Material.Biblioteca.Personal]],VLOOKUP(F46,BIBLIOTECA.PERSONAL13[#All],3,0)),\"-\")","v":"-"},null,{"$f":"IFERROR(I46*J46,0)","v":{"v":0,"d":"0.00"}}]
[{"$nulls":6},{"$f":"IFERROR(_xlfn.IFS(E47=Material.Biblioteca.Minergie[[#Headers],[Material.Biblioteca.Minergie]],VLOOKUP(F47,BIBLIOTECA.MINERGIE[#All],4,0),E47=Material.Biblioteca.Personal[[#Headers],[Material.Biblioteca.Personal]],VLOOKUP(F47,BIBLIOTECA.PERSONAL13[#All],4,0)),\"-\")","v":"-"},{"$f":"IFERROR(_xlfn.IFS(E47=Material.Biblioteca.Minergie[[#Headers],[Material.Biblioteca.Minergie]],VLOOKUP(F47,BIBLIOTECA.MINERGIE[#All],2,0),E47=Material.Biblioteca.Personal[[#Headers],[Material.Biblioteca.Personal]],VLOOKUP(F47,BIBLIOTECA.PERSONAL13[#All],2,0)),\"-\")","v":"-"},{"$f":"IFERROR(_xlfn.IFS(E47=Material.Biblioteca.Minergie[[#Headers],[Material.Biblioteca.Minergie]],VLOOKUP(F47,BIBLIOTECA.MINERGIE[#All],3,0),E47=Material.Biblioteca.Personal[[#Headers],[Material.Biblioteca.Personal]],VLOOKUP(F47,BIBLIOTECA.PERSONAL13[#All],3,0)),\"-\")","v":"-"},null,{"$f":"IFERROR(I47*J47,0)","v":{"v":0,"d":"0.00"}}]
[{"$nulls":6},{"$f":"IFERROR(_xlfn.IFS(E48=Material.Biblioteca.Minergie[[#Headers],[Material.Biblioteca.Minergie]],VLOOKUP(F48,BIBLIOTECA.MINERGIE[#All],4,0),E48=Material.Biblioteca.Personal[[#Headers],[Material.Biblioteca.Personal]],VLOOKUP(F48,BIBLIOTECA.PERSONAL13[#All],4,0)),\"-\")","v":"-"},{"$f":"IFERROR(_xlfn.IFS(E48=Material.Biblioteca.Minergie[[#Headers],[Material.Biblioteca.Minergie]],VLOOKUP(F48,BIBLIOTECA.MINERGIE[#All],2,0),E48=Material.Biblioteca.Personal[[#Headers],[Material.Biblioteca.Personal]],VLOOKUP(F48,BIBLIOTECA.PERSONAL13[#All],2,0)),\"-\")","v":"-"},{"$f":"IFERROR(_xlfn.IFS(E48=Material.Biblioteca.Minergie[[#Headers],[Material.Biblioteca.Minergie]],VLOOKUP(F48,BIBLIOTECA.MINERGIE[#All],3,0),E48=Material.Biblioteca.Personal[[#Headers],[Material.Biblioteca.Personal]],VLOOKUP(F48,BIBLIOTECA.PERSONAL13[#All],3,0)),\"-\")","v":"-"},null,{"v":0,"d":"0.00"},null,null,"Ir  a Biblioteca Personal DAP"]
[{"$nulls":6},{"$f":"IFERROR(_xlfn.IFS(E49=Material.Biblioteca.Minergie[[#Headers],[Material.Biblioteca.Minergie]],VLOOKUP(F49,BIBLIOTECA.MINERGIE[#All],4,0),E49=Material.Biblioteca.Personal[[#Headers],[Material.Biblioteca.Personal]],VLOOKUP(F49,BIBLIOTECA.PERSONAL13[#All],4,0)),\"-\")","v":"-"},{"$f":"IFERROR(_xlfn.IFS(E49=Material.Biblioteca.Minergie[[#Headers],[Material.Biblioteca.Minergie]],VLOOKUP(F49,BIBLIOTECA.MINERGIE[#All],2,0),E49=Material.Biblioteca.Personal[[#Headers],[Material.Biblioteca.Personal]],VLOOKUP(F49,BIBLIOTECA.PERSONAL13[#All],2,0)),\"-\")","v":"-"},{"$f":"IFERROR(_xlfn.IFS(E49=Material.Biblioteca.Minergie[[#Headers],[Material.Biblioteca.Minergie]],VLOOKUP(F49,BIBLIOTECA.MINERGIE[#All],3,0),E49=Material.Biblioteca.Personal[[#Headers],[Material.Biblioteca.Personal]],VLOOKUP(F49,BIBLIOTECA.PERSONAL13[#All],3,0)),\"-\")","v":"-"},null,{"v":0,"d":"0.00"}]
[{"$nulls":6},{"$f":"IFERROR(_xlfn.IFS(E50=Material.Biblioteca.Minergie[[#Headers],[Material.Biblioteca.Minergie]],VLOOKUP(F50,BIBLIOTECA.MINERGIE[#All],4,0),E50=Material.Biblioteca.Personal[[#Headers],[Material.Biblioteca.Personal]],VLOOKUP(F50,BIBLIOTECA.PERSONAL13[#All],4,0)),\"-\")","v":"-"},{"$f":"IFERROR(_xlfn.IFS(E50=Material.Biblioteca.Minergie[[#Headers],[Material.Biblioteca.Minergie]],VLOOKUP(F50,BIBLIOTECA.MINERGIE[#All],2,0),E50=Material.Biblioteca.Personal[[#Headers],[Material.Biblioteca.Personal]],VLOOKUP(F50,BIBLIOTECA.PERSONAL13[#All],2,0)),\"-\")","v":"-"},{"$f":"IFERROR(_xlfn.IFS(E50=Material.Biblioteca.Minergie[[#Headers],[Material.Biblioteca.Minergie]],VLOOKUP(F50,BIBLIOTECA.MINERGIE[#All],3,0),E50=Material.Biblioteca.Personal[[#Headers],[Material.Biblioteca.Personal]],VLOOKUP(F50,BIBLIOTECA.PERSONAL13[#All],3,0)),\"-\")","v":"-"},null,{"v":0,"d":"0.00"}]
[{"$nulls":6},{"$f":"IFERROR(_xlfn.IFS(E51=Material.Biblioteca.Minergie[[#Headers],[Material.Biblioteca.Minergie]],VLOOKUP(F51,BIBLIOTECA.MINERGIE[#All],4,0),E51=Material.Biblioteca.Personal[[#Headers],[Material.Biblioteca.Personal]],VLOOKUP(F51,BIBLIOTECA.PERSONAL13[#All],4,0)),\"-\")","v":"-"},{"$f":"IFERROR(_xlfn.IFS(E51=Material.Biblioteca.Minergie[[#Headers],[Material.Biblioteca.Minergie]],VLOOKUP(F51,BIBLIOTECA.MINERGIE[#All],2,0),E51=Material.Biblioteca.Personal[[#Headers],[Material.Biblioteca.Personal]],VLOOKUP(F51,BIBLIOTECA.PERSONAL13[#All],2,0)),\"-\")","v":"-"},{"$f":"IFERROR(_xlfn.IFS(E51=Material.Biblioteca.Minergie[[#Headers],[Material.Biblioteca.Minergie]],VLOOKUP(F51,BIBLIOTECA.MINERGIE[#All],3,0),E51=Material.Biblioteca.Personal[[#Headers],[Material.Biblioteca.Personal]],VLOOKUP(F51,BIBLIOTECA.PERSONAL13[#All],3,0)),\"-\")","v":"-"},null,{"v":0,"d":"0.00"}]
[{"$nulls":6},{"$f":"IFERROR(_xlfn.IFS(E52=Material.Biblioteca.Minergie[[#Headers],[Material.Biblioteca.Minergie]],VLOOKUP(F52,BIBLIOTECA.MINERGIE[#All],4,0),E52=Material.Biblioteca.Personal[[#Headers],[Material.Biblioteca.Personal]],VLOOKUP(F52,BIBLIOTECA.PERSONAL13[#All],4,0)),\"-\")","v":"-"},{"$f":"IFERROR(_xlfn.IFS(E52=Material.Biblioteca.Minergie[[#Headers],[Material.Biblioteca.Minergie]],VLOOKUP(F52,BIBLIOTECA.MINERGIE[#All],2,0),E52=Material.Biblioteca.Personal[[#Headers],[Material.Biblioteca.Personal]],VLOOKUP(F52,BIBLIOTECA.PERSONAL13[#All],2,0)),\"-\")","v":"-"},{"$f":"IFERROR(_xlfn.IFS(E52=Material.Biblioteca.Minergie[[#Headers],[Material.Biblioteca.Minergie]],VLOOKUP(F52,BIBLIOTECA.MINERGIE[#All],3,0),E52=Material.Biblioteca.Personal[[#Headers],[Material.Biblioteca.Personal]],VLOOKUP(F52,BIBLIOTECA.PERSONAL13[#All],3,0)),\"-\")","v":"-"},null,{"v":0,"d":"0.00"},null,null,"* La biblioteca de GWP se ha obtenido de la base de datos de la calculadora de huella de carbono Rukaru, la cual recopila datos de bases de datos reconocidas y validadas internacionalmente, además de DAP locales."]
[{"$nulls":6},{"$f":"IFERROR(_xlfn.IFS(E53=Material.Biblioteca.Minergie[[#Headers],[Material.Biblioteca.Minergie]],VLOOKUP(F53,BIBLIOTECA.MINERGIE[#All],4,0),E53=Material.Biblioteca.Personal[[#Headers],[Material.Biblioteca.Personal]],VLOOKUP(F53,BIBLIOTECA.PERSONAL13[#All],4,0)),\"-\")","v":"-"},{"$f":"IFERROR(_xlfn.IFS(E53=Material.Biblioteca.Minergie[[#Headers],[Material.Biblioteca.Minergie]],VLOOKUP(F53,BIBLIOTECA.MINERGIE[#All],2,0),E53=Material.Biblioteca.Personal[[#Headers],[Material.Biblioteca.Personal]],VLOOKUP(F53,BIBLIOTECA.PERSONAL13[#All],2,0)),\"-\")","v":"-"},{"$f":"IFERROR(_xlfn.IFS(E53=Material.Biblioteca.Minergie[[#Headers],[Material.Biblioteca.Minergie]],VLOOKUP(F53,BIBLIOTECA.MINERGIE[#All],3,0),E53=Material.Biblioteca.Personal[[#Headers],[Material.Biblioteca.Personal]],VLOOKUP(F53,BIBLIOTECA.PERSONAL13[#All],3,0)),\"-\")","v":"-"},null,{"v":0,"d":"0.00"}]
[{"$nulls":6},{"$f":"IFERROR(_xlfn.IFS(E54=Material.Biblioteca.Minergie[[#Headers],[Material.Biblioteca.Minergie]],VLOOKUP(F54,BIBLIOTECA.MINERGIE[#All],4,0),E54=Material.Biblioteca.Personal[[#Headers],[Material.Biblioteca.Personal]],VLOOKUP(F54,BIBLIOTECA.PERSONAL13[#All],4,0)),\"-\")","v":"-"},{"$f":"IFERROR(_xlfn.IFS(E54=Material.Biblioteca.Minergie[[#Headers],[Material.Biblioteca.Minergie]],VLOOKUP(F54,BIBLIOTECA.MINERGIE[#All],2,0),E54=Material.Biblioteca.Personal[[#Headers],[Material.Biblioteca.Personal]],VLOOKUP(F54,BIBLIOTECA.PERSONAL13[#All],2,0)),\"-\")","v":"-"},{"$f":"IFERROR(_xlfn.IFS(E54=Material.Biblioteca.Minergie[[#Headers],[Material.Biblioteca.Minergie]],VLOOKUP(F54,BIBLIOTECA.MINERGIE[#All],3,0),E54=Material.Biblioteca.Personal[[#Headers],[Material.Biblioteca.Personal]],VLOOKUP(F54,BIBLIOTECA.PERSONAL13[#All],3,0)),\"-\")","v":"-"},null,{"v":0,"d":"0.00"}]
[{"$nulls":6},{"$f":"IFERROR(_xlfn.IFS(E55=Material.Biblioteca.Minergie[[#Headers],[Material.Biblioteca.Minergie]],VLOOKUP(F55,BIBLIOTECA.MINERGIE[#All],4,0),E55=Material.Biblioteca.Personal[[#Headers],[Material.Biblioteca.Personal]],VLOOKUP(F55,BIBLIOTECA.PERSONAL13[#All],4,0)),\"-\")","v":"-"},{"$f":"IFERROR(_xlfn.IFS(E55=Material.Biblioteca.Minergie[[#Headers],[Material.Biblioteca.Minergie]],VLOOKUP(F55,BIBLIOTECA.MINERGIE[#All],2,0),E55=Material.Biblioteca.Personal[[#Headers],[Material.Biblioteca.Personal]],VLOOKUP(F55,BIBLIOTECA.PERSONAL13[#All],2,0)),\"-\")","v":"-"},{"$f":"IFERROR(_xlfn.IFS(E55=Material.Biblioteca.Minergie[[#Headers],[Material.Biblioteca.Minergie]],VLOOKUP(F55,BIBLIOTECA.MINERGIE[#All],3,0),E55=Material.Biblioteca.Personal[[#Headers],[Material.Biblioteca.Personal]],VLOOKUP(F55,BIBLIOTECA.PERSONAL13[#All],3,0)),\"-\")","v":"-"},null,{"v":0,"d":"0.00"}]
[{"$nulls":6},{"$f":"IFERROR(_xlfn.IFS(E56=Material.Biblioteca.Minergie[[#Headers],[Material.Biblioteca.Minergie]],VLOOKUP(F56,BIBLIOTECA.MINERGIE[#All],4,0),E56=Material.Biblioteca.Personal[[#Headers],[Material.Biblioteca.Personal]],VLOOKUP(F56,BIBLIOTECA.PERSONAL13[#All],4,0)),\"-\")","v":"-"},{"$f":"IFERROR(_xlfn.IFS(E56=Material.Biblioteca.Minergie[[#Headers],[Material.Biblioteca.Minergie]],VLOOKUP(F56,BIBLIOTECA.MINERGIE[#All],2,0),E56=Material.Biblioteca.Personal[[#Headers],[Material.Biblioteca.Personal]],VLOOKUP(F56,BIBLIOTECA.PERSONAL13[#All],2,0)),\"-\")","v":"-"},{"$f":"IFERROR(_xlfn.IFS(E56=Material.Biblioteca.Minergie[[#Headers],[Material.Biblioteca.Minergie]],VLOOKUP(F56,BIBLIOTECA.MINERGIE[#All],3,0),E56=Material.Biblioteca.Personal[[#Headers],[Material.Biblioteca.Personal]],VLOOKUP(F56,BIBLIOTECA.PERSONAL13[#All],3,0)),\"-\")","v":"-"},null,{"v":0,"d":"0.00"}]
[{"$nulls":6},{"$f":"IFERROR(_xlfn.IFS(E57=Material.Biblioteca.Minergie[[#Headers],[Material.Biblioteca.Minergie]],VLOOKUP(F57,BIBLIOTECA.MINERGIE[#All],4,0),E57=Material.Biblioteca.Personal[[#Headers],[Material.Biblioteca.Personal]],VLOOKUP(F57,BIBLIOTECA.PERSONAL13[#All],4,0)),\"-\")","v":"-"},{"$f":"IFERROR(_xlfn.IFS(E57=Material.Biblioteca.Minergie[[#Headers],[Material.Biblioteca.Minergie]],VLOOKUP(F57,BIBLIOTECA.MINERGIE[#All],2,0),E57=Material.Biblioteca.Personal[[#Headers],[Material.Biblioteca.Personal]],VLOOKUP(F57,BIBLIOTECA.PERSONAL13[#All],2,0)),\"-\")","v":"-"},{"$f":"IFERROR(_xlfn.IFS(E57=Material.Biblioteca.Minergie[[#Headers],[Material.Biblioteca.Minergie]],VLOOKUP(F57,BIBLIOTECA.MINERGIE[#All],3,0),E57=Material.Biblioteca.Personal[[#Headers],[Material.Biblioteca.Personal]],VLOOKUP(F57,BIBLIOTECA.PERSONAL13[#All],3,0)),\"-\")","v":"-"},null,{"v":0,"d":"0.00"}]
[{"$nulls":6},{"$f":"IFERROR(_xlfn.IFS(E58=Material.Biblioteca.Minergie[[#Headers],[Material.Biblioteca.Minergie]],VLOOKUP(F58,BIBLIOTECA.MINERGIE[#All],4,0),E58=Material.Biblioteca.Personal[[#Headers],[Material.Biblioteca.Personal]],VLOOKUP(F58,BIBLIOTECA.PERSONAL13[#All],4,0)),\"-\")","v":"-"},{"$f":"IFERROR(_xlfn.IFS(E58=Material.Biblioteca.Minergie[[#Headers],[Material.Biblioteca.Minergie]],VLOOKUP(F58,BIBLIOTECA.MINERGIE[#All],2,0),E58=Material.Biblioteca.Personal[[#Headers],[Material.Biblioteca.Personal]],VLOOKUP(F58,BIBLIOTECA.PERSONAL13[#All],2,0)),\"-\")","v":"-"},{"$f":"IFERROR(_xlfn.IFS(E58=Material.Biblioteca.Minergie[[#Headers],[Material.Biblioteca.Minergie]],VLOOKUP(F58,BIBLIOTECA.MINERGIE[#All],3,0),E58=Material.Biblioteca.Personal[[#Headers],[Material.Biblioteca.Personal]],VLOOKUP(F58,BIBLIOTECA.PERSONAL13[#All],3,0)),\"-\")","v":"-"},null,{"v":0,"d":"0.00"}]
[{"$nulls":6},{"$f":"IFERROR(_xlfn.IFS(E59=Material.Biblioteca.Minergie[[#Headers],[Material.Biblioteca.Minergie]],VLOOKUP(F59,BIBLIOTECA.MINERGIE[#All],4,0),E59=Material.Biblioteca.Personal[[#Headers],[Material.Biblioteca.Personal]],VLOOKUP(F59,BIBLIOTECA.PERSONAL13[#All],4,0)),\"-\")","v":"-"},{"$f":"IFERROR(_xlfn.IFS(E59=Material.Biblioteca.Minergie[[#Headers],[Material.Biblioteca.Minergie]],VLOOKUP(F59,BIBLIOTECA.MINERGIE[#All],2,0),E59=Material.Biblioteca.Personal[[#Headers],[Material.Biblioteca.Personal]],VLOOKUP(F59,BIBLIOTECA.PERSONAL13[#All],2,0)),\"-\")","v":"-"},{"$f":"IFERROR(_xlfn.IFS(E59=Material.Biblioteca.Minergie[[#Headers],[Material.Biblioteca.Minergie]],VLOOKUP(F59,BIBLIOTECA.MINERGIE[#All],3,0),E59=Material.Biblioteca.Personal[[#Headers],[Material.Biblioteca.Personal]],VLOOKUP(F59,BIBLIOTECA.PERSONAL13[#All],3,0)),\"-\")","v":"-"},null,{"v":0,"d":"0.00"}]
[{"$nulls":6},{"$f":"IFERROR(_xlfn.IFS(E60=Material.Biblioteca.Minergie[[#Headers],[Material.Biblioteca.Minergie]],VLOOKUP(F60,BIBLIOTECA.MINERGIE[#All],4,0),E60=Material.Biblioteca.Personal[[#Headers],[Material.Biblioteca.Personal]],VLOOKUP(F60,BIBLIOTECA.PERSONAL13[#All],4,0)),\"-\")","v":"-"},{"$f":"IFERROR(_xlfn.IFS(E60=Material.Biblioteca.Minergie[[#Headers],[Material.Biblioteca.Minergie]],VLOOKUP(F60,BIBLIOTECA.MINERGIE[#All],2,0),E60=Material.Biblioteca.Personal[[#Headers],[Material.Biblioteca.Personal]],VLOOKUP(F60,BIBLIOTECA.PERSONAL13[#All],2,0)),\"-\")","v":"-"},{"$f":"IFERROR(_xlfn.IFS(E60=Material.Biblioteca.Minergie[[#Headers],[Material.Biblioteca.Minergie]],VLOOKUP(F60,BIBLIOTECA.MINERGIE[#All],3,0),E60=Material.Biblioteca.Personal[[#Headers],[Material.Biblioteca.Personal]],VLOOKUP(F60,BIBLIOTECA.PERSONAL13[#All],3,0)),\"-\")","v":"-"},null,{"v":0,"d":"0.00"}]
[{"$nulls":6},{"$f":"IFERROR(_xlfn.IFS(E61=Material.Biblioteca.Minergie[[#Headers],[Material.Biblioteca.Minergie]],VLOOKUP(F61,BIBLIOTECA.MINERGIE[#All],4,0),E61=Material.Biblioteca.Personal[[#Headers],[Material.Biblioteca.Personal]],VLOOKUP(F61,BIBLIOTECA.PERSONAL13[#All],4,0)),\"-\")","v":"-"},{"$f":"IFERROR(_xlfn.IFS(E61=Material.Biblioteca.Minergie[[#Headers],[Material.Biblioteca.Minergie]],VLOOKUP(F61,BIBLIOTECA.MINERGIE[#All],2,0),E61=Material.Biblioteca.Personal[[#Headers],[Material.Biblioteca.Personal]],VLOOKUP(F61,BIBLIOTECA.PERSONAL13[#All],2,0)),\"-\")","v":"-"},{"$f":"IFERROR(_xlfn.IFS(E61=Material.Biblioteca.Minergie[[#Headers],[Material.Biblioteca.Minergie]],VLOOKUP(F61,BIBLIOTECA.MINERGIE[#All],3,0),E61=Material.Biblioteca.Personal[[#Headers],[Material.Biblioteca.Personal]],VLOOKUP(F61,BIBLIOTECA.PERSONAL13[#All],3,0)),\"-\")","v":"-"},null,{"v":0,"d":"0.00"}]
[{"$nulls":6},{"$f":"IFERROR(_xlfn.IFS(E62=Material.Biblioteca.Minergie[[#Headers],[Material.Biblioteca.Minergie]],VLOOKUP(F62,BIBLIOTECA.MINERGIE[#All],4,0),E62=Material.Biblioteca.Personal[[#Headers],[Material.Biblioteca.Personal]],VLOOKUP(F62,BIBLIOTECA.PERSONAL13[#All],4,0)),\"-\")","v":"-"},{"$f":"IFERROR(_xlfn.IFS(E62=Material.Biblioteca.Minergie[[#Headers],[Material.Biblioteca.Minergie]],VLOOKUP(F62,BIBLIOTECA.MINERGIE[#All],2,0),E62=Material.Biblioteca.Personal[[#Headers],[Material.Biblioteca.Personal]],VLOOKUP(F62,BIBLIOTECA.PERSONAL13[#All],2,0)),\"-\")","v":"-"},{"$f":"IFERROR(_xlfn.IFS(E62=Material.Biblioteca.Minergie[[#Headers],[Material.Biblioteca.Minergie]],VLOOKUP(F62,BIBLIOTECA.MINERGIE[#All],3,0),E62=Material.Biblioteca.Personal[[#Headers],[Material.Biblioteca.Personal]],VLOOKUP(F62,BIBLIOTECA.PERSONAL13[#All],3,0)),\"-\")","v":"-"},null,{"v":0,"d":"0.00"}]
[{"$nulls":6},{"$f":"IFERROR(_xlfn.IFS(E63=Material.Biblioteca.Minergie[[#Headers],[Material.Biblioteca.Minergie]],VLOOKUP(F63,BIBLIOTECA.MINERGIE[#All],4,0),E63=Material.Biblioteca.Personal[[#Headers],[Material.Biblioteca.Personal]],VLOOKUP(F63,BIBLIOTECA.PERSONAL13[#All],4,0)),\"-\")","v":"-"},{"$f":"IFERROR(_xlfn.IFS(E63=Material.Biblioteca.Minergie[[#Headers],[Material.Biblioteca.Minergie]],VLOOKUP(F63,BIBLIOTECA.MINERGIE[#All],2,0),E63=Material.Biblioteca.Personal[[#Headers],[Material.Biblioteca.Personal]],VLOOKUP(F63,BIBLIOTECA.PERSONAL13[#All],2,0)),\"-\")","v":"-"},{"$f":"IFERROR(_xlfn.IFS(E63=Material.Biblioteca.Minergie[[#Headers],[Material.Biblioteca.Minergie]],VLOOKUP(F63,BIBLIOTECA.MINERGIE[#All],3,0),E63=Material.Biblioteca.Personal[[#Headers],[Material.Biblioteca.Personal]],VLOOKUP(F63,BIBLIOTECA.PERSONAL13[#All],3,0)),\"-\")","v":"-"},null,{"v":0,"d":"0.00"}]
[{"$nulls":6},{"$f":"IFERROR(_xlfn.IFS(E64=Material.Biblioteca.Minergie[[#Headers],[Material.Biblioteca.Minergie]],VLOOKUP(F64,BIBLIOTECA.MINERGIE[#All],4,0),E64=Material.Biblioteca.Personal[[#Headers],[Material.Biblioteca.Personal]],VLOOKUP(F64,BIBLIOTECA.PERSONAL13[#All],4,0)),\"-\")","v":"-"},{"$f":"IFERROR(_xlfn.IFS(E64=Material.Biblioteca.Minergie[[#Headers],[Material.Biblioteca.Minergie]],VLOOKUP(F64,BIBLIOTECA.MINERGIE[#All],2,0),E64=Material.Biblioteca.Personal[[#Headers],[Material.Biblioteca.Personal]],VLOOKUP(F64,BIBLIOTECA.PERSONAL13[#All],2,0)),\"-\")","v":"-"},{"$f":"IFERROR(_xlfn.IFS(E64=Material.Biblioteca.Minergie[[#Headers],[Material.Biblioteca.Minergie]],VLOOKUP(F64,BIBLIOTECA.MINERGIE[#All],3,0),E64=Material.Biblioteca.Personal[[#Headers],[Material.Biblioteca.Personal]],VLOOKUP(F64,BIBLIOTECA.PERSONAL13[#All],3,0)),\"-\")","v":"-"},null,{"v":0,"d":"0.00"}]
[{"$nulls":6},{"$f":"IFERROR(_xlfn.IFS(E65=Material.Biblioteca.Minergie[[#Headers],[Material.Biblioteca.Minergie]],VLOOKUP(F65,BIBLIOTECA.MINERGIE[#All],4,0),E65=Material.Biblioteca.Personal[[#Headers],[Material.Biblioteca.Personal]],VLOOKUP(F65,BIBLIOTECA.PERSONAL13[#All],4,0)),\"-\")","v":"-"},{"$f":"IFERROR(_xlfn.IFS(E65=Material.Biblioteca.Minergie[[#Headers],[Material.Biblioteca.Minergie]],VLOOKUP(F65,BIBLIOTECA.MINERGIE[#All],2,0),E65=Material.Biblioteca.Personal[[#Headers],[Material.Biblioteca.Personal]],VLOOKUP(F65,BIBLIOTECA.PERSONAL13[#All],2,0)),\"-\")","v":"-"},{"$f":"IFERROR(_xlfn.IFS(E65=Material.Biblioteca.Minergie[[#Headers],[Material.Biblioteca.Minergie]],VLOOKUP(F65,BIBLIOTECA.MINERGIE[#All],3,0),E65=Material.Biblioteca.Personal[[#Headers],[Material.Biblioteca.Personal]],VLOOKUP(F65,BIBLIOTECA.PERSONAL13[#All],3,0)),\"-\")","v":"-"},null,{"v":0,"d":"0.00"}]
[{"$nulls":6},{"$f":"IFERROR(_xlfn.IFS(E66=Material.Biblioteca.Minergie[[#Headers],[Material.Biblioteca.Minergie]],VLOOKUP(F66,BIBLIOTECA.MINERGIE[#All],4,0),E66=Material.Biblioteca.Personal[[#Headers],[Material.Biblioteca.Personal]],VLOOKUP(F66,BIBLIOTECA.PERSONAL13[#All],4,0)),\"-\")","v":"-"},{"$f":"IFERROR(_xlfn.IFS(E66=Material.Biblioteca.Minergie[[#Headers],[Material.Biblioteca.Minergie]],VLOOKUP(F66,BIBLIOTECA.MINERGIE[#All],2,0),E66=Material.Biblioteca.Personal[[#Headers],[Material.Biblioteca.Personal]],VLOOKUP(F66,BIBLIOTECA.PERSONAL13[#All],2,0)),\"-\")","v":"-"},{"$f":"IFERROR(_xlfn.IFS(E66=Material.Biblioteca.Minergie[[#Headers],[Material.Biblioteca.Minergie]],VLOOKUP(F66,BIBLIOTECA.MINERGIE[#All],3,0),E66=Material.Biblioteca.Personal[[#Headers],[Material.Biblioteca.Personal]],VLOOKUP(F66,BIBLIOTECA.PERSONAL13[#All],3,0)),\"-\")","v":"-"},null,{"v":0,"d":"0.00"}]
[{"$nulls":6},{"$f":"IFERROR(_xlfn.IFS(E67=Material.Biblioteca.Minergie[[#Headers],[Material.Biblioteca.Minergie]],VLOOKUP(F67,BIBLIOTECA.MINERGIE[#All],4,0),E67=Material.Biblioteca.Personal[[#Headers],[Material.Biblioteca.Personal]],VLOOKUP(F67,BIBLIOTECA.PERSONAL13[#All],4,0)),\"-\")","v":"-"},{"$f":"IFERROR(_xlfn.IFS(E67=Material.Biblioteca.Minergie[[#Headers],[Material.Biblioteca.Minergie]],VLOOKUP(F67,BIBLIOTECA.MINERGIE[#All],2,0),E67=Material.Biblioteca.Personal[[#Headers],[Material.Biblioteca.Personal]],VLOOKUP(F67,BIBLIOTECA.PERSONAL13[#All],2,0)),\"-\")","v":"-"},{"$f":"IFERROR(_xlfn.IFS(E67=Material.Biblioteca.Minergie[[#Headers],[Material.Biblioteca.Minergie]],VLOOKUP(F67,BIBLIOTECA.MINERGIE[#All],3,0),E67=Material.Biblioteca.Personal[[#Headers],[Material.Biblioteca.Personal]],VLOOKUP(F67,BIBLIOTECA.PERSONAL13[#All],3,0)),\"-\")","v":"-"},null,{"v":0,"d":"0.00"}]
[{"$nulls":6},{"$f":"IFERROR(_xlfn.IFS(E68=Material.Biblioteca.Minergie[[#Headers],[Material.Biblioteca.Minergie]],VLOOKUP(F68,BIBLIOTECA.MINERGIE[#All],4,0),E68=Material.Biblioteca.Personal[[#Headers],[Material.Biblioteca.Personal]],VLOOKUP(F68,BIBLIOTECA.PERSONAL13[#All],4,0)),\"-\")","v":"-"},{"$f":"IFERROR(_xlfn.IFS(E68=Material.Biblioteca.Minergie[[#Headers],[Material.Biblioteca.Minergie]],VLOOKUP(F68,BIBLIOTECA.MINERGIE[#All],2,0),E68=Material.Biblioteca.Personal[[#Headers],[Material.Biblioteca.Personal]],VLOOKUP(F68,BIBLIOTECA.PERSONAL13[#All],2,0)),\"-\")","v":"-"},{"$f":"IFERROR(_xlfn.IFS(E68=Material.Biblioteca.Minergie[[#Headers],[Material.Biblioteca.Minergie]],VLOOKUP(F68,BIBLIOTECA.MINERGIE[#All],3,0),E68=Material.Biblioteca.Personal[[#Headers],[Material.Biblioteca.Personal]],VLOOKUP(F68,BIBLIOTECA.PERSONAL13[#All],3,0)),\"-\")","v":"-"},null,{"v":0,"d":"0.00"}]
[{"$nulls":6},{"$f":"IFERROR(_xlfn.IFS(E69=Material.Biblioteca.Minergie[[#Headers],[Material.Biblioteca.Minergie]],VLOOKUP(F69,BIBLIOTECA.MINERGIE[#All],4,0),E69=Material.Biblioteca.Personal[[#Headers],[Material.Biblioteca.Personal]],VLOOKUP(F69,BIBLIOTECA.PERSONAL13[#All],4,0)),\"-\")","v":"-"},{"$f":"IFERROR(_xlfn.IFS(E69=Material.Biblioteca.Minergie[[#Headers],[Material.Biblioteca.Minergie]],VLOOKUP(F69,BIBLIOTECA.MINERGIE[#All],2,0),E69=Material.Biblioteca.Personal[[#Headers],[Material.Biblioteca.Personal]],VLOOKUP(F69,BIBLIOTECA.PERSONAL13[#All],2,0)),\"-\")","v":"-"},{"$f":"IFERROR(_xlfn.IFS(E69=Material.Biblioteca.Minergie[[#Headers],[Material.Biblioteca.Minergie]],VLOOKUP(F69,BIBLIOTECA.MINERGIE[#All],3,0),E69=Material.Biblioteca.Personal[[#Headers],[Material.Biblioteca.Personal]],VLOOKUP(F69,BIBLIOTECA.PERSONAL13[#All],3,0)),\"-\")","v":"-"},null,{"v":0,"d":"0.00"}]
[{"$nulls":6},{"$f":"IFERROR(_xlfn.IFS(E70=Material.Biblioteca.Minergie[[#Headers],[Material.Biblioteca.Minergie]],VLOOKUP(F70,BIBLIOTECA.MINERGIE[#All],4,0),E70=Material.Biblioteca.Personal[[#Headers],[Material.Biblioteca.Personal]],VLOOKUP(F70,BIBLIOTECA.PERSONAL13[#All],4,0)),\"-\")","v":"-"},{"$f":"IFERROR(_xlfn.IFS(E70=Material.Biblioteca.Minergie[[#Headers],[Material.Biblioteca.Minergie]],VLOOKUP(F70,BIBLIOTECA.MINERGIE[#All],2,0),E70=Material.Biblioteca.Personal[[#Headers],[Material.Biblioteca.Personal]],VLOOKUP(F70,BIBLIOTECA.PERSONAL13[#All],2,0)),\"-\")","v":"-"},{"$f":"IFERROR(_xlfn.IFS(E70=Material.Biblioteca.Minergie[[#Headers],[Material.Biblioteca.Minergie]],VLOOKUP(F70,BIBLIOTECA.MINERGIE[#All],3,0),E70=Material.Biblioteca.Personal[[#Headers],[Material.Biblioteca.Personal]],VLOOKUP(F70,BIBLIOTECA.PERSONAL13[#All],3,0)),\"-\")","v":"-"},null,{"v":0,"d":"0.00"}]
[{"$nulls":6},{"$f":"IFERROR(_xlfn.IFS(E71=Material.Biblioteca.Minergie[[#Headers],[Material.Biblioteca.Minergie]],VLOOKUP(F71,BIBLIOTECA.MINERGIE[#All],4,0),E71=Material.Biblioteca.Personal[[#Headers],[Material.Biblioteca.Personal]],VLOOKUP(F71,BIBLIOTECA.PERSONAL13[#All],4,0)),\"-\")","v":"-"},{"$f":"IFERROR(_xlfn.IFS(E71=Material.Biblioteca.Minergie[[#Headers],[Material.Biblioteca.Minergie]],VLOOKUP(F71,BIBLIOTECA.MINERGIE[#All],2,0),E71=Material.Biblioteca.Personal[[#Headers],[Material.Biblioteca.Personal]],VLOOKUP(F71,BIBLIOTECA.PERSONAL13[#All],2,0)),\"-\")","v":"-"},{"$f":"IFERROR(_xlfn.IFS(E71=Material.Biblioteca.Minergie[[#Headers],[Material.Biblioteca.Minergie]],VLOOKUP(F71,BIBLIOTECA.MINERGIE[#All],3,0),E71=Material.Biblioteca.Personal[[#Headers],[Material.Biblioteca.Personal]],VLOOKUP(F71,BIBLIOTECA.PERSONAL13[#All],3,0)),\"-\")","v":"-"},null,{"v":0,"d":"0.00"}]
[{"$nulls":6},{"$f":"IFERROR(_xlfn.IFS(E72=Material.Biblioteca.Minergie[[#Headers],[Material.Biblioteca.Minergie]],VLOOKUP(F72,BIBLIOTECA.MINERGIE[#All],4,0),E72=Material.Biblioteca.Personal[[#Headers],[Material.Biblioteca.Personal]],VLOOKUP(F72,BIBLIOTECA.PERSONAL13[#All],4,0)),\"-\")","v":"-"},{"$f":"IFERROR(_xlfn.IFS(E72=Material.Biblioteca.Minergie[[#Headers],[Material.Biblioteca.Minergie]],VLOOKUP(F72,BIBLIOTECA.MINERGIE[#All],2,0),E72=Material.Biblioteca.Personal[[#Headers],[Material.Biblioteca.Personal]],VLOOKUP(F72,BIBLIOTECA.PERSONAL13[#All],2,0)),\"-\")","v":"-"},{"$f":"IFERROR(_xlfn.IFS(E72=Material.Biblioteca.Minergie[[#Headers],[Material.Biblioteca.Minergie]],VLOOKUP(F72,BIBLIOTECA.MINERGIE[#All],3,0),E72=Material.Biblioteca.Personal[[#Headers],[Material.Biblioteca.Personal]],VLOOKUP(F72,BIBLIOTECA.PERSONAL13[#All],3,0)),\"-\")","v":"-"},null,{"v":0,"d":"0.00"}]
[{"$nulls":6},{"$f":"IFERROR(_xlfn.IFS(E73=Material.Biblioteca.Minergie[[#Headers],[Material.Biblioteca.Minergie]],VLOOKUP(F73,BIBLIOTECA.MINERGIE[#All],4,0),E73=Material.Biblioteca.Personal[[#Headers],[Material.Biblioteca.Personal]],VLOOKUP(F73,BIBLIOTECA.PERSONAL13[#All],4,0)),\"-\")","v":"-"},{"$f":"IFERROR(_xlfn.IFS(E73=Material.Biblioteca.Minergie[[#Headers],[Material.Biblioteca.Minergie]],VLOOKUP(F73,BIBLIOTECA.MINERGIE[#All],2,0),E73=Material.Biblioteca.Personal[[#Headers],[Material.Biblioteca.Personal]],VLOOKUP(F73,BIBLIOTECA.PERSONAL13[#All],2,0)),\"-\")","v":"-"},{"$f":"IFERROR(_xlfn.IFS(E73=Material.Biblioteca.Minergie[[#Headers],[Material.Biblioteca.Minergie]],VLOOKUP(F73,BIBLIOTECA.MINERGIE[#All],3,0),E73=Material.Biblioteca.Personal[[#Headers],[Material.Biblioteca.Personal]],VLOOKUP(F73,BIBLIOTECA.PERSONAL13[#All],3,0)),\"-\")","v":"-"},null,{"v":0,"d":"0.00"}]
[{"$nulls":6},{"$f":"IFERROR(_xlfn.IFS(E74=Material.Biblioteca.Minergie[[#Headers],[Material.Biblioteca.Minergie]],VLOOKUP(F74,BIBLIOTECA.MINERGIE[#All],4,0),E74=Material.Biblioteca.Personal[[#Headers],[Material.Biblioteca.Personal]],VLOOKUP(F74,BIBLIOTECA.PERSONAL13[#All],4,0)),\"-\")","v":"-"},{"$f":"IFERROR(_xlfn.IFS(E74=Material.Biblioteca.Minergie[[#Headers],[Material.Biblioteca.Minergie]],VLOOKUP(F74,BIBLIOTECA.MINERGIE[#All],2,0),E74=Material.Biblioteca.Personal[[#Headers],[Material.Biblioteca.Personal]],VLOOKUP(F74,BIBLIOTECA.PERSONAL13[#All],2,0)),\"-\")","v":"-"},{"$f":"IFERROR(_xlfn.IFS(E74=Material.Biblioteca.Minergie[[#Headers],[Material.Biblioteca.Minergie]],VLOOKUP(F74,BIBLIOTECA.MINERGIE[#All],3,0),E74=Material.Biblioteca.Personal[[#Headers],[Material.Biblioteca.Personal]],VLOOKUP(F74,BIBLIOTECA.PERSONAL13[#All],3,0)),\"-\")","v":"-"},null,{"v":0,"d":"0.00"}]
[{"$nulls":6},{"$f":"IFERROR(_xlfn.IFS(E75=Material.Biblioteca.Minergie[[#Headers],[Material.Biblioteca.Minergie]],VLOOKUP(F75,BIBLIOTECA.MINERGIE[#All],4,0),E75=Material.Biblioteca.Personal[[#Headers],[Material.Biblioteca.Personal]],VLOOKUP(F75,BIBLIOTECA.PERSONAL13[#All],4,0)),\"-\")","v":"-"},{"$f":"IFERROR(_xlfn.IFS(E75=Material.Biblioteca.Minergie[[#Headers],[Material.Biblioteca.Minergie]],VLOOKUP(F75,BIBLIOTECA.MINERGIE[#All],2,0),E75=Material.Biblioteca.Personal[[#Headers],[Material.Biblioteca.Personal]],VLOOKUP(F75,BIBLIOTECA.PERSONAL13[#All],2,0)),\"-\")","v":"-"},{"$f":"IFERROR(_xlfn.IFS(E75=Material.Biblioteca.Minergie[[#Headers],[Material.Biblioteca.Minergie]],VLOOKUP(F75,BIBLIOTECA.MINERGIE[#All],3,0),E75=Material.Biblioteca.Personal[[#Headers],[Material.Biblioteca.Personal]],VLOOKUP(F75,BIBLIOTECA.PERSONAL13[#All],3,0)),\"-\")","v":"-"},null,{"v":0,"d":"0.00"}]
[{"$nulls":6},{"$f":"IFERROR(_xlfn.IFS(E76=Material.Biblioteca.Minergie[[#Headers],[Material.Biblioteca.Minergie]],VLOOKUP(F76,BIBLIOTECA.MINERGIE[#All],4,0),E76=Material.Biblioteca.Personal[[#Headers],[Material.Biblioteca.Personal]],VLOOKUP(F76,BIBLIOTECA.PERSONAL13[#All],4,0)),\"-\")","v":"-"},{"$f":"IFERROR(_xlfn.IFS(E76=Material.Biblioteca.Minergie[[#Headers],[Material.Biblioteca.Minergie]],VLOOKUP(F76,BIBLIOTECA.MINERGIE[#All],2,0),E76=Material.Biblioteca.Personal[[#Headers],[Material.Biblioteca.Personal]],VLOOKUP(F76,BIBLIOTECA.PERSONAL13[#All],2,0)),\"-\")","v":"-"},{"$f":"IFERROR(_xlfn.IFS(E76=Material.Biblioteca.Minergie[[#Headers],[Material.Biblioteca.Minergie]],VLOOKUP(F76,BIBLIOTECA.MINERGIE[#All],3,0),E76=Material.Biblioteca.Personal[[#Headers],[Material.Biblioteca.Personal]],VLOOKUP(F76,BIBLIOTECA.PERSONAL13[#All],3,0)),\"-\")","v":"-"},null,{"v":0,"d":"0.00"}]
[{"$nulls":10},{"$f":"SUM(K40:K76)","v":{"v":0,"d":"0.00"}}]
[null,null,"CARBONO INCORPORADO (A1-A3) / M2  ",{"$nulls":7},{"$f":"IFERROR(K77/D4,0)","v":{"v":0,"d":"0.00"}}]
[null,null,"CARBONO INCORPORADO (A1-A3) / M2 ANUAL ",{"$nulls":7},{"$f":"IFERROR((K77/D4)/D5,0)","v":{"v":0,"d":"0.00"}}]
[]
[null,null,"Emisiones de CO2","% incidencia carbono"]
[null,null,"Carbono Operacional",{"$f":"IFERROR(D87/D89,0)","v":{"v":0,"d":"0%"}}]
[null,null,"Carbono Incorporado",{"$f":"IFERROR(D88/D89,0)","v":{"v":0,"d":"0%"}}]
[null,null,"Carbono Total",{"$f":"SUM(D82:D83)","v":{"v":0,"d":"0%"}}]
[]
[null,null,"Emisiones de CO2","KgCO2e/m2 anual"]
[null,null,"Carbono Operacional",{"$f":"G35","v":{"v":0,"d":"0.0"}}]
[null,null,"Carbono Incorporado",{"$f":"K79","v":{"v":0,"d":"0.0"}}]
[null,null,"Carbono Total",{"$f":"SUM(D87:D88)","v":{"v":0,"d":"0.0"}}]
[]
[null,null,"Para obtener los datos graficados, ingrese los resultados obtenidos de carbono operacional (alternativa 1 o 2) y carbono incoporado (calculados con datos referenciales Minergie o datos justificados)"]
{"$rows_empty":14}
[null,null,"Biblioteca DAP Personal",{"$nulls":4},{"$f":"TODAY()","v":"2025-02-13"},null,null,"Energético Personal"]
[null,null,"Material.Biblioteca.Personal","Unidad de medida","kgCO2e","N° DAP","Fecha Caducidad","Vencimiento",null,null,"Otro Energético","Factor de emisión","Fuente"]
[{"$nulls":4},"SHSHHS",null,null,{"$f":"BIBLIOTECA.PERSONAL13[[#This Row],[Fecha Caducidad]]-$H$106","v":-45701}]
[{"$nulls":7},{"$f":"BIBLIOTECA.PERSONAL13[[#This Row],[Fecha Caducidad]]-$H$106","v":-45701}]
[{"$nulls":7},{"$f":"BIBLIOTECA.PERSONAL13[[#This Row],[Fecha Caducidad]]-$H$106","v":-45701}]
[{"$nulls":7},{"$f":"BIBLIOTECA.PERSONAL13[[#This Row],[Fecha Caducidad]]-$H$106","v":-45701}]
[{"$nulls":7},{"$f":"BIBLIOTECA.PERSONAL13[[#This Row],[Fecha Caducidad]]-$H$106","v":-45701}]
[{"$nulls":7},{"$f":"BIBLIOTECA.PERSONAL13[[#This Row],[Fecha Caducidad]]-$H$106","v":-45701}]
[{"$nulls":7},{"$f":"BIBLIOTECA.PERSONAL13[[#This Row],[Fecha Caducidad]]-$H$106","v":-45701}]
[{"$nulls":7},{"$f":"BIBLIOTECA.PERSONAL13[[#This Row],[Fecha Caducidad]]-$H$106","v":-45701}]
[{"$nulls":7},{"$f":"BIBLIOTECA.PERSONAL13[[#This Row],[Fecha Caducidad]]-$H$106","v":-45701}]
[{"$nulls":7},{"$f":"BIBLIOTECA.PERSONAL13[[#This Row],[Fecha Caducidad]]-$H$106","v":-45701}]
[{"$nulls":7},{"$f":"BIBLIOTECA.PERSONAL13[[#This Row],[Fecha Caducidad]]-$H$106","v":-45701}]
[{"$nulls":7},{"$f":"BIBLIOTECA.PERSONAL13[[#This Row],[Fecha Caducidad]]-$H$106","v":-45701}]
[{"$nulls":7},{"$f":"BIBLIOTECA.PERSONAL13[[#This Row],[Fecha Caducidad]]-$H$106","v":-45701}]
[{"$nulls":7},{"$f":"BIBLIOTECA.PERSONAL13[[#This Row],[Fecha Caducidad]]-$H$106","v":-45701}]
[{"$nulls":7},{"$f":"BIBLIOTECA.PERSONAL13[[#This Row],[Fecha Caducidad]]-$H$106","v":-45701}]
[{"$nulls":7},{"$f":"BIBLIOTECA.PERSONAL13[[#This Row],[Fecha Caducidad]]-$H$106","v":-45701}]
[{"$nulls":7},{"$f":"BIBLIOTECA.PERSONAL13[[#This Row],[Fecha Caducidad]]-$H$106","v":-45701}]
[{"$nulls":7},{"$f":"BIBLIOTECA.PERSONAL13[[#This Row],[Fecha Caducidad]]-$H$106","v":-45701}]
[{"$nulls":7},{"$f":"BIBLIOTECA.PERSONAL13[[#This Row],[Fecha Caducidad]]-$H$106","v":-45701}]
[{"$nulls":7},{"$f":"BIBLIOTECA.PERSONAL13[[#This Row],[Fecha Caducidad]]-$H$106","v":-45701}]
[{"$nulls":7},{"$f":"BIBLIOTECA.PERSONAL13[[#This Row],[Fecha Caducidad]]-$H$106","v":-45701}]
[{"$nulls":7},{"$f":"BIBLIOTECA.PERSONAL13[[#This Row],[Fecha Caducidad]]-$H$106","v":-45701}]
[{"$nulls":7},{"$f":"BIBLIOTECA.PERSONAL13[[#This Row],[Fecha Caducidad]]-$H$106","v":-45701}]
[{"$nulls":7},{"$f":"BIBLIOTECA.PERSONAL13[[#This Row],[Fecha Caducidad]]-$H$106","v":-45701}]
[{"$nulls":7},{"$f":"BIBLIOTECA.PERSONAL13[[#This Row],[Fecha Caducidad]]-$H$106","v":-45701}]
[{"$nulls":7},{"$f":"BIBLIOTECA.PERSONAL13[[#This Row],[Fecha Caducidad]]-$H$106","v":-45701}]
[{"$nulls":7},{"$f":"BIBLIOTECA.PERSONAL13[[#This Row],[Fecha Caducidad]]-$H$106","v":-45701}]
[{"$nulls":7},{"$f":"BIBLIOTECA.PERSONAL13[[#This Row],[Fecha Caducidad]]-$H$106","v":-45701}]
[{"$nulls":7},{"$f":"BIBLIOTECA.PERSONAL13[[#This Row],[Fecha Caducidad]]-$H$106","v":-45701}]
[{"$nulls":7},{"$f":"BIBLIOTECA.PERSONAL13[[#This Row],[Fecha Caducidad]]-$H$106","v":-45701}]
[{"$nulls":7},{"$f":"BIBLIOTECA.PERSONAL13[[#This Row],[Fecha Caducidad]]-$H$106","v":-45701}]
[{"$nulls":7},{"$f":"BIBLIOTECA.PERSONAL13[[#This Row],[Fecha Caducidad]]-$H$106","v":-45701}]
[{"$nulls":7},{"$f":"BIBLIOTECA.PERSONAL13[[#This Row],[Fecha Caducidad]]-$H$106","v":-45701}]
[{"$nulls":7},{"$f":"BIBLIOTECA.PERSONAL13[[#This Row],[Fecha Caducidad]]-$H$106","v":-45701}]

{"sheet":"A7.a","index":13,"n_rows":31,"n_cols":9,"rows_kept":31,"merged":[[3,6,16,11],[21,1,21,3],[23,6,23,11],[30,1,30,3]]}
["A7.a","Materiales renovables locales como estructura principal",null,null,"Zonas Chile: Todas",{"$nulls":3},"Zona ASHRAE: Todas"]
[]
[null,"Componente","Superficie total (m2)","Superficie en material renovable  local (m2)","Porcentaje en material renovable local"]
[null,"Paredes exteriores",{"$f":"SUM(C5:C8)","v":0},{"$f":"SUM(D5:D8)","v":0},{"$f":"IFERROR(D4/C4,\" \")","v":" "},null,"Se considera como parte de la estructura portante la superficie total de: \n− Los elementos de la envolvente (paredes exteriores estructurales y techos; se excluyen las ventanas y puertas).\n− Las losas sobre el nivel de terreno.\n− Los muros portantes interiores sobre el nivel de terreno.\n\nLos siguientes elementos de construcción no se incluyen en el cálculo de superficie total de la estructura portante, en el marco de este requisito: \n− Las escaleras.\n− Las cajas de ascensor.\n− Las sobrelosas en hormigon de hasta 8 cm de espesor (sistema mixto). "]
[{"$nulls":4},{"$f":"IFERROR(D5/C5,\" \")","v":" "}]
[{"$nulls":4},{"$f":"IFERROR(D6/C6,\" \")","v":" "}]
[{"$nulls":4}," "]
[{"$nulls":4}," "]
[null,"Techos",{"$f":"SUM(C10:C12)","v":0},{"$f":"SUM(D10:D12)","v":0},{"$f":"IFERROR(D9/C9,\" \")","v":" "}]
[{"$nulls":4},{"$f":"IFERROR(D10/C10,\" \")","v":" "}]
[{"$nulls":4},{"$f":"IFERROR(D11/C11,\" \")","v":" "}]
[{"$nulls":4}," "]
[null,"Losas",{"$f":"SUM(C14:C16)","v":0},{"$f":"SUM(D14:D16)","v":0}," "]
[{"$nulls":4}," "]
[{"$nulls":4}," "]
[{"$nulls":4}," "]
[null,"Muros interiores portantes",{"$f":"SUM(C18:C20)","v":0},{"$f":"SUM(D18:D20)","v":0}," "]
[{"$nulls":4}," "]
[{"$nulls":4}," "]
[{"$nulls":4}," "]
[null,"Total proyecto (solo superficies)",{"$f":"C4+C9+C13+C17","v":0},{"$f":"D4+D9+D13+D17","v":0},{"$f":"IFERROR(D21/C21,\" \")","v":" "}]
[null,"Requerimiento Minergie",null,null,{"v":0.7,"d":"70%"}]
[]
[null,"Componente","Largo total (ml)","Largo en material renovable  local (ml)","Porcentaje en material renovable local",null,"Aplica únicamente para los pilares y vigas que no son parte de un muro de contraviento."]
[null,"Pilares y vigas",{"$f":"SUM(C26:C29)","v":0},{"$f":"SUM(D26:D29)","v":0},{"$f":"IFERROR(D25/C25,\" \")","v":" "}]
[{"$nulls":4},{"$f":"IFERROR(D26/C26,\" \")","v":" "}]
[{"$nulls":4},{"$f":"IFERROR(D27/C27,\" \")","v":" "}]
[{"$nulls":4}," "]
[{"$nulls":4}," "]
[null,"Total proyecto (solo metros lineares)",{"$f":"C25","v":0},{"$f":"D25","v":0},{"$f":"IFERROR(D30/C30,\" \")","v":" "}]
[null,"Requerimiento Minergie",null,null,{"v":0.7,"d":"70%"}]

{"sheet":"A7.b","index":14,"n_rows":23,"n_cols":10,"rows_kept":23,"merged":[[3,8,8,13],[21,1,21,4],[22,1,22,4]]}
["A7.b","Materiales renovables locales como materiales principales no estructurales",{"$nulls":4},"Zonas Chile: Todas",null,null,"Zona ASHRAE: Todas"]
[]
[null,"Componente","Unidad","Total componente","Componente en material renovable local","Porcentaje en material renovable local","Tipo / naturaleza de material renovable local"]
[null,"Estructura de tabiques interiores ","m2",{"$f":"SUM(D5:D8)","v":0},{"$f":"SUM(E5:E8)","v":0},{"$f":"IFERROR(E4/D4,\" \")","v":" "},"Nombre",null,"Se consideran los siguientes elementos:\n− Estructura de tabiques interiores o de envolvente (p.ej. metálica o de madera).\n− Mobiliario fijo.\n− Puertas interiores.\nTipo / naturaleza de material renovable local: indique si se refiere a madera o derivados, adobe, piedra, etc."]
[null,null,"m2",null,null,{"$f":"IFERROR(E5/D5,\" \")","v":" "}]
[null,null,"m2",null,null,{"$f":"IFERROR(E6/D6,\" \")","v":" "}]
[null,null,"m2",null,null," "]
[null,null,"m2",null,null," "]
[null,"Mobiliario fijo","número",{"$f":"SUM(D10:D17)","v":0},{"$f":"SUM(E10:E17)","v":0}," ","Nombre"]
[null,null,"un",null,null," "]
[null,null,"un",null,null," "]
[null,null,"un",null,null," "]
[null,null,"un",null,null," "]
[null,null,"un",null,null," "]
[null,null,"un",null,null," "]
[null,null,"un",null,null," "]
[null,null,"un",null,null," "]
[null,"Puertas interiores","número",{"$f":"SUM(D19:D21)","v":0},{"$f":"SUM(E19:E21)","v":0}," ","Nombre"]
[null,null,"un",null,null," "]
[null,null,"un",null,null," "]
[null,null,"un",null,null," "]
[null,"Total proyecto",{"$nulls":3},{"$f":"IFERROR((F18+F9+F4)/3,\" \")","v":" "}]
[null,"Requerimiento Minergie",{"$nulls":3},{"v":0.7,"d":"70%"}]

{"sheet":"A8","index":15,"n_rows":23,"n_cols":13,"rows_kept":23,"merged":[[4,5,10,7],[13,5,16,7],[19,5,19,7]]}
["A8","Impacto ambiental de la construcción y del espacio exterior",null,null,"Zonas Chile: Todas",null,"Zona ASHRAE: Todas"]
[]
[]
[]
[null,"Superficie total de la parcela",null,"m2",null,"Al menos un 5% de los espacios alrededor de la edificación son ocupados por setos, hilera o conjunto de árboles adaptados al lugar.\nSe busca mantener los árboles ya existentes en el predio de construcción."]
[null,"Superficie ocupada por la edificación",null,"m2"]
[]
[null,"Superficie espacios alrededor de la edificación",{"$f":"C5-C6","v":0},"m2"]
[]
[null,"Espacios de setos, hilera o conjunto de árboles",null,"m2"]
[null,"Porcentaje",{"$f":"IF(C8=0,0,C10/C8)","v":{"v":0,"d":"0%"}}]
[]
[]
[null,"Superficie espacios exteriores",null,"m2",null,"Al menos un 35% de los espacios exteriores deben contar con vegetación (incluye, por ejemplo, los espacios con setos o árboles según el punto anterior). Los espacios exteriores incluyen también los techos planos, así como balcones y terrazas comunes.",{"$nulls":6},"Sí"]
[{"$nulls":12},"No"]
[null,"Superficie cubierta con vegetación",null,"m2"]
[null,"Porcentaje",{"$f":"IF(C14=0,0,C16/C14)","v":{"v":0,"d":"0%"}}]
[]
[]
[null,"Toda la vegetación es nativa o adaptada",{"$nulls":3},"Toda la vegetación debe ser nativa o adaptada. "]
[]
[]
[null,"Requimento A8 cumplido",{"$f":"IF(AND(C11>=0.05,C17>=0.35,C20=\"Sí\"),\"Sí\",\"No\")","v":"No"}]

{"sheet":"A8.b","index":16,"n_rows":23,"n_cols":10,"rows_kept":23,"merged":[[16,1,19,7]]}
["A8.b","Elementos constructivos expuestos a la lluvia sin metales pesados",{"$nulls":3},"Zonas Chile: Todas",null,"Zona ASHRAE: Todas"]
[]
[null,"Componente","Superficie total (m2)","Superficie con metales pesados no protegidos (m2)","Requerimiento Minergie superficie (m2)","Porcentaje con metales pesados","Requerimiento Minergie %","Requerimiento E2.b cumplido"]
[null,"Techos",{"$f":"SUM(C5:C7)","v":0},{"$f":"SUM(D5:D7)","v":0},"≤50",{"$f":"IFERROR(D4/C4,\" \")","v":" "},"<10%",{"$f":"IF(AND(D4<=50, F4<0.1),\"sí\",\"no\")","v":"no"}]
[{"$nulls":5}," "]
[{"$nulls":5}," "]
[{"$nulls":5}," "]
[null,"Muros exteriores y bordes de ventanas",{"$f":"SUM(C9:C15)","v":0},{"$f":"SUM(D9:D15)","v":0},"≤300"," ","<25%",{"$f":"IF(AND(D8<=300, F8<0.25),\"sí\",\"no\")","v":"no"}]
[{"$nulls":5}," "]
[{"$nulls":5}," "]
[{"$nulls":5},{"$f":"IFERROR(D11/C11,\" \")","v":" "}]
[{"$nulls":5}," "]
[{"$nulls":5}," "]
[{"$nulls":5}," "]
[{"$nulls":5},{"$f":"IFERROR(D15/C15,\" \")","v":" "}]
[]
[null,"Se autoriza excepcionalmente esos materiales (excepto el plomo) sobre una superficie de menos de 10% de la techumbre (y 50 m2 máximo) y de menos de 25% (y 300 m2 máximo) de las fachadas. "]
[]
[]
[]
[]
[]
[null,"Nombre del producto","Nombre del fabricante","Tipo de producto o lugar de instalación en la edificación","Plomo","Cobre","Zinc-titanio bruto","Acero galvanizado","Acero bruto","Ficha"]

{"sheet":"A9","index":17,"n_rows":31,"n_cols":11,"rows_kept":31,"merged":[[2,10,9,10],[11,10,18,10],[20,1,20,5],[20,10,27,13],[29,1,29,5],[29,10,36,10],[30,4,30,5],[31,4,31,5],[32,4,32,5],[33,4,33,5],[34,4,34,5],[35,4,35,5],[36,4,36,5]]}
["A9","Espacios interiores más sanos",null,null,"Zonas Chile: Todas",null,"Zona ASHRAE: Todas"]
[]
[null,"PINTURAS",{"$nulls":8},"− Las pinturas con plomo están prohibidas.\n− Las pinturas con una cantidad de solventes o COV superior al 25 % de su masa están prohibidos en espacios interiores acondicionados. "]
[null,"Nombre producto","Nombre fabricante","Recinto en el que se usa","¿Sin plomo?","Espacios interiores acondicionados","Cantidad de COV (%)","Evaluación COV","Evaluación\nRequerimiento"]
[{"$nulls":7},{"$f":"_xlfn.IFS(G5=0,\" \",G5<=0.25,\"Cumple COV\",AND(G5>0.25,F5=\"SI\"),\"No cumple COV\",AND(G5>0.25,F5=\"NO\"),\"Cumple COV\")","v":{"$error":"#NAME?"}},{"$f":"IF(SUM(E5:G5)=0,\"Completar\",IF(AND(E5=\"No tiene\",H5=\"Cumple COV\"),\"Cumple\",\"No Cumple\"))","v":"Completar"}]
[{"$nulls":7},{"$f":"_xlfn.IFS(G6=0,\" \",G6<=0.25,\"Cumple COV\",AND(G6>0.25,F6=\"SI\"),\"No cumple COV\",AND(G6>0.25,F6=\"NO\"),\"Cumple COV\")","v":{"$error":"#NAME?"}},{"$f":"IF(SUM(E6:G6)=0,\"Completar\",IF(AND(E6=\"No tiene\",H6=\"Cumple COV\"),\"Cumple\",\"No Cumple\"))","v":"Completar"}]
[{"$nulls":7},{"$f":"_xlfn.IFS(G7=0,\" \",G7<=0.25,\"Cumple COV\",AND(G7>0.25,F7=\"SI\"),\"No cumple COV\",AND(G7>0.25,F7=\"NO\"),\"Cumple COV\")","v":{"$error":"#NAME?"}},"Completar"]
[{"$nulls":7},{"$f":"_xlfn.IFS(G8=0,\" \",G8<=0.25,\"Cumple COV\",AND(G8>0.25,F8=\"SI\"),\"No cumple COV\",AND(G8>0.25,F8=\"NO\"),\"Cumple COV\")","v":{"$error":"#NAME?"}},"Completar"]
[{"$nulls":7},{"$f":"_xlfn.IFS(G9=0,\" \",G9<=0.25,\"Cumple COV\",AND(G9>0.25,F9=\"SI\"),\"No cumple COV\",AND(G9>0.25,F9=\"NO\"),\"Cumple COV\")","v":{"$error":"#NAME?"}},"Completar"]
[{"$nulls":7},{"$f":"_xlfn.IFS(G10=0,\" \",G10<=0.25,\"Cumple COV\",AND(G10>0.25,F10=\"SI\"),\"No cumple COV\",AND(G10>0.25,F10=\"NO\"),\"Cumple COV\")","v":{"$error":"#NAME?"}},"Completar"]
[]
[null,"BARNICES",{"$nulls":8},"− Los barnices con una cantidad de solventes o COV superior al 25 % de su masa están prohibidos en espacios interiores acondicionados. "]
[null,"Nombre producto","Nombre fabricante","Recinto en el que se usa","Espacios interiores acondicionados","Cantidad de COV (%)","Evaluación\nRequerimiento"]
[{"$nulls":6},{"$f":"_xlfn.IFS(SUM(E14:F14)=0,\"Completar\",E14=0,\" \",F14<=0.25,\"Cumple\",AND(F14>0.25,E14=\"SI\"),\"No cumple\",AND(F14>0.25,E14=\"NO\"),\"Cumple\")","v":{"$error":"#NAME?"}}]
[{"$nulls":6},{"$f":"_xlfn.IFS(SUM(E15:F15)=0,\"Completar\",E15=0,\" \",F15<=0.25,\"Cumple\",AND(F15>0.25,E15=\"SI\"),\"No cumple\",AND(F15>0.25,E15=\"NO\"),\"Cumple\")","v":{"$error":"#NAME?"}}]
[{"$nulls":6},{"$f":"_xlfn.IFS(SUM(E16:F16)=0,\"Completar\",E16=0,\" \",F16<=0.25,\"Cumple\",AND(F16>0.25,E16=\"SI\"),\"No cumple\",AND(F16>0.25,E16=\"NO\"),\"Cumple\")","v":{"$error":"#NAME?"}}]
[{"$nulls":6},{"$f":"_xlfn.IFS(SUM(E17:F17)=0,\"Completar\",E17=0,\" \",F17<=0.25,\"Cumple\",AND(F17>0.25,E17=\"SI\"),\"No cumple\",AND(F17>0.25,E17=\"NO\"),\"Cumple\")","v":{"$error":"#NAME?"}}]
[{"$nulls":6},{"$f":"_xlfn.IFS(SUM(E18:F18)=0,\"Completar\",E18=0,\" \",F18<=0.25,\"Cumple\",AND(F18>0.25,E18=\"SI\"),\"No cumple\",AND(F18>0.25,E18=\"NO\"),\"Cumple\")","v":{"$error":"#NAME?"}}]
[{"$nulls":6},{"$f":"_xlfn.IFS(SUM(E19:F19)=0,\"Completar\",E19=0,\" \",F19<=0.25,\"Cumple\",AND(F19>0.25,E19=\"SI\"),\"No cumple\",AND(F19>0.25,E19=\"NO\"),\"Cumple\")","v":{"$error":"#NAME?"}}]
[]
[null,"PRODUCTOS DE MADERA O EN BASE A MADERA",{"$nulls":8},"− La madera tratada con CCA (Cobre, Cromo y Arsénico) o con productos en base a SBX (óxido de boro) está prohibida. \n− Los materiales y productos de madera o en base a madera con alto contenido en formaldehído están prohibidos en contacto con los espacios interiores. \n− El contenido de formaldehido debe ser inferior a 8mg/100g de madera o 0,1ppm o 0,124mg/m3 de aire.\n− El cumplimiento respecto al formaldehido se acepta si el producto tiene certificado E0, E1, CARB2, EPA."]
[null,"Nombre producto","Nombre fabricante","Recinto en el que se usa","Espacio interior","¿Sin CCA?","¿Sin SBX?","Contenido en formaldeido","Evaluación\nRequerimiento"]
[{"$nulls":8},{"$f":"IFERROR(_xlfn.IFS(F23=\"Si tiene\",\"No cumple\",F23=\"No tiene\",\"Cumple\",G23=\"No tiene\",\"Cumple\",G23=\"Si tiene\",\"No cumple\"),\"Completar\")","v":"Completar"}]
[{"$nulls":8},{"$f":"IFERROR(_xlfn.IFS(F24=\"Si tiene\",\"No cumple\",F24=\"No tiene\",\"Cumple\",G24=\"No tiene\",\"Cumple\",G24=\"Si tiene\",\"No cumple\"),\"Completar\")","v":"Completar"}]
[{"$nulls":8},{"$f":"IFERROR(_xlfn.IFS(F25=\"Si tiene\",\"No cumple\",F25=\"No tiene\",\"Cumple\",G25=\"No tiene\",\"Cumple\",G25=\"Si tiene\",\"No cumple\"),\"Completar\")","v":"Completar"}]
[{"$nulls":8},{"$f":"IFERROR(_xlfn.IFS(F26=\"Si tiene\",\"No cumple\",F26=\"No tiene\",\"Cumple\",G26=\"No tiene\",\"Cumple\",G26=\"Si tiene\",\"No cumple\"),\"Completar\")","v":"Completar"}]
[{"$nulls":8},{"$f":"IFERROR(_xlfn.IFS(F27=\"Si tiene\",\"No cumple\",F27=\"No tiene\",\"Cumple\",G27=\"No tiene\",\"Cumple\",G27=\"Si tiene\",\"No cumple\"),\"Completar\")","v":"Completar"}]
[{"$nulls":8},{"$f":"IFERROR(_xlfn.IFS(F28=\"Si tiene\",\"No cumple\",F28=\"No tiene\",\"Cumple\",G28=\"No tiene\",\"Cumple\",G28=\"Si tiene\",\"No cumple\"),\"Completar\")","v":"Completar"}]
[]
[null,"MATERIALES QUE LIBEREN FIBRAS MINERALES RESPIRABLES",{"$nulls":8},"− Materiales que liberen fibras minerales respirables (por ejemplo, los materiales de aislamiento de fibra mineral) no deben estar en contacto directo con el aire de la habitación. Es necesario un revestimiento completo, por ejemplo, con tablas, vellón o papel reforzado."]
[null,"Nombre producto","Nombre fabricante","Recinto en el que se usa","¿Existe una lámina o elemento de separación entre el material con fibras minerales y el aire de la habitación?"]

{"sheet":"A9.a","index":18,"n_rows":70,"n_cols":13,"rows_kept":70,"merged":[[3,8,3,12],[10,8,10,12],[16,1,16,6],[17,8,17,12]]}
["A9.a","Protección contra el ruido ",null,"Zonas Chile: Todas",null,"Zona ASHRAE: Todas"]
[]
[null,"AISLAMIENTO ACÚSTICO ENVOLVENTE",{"$nulls":7},"Celdas necesarias para el cálculo a ocultar"]
[null,"Elemento opaco de envolvente (vertical y horizontal)","Descripción paquete constructivo","Documento de respaldo de aislación","Superficie (m2)","% de superficie","Protección acústica",null,"Objetivo: >45 dB(A)"]
[{"$nulls":5},{"$f":"IFERROR(1*(E5/$E$15),\"Completar datos\")","v":"Completar datos"},{"$nulls":3},{"$f":"10^(0.1*G5)","v":{"v":1,"d":"1.000"}},{"$f":"E5/J5","v":0}]
[{"$nulls":5},{"$f":"IFERROR(1*(E6/$E$15),\"Completar datos\")","v":"Completar datos"},{"$nulls":3},{"v":1,"d":"1.000"},0]
[{"$nulls":5},"Completar datos",{"$nulls":3},{"v":1,"d":"1.000"},0]
[{"$nulls":5},"Completar datos",{"$nulls":3},{"v":1,"d":"1.000"},0]
[{"$nulls":5},"Completar datos",{"$nulls":3},{"v":1,"d":"1.000"},0]
[{"$nulls":5},"Completar datos",{"$nulls":3},{"v":1,"d":"1.000"},0]
[null,"Elemento liviano de envolvente (puertas y ventanas)","Descripción paquete constructivo","Documento de respaldo de aislación","Superficie (m2)","% de superficie","Protección acústica",null,"Objetivo: >28 dB(A)"]
[{"$nulls":5},{"$f":"IFERROR(1*(E12/$E$15),\"Completar datos\")","v":"Completar datos"},{"$nulls":3},{"$f":"10^(0.1*G12)","v":{"v":1,"d":"1.000"}},{"$f":"E12/J12","v":0}]
[{"$nulls":5},{"$f":"IFERROR(1*(E13/$E$15),\"Completar datos\")","v":"Completar datos"}]
[{"$nulls":5},"Completar datos"]
[null,"ENVOLVENTE TOTAL","Ponderación entre elementos opacos descontando puertas y ventanas.","Resultados",{"$f":"SUM(E5:E10)","v":{"v":0,"d":"0.00 m2"}},{"$f":"SUM(F5:F10)","v":{"v":0,"d":"0%"}},{"$f":"IFERROR((G5*F5)+(G6*F6)+(G7*F7)+(G8*F8)+(G9*F9)+(G10*F10),\"Completar datos\")","v":"Completar datos"}]
[]
[null,"AISLAMIENTO ACÚSTICO ELEMENTOS VERTICALES DIVISORIOS"]
[null,"Elementos verticales divisorios (entre unidades, excepto puertas)","Descripción paquete constructivo","Documento de respaldo de aislación","Recintos que divide","Protección acústica","Evaluación",null,"Objetivo: >55 dB(A)"]
[{"$nulls":6},{"$f":"IF(F19=0,\"Completar datos\",IF(F19>=55,\"Cumple\",\"No cumple\"))","v":"Completar datos"}]
[{"$nulls":6},{"$f":"IF(F20=0,\"Completar datos\",IF(F20>=55,\"Cumple\",\"No cumple\"))","v":"Completar datos"}]
[{"$nulls":6},"Completar datos"]
[{"$nulls":6},"Completar datos"]
[{"$nulls":6},"Completar datos"]
[]
[null,"PRESIÓN ACÚSTICA DE IMPACTO NORMALIZADO"]
[null,"Tipo de elemento","Descripción paquete constructivo","Documento de respaldo de aislación","≤60 dB"]
[]
[]
[]
[]
[]
[]
[null,"ANCLAJE DE TUBERIAS"]
[null,"Tipo de tubería","Anclaje con sujetadores elásticos","Incluido en EETT"]
[null,"Agua"]
[null,"Alcantarillado"]
{"$rows_empty":29}
[{"$nulls":9},"Si",null,"Área del elemento constructivo"]
[{"$nulls":9},"Ri",null,"Aislamiento acústico especifico"]
[]
[{"$nulls":12},"sum Si"]
[{"$nulls":9},"RG"]

{"sheet":"A9.b","index":19,"n_rows":3,"n_cols":7,"rows_kept":3}
["A9.b","Sin biocidas en espacios interiores",null,null,"Zonas Chile: Todas",null,"Zona ASHRAE: Todas"]
[]
[null,"Nombre del producto","Nombre del fabricante","Tipo de producto o lugar de instalación en la edificación","Recinto acondicionado","Contiene Biocidas","Ficha"]

{"sheet":"T2+T2.a","index":20,"n_rows":143,"n_cols":19,"rows_kept":143,"merged":[[5,9,5,10],[8,9,8,10],[12,1,29,1],[24,2,26,2],[24,3,24,4],[25,9,26,13],[28,2,29,2],[28,3,28,4],[29,3,29,4],[32,1,43,1],[42,2,43,2],[42,3,42,4],[43,3,43,4],[46,1,52,1],[46,3,46,4],[51,2,52,2],[51,3,51,4],[52,3,52,4],[54,1,83,1],[54,9,54,10],[55,9,55,10],[56,9,56,10],[57,9,57,10],[58,9,58,10],[59,9,59,10],[60,9,60,10],[61,9,61,10],[62,9,62,10],[63,9,63,10],[64,9,64,10],[67,9,67,10],[68,2,70,2],[68,3,68,4],[76,9,76,10],[77,9,77,10],[80,2,81,2],[80,3,80,4],[81,3,81,4],[82,2,83,2],[82,3,82,4],[83,3,83,4],[89,1,95,1],[90,9,90,10],[97,1,100,1],[120,15,120,17],[127,15,127,17],[132,15,132,17],[139,15,139,17]]}
[null,"T2","Autoproducción de energía",null,"Zonas Chile: Todas",{"$nulls":3},"Zona ASHRAE: Todas"]
[]
[null,null,"Superficie de cubierta",null,"Completar",{"$nulls":4},"1. Completar superficie de cubierta"]
[null,null,"Superficie acondicionada",{"$f":"'A1'!C4","v":0}]
[]
[null,null,"Tipo de Sistema de generación de energía",null,{"$f":"IFERROR(_xlfn.IFS(D6=Colector.solar[[#Headers],[Colector.solar]],\"Opción 2\",D6=Sistema.Fotovoltaico[[#Headers],[Sistema.Fotovoltaico]],\"Opción 1\",D6=Otros.sistemas[[#Headers],[Otros.sistemas]],\"Opción 3\",D6=Otros.sistemas[[#Headers],[Mixto]],\"Opción 4\"),\"Desplegar energético\")","v":"Desplegar energético"},{"$nulls":4},"2. Desplegar opción de Sistema de generación de energía. Opción \"Mixto\" Permite combinar Sistema de generación Fotovoltaica y calefactor Solar"]
[null,null,"Tipo de energético para cocina",null,{"$f":"IFERROR(_xlfn.IFS(E6=\"Opción 1\",\"-\",E6=\"Opción 2\",\"-\",E6=\"Opción 3\",\"-\",E6=\"Opción 4\",\"Seleccionar solo Opciones FV\"),\"Completar datos\")","v":"Completar datos"},{"$nulls":4},"3. Desplegar tipo de energético para cocina"]
[null,null,"Tipo de energético para cocina sist. mixto","Eléctricidad. CS",{"$f":"IF(E6=\"Opción 4\",\"-\",\"Habilitado solo para Opción 4\")","v":"Habilitado solo para Opción 4"},{"$nulls":4},"4. Desplegar solo en caso que se use Opción 4 (Mixto)"]
[null,null,"Compensación de Cocina por gas",{"$f":"IFERROR(_xlfn.IFS(D7=$P$135,\"Requiere Compensación\",D7=$P$136,\"Sin Compensación\",D7=$P$130,\"Requiere Compensación\",D7=$P$131,\"Sin Compensación\"),\"Justificación mediante Memoria de Cálculo\")","v":"Justificación mediante Memoria de Cálculo"},{"$nulls":5},"5. Recordar que para el caso de Oficinas no se permite compensar el uso de cocina a gas"]
[]
[null,null,"Evaluación de cumplimiento T2 (Obligatorio)"]
[]
[null,"Opción 1","A) Sistema Fotovoltaico (FV)",{"$nulls":6},"Opción 1"]
[null,null,"Superficie panel",null,{"$f":"IFERROR(_xlfn.IFS(E6=\"Opción 2\",\"-\",E6=\"Opción 1\",\"m2\",E6=\"Opción 3\",\"-\",E6=\"Opción 4\",\"-\"),\"Desplegar energético\")","v":"Desplegar energético"},{"$nulls":4},"1. Completar con superficie de panel desde ficha técnica del proveedor"]
[null,null,"Cantidad ",null,{"$f":"IFERROR(_xlfn.IFS(E6=\"Opción 2\",\"-\",E6=\"Opción 1\",\"unidad\",E6=\"Opción 3\",\"-\",E6=\"Opción 4\",\"-\"),\"Desplegar energético\")","v":"Desplegar energético"},{"$nulls":4},"2. Completar cantidad de paneles a instalar en el proyecto"]
[null,null,"Superficie destinada a paneles",{"$f":"D14*D15","v":0},{"$f":"IFERROR(_xlfn.IFS(E6=\"Opción 2\",\"-\",E6=\"Opción 1\",\"m2\",E6=\"Opción 3\",\"-\",E6=\"Opción 4\",\"-\"),\"Desplegar energético\")","v":"Desplegar energético"}]
[null,null,"Tipo de edificación","Edificio en altura (Viviendas, Oficinas, educacional)",{"$f":"IFERROR(IF(E6=B13,_xlfn.IFS(D17=Q109,\"Aplica Excepción 50%\",D17=P109,\"N/A Excepción \"),\"-\"),\"Completar\")","v":"-"},{"$nulls":4},"3. Desplegar tipo de edificación "]
[]
[null,null,"Potencia mínima requerida (FV)",{"$f":"IFERROR(_xlfn.IFS($D$7=$P$123,$D$4*$Q$123,$D$7=$P$124,$D$4*$Q$124,$D$6=Colector.solar[[#Headers],[Colector.solar]],\"N/A\",$D$6=Colector.solar[[#Headers],[Colector.solar]],\"N/A\"),\"N/A\")","v":"N/A"},{"$f":"IFERROR(_xlfn.IFS($E$6=\"Opción 2\",\"N/A\",$E$6=\"Opción 1\",\"kWp\",$E$6=\"Opción 3\",\"N/A\",$E$6=\"Opción 4\",\"N/A\"),\"Desplegar energético\")","v":"Desplegar energético"}]
[]
[null,null,"Potencia instalada"]
[null,null,"Potencia de 1 panel ",null,{"$f":"IFERROR(_xlfn.IFS(E6=\"Opción 2\",\"-\",E6=\"Opción 1\",\"kWp\",E6=\"Opción 3\",\"-\",E6=\"Opción 4\",\"-\"),\"Desplegar energético\")","v":"Desplegar energético"},{"$nulls":4},"4. Completar potencia de panel kWp desde ficha técnica de proveedor"]
[null,null,"Potencial eléctrico fotovoltaico del sistema",{"$f":"$D$22*$D$15","v":0},{"$f":"IFERROR(_xlfn.IFS(E6=\"Opción 2\",\"-\",E6=\"Opción 1\",\"kWp\",E6=\"Opción 3\",\"-\",E6=\"Opción 4\",\"-\"),\"Desplegar energético\")","v":"Desplegar energético"}]
[]
[null,null,"Potencial Eléctrico instalado","Evaluación "]
[{"$nulls":3},"Sin Excepción",{"$f":"IF(E6=B13,_xlfn.IFS(D23=$D$19,\"Cumple\",D23>$D$19,\"Cumple\",D23=0,\"N/A\",D23<$D$19,\"No cumple\",D26=50%,\"Cumple\"),\"N/A\")","v":"N/A"},null,null,"celda necesaria",null,"En el caso de edificios en altura  en los que el valor mínimo supere la superficie de cubierta, se deberá considerar el uso para la instalación fotovoltaica de toda la superficie de cubierta disponible, debiendo ser de al menos la mitad de la superficie total de la cubierta"]
[{"$nulls":3},{"$f":"IFERROR(_xlfn.IFS(D17=Q109,\"Aplica Excepción 50%\",D17=P109,\"N/A Excepción \"),\"Completar tipo edificación y energéticos\")","v":"Completar tipo edificación y energéticos"},{"$f":"IFERROR(IF(E6=B13,IF(D17=P109,\"N/A\",_xlfn.IFS(H27=50%,\"Cumple\",H27>50%,\"Cumple\",H27<50%,\"No cumple\")),\"N/A\"),\"Completar tipo de edificación y energéticos\")","v":"N/A"},null,null,{"$f":"D16/D3","v":{"$error":"#DIV/0!"}}]
[]
[null,null,"En caso de no cumplimiento, se presenta la cantidad de paneles requeridos para cumplimiento","Cantidad paneles faltantes para cumplimiento"]
[{"$nulls":3},{"$f":"IF(E6=B13,IFERROR(_xlfn.IFS(E26=\"No\",ROUNDUP((D19/D22)-$D$15,0)),0),\"N/A\")","v":"N/A"}]
[]
[]
[null,"Opción 2","B) Colectores Solares",{"$nulls":6},"Opción 2"]
[null,null,"Superficie Colector solar",null,{"$f":"IFERROR(_xlfn.IFS(E6=\"Opción 2\",\"m2\",E6=\"Opción 1\",\"-\",E6=\"Opción 3\",\"-\",E6=\"Opción 4\",\"-\"),\"Desplegar energético\")","v":"Desplegar energético"},{"$nulls":4},"1. Completar superficie en m2 del colector solar"]
[null,null,"Cantidad ",null,{"$f":"IFERROR(_xlfn.IFS(E6=\"Opción 2\",\"unidad\",E6=\"Opción 1\",\"-\",E6=\"Opción 3\",\"-\",E6=\"Opción 4\",\"-\"),\"Desplegar energético\")","v":"Desplegar energético"},{"$nulls":4},"2. Completar cantidad de colectores solares"]
[]
[null,null,"Superficie Mínimo de absorción \ndel Colector ",{"$f":"IF(E6=B33,IFERROR(_xlfn.IFS(D7=$P$130,D4*$Q$130,D7=$P$131,D4*$Q$131,D6=Sistema.Fotovoltaico[[#Headers],[Sistema.Fotovoltaico]],\"N/A\"),\"Actualizar Energetico Cocina o N/A\"),\"N/A\")","v":"N/A"},{"$f":"IFERROR(_xlfn.IFS(E6=\"Opción 2\",\"m2\",E6=\"Opción 1\",\"N/A\",E6=\"Opción 3\",\"N/A\",E6=\"Opción 4\",\"N/A\"),\"Desplegar energético\")","v":"Desplegar energético"}]
[]
[null,null,"Colector instalado"]
[null,null,"Superficie Colector Solar",{"$f":"IF(E6=B33,D34,\"-\")","v":"-"},{"$f":"IFERROR(_xlfn.IFS(E6=\"Opción 2\",\"m2\",E6=\"Opción 1\",\"-\",E6=\"Opción 3\",\"-\",E6=\"Opción 4\",\"-\"),\"Desplegar energético\")","v":"Desplegar energético"}]
[null,null,"Dimensión Colector instalado",{"$f":"IF(E6=B33,$D$35*$D$34,\"-\")","v":"-"},{"$f":"IFERROR(_xlfn.IFS(E6=\"Opción 2\",\"m2\",E6=\"Opción 1\",\"-\",E6=\"Opción 3\",\"-\",E6=\"Opción 4\",\"-\"),\"Desplegar energético\")","v":"Desplegar energético"}]
[]
[null,null,"Dimensión Colector instalado","Evaluación"]
[{"$nulls":3},{"$f":"IF(E6=B33,_xlfn.IFS(D41>D37,\"Cumple\",D41=D37,\"Cumple\",D41<D37,\"No\"),\"N/A\")","v":"N/A"}]
[]
[]
[null,"Opción 3","C) Otro sistema",{"$f":"IFERROR(_xlfn.IFS(E6=\"Opción 3\",\"Justificación mediante Memoria de Cálculo\"),\"-\")","v":"-"},{"$nulls":5},"Opción 3"]
[null,null,"Potencia mínima requerida (FV)",{"$f":"IFERROR(_xlfn.IFS($D$7=$P$123,$D$4*$Q$123,$D$7=$P$124,$D$4*$Q$124,$D$6=Colector.solar[[#Headers],[Colector.solar]],\"N/A\",$D$6=Colector.solar[[#Headers],[Colector.solar]],\"N/A\"),\"N/A\")","v":"N/A"},{"$f":"IFERROR(_xlfn.IFS(E6=\"Opción 2\",\"N/A\",E6=\"Opción 1\",\"N/A\",E6=\"Opción 3\",\"kWp\",E6=\"Opción 4\",\"N/A\"),\"Desplegar energético\")","v":"Desplegar energético"}]
[null,null,"Potencia instalada"]
[null,null,"Potencia Sistema Instalado",null,{"$f":"IFERROR(_xlfn.IFS($E$6=\"Opción 2\",\"N/A\",$E$6=\"Opción 1\",\"N/A\",$E$6=\"Opción 3\",\"kWp\",$E$6=\"Opción 4\",\"N/A\"),\"Desplegar energético\")","v":"Desplegar energético"},{"$nulls":4},"1. Completar potencia del sistema instalado justificando cálculos por medio de memoria técnica"]
[]
[null,null,"Dimensión Sistema instalado","Evaluación"]
[{"$nulls":3},{"$f":"IF(E6=B47,_xlfn.IFS(D50>D48,\"Cumple\",D50=D48,\"Cumple\",D50<D48,\"No\"),\"N/A\")","v":"N/A"}]
[]
[null,"Opción 4","D) Mixto: Sistema Fotovoltaico, Colectores solares y otros",{"$nulls":6},"Opción 4"]
[null,null,"Superficie panel",null,{"$f":"IFERROR(_xlfn.IFS(E6=\"Opción 2\",\"-\",E6=\"Opción 1\",\"-\",E6=\"Opción 3\",\"-\",E6=\"Opción 4\",\"m2\"),\"Desplegar energético\")","v":"Desplegar energético"},{"$nulls":4},"1. Completar con superficie de panel desde ficha técnica del proveedor"]
[null,null,"Cantidad ",null,{"$f":"IFERROR(_xlfn.IFS(E6=\"Opción 2\",\"-\",E6=\"Opción 1\",\"-\",E6=\"Opción 3\",\"-\",E6=\"Opción 4\",\"Unidad\"),\"Desplegar energético\")","v":"Desplegar energético"},{"$nulls":4},"2. Completar cantidad de paneles a instalar en el proyecto"]
[null,null,"Superficie destinada a paneles",{"$f":"D56*D57","v":0},{"$f":"IFERROR(_xlfn.IFS(E6=\"Opción 2\",\"-\",E6=\"Opción 1\",\"-\",E6=\"Opción 3\",\"-\",E6=\"Opción 4\",\"m2\"),\"Desplegar energético\")","v":"Desplegar energético"}]
[null,null,"Tipo de edificación","Edificio en altura",{"$f":"_xlfn.IFS(D59=Q109,\"Aplica Excepción 50%\",D59=P109,\"N/A Excepción \")","v":{"$error":"#NAME?"}},null,"Es necesario?",null,null,"3. Desplegar tipo de edificación "]
[{"$nulls":6},"Celdas ocultas necesrias","Celdas ocultas necesrias"]
[null,null,"Potencia mínima requerida (FV)",{"$f":"IFERROR(_xlfn.IFS($D$7=$P$123,$D$4*$Q$123,$D$7=$P$124,$D$4*$Q$124,$D$6=Colector.solar[[#Headers],[Colector.solar]],\"N/A\",$D$6=Colector.solar[[#Headers],[Colector.solar]],\"N/A\"),\"N/A\")","v":"N/A"},{"$f":"IFERROR(_xlfn.IFS($E$6=\"Opción 2\",\"N/A\",$E$6=\"Opción 1\",\"N/A\",$E$6=\"Opción 3\",\"N/A\",$E$6=\"Opción 4\",\"kWp\"),\"Desplegar energético\")","v":"Desplegar energético"},null,"Cálculara de acuerdo a FV"]
[{"$nulls":7},"Celdas necesarias"]
[null,null,"Potencia FV instalada",{"$nulls":4},"Factores sis. Energetico"]
[null,null,"Potencia panel ",null,{"$f":"IFERROR(_xlfn.IFS($E$6=\"Opción 2\",\"N/A\",$E$6=\"Opción 1\",\"N/A\",$E$6=\"Opción 3\",\"N/A\",$E$6=\"Opción 4\",\"kWp\"),\"Desplegar energético\")","v":"Desplegar energético"},null,{"$f":"D7","v":0},{"$f":"_xlfn.IFS(D7=$P$123,VLOOKUP(D7,Enegerticos.FV[],2,0),D7=$P$124,VLOOKUP(D7,Enegerticos.FV[],2,0))","v":{"$error":"#NAME?"}},null,"4. Completar potencia de panel kWp desde ficha técnica de proveedor"]
[null,null,"Elección del tipo de Sistema primario","Sistema de generación Fotovoltaico",null,null,{"$f":"D8","v":"Eléctricidad. CS"},{"$f":"_xlfn.IFS(D8=P130,VLOOKUP(D8,P140:R143,2,0),D8=P131,VLOOKUP(D8,P140:R143,2,0))","v":{"$error":"#NAME?"}},null,"5. Desplegar si se utilizará Sistema de generación Fotovoltaica u Otro sistema"]
[{"$nulls":7},{"$f":"_xlfn.IFS(D79>D74,\"Cumple\",D79=D74,\"Cumple\",D79<D74,\"No cumple\")","v":{"$error":"#NAME?"}}]
[null,null,"Potencial eléctrico fotovoltaico",{"$f":"_xlfn.IFS(D65=\"Sistema de generación Fotovoltaico\",$D$64*$D$57,D65=\"Otro\",\"-\")","v":{"$error":"#NAME?"}},{"$f":"IFERROR(_xlfn.IFS($E$6=\"Opción 2\",\"N/A\",$E$6=\"Opción 1\",\"N/A\",$E$6=\"Opción 3\",\"N/A\",$E$6=\"Opción 4\",\"kWp\"),\"Desplegar energético\")","v":"Desplegar energético"}]
[null,null,"Potencia Sistema Instalado",null,{"$f":"_xlfn.IFS(D65=\"Sistema de generación Fotovoltaico\",\"N/A\",D65=\"Otro\",\"kWp\")","v":{"$error":"#NAME?"}},{"$nulls":4},"6. Completar potencia del sistema instalado, respaldar mediante memoria de cálculo"]
[null,null,"Potencial Eléctrico instalado","Evaluación "]
[{"$nulls":3},"Sin Excepción",{"$f":"IF(E46=B54,_xlfn.IFS(D64=$D$19,\"Cumple\",D64>$D$19,\"Cumple\",D64=0,\"N/A\",D64<$D$19,\"No\",D70=50%,\"Cumple\"),\"N/A\")","v":{"$error":"#NAME?"}},null,null,"celda necesaria"]
[{"$nulls":3},{"$f":"_xlfn.IFS(D59=$Q$109,\"Aplica Excepción 50%\",D59=$P$109,\"N/A Excepción \")","v":{"$error":"#NAME?"}},{"$f":"_xlfn.IFS(H71=50%,\"Cumple\",H71>50%,\"Cumple\",H71<50%,\"No cumple\")","v":{"$error":"#NAME?"}},null,null,{"$f":"D57/$D$3","v":{"$error":"#DIV/0!"}},null,"Si aplica la excepción, tendrá que cubrir el otro 50% con colector"]
[{"$nulls":7},"Sistema de generación Fotovoltaico"]
[null,null,"Superficie restante por cubrir",{"$f":"IFERROR(_xlfn.IFS(D65=\"Sistema de generación Fotovoltaico\",D4-((D67)/H64),D65=\"Otro\",D4-((D68)/H64)),0)","v":{"v":0,"d":"0.00"}},{"$f":"IFERROR(_xlfn.IFS(E6=\"Opción 2\",\"-\",E6=\"Opción 1\",\"-\",E6=\"Opción 3\",\"-\",E6=\"Opción 4\",\"m2\"),\"Desplegar energético\")","v":"Desplegar energético"},null,"Cálculará de acuerdo a CS","Otro"]
[null,null,"Superficie Mínimo de absorción \ndel Colector ",{"$f":"IFERROR(D73*H65,\"Seleccionar solo energético CS celda D8\")","v":"Seleccionar solo energético CS celda D8"},{"$f":"IFERROR(_xlfn.IFS(E6=\"Opción 2\",\"-\",E6=\"Opción 1\",\"-\",E6=\"Opción 3\",\"-\",E6=\"Opción 4\",\"m2\"),\"Desplegar energético\")","v":"Desplegar energético"}]
[]
[null,null,"Colector solar instalado"]
[null,null,"Superficie Colector solar instalado",null,{"$f":"IFERROR(_xlfn.IFS(E6=\"Opción 2\",\"-\",E6=\"Opción 1\",\"-\",E6=\"Opción 3\",\"-\",E6=\"Opción 4\",\"m2\"),\"Desplegar energético\")","v":"Desplegar energético"},{"$nulls":4},"7. Completar superficie en m2 del colector solar"]
[null,null,"Cantidad ",null,{"$f":"IFERROR(_xlfn.IFS(E6=\"Opción 2\",\"-\",E6=\"Opción 1\",\"-\",E6=\"Opción 3\",\"-\",E6=\"Opción 4\",\"Unidad\"),\"Desplegar energético\")","v":"Desplegar energético"},{"$nulls":4},"8. Completar cantidad de colectores solares"]
[null,null,"Total",{"$f":"D77*D78","v":0},{"$f":"IFERROR(_xlfn.IFS(E6=\"Opción 2\",\"-\",E6=\"Opción 1\",\"-\",E6=\"Opción 3\",\"-\",E6=\"Opción 4\",\"m2\"),\"Desplegar energético\")","v":"Desplegar energético"}]
[]
[null,null,"En caso de no cumplimiento, se presenta la cantidad de colectores requeridos para cumplimiento","Cantidad colectores faltantes para cumplimiento"]
[{"$nulls":3},{"$f":"IFERROR(ROUNDUP((D74/D77)-D78,0),0)","v":{"v":0,"d":"0.0"}}]
[null,null,"Dimensionamiento Sistema Mixto","Evaluación"]
[{"$nulls":3},{"$f":"_xlfn.IFS(D79>$D$74,\"Cumple\",D79=$D$74,\"Cumple\",D79<$D$74,\"No cumple\")","v":{"$error":"#NAME?"}}]
[]
[null,null,"Evaluación de cumplimiento T2.a (Electivo)"]
[]
[null,null,"Opciones de cumplimiento","Neteo energía",{"$f":"IF(D88=D98,\"Justificación de consumo mediante Memoria de Cálculo e informe\",\"Según cálculo\")","v":"Justificación de consumo mediante Memoria de Cálculo e informe"},{"$nulls":4},"1. Desplegar Alternativa de cumplimiento, si será mediante superficie del 100% de cubierta o neteo de energia"]
[]
[null,"Alternativa 1\nT2.a","Alternativa 1","Superficie cubierta","Evaluación"]
[null,null,"Área de cubierta para otros usos tales como terrazas habitables, espacios reservados para otras instalaciones o techos verdes.\n(m2)",null,{"$f":"IF(D91<=((D3*2)/3),\"Uso 2/3 de cubierta o menos\",\"No aplica excepción\")","v":"Uso 2/3 de cubierta o menos"},{"$nulls":4},"2. Indicar si cubierta posee otros usos tales como terrazas habitables, espacio reservado a otras instalaciones o techos verdes intensivos. Se evaluará si corresponde a 2/3"]
[]
[null,null,"Potencial","Superficie paneles","Requerimiento Mínimo "]
[null,null,"Potencial Eléctrico instalado",{"$f":"IFERROR(_xlfn.IFS($D$88=$D$90,(D16/D3)*100%,$D$88=$D$98,0),\"N/A\")","v":"N/A"},{"v":1,"d":"100%"}]
[null,null,"Potencial Eléctrico instalado Excepción",{"$f":"IFERROR(_xlfn.IFS($D$88=$D$90,(D16/D3)*100%,$D$88=$D$98,0),\"N/A\")","v":"N/A"},{"v":0.66,"d":"66%"}]
[null,null,"Evaluación requerimiento",null,{"$f":"IFERROR(IF(D88=D90,IF(E91=\"Uso 2/3 de cubierta o menos\",_xlfn.IFS(D95<E95,\"No cumple\",D95>=E95,\"Cumple\"),_xlfn.IFS(D94<E94,\"No cumple\",D94=E94,\"Cumple\")),\"N/A\"),\"Completar datos\")","v":"N/A"}]
[]
[null,"Alternativa 2\nT2.a","Alternativa 2","Neteo energía","Evaluación"]
[{"$nulls":4},{"$f":"IF(D88=D98,IF(D100=0,\"Completar información de consumo\",_xlfn.IFS(D101>=D100,\"Cumple\",D101<D100,\"No cumple\")),\"N/A\")","v":"Completar información de consumo"}]
[null,null,"Consumo total",null,"kWh/año",{"$nulls":4},"2. O, Completar consumo total de energía kWh/año, justificación por mediante memoria de cálculo"]
[null,null,"Producción de energia en el sitio",null,"kWh/año",{"$nulls":4},"3. Completar producción de energía en el sitio, justificación mediante memoria de cálculo"]
[]
[]
[]
[]
[]
[{"$nulls":15},"TABLAS USADAS"]
[{"$nulls":15},"Tipo1","tipo 2"]
[{"$nulls":15},"Edificación baja (Vivienda, oficina o educacional)","Edificio en altura (Viviendas, Oficinas, educacional)"]
{"$rows_empty":11}
[{"$nulls":15},"Energeticos Sistema.Fotovoltaico"]
[{"$nulls":15},"Tipo de cocina","Requerimiento","unidad"]
[{"$nulls":15},"Gas. FV",0.013,0.065]
[{"$nulls":15},"Eléctricidad. FV",0.01,0.05]
[]
[]
[]
[{"$nulls":15},"Energeticos Colector.solar"]
[{"$nulls":15},"Tipo de cocina","Requerimiento","unidad"]
[{"$nulls":15},"Gas. CS",0.065,"m2/m2"]
[{"$nulls":15},"Eléctricidad. CS",0.05,"m2/m2"]
[]
[{"$nulls":15},"Tipos de generaciónde energía"]
[{"$nulls":15},"Sistema.Fotovoltaico","Colector.solar","Otros.sistemas","Mixto"]
[{"$nulls":15},"Gas. FV","Gas. CS","Gas. FV","Gas. FV"]
[{"$nulls":15},"Eléctricidad. FV","Eléctricidad. CS","Eléctricidad. FV","Eléctricidad. FV"]
[]
[]
[{"$nulls":15},"SOLO OPCIÓN 4"]
[{"$nulls":15},"Energeticos Colector.solar"]
[{"$nulls":15},"Tipo de cocina","Requerimiento","unidad"]
[{"$nulls":15},"Gas. CS",0.065,"m2/m2"]
[{"$nulls":15},"Eléctricidad. CS",0.05,"m2/m2"]

{"sheet":"T3","index":21,"n_rows":34,"n_cols":10,"rows_kept":34,"merged":[[4,9,15,10],[17,1,17,2],[17,4,17,5],[17,9,19,10],[31,1,31,2],[31,4,31,5],[31,9,33,10]]}
["T3","Electrodomésticos e iluminación eficientes (Oficinas y C. Educativos)",{"$nulls":4},"Zonas Chile: Todas","Zona ASHRAE: Todas"]
[]
[null,"LUMINARIAS POR RECINTO"]
[null,"Recinto o espacio exterior","Tipo de luminaria","Calidad lumínica mínima por Normativa local (lux)","Calidad lumínica planeada (lux)","Superficie del recinto o espacio exterior (m2)","Potencia instalada (W)","Cumple con potencia"]
[{"$nulls":7},{"$f":"IF(OR(D5=0,E5=0,G5=0),\"Completar información\",IF(AND(C5=\"LED\",E5>=D5,G5/F5<=8),\"Cumple\",\"No cumple\"))","v":"Completar información"},null,"- Las luminarias deben ser LED, respetar la calidad lumínica de la normativa local y tener una potencia máxima instalada de 8 W/m2.\n- Se puede agrupar por tipologías de recintos con la misma potencia instalada, como por ejemplo salas de clases, oficinas, etc.\n- Se deben considerar todos los recintos y espacios exteriores del proyecto (incluido estacionamiento y espacios de circulación)"]
[{"$nulls":7},{"$f":"IF(OR(D6=0,E6=0,G6=0),\"Completar información\",IF(AND(C6=\"LED\",E6>=D6,G6/F6<=8),\"Cumple\",\"No cumple\"))","v":"Completar información"}]
[{"$nulls":7},"Completar información"]
[{"$nulls":7},"Completar información"]
[{"$nulls":7},"Completar información"]
[{"$nulls":7},"Completar información"]
[{"$nulls":7},"Completar información"]
[{"$nulls":7},"Completar información"]
[{"$nulls":7},"Completar información"]
[{"$nulls":7},"Completar información"]
[{"$nulls":7},"Completar información"]
[{"$nulls":7},"Completar información"]
[]
[null,"AUTOMATIZACIÓN  LUZ OPCIÓN 1",null,null,"CUMPLIMIENTO OPCIÓN 1",{"$nulls":4},"- Este requerimiento solo cumple si se cubre con la automatización al menos en un 80% de la potencia total instalada en todos los recintos."]
[null,"Sistema de automatización por grupo de luminarias","Potencia cubierta (W)",null,"Potencia total proyecto (W)","Potencia cubierta por automatización"]
[{"$nulls":4},{"$f":"SUM(G5:G16)","v":{"v":0,"d":"0.0"}},{"$f":"SUM(C20:C30)/E20","v":{"$error":"#DIV/0!"}}]
{"$rows_empty":11}
[null,"AUTOMATIZACIÓN LUZ OPCIÓN 2",null,null,"CUMPLIMIENTO OPCIÓN 2",{"$nulls":4},"- Si no se cumple con la opción 1 puede cumplir con la opción 2, o viceversa. \n- Para la opción 2 el 100% de los Recintos Regularmente Ocupados (RRO) deben tener automatización en su sistema de iluminación"]
[null,"Cantidad de RRO","Cantidad cubierta por automatización",null,"RRO total proyecto","Potencia cubierta por automatización"]
[{"$nulls":4},{"$f":"B34","v":{"v":0,"d":"0.0"}},{"$f":"IFERROR(C34/B34,\"\")","v":""}]

{"sheet":"T4","index":22,"n_rows":23,"n_cols":14,"rows_kept":23,"merged":[[2,1,2,8],[2,10,2,12],[7,13,9,13]]}
["T4","Ventilación constante para un ambiente interior confortable y sano (Oficinas y C.Educativos)",{"$nulls":5},"Zonas Chile: Todas","Zona ASHRAE: Todas"]
[]
[null,"Caudales mínimos",{"$nulls":8},"Ayuda conversión l/s a m3h"]
[null,"Recinto con relevancia confort/salud","m2","N° personas","Caudal según Norma local de tasa de ventilación o ASHRAE 62.1( l/s m2)","Caudal según Norma local de tasa de ventilación o ASHRAE 62.1 (L/s persona)","Requerimiento mínimo Minergie","Ventilación proyectada\nl/s","Evaluación requerimiento\n(un 30% más que la norma o que ASHRAE)",null,"m3h","m3h","l/s"]
[{"$nulls":6},{"$f":"(C5*E5)+(D5*F5)","v":{"v":0,"d":"0.00"}},null,{"$f":"IF(H5=0,\"Completar\",IF(H5>=(G5*1.3),\"Cumple\",\"No cumple\"))","v":"Completar"},null,{"$f":"H5*3.6","v":0},null,{"$f":"L5/3.6","v":0}]
[{"$nulls":6},{"$f":"(C6*E6)+(D6*F6)","v":{"v":0,"d":"0.00"}},null,{"$f":"IF(H6=0,\"Completar\",IF(H6>=(G6*1.3),\"Cumple\",\"No cumple\"))","v":"Completar"},null,{"$f":"H6*3.6","v":0},null,{"$f":"L6/3.6","v":0}]
[{"$nulls":6},{"v":0,"d":"0.00"},null,"Completar",null,0,null,0]
[{"$nulls":6},{"v":0,"d":"0.00"},null,"Completar",null,0,null,0,"\nSe puede agrupar la información por tipologías de recintos con el mismo caudal como por ejemplo salas de clases, oficinas, etc."]
[{"$nulls":6},{"v":0,"d":"0.00"},null,"Completar",null,0,null,0]
[{"$nulls":6},{"v":0,"d":"0.00"},null,"Completar",null,0,null,0]
[{"$nulls":6},{"v":0,"d":"0.00"},null,"Completar",null,0,null,0]
[{"$nulls":6},{"v":0,"d":"0.00"},null,"Completar",null,0,null,0]
[{"$nulls":6},{"v":0,"d":"0.00"},null,"Completar",null,0,null,0]
[{"$nulls":6},{"v":0,"d":"0.00"},null,"Completar",null,0,null,0]
[{"$nulls":6},{"v":0,"d":"0.00"},null,"Completar",null,0,null,0]
[{"$nulls":6},{"v":0,"d":"0.00"},null,"Completar",null,0,null,0]
[{"$nulls":6},{"v":0,"d":"0.00"},null,"Completar",null,0,null,0]
[{"$nulls":6},{"v":0,"d":"0.00"},null,"Completar",null,0,null,0]
[{"$nulls":6},{"v":0,"d":"0.00"},null,"Completar",null,0,null,0]
[{"$nulls":6},{"v":0,"d":"0.00"},null,"Completar",null,0,null,0]
[]
[]
[null,"Tabla ASHRAE 62.1 en caso de no contar con Normativa Local:"]

{"sheet":"T6","index":23,"n_rows":58,"n_cols":19,"rows_kept":58,"merged":[[9,9,14,15],[19,9,24,15],[29,4,29,5],[30,1,32,1],[30,2,32,2],[30,3,32,3],[30,4,32,5],[57,1,57,7]]}
["T6","Uso eficiente de agua","Zonas Chile: Todas, con refuerzo en las zonas A, B, C, D y E",null,null,"Zonas ASHRAE: Todas, con refuerzo en las zonas 0B, 1B, 2B y 3B"]
[]
[null,"Inodoro","Nombre del fabricante","Lugar de instalación en la edificación","Botón de cantidad pequeña","Ficha","Volumen de descarga \n(Litros)","Evaluación"]
[{"$nulls":7},{"$f":"IF(OR(E4=0,G4=0),\"Completar información\",IF(AND(E4=\"Si\",G4<=5),\"Cumple\",\"No cumple\"))","v":"Completar información"}]
[{"$nulls":7},{"$f":"IF(OR(E5=0,G5=0),\"Completar información\",IF(AND(E5=\"Si\",G5<=5),\"Cumple\",\"No cumple\"))","v":"Completar información"}]
[{"$nulls":7},"Completar información"]
[{"$nulls":7},"Completar información"]
[{"$nulls":7},"Completar información"]
[null,"CHILE y LATAM"]
[null,"Griferia","Nombre del fabricante","Lugar de instalación en la edificación","Ficha","Caudal (Litros/minutos)","Caudal máximo\n(Litros/minutos)","Temporizador",null,"Para Oficinas y C. Educativos es requisito el uso de Temporizador* (sensores / botón de presión) en los lavamanos y en las duchas, exceptuando las llaves de las cocinas y de los espacios de lavado constante a mano.\nSi el recinto a evaluar es Vivienda, utilizar opción No Aplica, así tambien si la grifería de Oficinas o C. Educativos no corresponde a lavamanos o duchas."]
[{"$nulls":6},{"$f":"IFERROR(VLOOKUP(B11,$R$13:$S$15,2,0),\"\")","v":""}]
[{"$nulls":6},{"$f":"IFERROR(VLOOKUP(B12,$R$13:$S$15,2,0),\"\")","v":""},{"$nulls":10},"Chile y LATAM","L/minuto"]
[{"$nulls":6},"",{"$nulls":10},"Llave fuera de la cocina",6]
[{"$nulls":6},"",{"$nulls":10},"Llave de la cocina",6]
[{"$nulls":6},"",{"$nulls":10},"Ducha/tina",8]
[{"$nulls":6},""]
[{"$nulls":6},""]
[{"$nulls":6},""]
[null,"MÉXICO"]
[null,"Griferia","Nombre del fabricante","Lugar de instalación en la edificación","Ficha","Caudal (Litros/minutos)","Caudal máximo\n(Litros/minutos)","Temporizador",null,"Para Oficinas y C. Educativos es requisito el uso de Temporizador* (sensores / botón de presión) en los lavamanos y en las duchas, exceptuando las llaves de las cocinas y de los espacios de lavado constante a mano.\nSi el recinto a evaluar es Vivienda, utilizar opción No Aplica, así tambien si la grifería de Oficinas o C. Educativos no corresponde a lavamanos o duchas.",{"$nulls":7},"México","L/minuto"]
[{"$nulls":6},{"$f":"IFERROR(VLOOKUP(B21,$R$21:$S$23,2,0),\"\")","v":""},{"$nulls":10},"Grifos de baño",6]
[{"$nulls":6},{"$f":"IFERROR(VLOOKUP(B22,$R$21:$S$23,2,0),\"\")","v":""},{"$nulls":10},"Fregadero",6]
[{"$nulls":6},"",{"$nulls":10},"Regadera",3.8]
[{"$nulls":6},""]
[{"$nulls":6},""]
[{"$nulls":6},""]
[{"$nulls":6},""]
[{"$nulls":6},""]
[]
[null,"Ubicación del proyecto","Demanda anual en agua","Cantidad de agua lluvia local por año","Información extraida desde:"]
{"$rows_empty":19}
[null,"requisitos a 3 bares de presión"]
{"$rows_empty":7}
[null,"Concepto de uso eficiente del agua\nIncluir fichas técnicas de artefactos, la evaluación de demanda anual de agua con su descripción, y los anexos necesarios que describan lo siguiente:\n− Estrategias de reducción del uso de agua potable para el riego, incluido descripción del sistema de riego.\n− Estrategias de captación, acumulación y uso del agua lluvia.\n− Corta descripción de cómo se hace el tratamiento funcional del agua negra, de manera de regresar un agua limpia al ciclo natural de agua: dentro del propio terreno o conjunto o en el municipio.\n− Descripción de las medidas para reducir la descarga de aguas residuales en las canalizaciones:\n− Consideraciones respecto al tratamiento de las aguas grises.\n\nCumplimiento de los requisitos de caudales máximos\nPara el cumplimiento de los caudales máximo está autoriza el uso de aireadores mientras se entregue la ficha técnica de dicho aireador y se puede demostrar la reducción del caudal hasta el límite requerido. Se diferencian los caudales de las llaves de la cocina y de las fuera de la cocina porque en algunos países se requiere más caudal en la cocina que en los demás lavamanos.\n\nMedidas de reducción del consumo de agua del sistema de riego\nLa implementación de una medida de reducción del consumo de agua del sistema de riego es obligatoria en las zonas climáticas ASHRAE 0B, 1B, 2B y 3B; o en Chile en las zonas climáticas A hasta E. Como medidas que permiten minimizar el consumo de agua, se reconocen los sistemas de riego automatizado siguientes:\n− Riego por aspersión (regador de impacto, boquilla fija y rotores o rotores MP rotador)\n− Microjet y micro-aspersores\n− Goteo.\nEl riego por manguera o por sistemas de riego no automatizados está prohibido en las zonas climáticas mencionadas."]

{"sheet":"Paquetes_A4","index":24,"n_rows":186,"n_cols":11,"rows_kept":186,"hidden":true,"merged":[[0,0,0,1],[1,0,1,1],[12,0,12,1],[21,0,21,1]]}
["Paquetes constructivos (orden de capas de espacio evaluado a exterior u otro espacio )",null,"kJ/m2K",null,"Fuente"]
["Pisos / Entrepisos",{"$nulls":5},"Paquete Piso","Capacidad calorifica",null,"Biblioteca.Minergie.Paquetes","Biblioteca.Personal.Paquetes"]
[{"$nulls":6},"PAQUETES DE PISO",null,null,{"$f":"Tabla2[[#This Row],[Paquete Piso]]","v":"PAQUETES DE PISO"},{"$f":"'A4'!L11","v":0}]
["P1","Cerámica + Sobrelosa concreto 6cm + barrera de vapor + Aislación térmica 12cm + Barrera Humedad + Radier Hormigón Armado 20cm + Barrera humedad + Ripio 10cm",255,null,"LSC",null,"P1.  Cerámica + Sobrelosa concreto 6cm + barrera de vapor + Aislación térmica 12cm + Barrera Humedad + Radier Hormigón Armado 20cm + Barrera humedad + Ripio 10cm","255",null,{"$f":"Tabla2[[#This Row],[Paquete Piso]]","v":"P1.  Cerámica + Sobrelosa concreto 6cm + barrera de vapor + Aislación térmica 12cm + Barrera Humedad + Radier Hormigón Armado 20cm + Barrera humedad + Ripio 10cm"},{"$f":"'A4'!L12","v":0}]
["P2","Radier de Hormigón Armado 10cm + Aislación térmica 12cm + polietileno 0,2mm + Ripio 10cm",211,null,"Casa Covarrubias",null,"P2.  Radier de Hormigón Armado 10cm + Aislación térmica 12cm + polietileno 0,2mm + Ripio 10cm",211,null,{"$f":"Tabla2[[#This Row],[Paquete Piso]]","v":"P2.  Radier de Hormigón Armado 10cm + Aislación térmica 12cm + polietileno 0,2mm + Ripio 10cm"},{"$f":"'A4'!L13","v":0}]
["P3","Ceramicas + sobrelosa concreto 3cm + aislación 2cm + Losa HA 15cm + Aislación 10cm",347,null,"Burgos piso 1",null,"P3.  Ceramicas + sobrelosa concreto 3cm + aislación 2cm + Losa HA 15cm + Aislación 10cm",347,null,{"$f":"Tabla2[[#This Row],[Paquete Piso]]","v":"P3.  Ceramicas + sobrelosa concreto 3cm + aislación 2cm + Losa HA 15cm + Aislación 10cm"},{"$f":"'A4'!L14","v":0}]
["P4","Ceramicas + lámina de corcho + sobrelosa concreto 8cm + terciado 18mm + aislación 12cm + plancha yesocartón 15mm + terciado 18mm",230,null,"Burgos entre pisos",null,"P4.  Ceramicas + lámina de corcho + sobrelosa concreto 8cm + terciado 18mm + aislación 12cm + plancha yesocartón 15mm + terciado 18mm",230,null,{"$f":"Tabla2[[#This Row],[Paquete Piso]]","v":"P4.  Ceramicas + lámina de corcho + sobrelosa concreto 8cm + terciado 18mm + aislación 12cm + plancha yesocartón 15mm + terciado 18mm"},{"$f":"'A4'!L15","v":0}]
["P5","Cerámica + sobrelosa concreto 3cm + Losa hormigón armado 10cm + polietileno + CLT 17cm",317,null,"E. Tamango",null,"P5.  Cerámica + sobrelosa concreto 3cm + Losa hormigón armado 10cm + polietileno + CLT 17cm",317,null,{"$f":"Tabla2[[#This Row],[Paquete Piso]]","v":"P5.  Cerámica + sobrelosa concreto 3cm + Losa hormigón armado 10cm + polietileno + CLT 17cm"},{"$f":"'A4'!L16","v":0}]
["P6","Losa hormigón armado 15cm + Ripio 50mm",126,null,"LSC",null,"P6.  Losa hormigón armado 15cm + Ripio 50mm",126,null,{"$f":"Tabla2[[#This Row],[Paquete Piso]]","v":"P6.  Losa hormigón armado 15cm + Ripio 50mm"},{"$f":"'A4'!L17","v":0}]
["P7","Cerámica + Losa hormigón armado 10cm + polietileno + Ripio 50mm",78,null,"LSC",null,"P7.  Cerámica + Losa hormigón armado 10cm + polietileno + Ripio 50mm",78,null,{"$f":"Tabla2[[#This Row],[Paquete Piso]]","v":"P7.  Cerámica + Losa hormigón armado 10cm + polietileno + Ripio 50mm"},{"$f":"'A4'!L18","v":0}]
["P8","Losa Hormigón Armado 12cm + aislación térmica 80mm + polietileno",213,null,"1.3. M. A4.4",null,"P8.  Losa Hormigón Armado 12cm + aislación térmica 80mm + polietileno",213,null,{"$f":"Tabla2[[#This Row],[Paquete Piso]]","v":"P8.  Losa Hormigón Armado 12cm + aislación térmica 80mm + polietileno"},{"$f":"'A4'!L19","v":0}]
[{"$nulls":6},"Cielos y cubiertas.  ",null,null,"-",{"$f":"'A4'!L22","v":0}]
["Cielos y cubiertas",null,"kJ/m2K",{"$nulls":3},"PAQUETE CIELOS Y CUBIERTAS",null,null,{"$f":"G13","v":"PAQUETE CIELOS Y CUBIERTAS"},{"$f":"'A4'!L23","v":0}]
["C1","Plancha Yeso Cartón de 10 mm en listoneado de madera 2x2\" + estructura cerchas y costaneras de madera + cámara de aire entre plancha de cielo y aislante 50mm + Aislación Poliestireno Expandido sobre listoneado 117mm + cámara de aire variable semi ventilada + barrera de humedad + terminación plancha de fibrocemento 4mm",2.5,null,"LSC (1.1.M.A1.2)",null,"C1.  Plancha Yeso Cartón de 10 mm en listoneado de madera 2x2\" + estructura cerchas y costaneras de madera + cámara de aire entre plancha de cielo y aislante 50mm ",{"$f":"C14","v":2.5},null,{"$f":"G14","v":"C1.  Plancha Yeso Cartón de 10 mm en listoneado de madera 2x2\" + estructura cerchas y costaneras de madera + cámara de aire entre plancha de cielo y aislante 50mm "},{"$f":"'A4'!L24","v":0}]
["C2","Panel TECHOLISTO, Plancha yesocartón 10mm + plancha de acero 0,5mm +  poliestireno expandido 120mm + plancha acero 0,5 mm prepintada con 5 μ de primer y 20 μ de pintura de terminación.",10.5,null,"LSC (1.1.M.C3.2)",null,"C2.  Panel TECHOLISTO, Plancha yesocartón 10mm + plancha de acero 0,5mm +  poliestireno expandido 120mm + plancha acero 0,5 mm prepintada con 5 μ de primer y 20 μ de pintura de terminación.",{"$f":"C15","v":10.5},null,{"$f":"G15","v":"C2.  Panel TECHOLISTO, Plancha yesocartón 10mm + plancha de acero 0,5mm +  poliestireno expandido 120mm + plancha acero 0,5 mm prepintada con 5 μ de primer y 20 μ de pintura de terminación."},{"$f":"'A4'!L25","v":0}]
["C3","Plancha yesocartón 10mm + Aislación Poliestireno Expandido 100mm con perfiles metálicos incorporados + Malla de acero electrosoldada + Losa de hormigón espesor promedio 65mm + Sobrelosa de hormigón liviano 30mm",14.6,null,"LSC (1.3.M.A1)",null,"C3.  Plancha yesocartón 10mm + Aislación Poliestireno Expandido 100mm con perfiles metálicos incorporados + Malla de acero electrosoldada + Losa de hormigón espesor promedio 65mm + Sobrelosa de hormigón liviano 30mm",14.6,null,"C3.  Plancha yesocartón 10mm + Aislación Poliestireno Expandido 100mm con perfiles metálicos incorporados + Malla de acero electrosoldada + Losa de hormigón espesor promedio 65mm + Sobrelosa de hormigón liviano 30mm",{"$f":"'A4'!L26","v":0}]
["C4","Losa de Hormigón Armado 100mm + Plancha Poliestireno Expandido 110mm + Sobrelosa Hormigón Liviano 30mm",199,null,"LSC (1.3.M.A4.1)",null,"C4.  Losa de Hormigón Armado 100mm + Plancha Poliestireno Expandido 110mm + Sobrelosa Hormigón Liviano 30mm",199,null,"C4.  Losa de Hormigón Armado 100mm + Plancha Poliestireno Expandido 110mm + Sobrelosa Hormigón Liviano 30mm",{"$f":"'A4'!L27","v":0}]
["C5","Plancha yesocartón 10mm + Aislación Poliestireno Expandido 100mm + Losa de Hormigón Armado 100mm + Sobrelosa Hormigón Liviano 30mm",14.7,null,"Solución común",null,"C5.  Plancha yesocartón 10mm + Aislación Poliestireno Expandido 100mm + Losa de Hormigón Armado 100mm + Sobrelosa Hormigón Liviano 30mm",14.7,null,"C5.  Plancha yesocartón 10mm + Aislación Poliestireno Expandido 100mm + Losa de Hormigón Armado 100mm + Sobrelosa Hormigón Liviano 30mm",{"$f":"'A4'!L28","v":0}]
["C6","Plancha yesocartón 10mm + Losa de Hormigón Armado 100mm + Porcelanato 10mm",43,null,"Solución común",null,"C6.  Plancha yesocartón 10mm + Losa de Hormigón Armado 100mm + Porcelanato 10mm",43,null,"C6.  Plancha yesocartón 10mm + Losa de Hormigón Armado 100mm + Porcelanato 10mm",{"$f":"'A4'!L29","v":0}]
["C7","Terciado 18mm + plancha yesocartón 15mm + aislación 12cm + terciado 18mm + sobrelosa concreto 8cm + lámina de corcho + cerámicas",50,null,"Burgos entre pisos",null,"C7.  Terciado 18mm + plancha yesocartón 15mm + aislación 12cm + terciado 18mm + sobrelosa concreto 8cm + lámina de corcho + cerámicas",50,null,"C7.  Terciado 18mm + plancha yesocartón 15mm + aislación 12cm + terciado 18mm + sobrelosa concreto 8cm + lámina de corcho + cerámicas",{"$f":"'A4'!L30","v":0}]
[{"$nulls":6},"Muros.  ",null,null,"-",{"$f":"'A4'!L31","v":0}]
["Muros",null,"kJ/m2K",{"$nulls":3},"PAQUETES MUROS",null,null,{"$f":"G22","v":"PAQUETES MUROS"},{"$f":"'A4'!L32","v":0}]
["M1","Yesocartón 10mm + Albañilería 24cm + Aislación térmica 14cm + Cámara de aire 4cm con estructura de aluminio + Revestimiento de fachada",389,null,"LSC",null,"M1.  Yesocartón 10mm + Albañilería 24cm + Aislación térmica 14cm + Cámara de aire 4cm con estructura de aluminio + Revestimiento de fachada",{"$f":"C23","v":389},null,{"$f":"G23","v":"M1.  Yesocartón 10mm + Albañilería 24cm + Aislación térmica 14cm + Cámara de aire 4cm con estructura de aluminio + Revestimiento de fachada"},{"$f":"'A4'!L33","v":0}]
["M2","OSB 15mm + Lana mineral 160mm + OSB 15mm + cámara de aire ventilada + Terminación exterior tipo siding",23,null,"LSC",null,"M2.  OSB 15mm + Lana mineral 160mm + OSB 15mm + cámara de aire ventilada + Terminación exterior tipo siding",{"$f":"C24","v":23},null,"M2.  OSB 15mm + Lana mineral 160mm + OSB 15mm + cámara de aire ventilada + Terminación exterior tipo siding",{"$f":"'A4'!L34","v":0}]
["M3","Yesocartón + Ladrillos sólidos + cemento + mortero adhesivo y de refuerzo + aislante tablero de fibra de madera",441,null,"LSC",null,"M3.  Yesocartón + Ladrillos sólidos + cemento + mortero adhesivo y de refuerzo + aislante tablero de fibra de madera",441,null,"M3.  Yesocartón + Ladrillos sólidos + cemento + mortero adhesivo y de refuerzo + aislante tablero de fibra de madera",{"$f":"'A4'!L35","v":0}]
["M4","Plancha yesocartón 10mm + Concreto hormigón 240mm + Estructura de madera con aislante de 100mm entre pies derechos + Membrana de vapor + cámara de aire + terminación tipo siding",106,null,"LSC",null,"M4.  Plancha yesocartón 10mm + Concreto hormigón 240mm + Estructura de madera con aislante de 100mm entre pies derechos + Membrana de vapor + cámara de aire + terminación tipo siding",106,null,"M4.  Plancha yesocartón 10mm + Concreto hormigón 240mm + Estructura de madera con aislante de 100mm entre pies derechos + Membrana de vapor + cámara de aire + terminación tipo siding",{"$f":"'A4'!L36","v":0}]
["M5","Hormigón Armado 200mm + Aislante Poliestireno Expandido 80mm",351,null,"LSC (1.2.G.A6)",null,"M5.  Hormigón Armado 200mm + Aislante Poliestireno Expandido 80mm",351,null,"M5.  Hormigón Armado 200mm + Aislante Poliestireno Expandido 80mm",{"$f":"'A4'!L37","v":0}]
["M6","Mortero de cemento 20mm + Ladrillo hecho a máquina 143mm + Mortero de cemento 20mm",73,null,"LSC (1.2.G.B.A1.3)",null,"M6.  Mortero de cemento 20mm + Ladrillo hecho a máquina 143mm + Mortero de cemento 20mm",73,null,"M6.  Mortero de cemento 20mm + Ladrillo hecho a máquina 143mm + Mortero de cemento 20mm",{"$f":"'A4'!L38","v":0}]
["M7","Plancha de yesocartón 10mm + Aislante Poliestireno Expandido 30mm + Ladrillo hecho a máquina 143mm + mortero de cemento 20mm",26,null,"LSC (1.2.G.B.A1.9)",null,"M7.  Plancha de yesocartón 10mm + Aislante Poliestireno Expandido 30mm + Ladrillo hecho a máquina 143mm + mortero de cemento 20mm",26,null,"M7.  Plancha de yesocartón 10mm + Aislante Poliestireno Expandido 30mm + Ladrillo hecho a máquina 143mm + mortero de cemento 20mm",{"$f":"'A4'!L39","v":0}]
["M8","Mortero de cemento 20mm + Ladrillo hecho a máquina 143mm + Aislante Poliestireno Expandido 30mm + Plancha tesocartón 10mm",126,null,"LSC (1.2.G.B.A1.9)",null,"M8.  Mortero de cemento 20mm + Ladrillo hecho a máquina 143mm + Aislante Poliestireno Expandido 30mm + Plancha tesocartón 10mm",126,null,"M8.  Mortero de cemento 20mm + Ladrillo hecho a máquina 143mm + Aislante Poliestireno Expandido 30mm + Plancha tesocartón 10mm",{"$f":"'A4'!L40","v":0}]
["M9","Plancha yesocartón 10mm + OSB 18mm + Aislación Poliestireno Expandido 120mm + Plancha yesocartón 10mm + Placa terciado madera pino 15mm + barrera de humedad + cámara ventilada 40mm + tinglado tabla termo tratada 18mm",27,null,"Burgos",null,"M9.  Plancha yesocartón 10mm + OSB 18mm + Aislación Poliestireno Expandido 120mm + Plancha yesocartón 10mm + Placa terciado madera pino 15mm + barrera de humedad + cámara ventilada 40mm + tinglado tabla termo tratada 18mm",27,null,"M9.  Plancha yesocartón 10mm + OSB 18mm + Aislación Poliestireno Expandido 120mm + Plancha yesocartón 10mm + Placa terciado madera pino 15mm + barrera de humedad + cámara ventilada 40mm + tinglado tabla termo tratada 18mm",{"$f":"'A4'!L41","v":0}]
["M10","Capa estuco de mortero o enlucido de yeso 16mm + Aislación Poliestireno Expandido 60mm + barrera de humedad + Concreto hormigón 150mm",28,null,"Burgos",null,"M10.  Capa estuco de mortero o enlucido de yeso 16mm + Aislación Poliestireno Expandido 60mm + barrera de humedad + Concreto hormigón 150mm",28,null,"M10.  Capa estuco de mortero o enlucido de yeso 16mm + Aislación Poliestireno Expandido 60mm + barrera de humedad + Concreto hormigón 150mm",{"$f":"'A4'!L42","v":0}]
["M11","Plancha yesocartón 10mm + Terciado madera estructural 11,1mm + Aislante Lana de Vidrio 120mm con estructura pies derechos de madera + Plancha yesocartón 10mm + membrana hidrófuga + distanciadores horizontales madera pino + revestimiento metálico",27,null,"Tamango",null,"M11.  Plancha yesocartón 10mm + Terciado madera estructural 11,1mm + Aislante Lana de Vidrio 120mm con estructura pies derechos de madera + Plancha yesocartón 10mm + membrana hidrófuga + distanciadores horizontales madera pino + revestimiento metálico",27,null,"M11.  Plancha yesocartón 10mm + Terciado madera estructural 11,1mm + Aislante Lana de Vidrio 120mm con estructura pies derechos de madera + Plancha yesocartón 10mm + membrana hidrófuga + distanciadores horizontales madera pino + revestimiento metálico",{"$f":"'A4'!L43","v":0}]
[{"$nulls":6},{"$f":"_xlfn.CONCAT(A35,\".  \",B35)","v":{"$error":"#NAME?"}}]
[{"$nulls":6},{"$error":"#NAME?"}]
[{"$nulls":6},{"$error":"#NAME?"}]
[{"$nulls":6},{"$error":"#NAME?"}]
[{"$nulls":6},{"$error":"#NAME?"}]
[{"$nulls":6},{"$error":"#NAME?"}]
[{"$nulls":6},{"$error":"#NAME?"}]
[{"$nulls":6},{"$error":"#NAME?"}]
[{"$nulls":6},{"$error":"#NAME?"}]
[{"$nulls":6},{"$error":"#NAME?"}]
[{"$nulls":6},{"$error":"#NAME?"}]
[{"$nulls":6},{"$error":"#NAME?"}]
[{"$nulls":6},{"$error":"#NAME?"}]
[{"$nulls":6},{"$error":"#NAME?"}]
[{"$nulls":6},{"$error":"#NAME?"}]
[{"$nulls":6},{"$error":"#NAME?"}]
[{"$nulls":6},{"$error":"#NAME?"}]
[{"$nulls":6},{"$error":"#NAME?"}]
[{"$nulls":6},{"$error":"#NAME?"}]
[{"$nulls":6},{"$error":"#NAME?"}]
[{"$nulls":6},{"$error":"#NAME?"}]
[{"$nulls":6},{"$error":"#NAME?"}]
[{"$nulls":6},{"$error":"#NAME?"}]
[{"$nulls":6},{"$error":"#NAME?"}]
[{"$nulls":6},{"$error":"#NAME?"}]
[{"$nulls":6},{"$error":"#NAME?"}]
[{"$nulls":6},{"$error":"#NAME?"}]
[{"$nulls":6},{"$error":"#NAME?"}]
[{"$nulls":6},{"$error":"#NAME?"}]
[{"$nulls":6},{"$error":"#NAME?"}]
[{"$nulls":6},{"$error":"#NAME?"}]
[{"$nulls":6},{"$error":"#NAME?"}]
[{"$nulls":6},{"$error":"#NAME?"}]
[{"$nulls":6},{"$error":"#NAME?"}]
[{"$nulls":6},{"$error":"#NAME?"}]
[{"$nulls":6},{"$error":"#NAME?"}]
[{"$nulls":6},{"$error":"#NAME?"}]
[{"$nulls":6},{"$error":"#NAME?"}]
[{"$nulls":6},{"$error":"#NAME?"}]
[{"$nulls":6},{"$error":"#NAME?"}]
[{"$nulls":6},{"$error":"#NAME?"}]
[{"$nulls":6},{"$error":"#NAME?"}]
[{"$nulls":6},{"$error":"#NAME?"}]
[{"$nulls":6},{"$error":"#NAME?"}]
[{"$nulls":6},{"$error":"#NAME?"}]
[{"$nulls":6},{"$error":"#NAME?"}]
[{"$nulls":6},{"$error":"#NAME?"}]
[{"$nulls":6},{"$error":"#NAME?"}]
[{"$nulls":6},{"$error":"#NAME?"}]
[{"$nulls":6},{"$error":"#NAME?"}]
[{"$nulls":6},{"$error":"#NAME?"}]
[{"$nulls":6},{"$error":"#NAME?"}]
[{"$nulls":6},{"$error":"#NAME?"}]
[{"$nulls":6},{"$error":"#NAME?"}]
[{"$nulls":6},{"$error":"#NAME?"}]
[{"$nulls":6},{"$error":"#NAME?"}]
[{"$nulls":6},{"$error":"#NAME?"}]
[{"$nulls":6},{"$error":"#NAME?"}]
[{"$nulls":6},{"$error":"#NAME?"}]
[{"$nulls":6},{"$error":"#NAME?"}]
[{"$nulls":6},{"$error":"#NAME?"}]
[{"$nulls":6},{"$error":"#NAME?"}]
[{"$nulls":6},{"$error":"#NAME?"}]
[{"$nulls":6},{"$error":"#NAME?"}]
[{"$nulls":6},{"$f":"_xlfn.CONCAT(A99,\".  \",B99)","v":{"$error":"#NAME?"}}]
[{"$nulls":6},{"$error":"#NAME?"}]
[{"$nulls":6},{"$error":"#NAME?"}]
[{"$nulls":6},{"$error":"#NAME?"}]
[{"$nulls":6},{"$error":"#NAME?"}]
[{"$nulls":6},{"$error":"#NAME?"}]
[{"$nulls":6},{"$error":"#NAME?"}]
[{"$nulls":6},{"$error":"#NAME?"}]
[{"$nulls":6},{"$error":"#NAME?"}]
[{"$nulls":6},{"$error":"#NAME?"}]
[{"$nulls":6},{"$error":"#NAME?"}]
[{"$nulls":6},{"$error":"#NAME?"}]
[{"$nulls":6},{"$error":"#NAME?"}]
[{"$nulls":6},{"$error":"#NAME?"}]
[{"$nulls":6},{"$error":"#NAME?"}]
[{"$nulls":6},{"$error":"#NAME?"}]
[{"$nulls":6},{"$error":"#NAME?"}]
[{"$nulls":6},{"$error":"#NAME?"}]
[{"$nulls":6},{"$error":"#NAME?"}]
[{"$nulls":6},{"$error":"#NAME?"}]
[{"$nulls":6},{"$error":"#NAME?"}]
[{"$nulls":6},{"$error":"#NAME?"}]
[{"$nulls":6},{"$error":"#NAME?"}]
[{"$nulls":6},{"$error":"#NAME?"}]
[{"$nulls":6},{"$error":"#NAME?"}]
[{"$nulls":6},{"$error":"#NAME?"}]
[{"$nulls":6},{"$error":"#NAME?"}]
[{"$nulls":6},{"$error":"#NAME?"}]
[{"$nulls":6},{"$error":"#NAME?"}]
[{"$nulls":6},{"$error":"#NAME?"}]
[{"$nulls":6},{"$error":"#NAME?"}]
[{"$nulls":6},{"$error":"#NAME?"}]
[{"$nulls":6},{"$error":"#NAME?"}]
[{"$nulls":6},{"$error":"#NAME?"}]
[{"$nulls":6},{"$error":"#NAME?"}]
[{"$nulls":6},{"$error":"#NAME?"}]
[{"$nulls":6},{"$error":"#NAME?"}]
[{"$nulls":6},{"$error":"#NAME?"}]
[{"$nulls":6},{"$error":"#NAME?"}]
[{"$nulls":6},{"$error":"#NAME?"}]
[{"$nulls":6},{"$error":"#NAME?"}]
[{"$nulls":6},{"$error":"#NAME?"}]
[{"$nulls":6},{"$error":"#NAME?"}]
[{"$nulls":6},{"$error":"#NAME?"}]
[{"$nulls":6},{"$error":"#NAME?"}]
[{"$nulls":6},{"$error":"#NAME?"}]
[{"$nulls":6},{"$error":"#NAME?"}]
[{"$nulls":6},{"$error":"#NAME?"}]
[{"$nulls":6},{"$error":"#NAME?"}]
[{"$nulls":6},{"$error":"#NAME?"}]
[{"$nulls":6},{"$error":"#NAME?"}]
[{"$nulls":6},{"$error":"#NAME?"}]
[{"$nulls":6},{"$error":"#NAME?"}]
[{"$nulls":6},{"$error":"#NAME?"}]
[{"$nulls":6},{"$error":"#NAME?"}]
[{"$nulls":6},{"$error":"#NAME?"}]
[{"$nulls":6},{"$error":"#NAME?"}]
[{"$nulls":6},{"$error":"#NAME?"}]
[{"$nulls":6},{"$error":"#NAME?"}]
[{"$nulls":6},{"$error":"#NAME?"}]
[{"$nulls":6},{"$error":"#NAME?"}]
[{"$nulls":6},{"$error":"#NAME?"}]
[{"$nulls":6},{"$error":"#NAME?"}]
[{"$nulls":6},{"$error":"#NAME?"}]
[{"$nulls":6},{"$f":"_xlfn.CONCAT(A163,\".  \",B163)","v":{"$error":"#NAME?"}}]
[{"$nulls":6},{"$error":"#NAME?"}]
[{"$nulls":6},{"$error":"#NAME?"}]
[{"$nulls":6},{"$error":"#NAME?"}]
[{"$nulls":6},{"$error":"#NAME?"}]
[{"$nulls":6},{"$error":"#NAME?"}]
[{"$nulls":6},{"$error":"#NAME?"}]
[{"$nulls":6},{"$error":"#NAME?"}]
[{"$nulls":6},{"$error":"#NAME?"}]
[{"$nulls":6},{"$error":"#NAME?"}]
[{"$nulls":6},{"$error":"#NAME?"}]
[{"$nulls":6},{"$error":"#NAME?"}]
[{"$nulls":6},{"$error":"#NAME?"}]
[{"$nulls":6},{"$error":"#NAME?"}]
[{"$nulls":6},{"$error":"#NAME?"}]
[{"$nulls":6},{"$error":"#NAME?"}]
[{"$nulls":6},{"$error":"#NAME?"}]
[{"$nulls":6},{"$error":"#NAME?"}]
[{"$nulls":6},{"$error":"#NAME?"}]
[{"$nulls":6},{"$error":"#NAME?"}]
[{"$nulls":6},{"$error":"#NAME?"}]
[{"$nulls":6},{"$error":"#NAME?"}]
[{"$nulls":6},{"$error":"#NAME?"}]
[{"$nulls":6},{"$error":"#NAME?"}]
[{"$nulls":6},{"$error":"#NAME?"}]

{"sheet":"Datos_A7","index":25,"n_rows":126,"n_cols":29,"rows_kept":126,"hidden":true}
["A1",{"$nulls":4},"A4",{"$nulls":21},"A6"]
["Tipo de uso","edificación única",{"$nulls":3},"Materiales pesados",{"$nulls":21},"Tipos de abertura de ventanas"]
[null,"edificación única en altura",{"$nulls":4},"hormigón"]
[null,"condominio",{"$nulls":4},"piedra",{"$nulls":21},"Proyectante"]
[{"$nulls":6},"adobe",{"$nulls":21},"Abatible"]
["Ubicación","Región de Arica y Parinacota.",null,"Zona climática","A",null,"cerámica",{"$nulls":21},"Oscilo batiente"]
[null,"Región de Tarapacá.",null,null,"B",{"$nulls":23},"Corredera"]
[null,"Región de Antofagasta.",null,null,"C","Material","densidad","calor especifico","conductividad"]
[null,"Región de Atacama.",null,null,"D","Adobe",1100,1100,0.9]
[null,"Región de Coquimbo.",null,null,"E","Aluminio",2700,898,210]
[null,"Región de Valparaíso.",null,null,"F","Enlucido yeso",800,837,0.35]
[null,"Región Metropolitana de Santiago.",null,null,"G","Enlucido yeso",1200,837,0.56]
[null,"Región del Libertador General Bernardo O’Higgins.",null,null,"H","Fibrocemento",1000,837,0.23]
[null,"Región del Maule.",null,null,"I","HA normal",2400,840,1.63]
[null,"Región del Ñuble.",{"$nulls":3},"HA con aridos ligeros",1000,840,0.33]
[null,"Región del Biobío.",{"$nulls":3},"Hormigón celular con áridos siliceos",1000,1094,0.67]
[null,"Región de La Araucanía.",{"$nulls":3},"Hormigón con cenizas",1000,1055,0.41]
[null,"Región de Los Ríos.",{"$nulls":3},"Hormigón con escorias de altos hornos",800,1061,0.22]
[null,"Región de Los Lagos.",{"$nulls":3},"Ladrillo macizo hecho a máquina",1400,750,0.6]
[null,"Región de Aysén del General Carlos Ibáñez del Campo.",{"$nulls":3},"Lana mineral colchoneta libre",70,840,0.038]
[null,"Región de Magallanes y la Antártica Chilena.",{"$nulls":3},"Madera alamo",380,1759,0.091]
[{"$nulls":5},"Madera alerce",560,1759,0.134]
[{"$nulls":5},"Madera coigüe",670,1759,0.175]
[{"$nulls":5},"Madera pino insigne",410,2805,0.104]
[{"$nulls":5},"Madera raulí",580,1759,0.121]
[{"$nulls":5},"Tableros aglomerados de particulas de madera",400,1420,0.095]
[{"$nulls":5},"Plancha de corcho",100,2210,0.04]
[{"$nulls":5},"CLT",470,1600,0.11]
[]
["A7"]
["Fuente de energía","Factor de emisión KgCO2/KWh","País","Fuente"]
["CH_Electricidad",0.434,"Chile","https://www.coordinador.cl/renova/renova-documentos/"]
["MEX_Electricidad ",0.435,"México"]
["Gas licuado (GLP)",0.266,"Chile","IPCC 2006"]
["Gas natural (GN)",0.26,"Chile","IPCC 2006"]
["Pellet",0.034,"Chile","IPCC 2006 (descuenta CO2 para evitar doble conteo)"]
["ERNC (electricidad)",{"$f":"-B32","v":-0.434},"Chile"]
[]
[]
["Energético"]
[null,"Tipo.Energético.Minergie","Tipo.Energético.Personal"]
[null,"CH_Electricidad",{"$f":"'A7'!K108","v":0}]
[null,"MEX_Electricidad ",{"$f":"'A7'!K109","v":0}]
[null,"Gas licuado (GLP)",{"$f":"'A7'!K110","v":0}]
[null,"Gas natural (GN)",{"$f":"'A7'!K111","v":0}]
[null,"Pellet",{"$f":"'A7'!K112","v":0}]
[null,null,{"$f":"'A7'!K113","v":0}]
[null,null,{"$f":"'A7'!K114","v":0}]
[null,null,{"$f":"'A7'!K115","v":0}]
[null,null,{"$f":"'A7'!K116","v":0}]
[null,null,{"$f":"'A7'!K117","v":0}]
[null,null,{"$f":"'A7'!K118","v":0}]
[null,null,{"$f":"'A7'!K119","v":0}]
[]
[]
[]
[]
["Opciones"]
["Presente"]
["Ausente"]
[]
[]
[]
[]
[]
[]
["Grupos de elementos","Elemento",null,"C","Unidad de medida","kgCO2e","N° DAP","Fecha Caducidad"]
[]
["Subestructura (Fundaciones, cimientos, sobrecimientos, aislación barrera de humedad. Todo lo referido a materiales bajo el nivel de terreno)","Cimientos",null,"Poliestireno expandido","m2",6.42,"EPDIE-18-16","2024-04-02"]
["Superestructura (Marcos, losas de entrepiso, techumbre, escaleras, rampas, muros exteriores, ventanas y puertas exteriores)","Sobrecimientos",null,"EIFS muros","m2",15.1]
["MEP (Sistemas mecánicos de acondicionamiento, Sist, eléctricos, fontanería)","Aislamiento",null,"Lana de vidrio 160mm","m2",5.9]
[null,"Barrera de Humedad",null,"_Lana de vidrio_Aislanglass (50 mm)","m2",1.09,"S-P-05623","2027-04-27"]
[null,"Pilares / vigas",null,"Lana de vidrio 50mm","m2",4.81,"S-P-05626","2027-04-19"]
[null,"Losas / piso",null,"Relleno","m3",10]
[null,"Techumbre",null,"Estructura metalcón","m2",4.28,"S-P-05012","2026-10-29"]
[null,"Muros envolvente",null,"Plancha volcanita 15mm","m2",3.8,"S-P-05624","2027-03-30"]
[null,"Escaleras / rampas",null,"Plancha volcanita 10mm","m2",2.5]
[null,"Ventanas /puertas",null,"Ventanas PVC","m2",63.7]
[null,"MEP (Equipamiento)",null,"_Vidrios Plano 4 mm ","m2",10.4,"S-P-06326","2027-09-20"]
[{"$nulls":3},"_Marcos PVC","kg",3572,"S-P-02003","2025-12-30"]
[{"$nulls":3},"Puertas madera","un",-49.6]
[{"$nulls":3},"Impermeabilizante (membrana PVC)","m2",5.13]
[{"$nulls":3},"Pino radiata","m3",-900]
[{"$nulls":3},"Madera CLT","m3",-576,"S-P-07432","2028-06-05"]
[{"$nulls":3},"Plancha aluminio","m2",27.03]
[{"$nulls":3},"Plancha de madera terciada_CMPC","m3",-454,"S-P-02010","2027-12-19"]
[{"$nulls":3},"Plancha de fibrocemento Siding","m2",3.39,"S-P-05622","2027-03-30"]
[{"$nulls":3},"Plancha de fibrocemento Tabique","m2",3.48,"S-P-05622","2027-03-30"]
[{"$nulls":3},"Plancha de OSB","m3",-863,"S-P-01850","2025-01-30"]
[{"$nulls":3},"Placa MDF (fibra de madera)","m2",-7.66]
[{"$nulls":3},"Poliuretano expandido","m2",3.77]
[{"$nulls":3},"Poliuretano proyectado","m2",16.6]
[{"$nulls":3},"Paneles sándwich metálicos aislantes para paredes, techos y cubiertas","m2",37.25,"S-P-01233",45502]
[{"$nulls":3},"Ladrillo","ton",213]
[{"$nulls":3},"_Ladrillo con perforaciones","kg",0.12,"MD-21057-EN","2026-11-08"]
[{"$nulls":3},"Barras de refuerzo acero","ton",767]
[{"$nulls":3},"_Barra de refuerzo de acero_CAP Acero","ton",1430,"S-P-02002","2025-04-29"]
[{"$nulls":3},"Perfiles de acero laminado","ton",820]
[{"$nulls":3},"Hormigón celular","m3",196]
["T1",null,null,"Concreto Ready Mix Mpa 35","m3",458]
["Tipo","Eficiencia",null,"Hormigón G25","m3",294,"S-P-01722","2024-10-15"]
["Calefactor individual de leña",1,null,"Polietileno","kg",3.25,"S-P-02989"]
["Calefacción individual de pellet",1,null,"Plancha de acero","kg",2.72,"EPDIE-21-45","2024-06-27"]
["Caldera central de leña",0.5,null,"Cerámicas piso y muros","m2",14.1,"EPD10197"]
["Caldera central de Pellet",0.8,null,"Caldera a gas","Unidad",118.87,"SCGA-00118-V01.01-FR, 33140","."]
["Bomba de calor aire-agua",2.8,null,"Pintura interior","m2",0.24,"S-P-05758","2027-03-22"]
["Bomba de calor agua-agua",3.1,null,"Piso laminado","m3",-1.74,"S-P-09368","2028-06-18"]
["Bomba de calor terreno-agua",5]
[]
[]
["Cocina a leña"]
["Cocina a gas"]
["Cocina eléctrica"]
[]
["T2 Mapa radiación solar","KWh/KWp * año"]
[null,2410]
[null,2264]
[null,2118]
[null,1972]
[null,1826]
[null,1680]
[null,1534]
[null,1387]
[null,1241]
[null,1095]
[null,949]

{"sheet":"Datos 2","index":26,"n_rows":52,"n_cols":12,"rows_kept":52,"hidden":true,"merged":[[48,3,48,4],[51,3,51,4]]}
[]
["GLP"]
[null,"GLP","conama___gui__a_para_la_estimacio__n_de_emisiones___retc__.pdf (thermal.cl)"]
{"$rows_empty":9}
[{"$nulls":9},2.82,"KgCO2eq/Kg","Chile"]
[]
[{"$nulls":9},"0.25","kg CO2e / kWh"]
[{"$nulls":9},"3.19","kg CO2e / kg","OneClick"]
{"$rows_empty":14}
[{"$nulls":9},"Directrices del IPCC de 2006 para los inventarios nacionales de gases de efecto invernadero"]
[]
[]
[]
[]
["ELECTRICIDAD"]
[null,"Factores de Emisión – Energía Abierta | Comisión Nacional de Energía (energiaabierta.cl)"]
[null,"Última fecha disponible: Marzo 2022"]
[null,null,0.3368," KgCO2eq/ KWh",null,{"$f":"C39*1000","v":336.8},"KgCO2eq/MWh",1000,"KWh"]
[{"$nulls":4},"Chile",{"$f":"F39/1000","v":0.3368},"KgCO2eq/KWh"]
[{"$nulls":9},"KWh","Kg"]
[{"$nulls":4},"OneClick","0.62","kg CO2e / kWh",null,null,14.1,1]
[{"$nulls":9},3229,{"$f":"J43/J42","v":229.00709219858157}]
[]
["PELLET"]
[]
[]
[null,null,"Mundo",null,null,0.0377,"kg CO2e / kWh"]
[{"$nulls":3},"Contenido carbono biogénico",null,0.36,"kg CO2e / kWh"]
[]
[null,null,"Francia",null,null,0.027,"kg CO2e / kWh"]
[{"$nulls":3},"Contenido carbono biogénico",null,0.36,"kg CO2e / kWh"]

{"sheet":"DAP","index":27,"n_rows":126,"n_cols":10,"rows_kept":126,"hidden":true}
[null,"Material.Biblioteca.Minergie","Unidad de medida","kgCO2e","N° DAP","Fecha Caducidad","País","Comentario"]
[null,"Barra de refuerzo de acero_CAP Acero","ton",1430,"S-P-02002","2025-04-29","Chile"]
[null,"Arena ","ton",3.345,"S-P-06948","2027-09-21","Colombia"]
[null,"Relleno Triturada 3/8\"","ton",2.699,"S-P-06948","2027-09-21","Colombia"]
[null,"Relleno Triturada 1\"","ton",2.699,"S-P-06948","2027-09-21","Colombia"]
[null,"Grava 1,45 ton/m3","ton",2.94,"EPD-ND-CS_001","2027-07-20","Italia"]
[null,"Ready-Mix Concrete G025 (Hormigón)","m3",294,"S-P-01722","2024-10-15","Chile"]
[null,"Estructura metalcon","m2",4.28,"S-P-05012","2026-10-29","Argentina"]
[null,"Impermeabilizante (membrana PVC)","m2",4.39,"S-P-00691","2027-07-25","Chile"]
[null,"Poliestireno expandido 100mm","m2",6.42,"EPDIE-18-16","2024-04-02","Irlanda"]
[null,"Lana de vidrio_Aislanglass (50 mm)","m2",1.09,"S-P-05623","2027-04-27","Chile"]
[null,"Lana de vidrio 50mm","m2",4.81,"S-P-05626","2027-04-19","Chile"]
[null,"Plancha volcanita 15mm","m2",3.8,"S-P-05624","2027-03-30","Chile"]
[null,"Plancha de fibrocemento Siding 6mm","m2",4.06,"S-P-05622","2027-03-30","Chile"]
[null,"Plancha de fibrocemento Base cerámica 6mm","m2",4.13,"S-P-05622","2027-03-30","Chile"]
[null,"Plancha de madera terciada_CMPC 6,5-25mm","m3",320,"S-P-02010","2027-12-19","Chile"]
[null,"Plancha de OSB 9,5mm","m3",242.58,"4788424634.101.1","01-072025","USA/Canada"]
[null,"Placa MDF (fibra de madera) 3-25mm","m3",548,"EPDIE-22-97","2027-12-11","Irlanda"]
[null,"Madera Laminada Pino Radiata 50mm","m3",137.19,"4788424634.104.1","2025-07-01","USA/Canada"]
[null,"Madera cepillada pino radiata","m3",29.87,"S-P-08617","2026-06-14","Suecia"]
[null,"Madera CLT","m3",262,"S-P-07432","2028-06-05","Australia"]
[null,"Panel sandwich con aislante poliuretano expandido_40 mm","m2",36.43,"S-P-003362","2026-02-24","Global"]
[null,"Panel sandwich con aislante poliuretano expandido_60 mm","m2",41.56,"S-P-003362","2026-02-24","Global"]
[null,"Panel sandwich con aislante poliuretano expandido_80 mm","m2",47.39,"S-P-003362","2026-02-24","Global"]
[null,"Ladrillo con perforaciones","kg",0.12,"MD-21057-EN","2026-11-08","Dinamarca"]
[null,"Plancha de acero","ton",2720,"EPDIE-21-45","2024-06-27","Irlanda"]
[null,"Plancha acero zincalume","m2",8.55,"S-P-08456","2028-05-30","Australia"]
[null,"Perfil de acero (espesor 3 a 40 mm / largo 6 a 12 m)","un",371,"S-P-08495","2028-04-20","España"]
[null,"Puertas madera","un",57.9,"NEPD-1535-525-EN"]
[null,"Vidrios Plano 4 mm ","m2",10.4,"S-P-06326","2027-09-20"]
[null,"Marcos PVC","kg",3572,"S-P-02003","2025-12-30"]
[null,"Ventana marco PVC y DVH","m2",76.4,"S-P-06115","2027-06-21","Suecia"]
[null,"Polietileno","kg",3.25,"S-P-02989","2027-04-26","Italia"]
[null,"Cerámicas piso y muros","m2",14.1,"EPD10197","2024-05-17","México"]
[null,"Radiador secatoallas con agua caliente 844W","kw",80,"SCGA-00081-V01.01-FR","2025-10-24","Francia"]
[null,"Radiador secatoallas con aguacaliente 844W (unidad)","un",67.55,"SCGA-00081-V01.01-FR","2025-10-24","Francia"]
[null,"Radiador con agua caliente 1,019kw","kw",67.8,"CHAP-00002-V01.01-FR","2024-09-16","Francia"]
[null,"Radiador con agua caliente 1,019kw (unidad)","un",69.1,"CHAP-00002-V01.01-FR","2024-09-16","Francia"]
[null,"Acumulador ACS 200 lts","un",499,"SCGA-00091-V01.01-FR","2026-08-01","Francia"]
[null,"Caldera ACS a gas 16kw","kw",14.6,"CHAP-00011-V01.02-EN","2026-06-01","Francia"]
[null,"Caldera ACS a gas 16kw (unidad)","un",233,"CHAP-00011-V01.02-EN","2026-06-01","Francia"]
[null,"Pintura interior al agua baja en COV","m2",0.24,"S-P-05758","2027-03-22"]
[null,"Piso laminado 12mm","m3",822,"S-P-09368","2028-06-18","Europa"]
[null,"Celulosa proyectada","m2",{"$f":"1.6+0.128+1.76","v":{"v":3.4880000000000004,"d":"3.49"}},"EPDIE-20-24","2025-05-12","Irlanda"]
[null,"Bomba de calor aire-agua frío o calor 4,89kw","kw",267,"ALDE-00011-V01.01-FR","2027-02-01","Francia"]
[null,"Bomba de calor aire-agua frío o calor 4,89kw (unidad)","un",1310,"ALDE-00011-V01.01-FR","2027-02-01","Francia"]
[null,"Calentador eléctrico de ACS","un",1610,"HITA-00001-V01.01-FR","2026-03-20","Francia","Refrigerante R32 ok"]
[null,"Panel fotovoltaico 423Wp","m2",135,"VSOL-00004-V01.01-FR","2026-12-23","Francia"]
[null,"Fancoil (potencia de calor 0,8-17KW y de frío 0,6-12KW)","kw",152,"CARR-10006-V02.01-FR","2027-11-01","Francia","Para 2 ductos o 4 ductos (refrigeracion y calefacción)"]
[null,"Extractor / Ventilador (independiente) caudal 42m3/h","un",{"$f":"5.32+0.0752+2.36","v":{"v":7.7552,"d":"7.76"}},"UNIC-00031-V01.01-FR","2027-07-01","Francia (INIES)","Unidad = 41,64 m3/h"]
[null,"Ascensor (5 pisos)","un",{"$f":"7960+218+339","v":8517},"RTS_66_20","2025-06-22","Finlandia"]
[null,"Caldera biomasa 8kw","kw",147,"FLVE-00003-V01.02-FR","2023-08-18","Francia"]
[null,"Caldera biomasa 8kw (unidad)","un",1180,"FLVE-00003-V01.02-FR","2023-08-18","Francia"]
{"$rows_empty":14}
[{"$nulls":3},8.71,{"$f":"10^2","v":100},{"$f":"D68*E68","v":871.0000000000001},null,null,"Biblioteca Minergie","Biblioteca Personal"]
[{"$nulls":3},2.19,{"$f":"10^1","v":10},{"$f":"D69*E69","v":21.9},null,null,"Material.Biblioteca.Minergie","Material.Biblioteca.Personal"]
[{"$nulls":3},2.19,{"$f":"10^0","v":1},{"$f":"D70*E70","v":2.19},null,null,{"$f":"B2","v":"Barra de refuerzo de acero_CAP Acero"},{"$f":"'A7'!C105","v":0}]
[{"$nulls":8},{"$f":"B3","v":"Arena "},{"$f":"'A7'!C106","v":"Biblioteca DAP Personal"}]
[{"$nulls":3},-1.74,{"$f":"10^2","v":100},{"$f":"D72*E72","v":-174},null,null,"Relleno Triturada 3/8\"",{"$f":"'A7'!C107","v":"Material.Biblioteca.Personal"}]
[{"$nulls":8},"Relleno Triturada 1\"",{"$f":"'A7'!C108","v":0}]
[{"$nulls":8},"Grava 1,45 ton/m3",{"$f":"'A7'!C109","v":0}]
[{"$nulls":8},"Ready-Mix Concrete G025 (Hormigón)",{"$f":"'A7'!C110","v":0}]
[{"$nulls":8},"Estructura metalcon",{"$f":"'A7'!C111","v":0}]
[{"$nulls":8},"Impermeabilizante (membrana PVC)",{"$f":"'A7'!C112","v":0}]
[{"$nulls":8},"Poliestireno expandido 100mm",{"$f":"'A7'!C113","v":0}]
[{"$nulls":8},"Lana de vidrio_Aislanglass (50 mm)",{"$f":"'A7'!C114","v":0}]
[{"$nulls":8},"Lana de vidrio 50mm",{"$f":"'A7'!C115","v":0}]
[{"$nulls":8},"Plancha volcanita 15mm",{"$f":"'A7'!C116","v":0}]
[{"$nulls":8},"Plancha de fibrocemento Siding 6mm",{"$f":"'A7'!C117","v":0}]
[{"$nulls":8},"Plancha de fibrocemento Base cerámica 6mm",{"$f":"'A7'!C118","v":0}]
[{"$nulls":8},"Plancha de madera terciada_CMPC 6,5-25mm",{"$f":"'A7'!C119","v":0}]
[{"$nulls":8},"Plancha de OSB 9,5mm",{"$f":"'A7'!C120","v":0}]
[{"$nulls":8},"Placa MDF (fibra de madera) 3-25mm",{"$f":"'A7'!C121","v":0}]
[{"$nulls":8},"Madera Laminada Pino Radiata 50mm",{"$f":"'A7'!C122","v":0}]
[{"$nulls":8},"Madera cepillada pino radiata",{"$f":"'A7'!C123","v":0}]
[{"$nulls":8},"Madera CLT",{"$f":"'A7'!C124","v":0}]
[{"$nulls":8},"Panel sandwich con aislante poliuretano expandido_40 mm",{"$f":"'A7'!C125","v":0}]
[{"$nulls":8},"Panel sandwich con aislante poliuretano expandido_60 mm",{"$f":"'A7'!C126","v":0}]
[{"$nulls":8},"Panel sandwich con aislante poliuretano expandido_80 mm",{"$f":"'A7'!C127","v":0}]
[{"$nulls":8},"Ladrillo con perforaciones",{"$f":"'A7'!C128","v":0}]
[{"$nulls":8},"Plancha de acero",{"$f":"'A7'!C129","v":0}]
[{"$nulls":8},"Plancha acero zincalume",{"$f":"'A7'!C130","v":0}]
[{"$nulls":8},"Perfil de acero (espesor 3 a 40 mm / largo 6 a 12 m)",{"$f":"'A7'!C131","v":0}]
[{"$nulls":8},"Puertas madera",{"$f":"'A7'!C132","v":0}]
[{"$nulls":8},"Vidrios Plano 4 mm ",{"$f":"'A7'!C133","v":0}]
[{"$nulls":8},"Marcos PVC",{"$f":"'A7'!C134","v":0}]
[{"$nulls":8},"Ventana marco PVC y DVH",{"$f":"'A7'!C135","v":0}]
[{"$nulls":8},"Polietileno",{"$f":"'A7'!C136","v":0}]
[{"$nulls":8},"Cerámicas piso y muros",{"$f":"'A7'!C137","v":0}]
[{"$nulls":8},"Radiador secatoallas con agua caliente 844W",{"$f":"'A7'!C138","v":0}]
[{"$nulls":8},"Radiador secatoallas con aguacaliente 844W (unidad)",{"$f":"'A7'!C139","v":0}]
[{"$nulls":8},"Radiador con agua caliente 1,019kw",{"$f":"'A7'!C140","v":0}]
[{"$nulls":8},"Radiador con agua caliente 1,019kw (unidad)",{"$f":"'A7'!C141","v":0}]
[{"$nulls":8},"Acumulador ACS 200 lts",{"$f":"'A7'!C142","v":0}]
[{"$nulls":8},"Caldera ACS a gas 16kw",{"$f":"'A7'!C143","v":0}]
[{"$nulls":8},"Caldera ACS a gas 16kw (unidad)",{"$f":"'A7'!C144","v":0}]
[{"$nulls":8},"Pintura interior al agua baja en COV",{"$f":"'A7'!C145","v":0}]
[{"$nulls":8},"Piso laminado 12mm",{"$f":"'A7'!C146","v":0}]
[{"$nulls":8},"Celulosa proyectada",{"$f":"'A7'!C147","v":0}]
[{"$nulls":8},"Bomba de calor aire-agua frío o calor 4,89kw",{"$f":"'A7'!C148","v":0}]
[{"$nulls":8},"Bomba de calor aire-agua frío o calor 4,89kw (unidad)",{"$f":"'A7'!C149","v":0}]
[{"$nulls":8},"Calentador eléctrico de ACS",{"$f":"'A7'!C150","v":0}]
[{"$nulls":8},{"$f":"B48","v":"Panel fotovoltaico 423Wp"}]
[{"$nulls":8},"Fancoil (potencia de calor 0,8-17KW y de frío 0,6-12KW)"]
[{"$nulls":8},"Extractor / Ventilador (independiente) caudal 42m3/h"]
[{"$nulls":8},{"$f":"B51","v":"Ascensor (5 pisos)"}]
[{"$nulls":8},"Caldera biomasa 8kw"]
[{"$nulls":8},"Caldera biomasa 8kw (unidad)"]
[{"$nulls":8},0]
[]
[{"$nulls":8},"Biblioteca","Material"]
[{"$nulls":8},"Material.Biblioteca.Personal","Lana de vidrio 160mm"]
[{"$nulls":8},"Material.Biblioteca.Personal","balblabla"]